Workbook

Sheet Design Regulator
A1: LM(2)5137(F)-Q1 Functional Safety Buck Controller Design Tool
O2: http://www.ti.com/product/lm5175
A3: About | C3: xx | F3: = Input Box | O3: TERMS OF USE
A5: Step 1: Operating Specifications
D7: Input Voltage – Min, VIN(min) | E7: 24 | F7: V
D8: Input Voltage – Nom, VIN(nom) | E8: 48 | F8: V
D9: Input Voltage – Max, VIN(max) | E9: 65 | F9: V
D10: Output Voltage, VOUT | E10: 5 | F10: V | I10: Output Voltage, VOUT2 | J10: 3.3 | K10: V
D11: Full Load Output Current, IOUT | E11: 20 | F11: A | I11: Full Load Output Current, IOUT2 | J11: 20 | K11: A
D12: Switching Frequency, FSW | E12: 250 | F12: kHz
D13: Frequency Set Resistor, RRT | E13: =IF('Standard Value Calculator'!O4/1000>550, "N/A",'Standard Value Calculator'!O4/1000) -> 93.1 | F13: kΩ
D14: Ambient Temperature, TA | E14: 25 | F14: °C
A16: Step 2: Current Sense Resistors
D17: Required IOCP Setpoint at VIN(nom) | E17: 26 | F17: A | I17: Required IOCP Setpoint at VIN(nom) | J17: 26 | K17: A
D18: Recommended Sense Resistance | E18: =Rs_ideal*1000 -> 1.99021414 | F18: mΩ | I18: Recommended Sense Resistance | J18: =Rs2_ideal*1000 -> 2.078031844 | K18: mΩ
D19: Effective Sense Resistance, RS | E19: 2 | F19: mΩ | I19: Effective Sense Resistance, RS2 | J19: 2 | K19: mΩ
D20: Min Inductor Sat Current, ILO(SAT) | E20: ='Variable Management'!B96 -> 30 | F20: A | I20: Min Inductor Sat Current, ILO2(SAT) | J20: ='Variable Management'!D96 -> 30 | K20: A
D21: Max power loss in shunt | E21: ='Variable Management'!B106 -> 1.396301381 | F21: W | I21: Max power loss in shunt RS2 | J21: ='Variable Management'!D106 -> 1.499760861 | K21: W
D22: VIN(min) | E22: ='Variable Management'!B98 -> 26.3378082 | F22: A | I22: VIN(min) | J22: ='Variable Management'!D98 -> 27.34087506 | K22: A
C23: IOUT(typ) at OCP Inception: | D23: VIN(nom) | E23: ='Variable Management'!B99 -> 25.85249035 | F23: A | H23: IOUT2(typ) at OCP Inception: | I23: VIN(nom) | J23: ='Variable Management'!D99 -> 27.12652524 | K23: A
D24: VIN(max) | E24: ='Variable Management'!B100 -> 25.72542771 | F24: A | I24: VIN(max) | J24: ='Variable Management'!D100 -> 27.07040562 | K24: A
A26: Step 3: Buck Inductances
D27: Ch1 Recommended Inductance | E27: =IF('Variable Management'!B45<1.1, ROUND('Variable Management'!B45,2), ROUND('Variable Management'!B45,1)) -> 1.8 | F27: µH | I27: Ch2 Recommended Inductance | J27: =IF('Variable Management'!D45<1, ROUND('Variable Management'!D45,2), ROUND('Variable Management'!D45,1)) -> 1.2 | K27: µH
D28: Ch1 Inductance, LO1 | E28: 2.2 | F28: µH | I28: Ch2 Inductance, LO2 | J28: 2.2 | K28: µH
D29: Ch1 Inductor DCR | E29: 2.85 | F29: mΩ | I29: Ch2 Inductor DCR | J29: 2.85 | K29: mΩ
D30: DIL as a % at VIN(nom) | E30: ='Variable Management'!B69*100 -> 41.47509651 | F30: % | I30: DIL2 as a % at VIN(nom) | J30: ='Variable Management'!D69*100 -> 28.73474756 | K30: %
D31: Estimate Core Loss at VIN(nom) | E31: 0.65 | F31: W | I31: Estimate Core Loss at VIN(nom) | J31: 0.4 | K31: W
A33: Step 4: Output Capacitors
D34: =IF(MODE=1, "Ch1 Output Voltage Ripple Spec", "Output Voltage Ripple Spec") -> Ch1 Output Voltage Ripple Spec | E34: 80 | F34: mVPK-PK | I34: Ch2 Output Voltage Ripple Spec | J34: 50 | K34: mVPK-PK
D35: =IF(MODE=1, "Ch1 Minimum Output Capacitance", "Minimum Output Capacitance") -> Ch1 Minimum Output Capacitance | E35: ='Variable Management'!B122 -> 51.84387064 | F35: µF | I35: Ch2 Minimum Output Capacitance | J35: ='Variable Management'!D122 -> 57.46949512 | K35: µF
D36: Output Capacitance (derated), COUT | E36: 120 | F36: µF | I36: Ch2 Output Cap (derated), COUT2 | J36: 165 | K36: µF | L36: =CHOOSE(SCH_MODE, "", "** For Single-Output Operation in 2-Phase Mode, use FB1 to set VOUT **", "** For Single-Output Operation in 3-Phase Mode, use FB1 of master IC to set VOUT. Connect FB2 of master IC to AGND. Connect FB2 of slave IC to VDDA to configure it as a slave **", "** For Single-Output Operation in 4-Phase Mode, use FB1 of master IC to set VOUT. Connect FB2 of master IC to AGND. Connect FB2 of slave IC to VDDA to configure it as a slave **") -> 
D37: =IF(MODE=1, "Ch1 Maximum Permitted ESR", "Maximum Permitted ESR") -> Ch1 Maximum Permitted ESR | E37: ='Variable Management'!B126 -> 8.697828144 | F37: mΩ | I37: Ch2 Maximum Permitted ESR | J37: ='Variable Management'!D126 -> 8.155484289 | K37: mΩ
D38: =IF(MODE=1, "Ch1 Output Capacitor ESR", "Output Capacitor ESR") -> Ch1 Output Capacitor ESR | E38: 1 | F38: mΩ | I38: Ch2 Output Capacitor ESR | J38: 1 | K38: mΩ
D39: Resulting Output Voltage Ripple (max) | E39: ='Variable Management'!B128*1000 -> 35.54404747 | F39: mVPK-PK | I39: Resulting Output Voltage Ripple (max) | J39: ='Variable Management'!D128*1000 -> 18.33874593 | K39: mVPK-PK
D40: Output Capacitor RMS Current (max) | E40: ='Variable Management'!B115 -> 2.467925463 | F40: ARMS | I40: Output Capacitor RMS Current (max) | J40: ='Variable Management'!D115 -> 1.691402101 | K40: ARMS
A42: Step 5: Input Capacitors
D43: Input Voltage Ripple Spec | E43: 480 | F43: mVpk-pk
D44: Minimum Input Capacitance | E44: ='Variable Management'!B147 -> 27.48842593 | F44: µF
D45: Input Capacitance, CIN | E45: 40 | F45: µF
D46: Maximum Permitted ESR | E46: ='Variable Management'!B153 -> 6.345096437 | F46: mΩ
D47: Input Capacitor ESR | E47: 1 | F47: mΩ
D48: Resulting Input Voltage Ripple (max) | E48: ='Variable Management'!B159*1000 -> 357.7991093 | F48: mVPK-PK
D49: Input Capacitor RMS Current (max) | E49: ='Variable Management'!B139 -> 8.232571696 | F49: ARMS
A51: Step 6: Soft start, Input UVLO, PFM, DRSS
D52: Soft-Start Time, tSS | E52: 4.6 | F52: ms
D53: Soft-Start Resistance, RSS | E53: =IF(Tss>1.5/1000, Rss_u/1000, 0) -> 20 | F53: kΩ
D54: UVLO Turn-on Voltage, VIN(on) | E54: 20 | F54: V
D55: UVLO Turn-off Voltage, VIN(off) | E55: 14 | F55: V
D56: Eff. EN Pin Series Resistance, RUV3 | E56: 2.5 | F56: kΩ
D57: Total EN Hysteresis Current | E57: 20 | F57: µA
D58: UVLO Resistance, RUV1 | E58: ='Variable Management'!D186 -> 200 | F58: kΩ
D59: UVLO Resistance, RUV2 | E59: ='Variable Management'!D185 -> 10.5 | F59: kΩ
D60: =IF(DEMB=1, "* Tie PFM/SYNCIN to AGND", "*Tie PFM/SYNCIN to VDDA") -> * Tie PFM/SYNCIN to AGND
D61: CNFG Resistance, RCNFG | E61: =Rcnfg -> 10 | F61: kΩ
A63: Step 7: Compensation Design
D64: =IF(MODE=1, "Ch1 Load Pole Frequency", "Load Pole Frequency") -> Ch1 Load Pole Frequency | E64: =Fp_dominant -> 6518.214771 | F64: Hz | I64: Ch2 Load Pole Frequency | J64: =Fp_dominant_Ch2 -> 6790.200532 | K64: Hz
D65: =IF(MODE=1, "Ch1 ESR Zero Frequency", "ESR Zero Frequency") -> Ch1 ESR Zero Frequency | E65: =Fesr/1000 -> 1326.291194 | F65: kHz | I65: Ch2 ESR Zero Frequency | J65: =Fesr_Ch2/1000 -> 964.5754138 | K65: kHz
D66: =IF(MODE=1, "Ch1 Desired Crossover Frequency", "Desired Crossover Frequency") -> Ch1 Desired Crossover Frequency | E66: 35 | F66: =" kHz " -> kHz | I66: Ch2 Desired Crossover Frequency | J66: 35 | K66: =" kHz " -> kHz
D67: =IF(MODE=1, "Ch1 Error Amp Pole Frequency", "Error Amp Pole Frequency") -> Ch1 Error Amp Pole Frequency | E67: =Fp1_u -> 0.2622662106 | F67: Hz | I67: Ch2 Error Amp Pole Frequency | J67: =Fp1_u_Ch2 -> 0.2150597457 | K67: Hz
D68: =CHOOSE(Ch1_VOUT, "Ch1 3.3V Out: Tie 7.5kΩ FB1 to VDDA", "Ch1 5V Out: Tie 24.9kΩ FB1 to VDDA", "Ch1 12V Out: Tie 48.7kΩ FB1 to VDDA", IF(MODE=1, "Ch1 Upper Feedback Resistor", "Upper Feedback Resistor")) -> Ch1 5V Out: Tie 24.9kΩ FB1 to VDDA | E68: 78.7 | F68: kΩ | I68: =CHOOSE(Ch2_VOUT, "Ch2 3.3V Out: Tie 7.5kΩ FB2 to VDDA", "Ch2 5V Out: Tie 24.9kΩ FB2 to VDDA", "Ch2 12V: Tie 48.7kΩ FB2 to VDDA", "Ch2 Upper Feedback Resistor") -> Ch2 3.3V Out: Tie 7.5kΩ FB2 to VDDA | J68: 78.7 | K68: kΩ
D69: =IF(Ch1_VOUT=4, IF(MODE=1,"Ch1 Lower Feedback Resistor","Lower Feedback Resistor"),"") ->  | E69: =IF(Vout=Vref,"OPEN",Rfb2_u/1000) -> 15 | F69: =IF(Vout=Vref,"","kΩ") -> kΩ | I69: =IF(Ch2_VOUT=4, "Ch2 Lower Feedback Resistor","") ->  | J69: =IF(Vout2=Vref,"OPEN",Rfb4_u/1000) -> 24.9 | K69: =IF(Vout=Vref,"","kΩ") -> kΩ
D70: =IF(Ch1_VOUT=4, IF(MODE=1,"Ch1 Actual Voltage Setpoint","Actual Voltage Setpoint"),"") ->  | E70: ='Variable Management'!B261 -> 4.997333333 | F70: V | I70: =IF(Ch2_VOUT=4, "Ch2 Actual Voltage Setpoint","") ->  | J70: ='Variable Management'!D261 -> 3.328514056 | K70: V
A72: Compensation Components
B73: Calculated / | C73: Std Values | D73: =C73 -> Std Values | F73: Actual P/Z Frequencies
A74: RC1 | B74: =Rcea1/1000 -> 5.497787138 | C74: ='Standard Value Calculator'!O26 -> 5.49 | D74: =C74 -> 5.49 | E74: kΩ | F74: =Fp1_u -> 0.2622662106 | G74: Hz (FPEA)
A75: CC1 | B75: =Cc1ea*1000000000 -> 8.271117051 | C75: ='Standard Value Calculator'!O27 -> 8.2 | D75: 8.2 | E75: nF | F75: =Fz1_u/1000 -> 3.535362372 | G75: kHz (FZCOMP)
A76: CC2 | B76: =IF(Cc2ea<0, "N/A", Cc2ea*1000000000000) -> 224.2456647 | C76: ='Standard Value Calculator'!O28 -> 220 | D76: 220 | E76: pF | F76: =Fp2_u/1000 -> 127.5149808 | G76: kHz (FPCOMP)
A77: RC2 | B77: =Rcea2/1000 -> 4.989241827 | C77: ='Standard Value Calculator'!O30 -> 4.99 | D77: 4.99 | E77: kΩ | F77: =Fp1_u_Ch2 -> 0.2150597457 | G77: Hz (FPEA2)
A78: CC3 | B78: =Cc3ea*1000000000 -> 9.114178569 | C78: ='Standard Value Calculator'!O31 -> 10 | D78: 10 | E78: nF | F78: =Fz1_u_Ch2/1000 -> 3.189477821 | G78: kHz (FZCOMP2)
A79: CC4 | B79: =IF(Cc4ea<0, "N/A", Cc4ea*1000000000000) -> 247.8513872 | C79: =IF(1, 'Standard Value Calculator'!O32) -> 270 | D79: 270 | E79: pF | F79: =Fp2_u_Ch2/1000 -> 115.0001181 | G79: kHz (FPCOMP2)
A81: Efficiency / Power Loss Analyzer
A83: Step 8: Efficiency
F84: =IF(MODE=1, "Ch1 Power MOSFETs", "Power MOSFETs") -> Ch1 Power MOSFETs | G84: (Q1, Q2) | I84: =IF(MODE=1, "Ch2 Power MOSFETs ", "Power MOSFETs ") -> Ch2 Power MOSFETs | J84: (Q3, Q4)
E85: '852NL, '818NL | H85: '852NL, '818NL
E86: High side | F86: Low side | H86: High side | I86: Low side
D87: On-State Resistance, RDS(on) | E87: 11.5 | F87: 3.3 | G87: mΩ | H87: 11.5 | I87: 3.3 | J87: mΩ
D88: Total Gate Charge, QG | E88: 8 | F88: 31 | G88: nC | H88: 8 | I88: 31 | J88: nC
D89: Gate-Drain Charge, QGD | E89: 2.8 | F89: 11.2 | G89: nC | H89: 2.8 | I89: 11.2 | J89: nC
D90: Gate-Source Charge, QGS | E90: 3.1 | F90: 11 | G90: nC | H90: 3.1 | I90: 11 | J90: nC
D91: Output Charge, QOSS | F91: 55 | G91: nC | I91: 55 | J91: nC
D92: Output Capacitance, COSS | E92: 116 | F92: 484 | G92: pF | H92: 116 | I92: 484 | J92: pF
D93: Gate Resistance, RG | E93: 1.2 | F93: 1.2 | G93: Ω | H93: 1.2 | I93: 1.2 | J93: Ω
D94: Transconductance, gFS | E94: 55 | F94: 200 | G94: S | H94: 55 | I94: 200 | J94: S
D95: Gate Miller Plateau Voltage, VPL | E95: 3 | F95: 3 | G95: V | H95: 3 | I95: 3 | J95: V
D96: Body Diode Forward Voltage, VBD | E96: 0.7 | F96: 0.7 | G96: V | H96: 0.7 | I96: 0.7 | J96: V
D97: Body Diode Rev Recovery Charge, QRR | F97: 73 | G97: nC | I97: 73 | J97: nC
D98: Thermal Resistance, θJA | E98: 42 | F98: 40 | G98: °C/W | H98: 42 | I98: 40 | J98: °C/W
A104: Step 9: IC Power Dissipation
D105: IC Power Dissipation | E105: ='Variable Management'!B345 -> 0.0975 | F105: W
D106: IC Junction Temperature (estimate) | E106: ='Variable Management'!B349 -> 28.393 | F106: °C

Sheet BOM & Schematic
A37: ** Tie PFM/SYNCIN to VDDA for PFM, AGND for FPWM **
A38: ** For dual-output operation, tie FB1/FB2 to VDDA through a 7.5kΩ, 24.9kΩ or 49.9kΩ resistor for fixed 3.3V, 5V and 12V outputs, respectively **
A39: ** For single-output operation in 2-phase mode, use FB1 to set VOUT. Connect FB2 to AGND to disable the EA of channel 2 **
A40: ** For single-output operation in 3-phase or 4-phase mode, use FB1 of the master IC to set VOUT. Connect FB2 of the master IC to AGND. Connect FB1 of the slave IC to GND for FPWM and to PFM/SYNCIN of the master for PFM. Connect FB2 of the slave IC to GND to configure it as a slave **
A41: =CHOOSE(MODE, "VIN = "&VIN_min&" V to "&VIN_max&" V, VOUT1 = "& Vout &" V, IOUT1 = " &Iout &"A"&", VOUT2 = "& Vout2 &" V, IOUT2 = " &Iout2 & " A, Fsw = " & Fsw/1000 &" kHz, Current Limit = "&ROUNDUP(Ilimit_DC,0)&" A", "VIN = "&VIN_min&" V to "&VIN_max&" V, VOUT = "& Vout &" V, IOUT = " &Iout & " A, Fsw = " & Fsw/1000 &" kHz, Current Limit = "&ROUNDUP(Ilimit_DC,0)&" A") -> VIN = 24 V to 65 V, VOUT1 = 5 V, IOUT1 = 20A, VOUT2 = 3.3 V, IOUT2 = 20 A, Fsw = 250 kHz, Current Limit = 26 A
A42: High Efficiency Synchronous Buck Regulator BOM
A43: Count | B43: Ref Des | C43: Value | D43: Description | H43: Size | I43: Part Number | J43: MFR
A44: 2 | B44: CBOOT1, CBOOT2 | C44: 0.1 | D44: =C44 -> 0.1 | H44: 0603 | I44: Std | J44: Std
A45: 1 | B45: CC1 | C45: ='Design Regulator'!D75 -> 8.2 | D45: 8.2 | H45: 0603 | I45: Std | J45: Std
A46: 1 | B46: CC2 | C46: ='Design Regulator'!D76 -> 220 | D46: 220 | H46: 0603 | I46: Std | J46: Std
A47: 1 | B47: CC3 | C47: =IF(MODE=1, 'Variable Management'!E377, "N/A") -> 10 | D47: =C47 -> 10 | H47: =IF(MODE=1, "0603", "-") -> 0603 | I47: =IF(MODE=1, "Std", "-") -> Std | J47: =IF(MODE=1, "Std", "-") -> Std
A48: 1 | B48: CC4 | C48: =IF(MODE=1, 'Variable Management'!E378, "N/A") -> 270 | D48: 270 | H48: =IF(MODE=1, "0603", "-") -> 0603 | I48: =IF(MODE=1, "Std", "-") -> Std | J48: =IF(MODE=1, "Std", "-") -> Std
A49: =ROUNDUP('Design Regulator'!E45/10,0) -> 4 | B49: CIN | C49: 10 | D49: =C49 -> 10 | H49: 1210 | I49: Std | J49: Std
A50: =ROUNDUP('Design Regulator'!E36/47,0) -> 3 | B50: COUT | C50: 47 | D50: =C50 -> 47 | H50: 1210 | I50: Std | J50: Std
A51: 3 | B51: CVCC | C51: 2.2 | D51: 2.2 | H51: 0603 | I51: Std | J51: Std
A52: 1 | B52: CVDDA | C52: 0.47 | D52: 0.47 | H52: 0603 | I52: Std | J52: Std
A53: 1 | B53: LO1 | C53: ='Design Regulator'!E28 -> 2.2 | D53: ="Inductor, "&Lf*1000000&"µH, "&Rdcr*1000&"mΩ, >"&ROUNDUP(Ilimit_DC*1.3/SCH_MODE,0)&"A" -> Inductor, 2.2µH, 2.85mΩ, >34A | H53: - | I53: - | J53: Various
A54: 1 | B54: LO2 | C54: =IF(MODE = 1, 'Design Regulator'!J28, 'Design Regulator'!E28) -> 2.2 | D54: =IF(MODE=1, "Inductor, "&Lo_2*1000000&"µH, "&Rdcr2*1000&"mΩ, >"&ROUNDUP(Ilimit2_DC*1.3,0)&"A", "Inductor, "&Lf*1000000&"µH, "&Rdcr*1000&"mΩ, >"&ROUNDUP(Ilimit_DC*1.3/SCH_MODE,0)&"A") -> Inductor, 2.2µH, 2.85mΩ, >34A | H54: - | I54: - | J54: Various
A55: 2 | B55: Q1, Q2 | C55: See description | D55: ='Design Regulator'!E87 -> 11.5 | H55: Std | I55: ='Design Regulator'!E85 -> '852NL, '818NL | J55: -
A56: 2 | B56: Q3, Q4 | C56: See description | D56: ='Design Regulator'!H87 -> 11.5 | H56: Std | I56: =IF(MODE=1, 'Design Regulator'!H85, 'Design Regulator'!E85) -> '852NL, '818NL | J56: -
A57: 1 | B57: RC1 | C57: ='Design Regulator'!D74 -> 5.49 | D57: =C57 -> 5.49 | H57: 0603 | I57: Std | J57: Std
A58: 1 | B58: RC2 | C58: =IF(MODE=1, 'Variable Management'!E376, "N/A") -> 4.99 | D58: =C58 -> 4.99 | H58: =IF(MODE=1, "0603", "-") -> 0603 | I58: =IF(MODE=1, "Std", "-") -> Std | J58: =IF(MODE=1, "Std", "-") -> Std
A59: 1 | B59: RS1 | C59: =Rs*1000 -> 2 | D59: 2 | H59: 0508 | I59: Std | J59: Std
A60: 1 | B60: RS2 | C60: =IF(MODE=1, Rs_Ch2*1000, Rs*1000) -> 2 | D60: =C60 -> 2 | H60: 0508 | I60: Std | J60: Std
A61: 1 | B61: RRT | C61: ='Design Regulator'!E13 -> 93.1 | D61: 93.1 | H61: 0603 | I61: Std | J61: Std
A62: 1 | B62: RFB1 | C62: ='Design Regulator'!E68 -> 78.7 | D62: 78.7 | H62: 0603 | I62: Std | J62: Std
A63: 1 | B63: RFB2 | C63: ='Design Regulator'!E69 -> 15 | D63: 15 | H63: 0603 | I63: Std | J63: Std
A64: 1 | B64: RFB3 | C64: =IF(MODE=1, 'Design Regulator'!J68, "N/A") -> 78.7 | D64: =C64 -> 78.7 | H64: =IF(MODE=1, "0603", "-") -> 0603 | I64: =IF(MODE=1, "Std", "-") -> Std | J64: =IF(MODE=1, "Std", "-") -> Std
A65: 1 | B65: RFB4 | C65: =IF(MODE=1, 'Design Regulator'!J69, "N/A") -> 24.9 | D65: 24.9 | H65: =IF(MODE=1, "0603", "-") -> 0603 | I65: =IF(MODE=1, "Std", "-") -> Std | J65: =IF(MODE=1, "Std", "-") -> Std
A66: 1 | B66: RCNFG | C66: =Rcnfg -> 10 | D66: 10 | H66: 0603 | I66: Std | J66: Std
A67: 2 | B67: RPG1, RPG2 | C67: 100 | D67: 100 | H67: 0603 | I67: Std | J67: Std
A68: 1 | B68: RRSS | C68: =Rss_u/1000 -> 20 | D68: 20 | H68: 0603 | I68: Std | J68: Std
A69: 1 | B69: RVIN | C69: 2.2 | D69: 2.2 | H69: 0603 | I69: Std | J69: Std
A70: 1 | B70: U1 | C70: =CHOOSE(VARIANT, "LM5137F", "LM5137F-Q1","LM25137F","LM25137F-Q1") -> LM5137F-Q1 | D70: =CHOOSE(VARIANT, "IC, LM5137, Functional Safety Buck PWM Controller, 4V–80V Input", "IC, LM5137F-Q1, Functional Safety Buck PWM Controller, 4V–80V Input", "IC, LM25137F, Functional Safety Buck PWM Controller, 4V–42V Input", "IC, LM25137F-Q1, Functional Safety Buck PWM Controller, 4V–42V Input") -> IC, LM5137F-Q1, Functional Safety Buck PWM Controller, 4V–80V Input | H70: VQFNP-36 | I70: =CHOOSE(VARIANT, "LM5137FDRHAR", "LM5137FDQRHARQ1", "LM25137FDRHAR", "LM25137FDQRHARQ1") -> LM5137FDQRHARQ1 | J70: TI
A73: NOTES:
A74: ** For information on TI NexFETTM MOSFETs, see ** | D74: http://www.ti.com/nexfet | E74: **
A75: ** Inductor saturation current should be higher than the peak inductor current at the OCP setpoint for all input voltages and operating temperatures **
A76: ** Effective input and output capacitances should be appropriately derated for applied voltage and temperature, particularly with ceramics **

Sheet EVM
A1: LM(2)5137F/-Q1 Quickstart Design Tool
B6: LM25137F-Q1-EVM5D3 PCB Layout

Sheet Variable Management (hidden)
A1: EXCEL Variables Names/Calculations
B2: Input from user =
B3: Output =
B4: Constant
A5: Variable Name | B5: Value | C5: STD Units | E5: Notes | I5: Iteration
A6: Step 1: Operational Specs
A7: VIN_min | B7: ='Design Regulator'!E7 -> 24 | C7: V | D7: Minimum input voltage | I7: 1
A8: VIN_nom | B8: ='Design Regulator'!E8 -> 48 | C8: V | D8: Nominal input voltage | K8: =CHOOSE(SCH_MODE, "Efficiency vs. IOUT (Ch1)", "Efficiency vs. IOUT - 2 Ph", "Efficiency vs. IOUT - 3 Ph", "Efficiency vs. IOUT - 4 Ph") -> Efficiency vs. IOUT (Ch1) | L8: 1 | N8: Input UVLO - Yes | O8: 1 | T8: Dual Outputs | U8: 1 | W8: FPWM | X8: 1 | Z8: =CHOOSE(SCH_MODE, "Bode Plot (Ch1)", "Bode Plot - 2 Ph", "Bode Plot - 3 Ph", "Bode Plot - 4 Ph") -> Bode Plot (Ch1) | AA8: 1 | AE8: 9.6 | AF8: 41.2
A9: VIN_max | B9: ='Design Regulator'!E9 -> 65 | C9: V | D9: Maximum input voltage | K9: =IF(MODE=1, "Efficiency vs. IOUT (Ch2)", "N/A - Do Not Use") -> Efficiency vs. IOUT (Ch2) | L9: 2 | N9: Input UVLO - No | O9: 2 | T9: Single Output – 2 Phases | U9: 2 | W9: PFM | X9: 2 | Z9: =IF(MODE=1, "Bode Plot (Ch2)", "N/A - Do Not Use") -> Bode Plot (Ch2) | AA9: 2 | AE9: 19.1 | AF9: 54.9
K10: PLOT_TYPE | L10: 1 | N10: Input UVLO Yes/No | O10: 1 | P10: 1 = Yes, 2 = No | T10: Single Output – 3 Phases | U10: 3 | W10: FPWM/PFM | X10: 1 | Z10: BODE_PLOT_TYPE | AA10: 1 | AE10: 29.4 | AF10: 71.5
A11: Vout | B11: ='Design Regulator'!E10 -> 5 | C11: V | D11: Output voltage - channel 1 | O11: =IF(INPUT_UVLO=1, TRUE, FALSE) -> TRUE | T11: Single Output – 4 Phases | U11: 4
A12: Iout | B12: ='Design Regulator'!E11 -> 20 | C12: A | D12: Output current - channel 1 | I12: 1 | T12: Single/Dual Yes/No | U12: 1
A13: Vout2 | B13: ='Design Regulator'!J10 -> 3.3 | C13: V | D13: Output voltage - channel 2 | I13: 1 | K13: 3.3V | L13: 1 | N13: 3.3V | O13: 1 | T13: MODE (Single/Dual), DUAL = 1, SINGLE = 2 | U13: =IF(U12=1, 1, 2) -> 1 | W13: DRSS - OFF | X13: 1 | Z13: Shunt current sensing | AA13: 1
A14: Iout2 | B14: ='Design Regulator'!J11 -> 20 | C14: A | D14: Output current - channel 2 | K14: 5V | L14: 2 | N14: 5V | O14: 2 | T14: SINGLE OUTPUT (1 = YES) | U14: =IF(U12=1, 2, 1) -> 2 | W14: DRSS ON - 5% | X14: 2 | Z14: Inductor DCR current sensing | AA14: 2
K15: 12 | L15: 3 | N15: 12V | O15: 3 | T15: Number of Phases | U15: =SCH_MODE -> 1 | W15: DRSS ON - 10% | X15: 3 | Z15: SENSING_TYPE | AA15: 1
A16: Rout | B16: =Vout/Iout -> 0.25 | C16: W | D16: Load resistance - Channel 1 | K16: Adjustable | L16: 4 | N16: Adjustable | O16: 4 | W16: CNFG | X16: 1 | AA16: =SENSING_TYPE -> 1
A17: Rout2 | B17: =Vout2/Iout2 -> 0.165 | C17: W | K17: Ch1 Output Setting | L17: =IF(Vout=3.3, 1, IF(Vout=5, 2, IF(Vout=12, 3, 4))) -> 2 | N17: Ch2 Output Setting | O17: =IF(Vout2=3.3, 1, IF(Vout2=5, 2, IF(Vout2=12, 3, 4))) -> 1 | T17: =SCH_MODE -> 1 | X17: =IF(CNFG=1, TRUE, FALSE) -> TRUE
A18: Pout | B18: =CHOOSE(MODE, Vout*Iout+Vout2*Iout2, Vout*Iout) -> 166 | C18: W | D18: Output power
X19: LM5137 | Y19: 1
A20: Efficiency | B20: 0.9 | D20: Estimate of efficiency | X20: LM5137-Q1 | Y20: 2
A21: Pin | B21: =Pout/Efficiency -> 184.4444444 | C21: W | D21: Calculate input power assuming finite efficiency | L21: =Vout -> 5 | X21: LM25137 | Y21: 3
X22: LM25137-Q1 | Y22: 4
A23: Iin_Vinmin | B23: =Pin/VIN_min -> 7.685185185 | C23: A | W23: VARIANT | X23: =CHOOSE(VARIANT, "LM5137F", "LM5137F-Q1", "LM25137F", "LM25137F-Q1") -> LM5137F-Q1 | Y23: 2
A24: Iin_Vinnom | B24: =Pin/VIN_nom -> 3.842592593 | C24: A | D24: Input currents at min, nom, max Vin | W24: VIN-MAX | X24: =CHOOSE(VARIANT, 80, 80, 42, 42) -> 80 | Y24: V
A25: Iin_Vinmax | B25: =Pin/VIN_max -> 2.837606838 | C25: A | W25: VOUT-MAX | X25: =CHOOSE(VARIANT, 60, 60, 36, 36) -> 60 | Y25: V
A27: Fsw | B27: ='Design Regulator'!E12*1000 -> 250000 | C27: Hz | D27: Nominal switching frequency - determines RT resistor (SYNCIN must be 80-120% of this)
A28: Tsw | B28: =1/Fsw -> 4e-06 | C28: sec | D28: Switching period | I28: 1
A29: Vref | B29: 0.8 | C29: V | D29: Reference voltage
A30: Rt | B30: =(1000000/(Fsw/1000)-15)/42.8*1000 -> 93107.47664 | C30: W | D30: Frequency set resistor
A33: Step 2: Buck Inductor | B33: Channel 1 | D33: Channel 2
A34: Don1 | B34: =Vout/VIN_nom -> 0.1041666667 | F34: Ideal Duty Cycle at VIN(nom)
A35: Doff1 | B35: =1-34:34 -> 0.8958333333 | F35: Ideal 1- Duty Cycle at VIN(nom)
A37: D_Vinmin | B37: =Vout/VIN_min -> 0.2083333333 | D37: =Vout2/VIN_min -> 0.1375
A38: D_Vinnom | B38: =Vout/VIN_nom -> 0.1041666667 | D38: =Vout2/VIN_nom -> 0.06875
A39: D_Vinmax | B39: =Vout/VIN_max -> 0.07692307692 | D39: =Vout2/VIN_max -> 0.05076923077
A41: L_Vinnom | B41: =(VIN_nom-Vout)*D1_Vinnom/(Fsw*(Iout/Number_of_Phases)*0.35) -> 2.55952381e-06 | C41: H | D41: =(VIN_nom-Vout2)*D2_Vinnom/(Fsw*Iout2*0.35) -> 1.756071429e-06 | E41: H | F41: Calculated inductance for 35% ripple at VIN(nom)
A42: L_slopecomp | B42: =1000*Vout*Rs/21.82/Fsw -> 1.833180568e-06 | C42: H | D42: =1000*Vout2*Rs_Ch2/21.82/Fsw -> 1.209899175e-06 | E42: H | F42: Calculated inductance based on one times inductor downslope
A44: Lopt | B44: =B42 -> 1.833180568e-06 | C44: H | D44: =D42 -> 1.209899175e-06 | E44: H | F44: min of calculated inductances at VIN(min) and VIN(nom)
B45: =Lopt*1000000 -> 1.833180568 | C45: µH | D45: =Lopt2*1000000 -> 1.209899175 | E45: µH
A47: Lo | B47: ='Design Regulator'!E28/1000000 -> 2.2e-06 | C47: H | D47: ='Design Regulator'!J28/1000000 -> 2.2e-06 | E47: H | F47: Chosen inductance
A48: Rdcr | B48: ='Design Regulator'!E29/1000 -> 0.00285 | C48: W | D48: ='Design Regulator'!J29/1000 -> 0.00285 | E48: W | F48: Chosen inductor DCR
A50: Don2 | B50: =(Vout+Iout*(Rdcr+Rs))/(Vin+Iout*Rs) -> 0.1060990841
A51: Doff2 | B51: =1-_Don2 -> 0.8939009159
A53: D_Vinmin_2 | B53: =CHOOSE(MODE, (Vout+Iout*(Rdcr+Rs))/(VIN_min+Iout*Rs), (Vout+Iout/Number_of_Phases*(Rdcr+Rs))/(VIN_min+Iout/Number_of_Phases*Rs)) -> 0.2120216306 | D53: =(Vout2+Iout2*(Rdcr2+Rs_Ch2))/(VIN_min+Iout2*Rs_Ch2) -> 0.1413061564 | F53: Duty cycles adjusted for DCR/shunt voltage drops
A54: D_Vinnom_2 | B54: =CHOOSE(MODE, (Vout+Iout*(Rdcr+Rs))/(VIN_nom+Iout*Rs), (Vout+Iout/Number_of_Phases*(Rdcr+Rs))/(VIN_nom+Iout/Number_of_Phases*Rs)) -> 0.1060990841 | D54: =(Vout2+Iout2*(Rdcr2+Rs_Ch2))/(VIN_nom+Iout2*Rs_Ch2) -> 0.07071190674 | F54: need to include RDS(on) later
A55: D_Vinmax_2 | B55: =CHOOSE(MODE, (Vout+Iout*(Rdcr+Rs))/(VIN_max+Iout*Rs), (Vout+Iout/Number_of_Phases*(Rdcr+Rs))/(VIN_max+Iout/Number_of_Phases*Rs)) -> 0.07836715867 | D55: =(Vout2+Iout2*(Rdcr2+Rs_Ch2))/(VIN_max+Iout2*Rs_Ch2) -> 0.05222939729
A57: Iripple_Vinmin | B57: =MAX(0, (VIN_min-Vout)*D1_Vinmin_2/(Fsw*Lf)) -> 7.324383603 | C57: A | D57: =MAX(0.1, (VIN_min-Vout2)*D2_Vinmin_2/(Fsw*Lo_2)) -> 5.318249887 | E57: A
A58: Iripple_Vinnom | B58: =MAX(0, (VIN_nom-Vout)*D1_Vinnom_2/(Fsw*Lf)) -> 8.295019302 | C58: A | D58: =MAX(0, (VIN_nom-Vout2)*D2_Vinnom_2/(Fsw*Lo_2)) -> 5.746949512 | E58: A
A59: Iripple_Vinmax | B59: =MAX(0, (VIN_max-Vout)*D1_Vinmax_2/(Fsw*Lf)) -> 8.549144582 | C59: A | D59: =MAX(0, (VIN_max-Vout2)*D2_Vinmax_2/(Fsw*Lo_2)) -> 5.859188751 | E59: A
A61: Ishunt_rms_Vinmin | B61: =SQRT((Iout/Number_of_Phases)^2+(Iripple_Vinmin^2)/12) -> 20.11145319 | C61: A | D61: =SQRT(Iout2^2+(Iripple2_Vinmin^2)/12) -> 20.058838 | E61: A
A62: Ishunt_rms_Vinnom | B62: =SQRT((Iout/Number_of_Phases)^2+(Iripple_Vinnom^2)/12) -> 20.14283856 | C62: A | D62: =SQRT(Iout2^2+(Iripple2_Vinnom^2)/12) -> 20.06868919 | E62: A
A63: Ishunt_rms_Vinmax | B63: =SQRT((Iout/Number_of_Phases)^2+(Iripple_Vinmax^2)/12) -> 20.15169115 | C63: A | D63: =SQRT(Iout2^2+(Iripple2_Vinmax^2)/12) -> 20.0713936 | E63: A
A64: Max shunt power loss at full load | B64: =B62^2*Rs -> 0.8114678909 | C64: W | D64: =D62^2*Rs -> 0.8055045714 | E64: W | F64: Note this is power loss at full load - not loss near OCP!
A66: Max inductor ripple current | B66: =MAX(B57:B59) -> 8.549144582 | C66: A | D66: =MAX(D57:D59) -> 5.859188751 | E66: A | F66: Ripple current at Vin(max)
B68: =B57/(Iout/Number_of_Phases) -> 0.3662191802 | D68: =D57/Iout2 -> 0.2659124943
A69: % ripple current | B69: =B58/(Iout/Number_of_Phases) -> 0.4147509651 | D69: =D58/Iout2 -> 0.2873474756
B70: =B59/(Iout/Number_of_Phases) -> 0.4274572291 | D70: =D59/Iout2 -> 0.2929594375
A72: Inductor copper temerature | B72: 100 | C72: °C | D72: 100 | E72: °C
A73: DCR at hot | B73: =Rdcr*(1+0.0039*(B72-25)) -> 0.003683625 | C73: W | D73: =Rdcr2*(1+0.0039*(D72-25)) -> 0.003683625 | E73: W
A76: Step 3: Sense Resistors, Slope Comp, Current Limit
A78: Ilimit_DC | B78: ='Design Regulator'!E17 -> 26 | C78: A | D78: ='Design Regulator'!J17 -> 26 | E78: A | F78: Chosen OCP level - based on output current
A80: Ilimit_inductor_Vinmin | B80: =CHOOSE(MODE, Ilimit_DC+Iripple_Vinmin/2, Ilimit_DC/Number_of_Phases+Iripple_Vinmin/2) -> 29.6621918 | C80: A | D80: =Ilimit2_DC+Iripple2_Vinmin/2 -> 28.65912494 | E80: A | F80: Peak inductor current at current limit inception
A81: Ilimit_inductor_Vinnom | B81: =CHOOSE(MODE, Ilimit_DC+Iripple_Vinnom/2, Ilimit_DC/Number_of_Phases+Iripple_Vinnom/2) -> 30.14750965 | C81: A | D81: =Ilimit2_DC+Iripple2_Vinnom/2 -> 28.87347476 | E81: A
A82: Ilimit_inductor_Vinmax | B82: =CHOOSE(MODE, Ilimit_DC+Iripple_Vinmax/2, Ilimit_DC/Number_of_Phases+Iripple_Vinmax/2) -> 30.27457229 | C82: A | D82: =Ilimit2_DC+Iripple2_Vinmax/2 -> 28.92959438 | E82: A
A85: CS threshold_min | B85: 0.054 | C85: V
A86: CS threshold | B86: 0.06 | C86: V
A87: CS threshold_max | B87: 0.066 | C87: V
F88: =SENSING_TYPE -> 1
A89: Shunt required to get OCP at VIN(min) | B89: =Buck_CS_threshold/B80 -> 0.002022777022 | C89: W | D89: =Buck_CS_threshold/D80 -> 0.00209357404 | E89: W
A90: Shunt required to get OCP at VIN(nom) | B90: =Buck_CS_threshold/B81 -> 0.00199021414 | C90: W | D90: =Buck_CS_threshold/D81 -> 0.002078031844 | E90: W
A91: Shunt required to get OCP at VIN(max) | B91: =Buck_CS_threshold/B82 -> 0.001981861194 | C91: W | D91: =Buck_CS_threshold/D82 -> 0.002074000735 | E91: W
A93: Rs_ideal | B93: =B90 -> 0.00199021414 | C93: W | D93: =D90 -> 0.002078031844 | E93: W | F93: Ideal Rs for the required OCP -- based on 73mV CL threshold
A94: Rs | B94: ='Design Regulator'!E19/1000 -> 0.002 | C94: W | D94: ='Design Regulator'!J19/1000 -> 0.002 | E94: W | F94: Selected (starndard value) current limit sense resistor
A96: Current limit - peak | B96: =Buck_CS_threshold/Rs -> 30 | C96: A | D96: =Buck_CS_threshold/Rs_Ch2 -> 30 | E96: A | F96: Peak inductor current limit = min sat current
A98: Iout_OCP_Vinmin | B98: =Number_of_Phases*(Buck_CS_threshold/Rs-Iripple_Vinmin/2) -> 26.3378082 | C98: A | D98: =Buck_CS_threshold/Rs_Ch2-Iripple2_Vinmin/2 -> 27.34087506 | E98: A | F98: Current limit setpoints (i.e. IOUT) after standard components are selected
A99: Iout_OCP_Vinnom | B99: =Number_of_Phases*(Buck_CS_threshold/Rs-Iripple_Vinnom/2) -> 25.85249035 | C99: A | D99: =Buck_CS_threshold/Rs_Ch2-Iripple2_Vinnom/2 -> 27.12652524 | E99: A
A100: Iout_OCP_Vinmax | B100: =Number_of_Phases*(Buck_CS_threshold/Rs-Iripple_Vinmax/2) -> 25.72542771 | C100: A | D100: =Buck_CS_threshold/Rs_Ch2-Iripple2_Vinmax/2 -> 27.07040562 | E100: A
A102: Irms_OCP_Vinmin | B102: =SQRT((Iout_OCP_Vinmin/Number_of_Phases)^2+(Iripple_Vinmin^2)/12) -> 26.42254133 | C102: A | D102: =SQRT(Iout2_OCP_Vinmin^2+(Iripple2_Vinmin^2)/12) -> 27.38394476 | E102: A
A103: Irms_OCP_Vinnom | B103: =SQRT((Iout_OCP_Vinnom/Number_of_Phases)^2+(Iripple_Vinnom^2)/12) -> 25.96315086 | C103: A | D103: =SQRT(Iout2_OCP_Vinnom^2+(Iripple2_Vinnom^2)/12) -> 27.17720842 | E103: A
A104: Irms_OCP_Vinmax | B104: =SQRT((Iout_OCP_Vinmax/Number_of_Phases)^2+(Iripple_Vinmax^2)/12) -> 25.84353472 | C104: A | D104: =SQRT(Iout2_OCP_Vinmax^2+(Iripple2_Vinmax^2)/12) -> 27.1231949 | E104: A
A106: Pshunt_Vinmin | B106: =B102^2*Rs -> 1.396301381 | C106: W | D106: =D102^2*Rs_Ch2 -> 1.499760861 | E106: W | F106: Max power dissipations in shunt
A107: Pshunt_Vinnom | B107: =B103^2*Rs -> 1.348170405 | C107: W | D107: =D103^2*Rs_Ch2 -> 1.477201315 | E107: W
A108: Pshunt_Vinmax | B108: =B104^2*Rs -> 1.335776574 | C108: W | D108: =D104^2*Rs_Ch2 -> 1.471335403 | E108: W
A111: Step 4: Output Capacitor
A112: Icoutrms_VINmin | B112: =Iripple_Vinmin/SQRT(12) -> 2.114367422 | C112: A | D112: =Iripple2_Vinmin/SQRT(12) -> 1.535246502 | E112: A | F112: Output Cap RMS current
A113: Icoutrms_VINnom | B113: =Iripple_Vinnom/SQRT(12) -> 2.394565813 | C113: A | D113: =Iripple2_Vinnom/SQRT(12) -> 1.659001424 | E113: A
A114: Icoutrms_VINmax | B114: =Iripple_Vinmax/SQRT(12) -> 2.467925463 | C114: A | D114: =Iripple2_Vinmax/SQRT(12) -> 1.691402101 | E114: A
A115: Max Cout rms current | B115: =MAX(B112:B114) -> 2.467925463 | C115: A | D115: =MAX(D112:D114) -> 1.691402101 | E115: A
A117: Vripple1 | B117: ='Design Regulator'!E34/1000 -> 0.08 | C117: V | D117: ='Design Regulator'!J34/1000 -> 0.05 | E117: V | F117: Output voltage ripple spec(pk-pk)
A119: Output Ripple Spec (pk-pk) | B119: =Vo1_ripple*1000 -> 80 | C119: mV | D119: =Vo2_ripple*1000 -> 50 | E119: mV | F119: Vout ripple spec at Vin(nom)
A121: Coutmin | B121: =Iripple_Vinnom/(Fsw*8*Vo1_ripple) -> 5.184387064e-05 | C121: F | D121: =Iripple2_Vinnom/(Fsw*8*Vo2_ripple) -> 5.746949512e-05 | E121: F | F121: Minimum output capacitnace | H121: =Vo2_ripple -> 0.05 | I121: 1
A122: Reported Coutmin | B122: =IF(Cout_min*1000000<2, 2.2,Cout_min*1000000) -> 51.84387064 | C122: uF | D122: =IF(Cout2_min*1000000<2, 2.2,Cout2_min*1000000) -> 57.46949512 | E122: uF
A123: Cout | B123: ='Design Regulator'!E36/1000000 -> 0.00012 | C123: F | D123: ='Design Regulator'!J36/1000000 -> 0.000165 | E123: F | F123: Chosen output capacitance | I123: 1
A124: Resrmax | B124: =SQRT((Vo1_ripple/Iripple_Vinnom)^2-(1/(Fsw*Cout*8))^2) -> 0.008697828144 | C124: W | D124: =SQRT((Vo2_ripple/Iripple2_Vinnom)^2-(1/(Fsw*Cout2*8))^2) -> 0.008155484289 | E124: W | F124: Max ESR before ripple exceeds Vripple1 | I124: 1
A126: Reported Cout ESR max | B126: =IF(OR(CoutEsrMax>0.3, CoutEsrMax<0, (ISERROR(CoutEsrMax))), "N/A", CoutEsrMax*1000) -> 8.697828144 | C126: mΩ | D126: =IF(OR(Cout2EsrMax>0.3, Cout2EsrMax<0, (ISERROR(Cout2EsrMax))), "N/A", Cout2EsrMax*1000) -> 8.155484289 | E126: mΩ
A127: CoutEsr | B127: ='Design Regulator'!E38/1000 -> 0.001 | C127: W | D127: ='Design Regulator'!J38/1000 -> 0.001 | E127: W | F127: Chosen ESR | I127: 1 | K127: =ISERROR(CoutEsrMax) -> FALSE | L127: =ISERROR(B126) -> FALSE
A128: Vripple | B128: =Iripple_Vinnom*SQRT(Cout_ESR^2+(1/(8*Fsw*Cout))^2) -> 0.03554404747 | C128: Vp-p | D128: =Iripple2_Vinnom*SQRT(Cout2_ESR^2+(1/(8*Fsw*Cout2))^2) -> 0.01833874593 | E128: Vp-p | L128: =OR(CoutEsrMax>0.3,CoutEsrMax<0) -> FALSE
K129: =OR(TRUE, FALSE, TRUE) -> TRUE
A130: Step 5: Input Capacitor
K131: Two channels operating at full load
A132: Icinrms_VINmin | B132: =SQRT(D1_Vinmin_2*(Iout^2*(1-D1_Vinmin_2)+Iripple_Vinmin^2/12)) -> 8.232571696 | C132: A | D132: =SQRT(D2_Vinmin_2*(Iout2^2*(1-D2_Vinmin_2)+Iripple2_Vinmin^2/12)) -> 6.990604171 | E132: A | F132: Calculate input cap rms current with one output unloaded | K132: =SQRT(Iout^2*D1_Vinmin*(1-D1_Vinmin)+Iout2^2*D2_Vinmin*(1-D2_Vinmin)-2*Iout*Iout2*D1_Vinmin*D2_Vinmin) -> 9.512783796 | L132: A | M132: =SQRT(Iout^2*D1_Vinmin*(1-D1_Vinmin)+Iout2^2*D2_Vinmin*(1-D2_Vinmin)-2*Iout*Iout2*(0.5-D2_Vinmin*(1-D1_Vinmin))) ->  | N132: A
A133: Icinrms_VINnom | B133: =SQRT(D1_Vinnom_2*(Iout^2*(1-D1_Vinnom_2)+Iripple_Vinnom^2/12)) -> 6.20847757 | C133: A | D133: =SQRT(D2_Vinnom_2*(Iout2^2*(1-D2_Vinnom_2)+Iripple2_Vinnom^2/12)) -> 5.145805337 | E133: A | K133: =SQRT(Iout^2*D1_Vinnom*(1-D1_Vinnom)+Iout2^2*D2_Vinnom*(1-D2_Vinnom)-2*Iout*Iout2*D1_Vinnom*D2_Vinnom) -> 7.563504295 | L133: A
A134: Icinrms_VINmax | B134: =SQRT(D1_Vinmax_2*(Iout^2*(1-D1_Vinmax_2)+Iripple_Vinmax^2/12)) -> 5.419188708 | C134: A | D134: =SQRT(D2_Vinmax_2*(Iout2^2*(1-D2_Vinmax_2)+Iripple2_Vinmax^2/12)) -> 4.46654396 | E134: A | K134: =SQRT(Iout^2*D1_Vinmax*(1-D1_Vinmax)+Iout2^2*D2_Vinmax*(1-D2_Vinmax)-2*Iout*Iout2*D1_Vinmax*D2_Vinmax) -> 6.67493767 | L134: A
A135: Max Cin rms current | B135: =MAX(B132:B134, D132:D134) -> 8.232571696 | C135: A | K135: =MAX(K132:K134) -> 9.512783796 | L135: A
F136: =Number_of_Phases*D1_Vinnom -> 0.1041666667 | G136: N*D
A137: Icinrms - multiphase | B137: =Iout*SQRT((D1_Vinnom-F137/Number_of_Phases)*((F137+1)/Number_of_Phases-D1_Vinnom)) -> 6.109532624 | C137: A | F137: =FLOOR(Number_of_Phases*D1_Vinnom,1) -> 0 | G137: floor(N*D)
A138: Icinrms - multiphase - max | B138: =Iout/2/Number_of_Phases -> 10 | C138: A
A139: Final result | B139: =CHOOSE(MODE, B135, B138) -> 8.232571696 | C139: A | D139: …report this
A141: Vinripple1 | B141: ='Design Regulator'!E43/1000 -> 0.48 | C141: Vp-p | F141: Input voltage ripple spec (pk-pk)
A143: Cinmin_Vinmin | B143: =Iout/Number_of_Phases*D1_Vinmin*(1-D1_Vinmin)/(Vinripple1*Fsw) -> 2.748842593e-05 | C143: F
A144: Cinmin_Vinmax | B144: =Iout/Number_of_Phases*D1_Vinmax*(1-D1_Vinmax)/(Vinripple1*Fsw) -> 1.183431953e-05 | C144: F | F144: Calculate cap at Vinmax and 50% duty cycle (Vin = 2*Vout)
A145: Cinmin_50%D | B145: =IF(Number_of_Phases=1,MAX(Iout*0.5*(1-0.5)/(Vinripple1*Fsw),Iout2*0.5*(1-0.5)/(Vinripple1*Fsw)),MAX(Iout/Number_of_Phases*0.5*(1-0.5)/(Vinripple1*Fsw))) -> 4.166666667e-05 | C145: F | F145: Buck 50% typically worst case
A146: Cinmin | B146: =IF(VIN_min>2*Vout, B143,B145) -> 2.748842593e-05 | C146: F | D146: =Number_of_Phases -> 1
A147: Reported Cinmin | B147: =IF(Cinmin*1000000<10, 10,Cinmin*1000000) -> 27.48842593 | C147: uF | F147: …report this
A148: Cin | B148: ='Design Regulator'!E45/1000000 -> 4e-05 | C148: F | F148: Input capacitance
A149: CinEsrMax_Vinmin | B149: =-(Iout/Number_of_Phases*D1_Vinmin*(1-D1_Vinmin)/(Cin*Fsw)-Vinripple1)/(Iout/Number_of_Phases+Iripple_Vinmin/2) -> 0.006345096437 | C149: W
A150: CinEsrMax_Vinmax | B150: =-(Iout/Number_of_Phases*D1_Vinmax*(1-D1_Vinmax)/(Cin*Fsw)-Vinripple1)/(Iout/Number_of_Phases+Iripple_Vinmax/2) -> 0.01392354772 | C150: W
A151: CinEsrMax_50%D | B151: =-(Iout/Number_of_Phases*0.5*(1-0.5)/(Cin*Fsw)-Vinripple1)/(Iout/Number_of_Phases+Iripple_Vinmax/2) -> -0.0008239074106 | C151: W | F151: Calculate ESR at Vinmax and 50% duty cycle (Vin = 2*Vout)
A152: CinEsrMax | B152: =IF(VIN_min>2*Vout, B149,B151) -> 0.006345096437 | C152: W
A153: Reported Cin ESR max | B153: =IF(OR(CinEsrMax>0.3, CinEsrMax<0), "N/A",CinEsrMax*1000) -> 6.345096437 | C153: mΩ | F153: …report this
A154: RCinEsr | B154: ='Design Regulator'!E47/1000 -> 0.001 | C154: W | F154: Input capacitance series resistance (ESR)
A156: Vinripple2_Vinmin | B156: =Iout/Number_of_Phases*D1_Vinmin_2*(1-D1_Vinmin_2)/(Cin*Fsw)+(Iout/Number_of_Phases +Iripple_Vinmin/2)*RCinEsr -> 0.3577991093 | C156: Vp-p
A157: Vinripple2_Vinmax | B157: =Iout/Number_of_Phases*D1_Vinmax_2*(1-D1_Vinmax_2)/(Cin*Fsw)+(Iout/Number_of_Phases +Iripple_Vinmax/2)*RCinEsr -> 0.1687260665 | C157: Vp-p
A158: Vinripple2_50%D | B158: =Iout/Number_of_Phases*0.5*(1-0.5)/(Cin*Fsw)+(Iout/Number_of_Phases +Iripple_Vinmax/2)*RCinEsr -> 0.5242745723 | C158: Vp-p | F158: Calculate ripple at Vinmax and 50% duty cycle (Vin = 2*Vout)
A159: Vinripple2 | B159: =IF(VIN_min>2*Vout, B156,B158) -> 0.3577991093 | C159: Vp-p | F159: …report highest of these
B161: =Iout*D1_Vinmax_2*(1-D1_Vinmax_2)/(Cin*Fsw) -> 0.1444514942 | C161: Vp-p
A163: Step 6a: Soft Start
A164: Tss | B164: ='Design Regulator'!E52/1000 -> 0.0046 | C164: s | D164: Soft-start time
A165: I_Cout | B165: =Cout*Vout/Tss -> 0.1304347826 | C165: A | D165: Load cap current during soft start
A166: Rss | B166: =IF(Tss>1.25/1000,4.38*Tss*1000000,0) -> 20148 | C166: W
A167: Rss_u | B167: =IF(Rss=0, 0, 'Standard Value Calculator'!O16) -> 20000 | C167: Ω
A169: Step 6b: Other Components - DRSS, Hiccup, DEMB, MODE
A170: Tres | B170: ='Design Regulator'!E52/1000 -> 0.0046 | C170: s
A171: Cres | B171: =0.00002*Tres/1.2 -> 7.666666667e-08 | C171: F
A172: Cres_u | B172: ='Standard Value Calculator'!G4 -> 8.2e-08 | C172: F
A174: RPG1/2 | B174: 100 | C174: kΩ
A175: RFB1/2 | C175: W | E175: Tie to VDDA or AGND for 3.3V/5V output, respectively.
A176: R_MODE | C176: W | E176: Tie to VDDA or AGND for Single/Dual operation, respectively.
A177: R_DEMB | C177: W | E177: Tie to VDDA or AGND for FPWM/DEM, respectively.
A180: UVLO On Voltage | B180: ='Design Regulator'!E54 -> 20 | C180: V
A181: UVLO Off Voltage | B181: ='Design Regulator'!E55 -> 14 | C181: V
A182: Ruv3 | B182: ='Design Regulator'!E56 -> 2.5 | C182: kΩ
A183: Ien-hys | B183: ='Design Regulator'!E57 -> 20 | C183: µA
F184: Ruv3 = 0
A185: Lower UVLO Resistance | B185: =((0.95-(B181/B180))/Ien_hys/0.000001-B182*1000)*B180/(B180-1)/1000 -> 10.52631579 | C185: kΩ | D185: ='Standard Value Calculator'!O15 -> 10.5 | E185: kΩ | F185: =((0.95-(B181/B180))/Ien_hys/0.000001)*B180/(B180-1)/1000 -> 13.15789474 | G185: kΩ | H185: ='Standard Value Calculator'!S15 -> 0
A186: Upper UVLO Resistance | B186: =D185*(B180-1) -> 199.5 | C186: kΩ | D186: ='Standard Value Calculator'!O14 -> 200 | E186: kΩ | F186: =F185*(B180-1) -> 250 | G186: kΩ
A188: Actual Turn-on Voltage | B188: =1/D185*(D185+D186) -> 20.04761905 | C188: V | F188: =1/F185*(F185+F186) -> 20 | G188: V
A189: Actual Turn-off Voltage | B189: =B188*(0.95-(Ien_hys*0.001*(B182+D185*((B188-1)/B188)))) -> 14.04285714 | C189: V | F189: =F188*(0.95-(0.01*(F185*((F188-1)/F188)))) -> 16.5 | G189: V
A191: DRSS Modulation Frequency | B191: =CHOOSE(CNFG, "N/A", "5%", "10%") -> N/A
A192: RCNFG | B192: =CHOOSE(MODE, CHOOSE(CNFG, 10, 19.1, 29.4), CHOOSE(CNFG, 41.2, 54.9, 71.5)) -> 10 | C192: kΩ
A196: Step 7: Compensation
A197: Pi | B197: 3.14159265 | D197: p
A198: CS Amp Gain | B198: 10
A199: Ri | B199: =Rs*CSAmp_gain -> 0.02 | C199: W | D199: =Rs_Ch2*CSAmp_gain -> 0.02 | E199: W | F199: Current Sense effective resistance = shunt resistor Rs * CS amp gain
A200: gm | B200: 0.0006 | C200: S | F200: Error Amp Transconductance
A202: Se_ext | B202: =B206/Ri*1000 -> 2386363.636 | C202: A/s | D202: =B206/Ri_Ch2*1000 -> 2386363.636 | E202: A/s | F202: Slope Comp Slope - referred to inductor current
A203: Sn | B203: =(Vin-Vout)/Lf -> 19545454.55 | C203: A/s | D203: =(Vin-Vout2)/Lo_2 -> 20318181.82 | E203: A/s | F203: On-time Slope
A204: Sf | B204: =Vout/Lf -> 2272727.273 | C204: A/s | D204: =Vout2/Lo_2 -> 1500000 | E204: A/s | F204: Off-time Slope
K205: Tsw | L205: Tsw (us) | M205: Slope comp amplitude
A206: Se_int | B206: =(Fsw/1000)/220*42 -> 47.72727273 | C206: mV/μs | F206: Slope Comp Slope - referred to IC | K206: =Ts -> 4e-06 | L206: =Ts*1000000 -> 4 | M206: =B206*L206 -> 190.9090909 | N206: mV
A207: Sn_int | B207: =Sn*Ri/1000 -> 390.9090909 | C207: mV/μs | D207: =Sn_Ch2*Ri_Ch2/1000 -> 406.3636364 | E207: mV/μs | F207: etc
A208: Sf_int | B208: =Sf*Ri/1000 -> 45.45454545 | C208: mV/μs | D208: =Sf_Ch2*Ri_Ch2/1000 -> 30 | E208: mV/μs | F208: etc
A210: mc_buck | B210: =1+Se_ext/Sn -> 1.122093023 | D210: =1+Se_ext_Ch2/Sn_Ch2 -> 1.117449664 | F210: mc = 1 + Se/Sf for peak current-mode buck
A211: k_buck | B211: =mc_buck*(1-D1_Vinnom_2) -> 1.003039981 | D211: =mc_buck_Ch2*(1-D2_Vinnom_2) -> 1.038432668 | F211: mc*(1-d)
A213: mc | B213: =1+Se_ext/Sn -> 1.122093023 | D213: =1+Se_ext_Ch2/Sn_Ch2 -> 1.117449664
A214: k | B214: =mc_buck*(1-D1_Vinnom_2) -> 1.003039981 | D214: =mc_buck_Ch2*(1-D2_Vinnom_2) -> 1.038432668
A215: Q | B215: =1/Pi/(k-0.5) -> 0.6327725398 | D215: =1/Pi/(k_Ch2-0.5) -> 0.5911786292 | F215: 1/(Pi*(k-0.5)) | H215: Q = 2/Pi = 0.636 gives ideal one-cycle damping
A217: Error Amp (EA)
A218: GBW | B218: 13 | C218: MHz | F218: EA gain-bandwidth product
A219: Cbw | B219: =gm/(2*Pi*GBW*1000000) -> 7.345612766e-12 | C219: F | F219: EA effective bandwidth limiting capacitance = gm/(2*Pi*GBW)
A220: RoEA | B220: 74000000 | C220: W | F220: EA output resistance
A221: AEA | B221: =gm*RoEA -> 44400 | C221: V/V | F221: EA DC gain = gm*RoEA | H221: =20*LOG(AEA) -> 92.9476594
A222: Afb | B222: =Vref/Vout -> 0.16 | C222: V/V | D222: =Vref/Vout2 -> 0.2424242424 | E222: V/V | F222: Feedback gain from Vout to FB
A223: Acs | B223: =1/Ri -> 50 | D223: =1/Ri_Ch2 -> 50 | F223: Acs = 1/Ri
A224: kd | B224: =1+Ro*Number_of_Phases*(k-0.5)/(Fsw*Lf) -> 1.228654537
B225: =Ro*Number_of_Phases/kd/Ri -> 10.17373039
A226: Am_buck | D226: =Ro_Ch2/Ri_Ch2/((1+Ro_Ch2*(k_Ch2-0.5)/(Fsw*Lo_2))) -> 7.102701969
A227: Am | B227: =(Ro*Number_of_Phases)/Ri/((1+Ro*Number_of_Phases*(k-0.5)/(Fsw*Lf))) -> 10.17373039 | D227: =Ro_Ch2/Ri_Ch2/((1+Ro_Ch2*(k_Ch2-0.5)/(Fsw*Lo_2))) -> 7.102701969 | F227: Buck modulator gain
A229: Scaling factor to calculate Rcomp - buck | B229: =2*Pi*Ri/gm -> 209.43951 | F229: 2*Pi*Ri/gm -- scaling factor to calculate Rcomp given desired buck crossover frequency
A230: DC Gain is Adc = AEA*Afb*Am
A232: Ro | B232: =Rout -> 0.25 | C232: W | D232: =Rout2 -> 0.165 | E232: W | F232: Output Resistance
A234: Fp_load_buck | B234: =1/(2*Pi*Ro*Cout)+(k-0.5)/(2*Pi*Fsw*Lf*Cout/Number_of_Phases) -> 6518.214771 | C234: Hz | D234: =1/(2*Pi*Ro_Ch2*Cout2)+(k_Ch2-0.5)/(2*Pi*Fsw*Lo_2*Cout2) -> 6790.200532 | E234: Hz | F234: Buck dominant pole frequency -- note slope comp influence
A235: Fp_dominant | B235: =Fload_u -> 6518.214771 | C235: Hz | D235: =Fload_u_Ch2 -> 6790.200532 | E235: Hz
B236: =Cbw -> 7.345612766e-12
A237: Fp_EA | B237: =1/(2*Pi*(RoEA+Rcea1_u)*Cc1ea_u) -> 0.2622662106 | C237: Hz | D237: =1/(2*Pi*(RoEA+Rcea2_u)*Cc3ea_u) -> 0.2150597457 | E237: Hz | F237: Error Amp LF pole -- related to amplifier ouptut resistance and comp cap
A238: Fp_HF | B238: =1/(2*Pi*Rcea1_u*(Cc2ea_u+Cbw)) -> 127514.9808 | C238: Hz | D238: =1/(2*Pi*Rcea2_u*(Cc4ea_u+Cbw)) -> 115000.1181 | E238: Hz | F238: Error Amp HF pole cancels zero related to Output Cap ESR
A239: Fesr | B239: =1/(2*Pi*Cout*Cout_ESR) -> 1326291.194 | C239: Hz | D239: =1/(2*Pi*Cout2*Cout2_ESR) -> 964575.4138 | E239: Hz | F239: Cout ESR zero frequency
A240: F_mod | B240: =Fsw/2 -> 125000 | C240: Hz | F240: Zero-order sample-and-hold effects of current-mode control modeled as pole at Fsw/2
A242: Desired Crossover Frequency | B242: ='Design Regulator'!E66*1000 -> 35000 | C242: Hz | D242: ='Design Regulator'!J66*1000 -> 35000 | E242: Hz
A243: Rcea1 | B243: =Fcross*Cout/Number_of_Phases*2*Pi*Ri/(gm*Afb) -> 5497.787138 | C243: W | D243: =Fcross_Ch2*Cout2*2*Pi*Ri_Ch2/(gm*Afb_Ch2) -> 4989.241827 | E243: W | F243: This component will largely determine the crossover frequency
A244: Cc1ea, Cc3ea | B244: =10/(Rcea1*Fcross*2*Pi) -> 8.271117051e-09 | C244: F | D244: =10/(Rcea2*Fcross_Ch2*2*Pi) -> 9.114178569e-09 | E244: F | F244: This along with Rcea1 will set a zero at Fcrossover/5 to optimize phase margin
A245: Cc2ea, Cc4ea | B245: =MAX(1/(Rcea1*2*Pi*Fesr)-Cbw, 1/(Rcea1*2*Pi*(Fsw/2))-Cbw) -> 2.242456647e-10 | C245: F | D245: =MAX(1/(Rcea2*2*Pi*Fesr_Ch2)-Cbw, 1/(Rcea2*2*Pi*(Fsw/2))-Cbw) -> 2.478513872e-10 | E245: F | F245: This along with Rcea1 places a pole at the output cap ESR zero
A247: Chosen Compensation Components from the standard value sheet
A248: Rcea1_u | B248: ='Design Regulator'!D74*1000 -> 5490 | C248: W | D248: ='Design Regulator'!D77*1000 -> 4990 | E248: W | F248: =1/(Rcea1*2*Pi*(Fsw/2))-Cbw -> 2.242456647e-10
A249: Cc1ea_u | B249: ='Design Regulator'!D75*0.000000001 -> 8.2e-09 | C249: F | D249: ='Design Regulator'!D78*0.000000001 -> 1e-08 | E249: F
A250: Cc2ea_u | B250: ='Design Regulator'!D76*0.000000000001 -> 2.2e-10 | C250: F | D250: ='Design Regulator'!D79*0.000000000001 -> 2.7e-10 | E250: F
A252: Resulting Pole/Zero Locations | F252: =Cout -> 0.00012 | G252: =Cout_ESR -> 0.001
A253: Fz1 | B253: =1/(2*Pi*Rcea1_u*Cc1ea_u) -> 3535.362372 | C253: Hz | D253: =1/(2*Pi*Rcea2_u*Cc3ea_u) -> 3189.477821 | E253: Hz | F253: This zero is set at or close to the dominant load pole
A254: Fp2 | B254: =1/(2*Pi*Rcea1_u*(Cc1ea_u*(Cc2ea_u+Cbw)/(Cc1ea_u+Cc2ea_u+Cbw))) -> 131050.3432 | C254: Hz | D254: =1/(2*Pi*Rcea2_u*(Cc3ea_u*(Cc4ea_u+Cbw)/(Cc3ea_u+Cc4ea_u+Cbw))) -> 118189.5959 | E254: Hz | F254: This pole cancels the zero from the Output Cap ESR
A256: Rfb1 | B256: ='Design Regulator'!E68*1000 -> 78700 | C256: W | D256: ='Design Regulator'!J68*1000 -> 78700 | E256: W | F256: Upper Feedback Resistance - chosen by user
... 126 more rows

Sheet Stability Calculations (hidden)
A2: Divider Network & EA Poles/Zeros | E2: Modulator | J2: Power Stage Poles/Zeros | M2: Complex Pole Pair | P2: Total System
B3: Afb1 | C3: =Afb -> 0.16 | D3: V/V | E3: Acs | F3: =Acs -> 50 | G3: A/V | H3: gm | I3: =gm -> 0.0006 | J3: z_ESR | K3: =Fesr -> 1326291.194 | L3: Hz | M3: p3 | N3: =Fsw/2 -> 125000 | O3: Hz | P3: Adc | Q3: =Am*Afb*AEA -> 72274.18068 | R3: V/V
B4: EA zero, z1 | C4: =Fz1_u -> 3535.362372 | D4: Hz | E4: Am | F4: =Am -> 10.17373039 | G4: V/V | J4: p_dom | K4: =Fp_dominant -> 6518.214771 | L4: Hz | M4: pterm1 | N4: =Q*pole3 -> 79096.56748 | P4: Crossover | Q4: =AE7 -> 32.736 | R4: kHz
B5: EA pole, p1 | C5: =Fp1_u -> 0.2622662106 | D5: Hz | E5: Q | F5: =Q -> 0.6327725398 | M5: pterm2 | N5: =pole3^2 -> 15625000000 | P5: Phase Margin | Q5: =AE9 -> 58.1555253 | R5: °
B6: Aea | C6: =AEA -> 44400 | D6: V/V | E6: mc | F6: =mc -> 1.122093023 | P6: radconv | Q6: =180/Pi -> 57.29577958 | AD6: XOVER SEARCH
B7: EA pole, p2 | C7: =Fp2_u -> 127514.9808 | D7: Hz | E7: k | F7: =k -> 1.003039981 | AD7: xover | AE7: =SUM(AD12:AD613)/1000 -> 32.736
AD9: phase margin | AE9: =SUM(AE13:AE613) -> 58.1555253
A10: Freq (Hz) | C10: Power Stage | I10: Error Amplifier | O10: Sampling Double Pole | Q10: System Response | X10: ERROR AMP Response | AA10: PLANT Response
C11: p_dom | E11: z_ESR | G11: z_RHP | I11: p1 | K11: z1 | M11: p2 | O11: p3
C12: Gain(V/V) | D12: Phase(rad) | E12: Gain(V/V) | F12: Phase(rad) | G12: Gain(V/V) | H12: Phase(rad) | I12: Gain(V/V) | J12: Phase(rad) | K12: Gain(V/V) | L12: Phase(rad) | M12: Gain(V/V) | N12: Phase(rad) | O12: Gain(V/V) | P12: Phase(rad) | Q12: Gain (dB) | R12: Phase (°) | S12: Phase Margin (°) | V12: Fsquare | X12: Gain(dB) | Y12: Phase(Deg) | AA12: Gain(dB) | AB12: Phase(Deg)
A13: 1 | B13: =A13/1000 -> 0.001 | C13: =SQRT(1+(A13/pole1)^2) -> 1.000000012 | D13: =ATAN(A13/pole1) -> 0.0001534162385 | E13: =SQRT(1+(A13/Zero1)^2) -> 1 | F13: =ATAN(A13/Zero1) -> 7.53982236e-07 | G13: =IF(VIN_nom>Vout, 1, SQRT(1+(A13/z_RHP)^2)) -> 1 | H13: =IF(VIN_nom>Vout, 0, -ATAN(A13/z_RHP)) -> 0 | I13: =SQRT(1+(A13/Pole2)^2) -> 3.941872222 | J13: =ATAN(A13/Pole2) -> 1.314306727 | K13: =SQRT(1+(A13/Zero2)^2) -> 1.00000004 | L13: =ATAN(A13/Zero2) -> 0.0002828564283 | M13: =SQRT(1+(A13/pole4)^2) -> 1 | N13: =ATAN(A13/pole4) -> 7.842215821e-06 | O13: =SQRT((1-(V13/pterm2))^2+(A13/pterm1)^2) -> 1 | P13: =IF((ATAN((A13/pterm1)/(1-A13^2/pterm2))>0),ATAN((A13/pterm1)/(1-A13^2/pterm2)),PI()+ATAN((A13/pterm1)/(1-A13^2/pterm2))) -> 1.264277366e-05 | Q13: =20*LOG10(((E13*K13*G13)/(C13*I13*O13*M13))*Adc) -> 85.26561294 | R13: =((F13+L13+H13)-(D13+J13+P13+N13))*radconv -> -75.29794267 | S13: =IF(R13>0,R13,R13+180) -> 104.7020573 | U13: =IF(Q13<0,A13,1000000000) -> 1000000000 | V13: =A13^2 -> 1 | X13: =20*LOG10((K13/(I13*M13))*AEA*Afb) -> 65.11600856 | Y13: =(L13-(J13+N13))*radconv -> -75.28847139 | AA13: =20*LOG10((E13*G13/(C13*O13))*Am) -> 20.14960438 | AB13: =(F13+H13-(D13+P13))*radconv -> -0.00947128056 | AD13: =SUM((Q14<0)*(Q13>0))*A13 -> 0 | AE13: =IF(AD13>0,S11,0) -> 0
A14: 1.0965 | B14: =A14/1000 -> 0.0010965 | C14: 1.000000014 | D14: 0.0001682209053 | E14: 1 | F14: 8.267415218e-07 | G14: 1 | H14: 0 | I14: 4.298795674 | J14: 1.336022224 | K14: 1.000000048 | L14: 0.0003101520719 | M14: 1 | N14: 8.598989647e-06 | O14: 1 | P14: 1.386280132e-05 | Q14: 84.51272777 | R14: -76.54154238 | S14: 103.4584576 | U14: =IF(Q14<0,A14,1000000000) -> 1000000000 | V14: =A14^2 -> 1.20231225 | X14: 64.36312341 | Y14: -76.53115712 | AA14: 20.14960436 | AB14: -0.01038525912 | AD14: =SUM((Q15<0)*(Q14>0))*A14 -> 0 | AE14: 0
A15: 1.2023 | B15: 0.0012023 | C15: 1.000000017 | D15: 0.000184452343 | E15: 1 | F15: 9.065128423e-07 | G15: 1 | H15: 0 | I15: 4.692074398 | J15: 1.356023633 | K15: 1.000000058 | L15: 0.0003400782797 | M15: 1 | N15: 9.428696081e-06 | O15: 1 | P15: 1.520040677e-05 | Q15: 83.7523661 | R15: -77.68687365 | S15: 102.3131263 | U15: 1000000000 | V15: 1.44552529 | X15: 63.60276176 | Y15: -77.67548633 | AA15: 20.14960434 | AB15: -0.01138732058 | AD15: 0 | AE15: 0
A16: 1.3183 | B16: 0.0013183 | C16: 1.00000002 | D16: 0.0002022486261 | E16: 1 | F16: 9.939747817e-07 | G16: 1 | H16: 0 | I16: 5.125078188 | J16: 1.374417572 | K16: 1.00000007 | L16: 0.0003728896221 | M16: 1 | N16: 1.033839312e-05 | O16: 1 | P16: 1.666696852e-05 | Q16: 82.98565406 | R16: -78.74003959 | S16: 101.2599604 | U16: 1000000000 | V16: 1.73791489 | X16: 62.83604975 | Y16: -78.7275536 | AA16: 20.14960431 | AB16: -0.0124859891 | AD16: 0 | AE16: 0
A17: 1.4454 | B17: 0.0014454 | C17: 1.000000025 | D17: 0.0002217478293 | E17: 1 | F17: 1.089805924e-06 | G17: 1 | H17: 0 | I17: 5.601183869 | J17: 1.391300335 | K17: 1.000000084 | L17: 0.0004088406696 | M17: 1 | N17: 1.133513875e-05 | O17: 1 | P17: 1.827386505e-05 | Q17: 82.21406747 | R17: -79.70655171 | S17: 100.2934483 | U17: 1000000000 | V17: 2.08918116 | X17: 62.06446319 | Y17: -79.69286192 | AA17: 20.14960427 | AB17: -0.01368978881 | AD17: 0 | AE17: 0
A18: 1.5849 | B18: 0.0015849 | C18: 1.00000003 | D18: 0.0002431493936 | E18: 1 | F18: 1.194986446e-06 | G18: 1 | H18: 0 | I18: 6.125276682 | J18: 1.406804334 | K18: 1.0000001 | L18: 0.0004482991351 | M18: 1 | N18: 1.242912785e-05 | O18: 1 | P18: 2.003753198e-05 | Q18: 81.43714994 | R18: -80.59398853 | S18: 99.40601147 | U18: 1000000000 | V18: 2.51190801 | X18: 61.28754571 | Y18: -80.57897749 | AA18: 20.14960423 | AB18: -0.01501103239 | AD18: 0 | AE18: 0
A19: 1.7378 | B19: 0.0017378 | C19: 1.000000036 | D19: 0.0002666067351 | E19: 1 | F19: 1.31027033e-06 | G19: 1 | H19: 0 | I19: 6.701126262 | J19: 1.421008189 | K19: 1.000000121 | L19: 0.0004915478746 | M19: 1 | N19: 1.362820265e-05 | O19: 1 | P19: 2.197061207e-05 | Q19: 80.65670826 | R19: -81.40684837 | S19: 98.59315163 | U19: 1000000000 | V19: 3.01994884 | X19: 60.50710408 | Y19: -81.39038918 | AA19: 20.14960418 | AB19: -0.01645919112 | AD19: 0 | AE19: 0
A20: 1.9055 | B20: 0.0019055 | C20: 1.000000043 | D20: 0.0002923346365 | E20: 1 | F20: 1.436713151e-06 | G20: 1 | H20: 0 | I20: 7.334013826 | J20: 1.434019272 | K20: 1.000000145 | L20: 0.0005389828863 | M20: 1 | N20: 1.494334225e-05 | O20: 1 | P20: 2.409080521e-05 | Q20: 79.87282994 | R20: -82.15127438 | S20: 97.84872562 | U20: 1000000000 | V20: 3.63093025 | X20: 59.72322583 | Y20: -82.13322685 | AA20: 20.14960412 | AB20: -0.01804752476 | AD20: 0 | AE20: 0
A21: 2.0893 | B21: 0.0020893 | C21: 1.000000051 | D21: 0.0003205325387 | E21: 1 | F21: 1.575295086e-06 | G21: 1 | H21: 0 | I21: 8.028851936 | J21: 1.445921225 | K21: 1.000000175 | L21: 0.0005909718826 | M21: 1 | N21: 1.638474151e-05 | O21: 1 | P21: 2.641454701e-05 | Q21: 79.08659563 | R21: -82.83205073 | S21: 97.16794927 | U21: 1000000000 | V21: 4.36517449 | X21: 58.93699159 | Y21: -82.81226239 | AA21: 20.14960404 | AB21: -0.01978834599 | AD21: 0 | AE21: 0
A22: 2.2909 | B22: 0.0022909 | C22: 1.000000062 | D22: 0.0003514612492 | E22: 1 | F22: 1.727297904e-06 | G22: 1 | H22: 0 | I22: 8.792072269 | J22: 1.456810829 | K22: 1.00000021 | L22: 0.0006479957182 | M22: 1 | N22: 1.796573222e-05 | O22: 1 | P22: 2.896333018e-05 | Q22: 78.29783984 | R22: -83.45471183 | S22: 96.54528817 | U22: 1000000000 | V22: 5.24822281 | X22: 58.14823589 | Y22: -83.43301408 | AA22: 20.14960395 | AB22: -0.02169775596 | AD22: 0 | AE22: 0
A23: 2.5119 | B23: 0.0025119 | C23: 1.000000074 | D23: 0.0003853662335 | E23: 1 | F23: 1.893927979e-06 | G23: 1 | H23: 0 | I23: 9.629736228 | J23: 1.466763771 | K23: 1.000000252 | L23: 0.0007105069616 | M23: 1 | N23: 1.969886192e-05 | O23: 1 | P23: 3.175738316e-05 | Q23: 77.50737726 | R23: -84.02358421 | S23: 95.97641579 | U23: 1000000000 | V23: 6.30964161 | X23: 57.35777342 | Y23: -83.9997933 | AA23: 20.14960384 | AB23: -0.02379090872 | AD23: 0 | AE23: 0
A24: 2.7542 | B24: 0.0027542 | C24: 1.000000089 | D24: 0.0004225389824 | E24: 1 | F24: 2.076617874e-06 | G24: 1 | H24: 0 | I24: 10.54904803 | J24: 1.475858492 | K24: 1.000000303 | L24: 0.000779043038 | M24: 1 | N24: 2.159903081e-05 | O24: 1 | P24: 3.482072722e-05 | Q24: 76.7154 | R24: -84.5431503 | S24: 95.4568497 | U24: 1000000000 | V24: 7.58561764 | X24: 56.56579629 | Y24: -84.5170645 | AA24: 20.14960371 | AB24: -0.02608579967 | AD24: 0 | AE24: 0
A25: 3.02 | B25: 0.00302 | C25: 1.000000107 | D25: 0.0004633170109 | E25: 1 | F25: 2.277026353e-06 | G25: 1 | H25: 0 | I25: 11.55835748 | J25: 1.484170544 | K25: 1.000000365 | L25: 0.0008542262284 | M25: 1 | N25: 2.368349177e-05 | O25: 1 | P25: 3.818117646e-05 | Q25: 75.92174333 | R25: -85.01772501 | S25: 94.98227499 | U25: 1000000000 | V25: 9.1204 | X25: 55.77213978 | Y25: -84.98912174 | AA25: 20.14960355 | AB25: -0.0286032656 | AD25: 0 | AE25: 0
A26: 3.3113 | B26: 0.0033113 | C26: 1.000000129 | D26: 0.000508007151 | E26: 1 | F26: 2.496661378e-06 | G26: 1 | H26: 0 | I26: 12.66526078 | J26: 1.491757928 | K26: 1.000000439 | L26: 0.0009366222421 | M26: 1 | N26: 2.596792924e-05 | O26: 1 | P26: 4.186401643e-05 | Q26: 75.1273835 | R26: -85.450619 | S26: 94.549381 | U26: 1000000000 | V26: 10.96470769 | X26: 54.97778014 | Y26: -85.41925675 | AA26: 20.14960336 | AB26: -0.03136224904 | AD26: 0 | AE26: 0
A27: 3.6308 | B27: 0.0036308 | C27: 1.000000155 | D27: 0.0005570236257 | E27: 1 | F27: 2.737558702e-06 | G27: 1 | H27: 0 | I27: 13.88001871 | J27: 1.498687841 | K27: 1.000000527 | L27: 0.001026994786 | M27: 1 | N27: 2.847351719e-05 | O27: 1 | P27: 4.590338262e-05 | Q27: 74.33186574 | R27: -85.84566546 | S27: 94.15433454 | U27: 1000000000 | V27: 13.18270864 | X27: 54.1822626 | Y27: -85.81127714 | AA27: 20.14960314 | AB27: -0.03438832241 | AD27: 0 | AE27: 0
A28: 3.9811 | B28: 0.0039811 | C28: 1.000000187 | D28: 0.0006107653161 | E28: 1 | F28: 3.00167868e-06 | G28: 1 | H28: 0 | I28: 15.21251786 | J28: 1.505013555 | K28: 1.000000634 | L28: 0.001126079281 | M28: 1 | N28: 3.122064539e-05 | O28: 1 | P28: 5.033214623e-05 | Q28: 73.5356454 | R28: -86.20590023 | S28: 93.79409977 | U28: 1000000000 | V28: 15.84915721 | X28: 53.38604254 | Y28: -86.16819412 | AA28: 20.14960286 | AB28: -0.03770611096 | AD28: 0 | AE28: 0
A29: 4.3652 | B29: 0.0043652 | C29: 1.000000224 | D29: 0.0006696924696 | E29: 1 | F29: 3.291283257e-06 | G29: 1 | H29: 0 | I29: 16.67417057 | J29: 1.510787319 | K29: 1.000000762 | L29: 0.001234724286 | M29: 1.000000001 | N29: 3.423284049e-05 | O29: 1 | P29: 5.51882356e-05 | Q29: 72.73878341 | R29: -86.53429815 | S29: 93.46570185 | U29: 1000000000 | V29: 19.05497104 | X29: 52.58918087 | Y29: -86.49295412 | AA29: 20.14960254 | AB29: -0.04134402847 | AD29: 0 | AE29: 0
A30: 4.7863 | B30: 0.0047863 | C30: 1.00000027 | D30: 0.0007342960163 | E30: 1 | F30: 3.608785176e-06 | G30: 1 | H30: 0 | I30: 18.2771546 | J30: 1.516055881 | K30: 1.000000916 | L30: 0.001353834932 | M30: 1.000000001 | N30: 3.753519757e-05 | O30: 1 | P30: 6.051210759e-05 | Q30: 71.94149744 | R30: -86.83351754 | S30: 93.16648246 | U30: 1000000000 | V30: 22.90866769 | X30: 51.7918953 | Y30: -86.78818516 | AA30: 20.14960214 | AB30: -0.04533238291 | AD30: 0 | AE30: 0
A31: 5.2481 | B31: 0.0052481 | C31: 1.000000324 | D31: 0.0008051435938 | E31: 1 | F31: 3.956974173e-06 | G31: 1 | H31: 0 | I31: 20.03555506 | J31: 1.520864311 | K31: 1.000001102 | L31: 0.001484457771 | M31: 1.000000001 | N31: 4.115673283e-05 | O31: 1 | P31: 6.635054047e-05 | Q31: 71.14364272 | R31: -87.10611748 | S31: 92.89388252 | U31: 1000000000 | V31: 27.54255361 | X31: 50.99404105 | Y31: -87.05641126 | AA31: 20.14960167 | AB31: -0.0497062179 | AD31: 0 | AE31: 0
A32: 5.7544 | B32: 0.0057544 | C32: 1.00000039 | D32: 0.0008828181806 | E32: 1 | F32: 4.338715379e-06 | G32: 1 | H32: 0 | I32: 21.9638416 | J32: 1.525251206 | K32: 1.000001325 | L32: 0.001627667637 | M32: 1.000000001 | N32: 4.512724669e-05 | O32: 1.000000001 | P32: 7.275157678e-05 | Q32: 70.34550559 | R32: -87.35428556 | S32: 92.64571444 | U32: 1000000000 | V32: 33.11311936 | X32: 50.19590449 | Y32: -87.29978404 | AA32: 20.1496011 | AB32: -0.05450152411 | AD32: 0 | AE32: 0
A33: 6.3096 | B33: 0.0063096 | C33: 1.000000469 | D33: 0.000967994804 | E33: 1 | F33: 4.757326316e-06 | G33: 1 | H33: 0 | I33: 24.07877226 | J33: 1.529254022 | K33: 1.000001593 | L33: 0.001784709073 | M33: 1.000000001 | N33: 4.94812449e-05 | O33: 1.000000001 | P33: 7.977084473e-05 | Q33: 69.54698651 | R33: -87.58014013 | S33: 92.41985987 | U33: 1000000000 | V33: 39.81105216 | X33: 49.3973861 | Y33: -87.52038016 | AA33: 20.14960041 | AB33: -0.05975997494 | AD33: 0 | AE33: 0
A34: 6.9183 | B34: 0.0069183 | C34: 1.000000563 | D34: 0.001061379173 | E34: 1 | F34: 5.216275303e-06 | G34: 1 | H34: 0 | I34: 26.39787006 | J34: 1.532905416 | K34: 1.000001915 | L34: 0.001956883182 | M34: 1.000000001 | N34: 5.425480166e-05 | O34: 1.000000001 | P34: 8.746650107e-05 | Q34: 68.74829753 | R34: -87.78552342 | S34: 92.21447658 | U34: 1000000000 | V34: 47.86287489 | X34: 48.59869794 | Y34: -87.71999828 | AA34: 20.14959959 | AB34: -0.06552513794 | AD34: 0 | AE34: 0
A35: 7.5858 | B35: 0.0075858 | C35: 1.000000677 | D35: 0.001163784386 | E35: 1 | F35: 5.719558446e-06 | G35: 1 | H35: 0 | I35: 28.94132773 | J35: 1.536236783 | K35: 1.000002302 | L35: 0.002145689058 | M35: 1.000000002 | N35: 5.94894807e-05 | O35: 1.000000001 | P35: 9.59055525e-05 | Q35: 67.94930861 | R35: -87.97220087 | S35: 92.02779913 | U35: 1000000000 | V35: 57.54436164 | X35: 47.79971001 | Y35: -87.90035366 | AA35: 20.1495986 | AB35: -0.0718472105 | AD35: 0 | AE35: 0
A36: 8.3176 | B36: 0.0083176 | C36: 1.000000814 | D36: 0.001276054223 | E36: 1 | F36: 6.271322646e-06 | G36: 1 | H36: 0 | I36: 31.73010269 | J36: 1.539275294 | K36: 1.000002768 | L36: 0.00235268235 | M36: 1.000000002 | N36: 6.522841422e-05 | O36: 1.000000001 | P36: 0.0001051575343 | Q36: 67.15025093 | R36: -88.14169477 | S36: 91.85830523 | U36: 1000000000 | V36: 69.18246976 | X36: 47.00065352 | Y36: -88.06291649 | AA36: 20.14959741 | AB36: -0.07877828408 | AD36: 0 | AE36: 0
A37: 9.1201 | B37: 0.0091201 | C37: 1.000000979 | D37: 0.001399170535 | E37: 1 | F37: 6.87639339e-06 | G37: 1 | H37: 0 | I37: 34.78858442 | J37: 1.542047305 | K37: 1.000003327 | L37: 0.002579673258 | M37: 1.000000003 | N37: 7.152179238e-05 | O37: 1.000000001 | P37: 0.0001153033602 | Q37: 66.35094876 | R37: -88.29547498 | S37: 91.70452502 | U37: 1000000000 | V37: 83.17622401 | X37: 46.20135279 | Y37: -88.20909601 | AA37: 20.14959597 | AB37: -0.08637897416 | AD37: 0 | AE37: 0
A38: 10 | B38: 0.01 | C38: 1.000001177 | D38: 0.001534161194 | E38: 1 | F38: 7.53982236e-06 | G38: 1 | H38: 0 | I38: 38.14230802 | J38: 1.544575716 | K38: 1.000004 | L38: 0.002828556815 | M38: 1.000000003 | N38: 7.842215805e-05 | O38: 1.000000002 | P38: 0.0001264277367 | Q38: 65.55154865 | R38: -88.43481142 | S38: 91.56518858 | U38: 1000000000 | V38: 100 | X38: 45.4019544 | Y38: -88.34009868 | AA38: 20.14959425 | AB38: -0.09471273734 | AD38: 0 | AE38: 0
A39: 10.965 | B39: 0.010965 | C39: 1.000001415 | D39: 0.001682207482 | E39: 1 | F39: 8.267415218e-06 | G39: 1 | H39: 0 | I39: 41.82062201 | J39: 1.546882399 | K39: 1.00000481 | L39: 0.003101510874 | M39: 1.000000004 | N39: 8.598989626e-05 | O39: 1.000000002 | P39: 0.0001386280134 | Q39: 64.75188322 | R39: -88.56090886 | S39: 91.43909114 | U39: 1000000000 | V39: 120.231225 | X39: 44.60229104 | Y39: -88.45705636 | AA39: 20.14959218 | AB39: -0.1038525012 | AD39: 0 | AE39: 0
A40: 12.023 | B40: 0.012023 | C40: 1.000001701 | D40: 0.001844521359 | E40: 1 | F40: 9.065128423e-06 | G40: 1 | H40: 0 | I40: 45.85363907 | J40: 1.548986078 | K40: 1.000005783 | L40: 0.003400769818 | M40: 1.000000004 | N40: 9.428696053e-05 | O40: 1.000000002 | P40: 0.000152004068 | Q40: 63.95222277 | R40: -88.67479046 | S40: 91.32520954 | U40: 1000000000 | V40: 144.552529 | X40: 43.80263308 | Y40: -88.56091737 | AA40: 20.14958969 | AB40: -0.1138730872 | AD40: 0 | AE40: 0
A41: 13.183 | B41: 0.013183 | C41: 1.000002045 | D41: 0.002022483531 | E41: 1 | F41: 9.939747817e-06 | G41: 1 | H41: 0 | I41: 50.27566651 | J41: 1.550904677 | K41: 1.000006952 | L41: 0.003728879111 | M41: 1.000000005 | N41: 0.0001033839308 | O41: 1.000000003 | P41: 0.0001666696855 | Q41: 63.15254936 | R41: -88.77742669 | S41: 91.22257331 | U41: 1000000000 | V41: 173.791489 | X41: 43.00296266 | Y41: -88.65256695 | AA41: 20.1495867 | AB41: -0.1248597346 | AD41: 0 | AE41: 0
A42: 14.454 | B42: 0.014454 | C42: 1.000002459 | D42: 0.002217474695 | E42: 1 | F42: 1.089805924e-05 | G42: 1 | H42: 0 | I42: 55.12101299 | J42: 1.55265343 | K42: 1.000008358 | L42: 0.004088384144 | M42: 1.000000006 | N42: 0.000113351387 | O42: 1.000000003 | P42: 0.0001827386509 | Q42: 62.35337089 | R42: -88.86963375 | S42: 91.13036625 | U42: 1000000000 | V42: 208.918116 | X42: 42.20378779 | Y42: -88.73273607 | AA42: 20.1495831 | AB42: -0.136897682 | AD42: 0 | AE42: 0
A43: 15.849 | B43: 0.015849 | C43: 1.000002956 | D43: 0.002431489192 | E43: 1 | F43: 1.194986446e-05 | G43: 1 | H43: 0 | I43: 60.43923761 | J43: 1.554250029 | K43: 1.000010049 | L43: 0.00448296162 | M43: 1.000000008 | N43: 0.0001242912779 | O43: 1.000000004 | P43: 0.0002003753203 | Q43: 61.5533455 | R43: -88.9523437 | S43: 91.0476563 | U43: 1000000000 | V43: 251.190801 | X43: 41.40376672 | Y43: -88.80223365 | AA43: 20.14957878 | AB43: -0.1501100522 | AD43: 0 | AE43: 0
A44: 17.378 | B44: 0.017378 | C44: 1.000003554 | D44: 0.002666061098 | E44: 1 | F44: 1.31027033e-05 | G44: 1 | H44: 0 | I44: 66.26846398 | J44: 1.55570562 | K44: 1.000012081 | L44: 0.004915439553 | M44: 1.000000009 | N44: 0.0001362820257 | O44: 1.000000005 | P44: 0.0002197061214 | Q44: 60.7535994 | R44: -89.02613229 | S44: 90.97386771 | U44: 1000000000 | V44: 301.994884 | X44: 40.60402582 | Y44: -88.86154074 | AA44: 20.14957358 | AB44: -0.1645915529 | AD44: 0 | AE44: 0
A45: 19.055 | B45: 0.019055 | C45: 1.000004273 | D45: 0.002923338121 | E45: 1 | F45: 1.436713151e-05 | G45: 1 | H45: 0 | I45: 72.66206631 | J45: 1.557033553 | K45: 1.000014525 | L45: 0.005389777194 | M45: 1.000000011 | N45: 0.0001494334214 | O45: 1.000000006 | P45: 0.0002409080531 | Q45: 59.95359757 | R45: -89.09167645 | S45: 90.90832355 | U45: 1000000000 | V45: 363.093025 | X45: 39.80403024 | Y45: -88.91120168 | AA45: 20.14956732 | AB45: -0.1804747753 | AD45: 0 | AE45: =IF(AD45>0,S43,0) -> 0
A46: 20.893 | B46: 0.020893 | C46: 1.000005137 | D46: 0.00320531452 | E46: 1 | F46: 1.575295086e-05 | G46: 1 | H46: 0 | I46: 79.66960738 | J46: 1.558244159 | K46: 1.000017462 | L46: 0.005909650717 | M46: 1.000000013 | N46: 0.0001638474137 | O46: 1.000000007 | P46: 0.0002641454713 | Q46: 59.15391688 | R46: -89.14948644 | S46: 90.85051356 | U46: 1000000000 | V46: 436.517449 | X46: 39.00435707 | Y46: -88.9516036 | AA46: 20.14955981 | AB46: -0.1978828373 | AD46: 0 | AE46: 0
A47: 22.909 | B47: 0.022909 | C47: 1.000006176 | D47: 0.003514598165 | E47: 1 | F47: 1.727297904e-05 | G47: 1 | H47: 0 | I47: 87.35590123 | J47: 1.559348653 | K47: 1.000020995 | L47: 0.006479867393 | M47: 1.000000016 | N47: 0.0001796573203 | O47: 1.000000008 | P47: 0.0002896333034 | Q47: 58.35394707 | R47: -89.20009801 | S47: 90.79990199 | U47: 1000000000 | V47: 524.822281 | X47: 38.2043963 | Y47: -88.98312127 | AA47: 20.14955077 | AB47: -0.2169767389 | AD47: 0 | AE47: 0
A48: 25.119 | B48: 0.025119 | C48: 1.000007425 | D48: 0.00385364345 | E48: 1 | F48: 1.893927978e-05 | G48: 1 | H48: 0 | I48: 95.78195019 | J48: 1.560355757 | K48: 1.000025241 | L48: 0.007104951256 | M48: 1.000000019 | N48: 0.0001969886167 | O48: 1.00000001 | P48: 0.0003175738337 | Q48: 57.55414452 | R48: -89.2439104 | S48: 90.7560896 | U48: 1000000000 | V48: 630.964161 | X48: 37.40460462 | Y48: -89.00600239 | AA48: 20.14953991 | AB48: -0.2379080053 | AD48: 0 | AE48: 0
A49: 27.542 | B49: 0.027542 | C49: 1.000008927 | D49: 0.004225364929 | E49: 1 | F49: 2.076617874e-05 | G49: 1 | H49: 0 | I49: 105.0201954 | J49: 1.561274205 | K49: 1.000030345 | L49: 0.007790274359 | M49: 1.000000023 | N49: 0.0002159903048 | O49: 1.000000012 | P49: 0.000348207275 | Q49: 56.75439283 | R49: -89.28130476 | S49: 90.71869524 | U49: 1000000000 | V49: 758.561764 | X49: 36.60486598 | Y49: -89.02044819 | AA49: 20.14952685 | AB49: -0.2608565705 | AD49: 0 | AE49: 0
A50: 30.2 | B50: 0.0302 | C50: 1.000010733 | D50: 0.004633137288 | E50: 1 | F50: 2.277026352e-05 | G50: 1 | H50: 0 | I50: 115.1545169 | J50: 1.562112233 | K50: 1.000036484 | L50: 0.008542056594 | M50: 1.000000028 | N50: 0.0002368349134 | O50: 1.000000015 | P50: 0.0003818117683 | Q50: 55.95426729 | R50: -89.31261483 | S50: 90.68738517 | U50: 1000000000 | V50: 912.04 | X50: 35.80475615 | Y50: -89.02658406 | AA50: 20.14951114 | AB50: -0.2860307758 | AD50: 0 | AE50: 0
A51: 33.113 | B51: 0.033113 | C51: 1.000012903 | D51: 0.005080028247 | E51: 1 | F51: 2.496661378e-05 | G51: 1 | H51: 0 | I51: 126.26117 | J51: 1.562876153 | K51: 1.000043862 | L51: 0.009365951287 | M51: 1.000000034 | N51: 0.0002596792866 | O51: 1.000000017 | P51: 0.0004186401692 | Q51: 55.15453581 | R51: -89.33807661 | S51: 90.66192339 | U51: 1000000000 | V51: 1096.470769 | X51: 35.00504355 | Y51: -89.0244566 | AA51: 20.14949226 | AB51: -0.3136200119 | AD51: 0 | AE51: 0
A52: 36.308 | B52: 0.036308 | C52: 1.000015514 | D52: 0.005570179224 | E52: 1 | F52: 2.737558702e-05 | G52: 1 | H52: 0 | I52: 138.4431 | J52: 1.56357308 | K52: 1.000052735 | L52: 0.01026959043 | M52: 1.000000041 | N52: 0.0002847351643 | O52: 1.000000021 | P52: 0.0004590338326 | Q52: 54.35455999 | R52: -89.35792843 | S52: 90.64207157 | U52: 1000000000 | V52: 1318.270864 | X52: 34.20509043 | Y52: -89.01404847 | AA52: 20.14946956 | AB52: -0.3438799567 | AD52: 0 | AE52: 0
A53: 39.811 | B53: 0.039811 | C53: 1.000018652 | D53: 0.006107577977 | E53: 1 | F53: 3.001678679e-05 | G53: 1 | H53: 0 | I53: 151.7994399 | J53: 1.56420864 | K53: 1.000063401 | L53: 0.01126032163 | M53: 1.000000049 | N53: 0.0003122064439 | O53: 1.000000025 | P53: 0.0005033214708 | Q53: 53.55464819 | R53: -89.37232943 | S53: 90.62767057 | U53: 1000000000 | V53: 1584.915721 | X53: 33.40520592 | Y53: -88.99527263 | AA53: 20.14944227 | AB53: -0.3770568024 | AD53: 0 | AE53: 0
A54: 43.652 | B54: 0.043652 | C54: 1.000022424 | D54: 0.006696825584 | E54: 1.000000001 | F54: 3.291283255e-05 | G54: 1 | H54: 0 | I54: 166.4445746 | J54: 1.564788285 | K54: 1.000076224 | L54: 0.01234662173 | M54: 1.000000059 | N54: 0.0003423283916 | O54: 1.00000003 | P54: 0.0005518823671 | Q54: 52.75473718 | R54: -89.38140391 | S54: 90.61859609 | U54: 1000000000 | V54: 1905.497104 | X54: 32.60532773 | Y54: -88.9679693 | AA54: 20.14940946 | AB54: -0.4134346066 | AD54: 0 | AE54: 0
A55: 47.863 | B55: 0.047863 | C55: 1.000026959 | D55: 0.007342829512 | E55: 1.000000001 | F55: 3.608785175e-05 | G55: 1 | H55: 0 | I55: 182.5005152 | J55: 1.565316863 | K55: 1.000091639 | L55: 0.01353753054 | M55: 1.00000007 | N55: 0.0003753519582 | O55: 1.000000036 | P55: 0.0006051210906 | Q55: 51.9549425 | R55: -89.385229 | S55: 90.614771 | U55: 1000000000 | V55: 2290.866769 | X55: 31.80557248 | Y55: -88.93191266 | AA55: 20.14937001 | AB55: -0.4533163442 | AD55: 0 | AE55: 0
A56: 52.481 | B56: 0.052481 | C56: 1.000032412 | D56: 0.008051263705 | E56: 1.000000001 | F56: 3.956974171e-05 | G56: 1 | H56: 0 | I56: 200.1083373 | J56: 1.565799013 | K56: 1.000110175 | L56: 0.01484349836 | M56: 1.000000085 | N56: 0.0004115673052 | O56: 1.000000044 | P56: 0.0006635054241 | Q56: 51.15503415 | R56: -89.38383868 | S56: 90.61616132 | U56: 1000000000 | V56: 2754.255361 | X56: 31.00571157 | Y56: -88.88678637 | AA56: 20.14932259 | AB56: -0.4970523119 | AD56: 0 | AE56: 0
A57: 57.544 | B57: 0.057544 | C57: 1.000038968 | D57: 0.008827954764 | E57: 1.000000001 | F57: 4.338715376e-05 | G57: 1 | H57: 0 | I57: 219.4129298 | J57: 1.566238694 | K57: 1.000132457 | L57: 0.01627525357 | M57: 1.000000102 | N57: 0.0004512724366 | O57: 1.000000053 | P57: 0.0007275157934 | Q57: 50.35522984 | R57: -89.3772219 | S57: 90.6227781 | U57: 1000000000 | V57: 3311.311936 | X57: 30.20596427 | Y57: -88.83221967 | AA57: 20.14926558 | AB57: -0.545002234 | AD57: 0 | AE57: 0
A58: 63.096 | B58: 0.063096 | C58: 1.00004685 | D58: 0.009679648738 | E58: 1.000000001 | F58: 4.757326313e-05 | G58: 1 | H58: 0 | I58: 240.5820595 | J58: 1.566639729 | K58: 1.000159247 | L58: 0.01784521515 | M58: 1.000000122 | N58: 0.000494812409 | O58: 1.000000063 | P58: 0.000797708481 | Q58: 49.55537334 | R58: -89.36532234 | S58: 90.63467766 | U58: 1000000000 | V58: 3981.105216 | X58: 29.40617632 | Y58: -88.76773974 | AA58: 20.14919703 | AB58: -0.5975826026 | AD58: 0 | AE58: 0
A59: 69.183 | B59: 0.069183 | C59: 1.000056325 | D59: 0.01061339718 | E59: 1.000000001 | F59: 5.216275299e-05 | G59: 1 | H59: 0 | I59: 263.7911188 | J59: 1.56700544 | K59: 1.000191452 | L59: 0.01956635947 | M59: 1.000000147 | N59: 0.0005425479639 | O59: 1.000000076 | P59: 0.0008746650551 | Q59: 48.75563177 | R59: -89.34804293 | S59: 90.65195707 | U59: 1000000000 | V59: 4786.287489 | X59: 28.60651715 | Y59: -88.69281415 | AA59: 20.14911462 | AB59: -0.6552287762 | AD59: 0 | AE59: 0
A60: 75.858 | B60: 0.075858 | C60: 1.000067717 | D60: 0.01163732375 | E60: 1.000000002 | F60: 5.71955844e-05 | G60: 1 | H60: 0 | I60: 289.242191 | J60: 1.56733901 | K60: 1.000230173 | L60: 0.0214536315 | M60: 1.000000177 | N60: 0.0005948947376 | O60: 1.000000092 | P60: 0.0009590555836 | Q60: 47.95583923 | R60: -89.32523514 | S60: 90.67476486 | U60: 1000000000 | V60: 5754.436164 | X60: 27.8068237 | Y60: -88.60679284 | AA60: 20.14901554 | AB60: -0.7184423081 | AD60: 0 | AE60: 0
A61: 83.176 | B61: 0.083176 | C61: 1.000081412 | D61: 0.01275985662 | E61: 1.000000002 | F61: 6.271322638e-05 | G61: 1 | H61: 0 | I61: 317.1449852 | J61: 1.56764319 | K61: 1.000276718 | L61: 0.02352252754 | M61: 1.000000213 | N61: 0.0006522840506 | O61: 1.00000011 | P61: 0.00105157542 | Q61: 47.15619988 | R61: -89.29671378 | S61: 90.70328622 | U61: 1000000000 | V61: 6918.246976 | X61: 27.00730345 | Y61: -88.50897022 | AA61: 20.14889644 | AB61: -0.7877435625 | AD61: 0 | AE61: 0
A62: 91.201 | B62: 0.091201 | C62: 1.000097879 | D62: 0.01399080154 | E62: 1.000000002 | F62: 6.87639338e-05 | G62: 1 | H62: 0 | I62: 347.7435271 | J62: 1.56792064 | K62: 1.000332682 | L62: 0.02579106972 | M62: 1.000000256 | N62: 0.0007152178031 | O62: 1.000000132 | P62: 0.001153033703 | Q62: 46.35651813 | R62: -89.26223288 | S62: 90.73776712 | U62: 1000000000 | V62: 8317.622401 | X62: 26.2077649 | Y62: -88.39849492 | AA62: 20.14875323 | AB62: -0.8637379632 | AD62: 0 | AE62: 0
A63: 100 | B63: 0.1 | C63: 1.000117676 | D63: 0.01534042052 | E63: 1.000000003 | F63: 7.539822346e-05 | G63: 1 | H63: 0 | I63: 381.293281 | J63: 1.568173671 | K63: 1.000399959 | L63: 0.02827810363 | M63: 1.000000308 | N63: 0.0007842214213 | O63: 1.000000159 | P63: 0.001264277502 | Q63: 45.55692771 | R63: -89.22150868 | S63: 90.77849132 | U63: 1000000000 | V63: 10000 | X63: 25.40834664 | Y63: -88.27444956 | AA63: 20.14858107 | AB63: -0.9470591176 | AD63: 0 | AE63: 0
A64: 109.65 | B64: 0.10965 | C64: 1.000141481 | D64: 0.01682050417 | E64: 1.000000003 | F64: 8.267415199e-05 | G64: 1 | H64: 0 | I64: 418.0878406 | J64: 1.568404483 | K64: 1.000480856 | L64: 0.03100526897 | M64: 1.00000037 | N64: 0.0008598987528 | O64: 1.000000191 | P64: 0.001386280311 | Q64: 44.75725481 | R64: -89.17419007 | S64: 90.82580993 | U64: 1000000000 | V64: 12023.1225 | X64: 24.60888076 | Y64: -88.13575504 | AA64: 20.14837405 | AB64: -1.03843503 | AD64: 0 | AE64: 0
A65: 120.23 | B65: 0.12023 | C65: 1.000170099 | D65: 0.01844314308 | E65: 1.000000004 | F65: 9.065128399e-05 | G65: 1 | H65: 0 | I65: 458.4284258 | J65: 1.568614959 | K65: 1.000578099 | L65: 0.03399472798 | M65: 1.000000445 | N65: 0.0009428693287 | O65: 1.00000023 | P65: 0.001520040913 | Q65: 43.95776946 | R65: -89.11989721 | S65: 90.88010279 | U65: 1000000000 | V65: 14455.2529 | X65: 23.80964427 | Y65: -87.98128495 | AA65: 20.14812519 | AB65: -1.138612254 | AD65: 0 | AE65: 0
A66: 131.83 | B66: 0.13183 | C66: 1.000204502 | D66: 0.02022210594 | E66: 1.000000005 | F66: 9.939747784e-05 | G66: 1 | H66: 0 | I66: 502.6581983 | J66: 1.568806902 | K66: 1.000694992 | L66: 0.03727169532 | M66: 1.000000534 | N66: 0.001033838943 | O66: 1.000000277 | P66: 0.001666697162 | Q66: 43.15845956 | R66: -89.05817921 | S66: 90.94182079 | U66: 1000000000 | V66: 17379.1489 | X66: 23.01063353 | Y66: -87.80973823 | AA66: 20.14782603 | AB66: -1.248440982 | AD66: 0 | AE66: 0
A67: 144.54 | B67: 0.14454 | C67: 1.00024583 | D67: 0.02217114976 | E67: 1.000000006 | F67: 0.000108980592 | G67: 1 | H67: 0 | I67: 551.1203202 | J67: 1.56898184 | K67: 1.000835405 | L67: 0.04086131272 | M67: 1.000000642 | N67: 0.001133513389 | O67: 1.000000333 | P67: 0.001827386914 | Q67: 42.35984485 | R67: -88.98857317 | S67: 91.01142683 | U67: 1000000000 | V67: 20891.8116 | X67: 22.2123782 | Y67: -87.61980243 | AA67: 20.14746666 | AB67: -1.36877074 | AD67: 0 | AE67: 0
A68: 158.49 | B68: 0.15849 | C68: 1.000295564 | D68: 0.02431014974 | E68: 1.000000007 | F68: 0.000119498644 | G68: 1 | H68: 0 | I68: 604.3104701 | J68: 1.569141547 | K68: 1.001004356 | L68: 0.0447999208 | M68: 1.000000772 | N68: 0.001242912145 | O68: 1.0000004 | P68: 0.002003753737 | Q68: 41.56060354 | R68: -88.91038431 | S68: 91.08961569 | U68: 1000000000 | V68: 25119.0801 | X68: 21.41356932 | Y68: -87.40955547 | AA68: 20.14703421 | AB68: -1.500828846 | AD68: 0 | AE68: 0
A69: 173.78 | B69: 0.17378 | C69: 1.000355333 | D69: 0.02665436011 | E69: 1.000000009 | F69: 0.0001310270322 | G69: 1 | H69: 0 | I69: 662.6099394 | J69: 1.569287143 | K69: 1.001207368 | L69: 0.04911525955 | M69: 1.000000929 | N69: 0.001362819422 | O69: 1.000000481 | P69: 0.002197061918 | Q69: 40.76188736 | R69: -88.82307436 | S69: 91.17692564 | U69: 1000000000 | V69: 30199.4884 | X69: 20.6153728 | Y69: -87.17751694 | AA69: 20.14651455 | AB69: -1.645557421 | AD69: 0 | AE69: 0
A70: 190.55 | B70: 0.19055 | C70: 1.000427206 | D70: 0.02922514116 | E70: 1.00000001 | F70: 0.0001436713141 | G70: 1 | H70: 0 | I70: 726.5525363 | J70: 1.569419963 | K70: 1.00145146 | L70: 0.05384619265 | M70: 1.000001117 | N70: 0.001494333112 | O70: 1.000000578 | P70: 0.002409081459 | Q70: 39.96319665 | R70: -88.72587537 | S70: 91.27412463 | U70: 1000000000 | V70: 36309.3025 | X70: 19.81730697 | Y70: -86.92159968 | AA70: 20.14588968 | AB70: -1.804275686 | AD70: 0 | AE70: 0
A71: 208.93 | B71: 0.20893 | C71: 1.000513574 | D71: 0.03204228444 | E71: 1.000000012 | F71: 0.0001575295073 | G71: 1 | H71: 0 | I71: 796.6339398 | J71: 1.569541045 | K71: 1.001744717 | L71: 0.05902854039 | M71: 1.000001342 | N71: 0.001638472685 | O71: 1.000000695 | P71: 0.002641455937 | Q71: 39.16515137 | R71: -88.61807524 | S71: 91.38192476 | U71: 1000000000 | V71: 43651.7449 | X71: 19.02001251 | Y71: -86.63986907 | AA71: 20.14513886 | AB71: -1.978206168 | AD71: 0 | AE71: 0
A72: 229.09 | B72: 0.22909 | C72: 1.000617434 | D72: 0.03513166566 | E72: 1.000000015 | F72: 0.0001727297887 | G72: 1 | H72: 0 | I72: 873.5023457 | J72: 1.56965151 | K72: 1.002097294 | L72: 0.0647091112 | M72: 1.000001614 | N72: 0.001796571289 | O72: 1.000000836 | P72: 0.002896334648 | Q72: 38.36719736 | R72: -88.49873114 | S72: 91.50126886 | U72: 1000000000 | V72: 52482.2281 | X72: 18.22296131 | Y72: -86.32978391 | AA72: 20.14423605 | AB72: -2.168947236 | AD72: 0 | AE72: 0
A73: 251.19 | B73: 0.25119 | C73: 1.00074226 | D73: 0.03851756569 | E73: 1.000000018 | F73: 0.0001893927956 | G73: 1 | H73: 0 | I73: 957.7678206 | J73: 1.569752232 | K73: 1.002520924 | L73: 0.07093150948 | M73: 1.00000194 | N73: 0.001969883644 | O73: 1.000001004 | P73: 0.003175740464 | Q73: 37.56985741 | R73: -88.36696685 | S73: 91.63303315 | U73: 1000000000 | V73: 63096.4161 | X73: 17.42670629 | Y73: -85.98896778 | AA73: 20.14315112 | AB73: -2.377999072 | AD73: 0 | AE73: 0
A74: 275.42 | B74: 0.27542 | C74: 1.000892298 | D74: 0.04222878106 | E74: 1.000000022 | F74: 0.0002076617845 | G74: 1 | H74: 0 | I74: 1050.154819 | J74: 1.569844086 | K74: 1.003029951 | L74: 0.07774728839 | M74: 1.000002333 | N74: 0.002159899723 | O74: 1.000001208 | P74: 0.003482075553 | Q74: 36.77309747 | R74: -88.22174339 | S74: 91.77825661 | U74: 1000000000 | V74: 75856.1764 | X74: 16.63125023 | Y74: -85.61460237 | AA74: 20.14184724 | AB74: -2.607141021 | AD74: 0 | AE74: 0
A75: 302 | B75: 0.302 | C75: 1.001072738 | D75: 0.04629859474 | E75: 1.000000026 | F75: 0.0002277026313 | G75: 1 | H75: 0 | I75: 1151.502183 | J75: 1.569927896 | K75: 1.003641882 | L75: 0.08521577146 | M75: 1.000002805 | N75: 0.00236834475 | O75: 1.000001452 | P75: 0.003818121379 | Q75: 35.97659432 | R75: -88.0618647 | S75: 91.9381353 | U75: 1000000000 | V75: 91204 | X75: 15.83631491 | Y75: -85.20343478 | AA75: 20.14027941 | AB75: -2.85842992 | AD75: 0 | AE75: 0
A76: 331.13 | B76: 0.33113 | C76: 1.001289525 | D76: 0.05075708632 | E76: 1.000000031 | F76: 0.0002496661326 | G76: 1 | H76: 0 | I76: 1262.572495 | J76: 1.570004293 | K76: 1.004376731 | L76: 0.09338979655 | M76: 1.000003372 | N76: 0.002596787088 | O76: 1.000001746 | P76: 0.004186406563 | Q76: 35.18123228 | R76: -87.88628909 | S76: 92.11371091 | U76: 1000000000 | V76: 109647.0769 | X76: 15.04283614 | Y76: -84.75256365 | AA76: 20.13839614 | AB76: -3.133725442 | AD76: 0 | AE76: 0
A77: 363.08 | B77: 0.36308 | C77: =SQRT(1+(A77/pole1)^2) -> 1.001550175 | D77: =ATAN(A77/pole1) -> 0.05564486509 | E77: =SQRT(1+(A77/Zero1)^2) -> 1.000000037 | F77: =ATAN(A77/Zero1) -> 0.0002737558634 | G77: =IF(VIN_nom>Vout, 1, SQRT(1+(A77/z_RHP)^2)) -> 1 | H77: =IF(VIN_nom>Vout, 0, -ATAN(A77/z_RHP)) -> 0 | I77: =SQRT(1+(A77/Pole2)^2) -> 1384.395245 | J77: =ATAN(A77/Pole2) -> 1.57007399 | K77: =SQRT(1+(A77/Zero2)^2) -> 1.005259763 | L77: =ATAN(A77/Zero2) -> 0.1023407188 | M77: =SQRT(1+(A77/pole4)^2) -> 1.000004054 | N77: =ATAN(A77/pole4) -> 0.002847344025 | O77: =SQRT((1-(V77/pterm2))^2+(A77/pterm1)^2) -> 1.000002099 | P77: =IF((ATAN((A77/pterm1)/(1-A77^2/pterm2))>0),ATAN((A77/pterm1)/(1-A77^2/pterm2)),PI()+ATAN((A77/pterm1)/(1-A77^2/pterm2))) -> 0.004590344748 | Q77: =20*LOG10(((E77*K77*G77)/(C77*I77*O77*M77))*Adc) -> 34.38652021 | R77: =((F77+L77+H77)-(D77+J77+P77+N77))*radconv -> -87.69360101 | S77: =IF(R77>0,R77,R77+180) -> 92.30639899 | U77: 1000000000 | V77: 131827.0864 | X77: =20*LOG10((K77/(I77*M77))*AEA*Afb) -> 14.25038786 | Y77: =(L77-(J77+N77))*radconv -> -84.25806276 | AA77: =20*LOG10((E77*G77/(C77*O77))*Am) -> 20.13613236 | AB77: =(F77+H77-(D77+P77))*radconv -> -3.43553825 | AD77: 0 | AE77: =IF(AD77>0,S75,0) -> 0
A78: 398.11 | B78: =A78/1000 -> 0.39811 | C78: 1.001863436 | D78: 0.06100076324 | E78: 1.000000045 | F78: 0.000300167859 | G78: 1 | H78: 0 | I78: 1517.96179 | J78: 1.570137549 | K78: 1.006320305 | L78: 0.1121355873 | M78: 1.000004874 | N78: 0.003122054397 | O78: 1.000002523 | P78: 0.005033223174 | Q78: 33.59293707 | R78: -87.48250992 | S78: 92.51749008 | U78: =IF(Q78<0,A78,1000000000) -> 1000000000 | V78: =A78^2 -> 158491.5721 | X78: 13.45952465 | Y78: -83.71623954 | AA78: 20.13341243 | AB78: -3.766270379 | AD78: =SUM((Q79<0)*(Q78>0))*A78 -> 0 | AE78: 0
A79: 436.52 | B79: 0.43652 | C79: 1.002239932 | D79: 0.06686940913 | E79: 1.000000054 | F79: 0.0003291283138 | G79: 1 | H79: 0 | I79: 1664.416006 | J79: 1.570195515 | K79: 1.007593894 | L79: 0.1228507044 | M79: 1.000005859 | N79: 0.003423270678 | O79: 1.000003034 | P79: 0.005518834832 | Q79: 32.8006256 | R79: -87.25157144 | S79: 92.74842856 | U79: 1000000000 | V79: 190549.7104 | X79: 12.67048103 | Y79: -83.12288823 | AA79: 20.13014456 | AB79: -4.128683207 | AD79: 0 | AE79: 0
A80: 478.63 | B80: 0.47863 | C80: 1.00269233 | D80: 0.0732980649 | E80: 1.000000065 | F80: 0.000360878502 | G80: 1 | H80: 0 | I80: 1824.978028 | J80: 1.570248375 | K80: 1.009122744 | L80: 0.1345654191 | M80: 1.000007044 | N80: 0.003753502131 | O80: 1.000003647 | P80: 0.006051225618 | Q80: 32.00994448 | R80: -86.99933666 | S80: 93.00066334 | U80: 1000000000 | V80: 229086.6769 | X80: 11.88372496 | Y80: -82.47363401 | AA80: 20.12621952 | AB80: -4.525702644 | AD80: 0 | AE80: 0
A81: 524.81 | B81: 0.52481 | C81: 1.003236046 | D81: 0.08034107047 | E81: 1.000000078 | F81: 0.0003956973966 | G81: 1 | H81: 0 | I81: 2001.058636 | J81: 1.570296591 | K81: 1.010958051 | L81: 0.1473696864 | M81: 1.000008469 | N81: 0.004115650047 | O81: 1.000004385 | P81: 0.006635073635 | Q81: 31.22095642 | R81: -86.72420987 | S81: 93.27579013 | U81: 1000000000 | V81: 275425.5361 | X81: 11.0994519 | Y81: -81.76351568 | AA81: 20.12150452 | AB81: -4.960694191 | AD81: 0 | AE81: 0
A82: 575.44 | B82: 0.57544 | C82: 1.003889278 | D82: 0.08805356063 | E82: 1.000000094 | F82: 0.0004338715107 | G82: 1 | H82: 0 | I82: 2194.106738 | J82: 1.57034056 | K82: 1.013159941 | L82: 0.1613519343 | M82: 1.000010182 | N82: 0.004512694039 | O82: 1.000005272 | P82: 0.0072751835 | Q82: 30.43421899 | R82: -86.42473578 | S82: 93.57526422 | U82: 1000000000 | V82: 331131.1936 | X82: 10.31837579 | Y82: -80.98766008 | AA82: 20.11584319 | AB82: -5.437075705 | AD82: 0 | AE82: 0
A83: 630.96 | B83: 0.63096 | C83: 1.004674149 | D83: 0.0964988573 | E83: 1.000000113 | F83: 0.0004757325957 | G83: 1 | H83: 0 | I83: 2405.80002 | J83: 1.570380665 | K83: 1.015801128 | L83: 0.1766116231 | M83: 1.000012242 | N83: 0.004948084112 | O83: 1.000006338 | P83: 0.007977118512 | Q83: 29.64998193 | R83: -86.09936314 | S83: 93.90063686 | U83: 1000000000 | V83: 398110.5216 | X83: 9.540936061 | Y83: -80.14058813 | AA83: 20.10904587 | AB83: -5.958775012 | AD83: 0 | AE83: 0
A84: 691.83 | B84: 0.69183 | C84: 1.005616858 | D84: 0.1057420721 | E84: 1.000000136 | F84: 0.000521627483 | G84: 1 | H84: 0 | I84: 2637.892423 | J84: 1.570417236 | K84: 1.018967132 | L84: 0.1932465359 | M84: 1.000014718 | N84: 0.005425426938 | O84: 1.00000762 | P84: 0.008746694979 | Q84: 28.86888169 | R84: -85.74675907 | S84: 94.25324093 | U84: 1000000000 | V84: 478628.7489 | X84: 8.767993119 | Y84: -79.21692296 | AA84: 20.10088857 | AB84: -6.529836111 | AD84: 0 | AE84: 0
A85: 758.58 | B85: 0.75858 | C85: 1.006749201 | D85: 0.1158573117 | E85: 1.000000164 | F85: 0.0005719557822 | G85: 1 | H85: 0 | I85: 2892.404796 | J85: 1.570450594 | K85: 1.022760948 | L85: 0.211364391 | M85: 1.000017695 | N85: 0.005948877901 | O85: 1.000009162 | P85: 0.009590614403 | Q85: 28.0913071 | R85: -85.36561516 | S85: 94.63438484 | U85: 1000000000 | V85: 575443.6164 | X85: 8.000206641 | Y85: -78.21074909 | AA85: 20.09110046 | AB85: -7.154866068 | AD85: 0 | AE85: 0
A86: 831.76 | B86: 0.83176 | C86: 1.008108705 | D86: 0.1269195736 | E86: 1.000000197 | F86: 0.0006271321824 | G86: 1 | H86: 0 | I86: 3171.434244 | J86: 1.570481012 | K86: 1.027302948 | L86: 0.2310665535 | M86: 1.000021274 | N86: 0.006522748923 | O86: 1.000011015 | P86: 0.0105158314 | Q86: 27.31809396 | R86: -84.95505821 | S86: 95.04494179 | U86: 1000000000 | V86: 691824.6976 | X86: 7.238730739 | Y86: -77.11652157 | AA86: 20.07936322 | AB86: -7.838536645 | AD86: 0 | AE86: 0
A87: 912.01 | B87: 0.91201 | C87: 1.009740961 | D87: 0.1390146781 | E87: 1.000000236 | F87: 0.0006876392307 | G87: 1 | H87: 0 | I87: 3477.421036 | J87: 1.570508757 | K87: 1.032737835 | L87: 0.2524636883 | M87: 1.000025577 | N87: 0.007152057301 | O87: 1.000013243 | P87: 0.01153043881 | Q87: 26.54978516 | R87: -84.51440346 | S87: 95.48559654 | U87: 1000000000 | V87: 831762.2401 | X87: 6.484493125 | Y87: -75.92820245 | AA87: 20.06529204 | AB87: -8.58620101 | AD87: 0 | AE87: 0
A88: 1000 | B88: 1 | C88: 1.011699828 | D88: 0.1522293274 | E88: 1.000000284 | F88: 0.0007539820931 | G88: 1 | H88: 0 | I88: 3812.919828 | J88: 1.570534061 | K88: 1.03923422 | L88: 0.275655506 | M88: 1.00003075 | N88: 0.00784205506 | O88: 1.000015922 | P88: 0.01264290918 | Q88: 25.78734241 | R88: -84.04367624 | S88: 95.95632376 | U88: 1000000000 | V88: 1000000 | X88: 5.73890727 | Y88: -74.6403929 | AA88: 20.04843514 | AB88: -9.403283333 | AD88: 0 | AE88: 0
A89: 1096.5 | B89: 1.0965 | C89: 1.014050429 | D89: 0.1666605289 | E89: 1.000000342 | F89: 0.0008267413334 | G89: 1 | H89: 0 | I89: 4180.866567 | J89: 1.570557142 | K89: 1.046992987 | L89: 0.3007444123 | M89: 1.000036971 | N89: 0.008598777713 | O89: 1.000019143 | P89: 0.01386297998 | Q89: 25.03153736 | R89: -83.54345032 | S89: 96.45654968 | U89: 1000000000 | V89: 1202312.25 | X89: 5.003287245 | Y89: -73.24758394 | AA89: 20.02825011 | AB89: -10.29586639 | AD89: 0 | AE89: 0
A90: 1202.3 | B90: 1.2023 | C90: 1.016869051 | D90: 0.1824021827 | E90: 1.000000411 | F90: 0.000906512594 | G90: 1 | H90: 0 | I90: 4584.27346 | J90: 1.57057819 | K90: 1.056244879 | L90: 0.3278086851 | M90: 1.000044449 | N90: 0.009428416691 | O90: 1.000023017 | P90: 0.01520064229 | Q90: 24.28366254 | R90: -83.01552465 | S90: 96.98447535 | U90: 1000000000 | V90: 1445525.29 | X90: 4.27955499 | Y90: -71.74565609 | AA90: 20.00410755 | AB90: -11.26986856 | AD90: 0 | AE90: =IF(AD90>0,S90,0) -> 0
A91: 1318.3 | B91: 1.3183 | C91: 1.020247278 | D91: 0.199556765 | E91: 1.000000494 | F91: 0.0009939744544 | G91: 1 | H91: 0 | I91: 5026.572135 | J91: 1.570597384 | K91: 1.0672613 | L91: 0.3569192086 | M91: 1.00005344 | N91: 0.01033802481 | O91: 1.000027673 | P91: 0.01666727898 | Q91: 23.54483127 | R91: -82.46273704 | S91: 97.53726296 | U91: 1000000000 | V91: 1737914.89 | X91: 3.569571745 | Y91: -70.13096241 | AA91: 19.97525952 | AB91: -12.33177463 | AD91: 0 | AE91: 0
A92: 1445.4 | B92: 1.4454 | C92: 1.024291024 | D92: 0.2182168354 | E92: 1.000000594 | F92: 0.001089805492 | G92: 1 | H92: 0 | I92: 5511.19422 | J92: 1.570614878 | K92: 1.080347496 | L92: 0.3881043544 | M92: 1.000064241 | N92: 0.01133465332 | O92: 1.000033268 | P92: 0.01827427423 | Q92: 22.8167095 | R92: -81.88979134 | S92: 98.11020866 | U92: 1000000000 | V92: 2089181.16 | X92: 2.875856153 | Y92: -68.4022901 | AA92: 19.94085335 | AB92: -13.48750123 | AD92: 0 | AE92: 0
A93: 1584.9 | B93: 1.5849 | C93: 1.029136351 | D93: 0.2385207181 | E93: 1.000000714 | F93: 0.001194985877 | G93: 1 | H93: 0 | I93: 6043.09651 | J93: 1.570630849 | K93: 1.095888745 | L93: 0.4214386106 | M93: 1.000077239 | N93: 0.01242848788 | O93: 1.000040001 | P93: 0.02003807141 | Q93: 22.0993318 | R93: -81.30182484 | S93: 98.69817516 | U93: 1000000000 | V93: 2511908.01 | X93: 2.199526927 | Y93: -66.55596507 | AA93: 19.89980487 | AB93: -14.74585976 | AD93: 0 | AE93: 0
A94: 1737.8 | B94: 1.7378 | C94: 1.034929541 | D94: 0.2605464441 | E94: 1.000000858 | F94: 0.00131026958 | G94: 1 | H94: 0 | I94: 6626.091924 | J94: 1.570645408 | K94: 1.114279746 | L94: 0.4568631068 | M94: 1.00009286 | N94: 0.01362735903 | O94: 1.000048095 | P94: 0.02197132314 | Q94: 21.39496666 | R94: -80.7078182 | S94: 99.2921818 | U94: 1000000000 | V94: 3019948.84 | X94: 1.543988122 | Y94: -64.5958154 | AA94: 19.85097854 | AB94: -16.1120028 | AD94: 0 | AE94: 0
A95: 1905.5 | B95: 1.9055 | C95: 1.041853898 | D95: 0.2844096073 | E95: 1.000001032 | F95: 0.001436712162 | G95: 1 | H95: 0 | I95: 7265.51855 | J95: 1.57065869 | K95: 1.136002908 | L95: 0.4943454855 | M95: 1.000111646 | N95: 0.0149422301 | O95: 1.000057829 | P95: 0.02409174259 | Q95: 20.70432066 | R95: -80.11783866 | S95: 99.88216134 | U95: 1000000000 | V95: 3630930.25 | X95: 0.9113459153 | Y95: -62.52433086 | AA95: 19.79297475 | AB95: -17.5935078 | AD95: 0 | AE95: 0
A96: 2089.3 | B96: 2.0893 | C96: 1.050114811 | D96: 0.3101859519 | E96: 1.000001241 | F96: 0.001575293783 | G96: 1 | H96: 0 | I96: 7966.333185 | J96: 1.570670799 | K96: 1.161571284 | L96: 0.5337547822 | M96: 1.000134221 | N96: 0.01638327554 | O96: 1.00006953 | P96: 0.02641578257 | Q96: 20.028917 | R96: -79.54520516 | S96: 100.4547948 | U96: 1000000000 | V96: 4365174.49 | X96: 0.3046413159 | Y96: -60.34960406 | AA96: 19.72427568 | AB96: -19.1956011 | AD96: 0 | AE96: 0
A97: 2290.9 | B97: 2.2909 | C97: 1.059964631 | D97: 0.3379760197 | E97: 1.000001492 | F97: 0.001727296187 | G97: 1 | H97: 0 | I97: 8735.01779 | J97: 1.570681845 | K97: 1.191594968 | L97: 0.5749650083 | M97: 1.000161371 | N97: 0.01796379968 | O97: 1.000083604 | P97: 0.02896495888 | Q97: 19.36901868 | R97: -79.00482495 | S97: 100.995175 | U97: 1000000000 | V97: 5248222.81 | X97: -0.2740451434 | Y97: -58.07962231 | AA97: 19.64306382 | AB97: -20.92520264 | AD97: 0 | AE97: 0
A98: 2511.9 | B98: 2.5119 | C98: 1.071684258 | D98: 0.3678277759 | E98: 1.000001793 | F98: 0.001893925714 | G98: 1 | H98: 0 | I98: 9577.673038 | J98: 1.570691917 | K98: 1.226711177 | L98: 0.6177429437 | M98: 1.000194004 | N98: 0.0196963145 | O98: 1.000100525 | P98: 0.03175952993 | Q98: 18.72543036 | R98: -78.51462228 | S98: 101.4853777 | U98: 1000000000 | V98: 6309641.61 | X98: -0.8219795692 | Y98: -55.72847004 | AA98: 19.54740993 | AB98: -22.78615225 | AD98: 0 | AE98: 0
A99: 2754.2 | B99: 2.7542 | C99: 1.085605459 | D99: 0.3997843194 | E99: 1.000002156 | F99: 0.002076614889 | G99: 1 | H99: 0 | I99: 10501.54348 | J99: 1.570701103 | K99: 1.267638868 | L99: 0.6618311381 | M99: 1.000233232 | N99: 0.02159567297 | O99: 1.000120873 | P99: 0.03482355674 | Q99: 18.09801474 | R99: -78.09396988 | S99: 101.9060301 | U99: 1000000000 | V99: 7585617.64 | X99: -1.337118287 | Y99: -53.31175408 | AA99: 19.43513302 | AB99: -24.7822158 | AD99: 0 | AE99: 0
A100: 3020 | B100: 3.02 | C100: 1.102117364 | D100: 0.433873029 | E100: 1.000002592 | F100: 0.002277022417 | G100: 1 | H100: 0 | I100: 11515.01753 | J100: 1.570709484 | K100: 1.315181662 | L100: 0.7069426166 | M100: 1.000280415 | N100: 0.02367906518 | O100: 1.000145355 | P100: 0.03818490624 | Q100: 17.48585424 | R100: -77.76337015 | S100: 102.2366298 | U100: 1000000000 | V100: 9120400 | X100: -1.817953425 | Y100: -50.84690652 | AA100: 19.30380766 | AB100: -26.91646363 | AD100: 0 | AE100: 0
A101: 3311.3 | B101: 3.3113 | C101: 1.12163778 | D101: 0.4700328266 | E101: 1.000003117 | F101: 0.002496656191 | G101: 1 | H101: 0 | I101: 12625.72103 | J101: 1.570717123 | K101: 1.370132015 | L101: 0.7526840579 | M101: 1.00033711 | N101: 0.02596209459 | O101: 1.000174788 | P101: 0.04186893208 | Q101: 16.88831687 | R101: -77.54412313 | S101: 102.4558769 | U101: 1000000000 | V101: 10964707.69 | X101: -2.26274405 | Y101: -48.35736066 | AA101: 19.15106092 | AB101: -29.18676247 | AD101: 0 | AE101: 0
A102: 3630.8 | B102: 3.6308 | C102: 1.14467261 | D102: 0.5082196763 | E102: 1.000003747 | F102: 0.002737551864 | G102: 1 | H102: 0 | I102: 13843.94887 | J102: 1.570724093 | K102: 1.433429117 | L102: 0.7987151915 | M102: 1.000405288 | N102: 0.02846582606 | O102: 1.000210201 | P102: 0.0459098615 | Q102: 16.30304981 | R102: -77.45625724 | S102: 102.5437428 | U102: 1000000000 | V102: 13182708.64 | X102: -2.671135818 | Y102: -45.86382355 | AA102: 18.97418563 | AB102: -31.59243369 | AD102: 0 | AE102: 0
A103: 3981.1 | B103: 3.9811 | C103: 1.17176549 | D103: 0.5482976492 | E103: 1.000004505 | F103: 0.003001669665 | G103: 1 | H103: 0 | I103: 15179.61464 | J103: 1.570730449 | K103: 1.506006513 | L103: 0.844630313 | M103: 1.000487246 | N103: 0.03121050745 | O103: 1.000252799 | P103: 0.05034068493 | Q103: 15.72778404 | R103: -77.51817073 | S103: 102.4818293 | U103: 1000000000 | V103: 15849157.21 | X103: -3.042849998 | Y103: -43.3907037 | AA103: 18.77063404 | AB103: -34.12746703 | AD103: 0 | AE103: 0
A104: 4365.2 | B104: 4.3652 | C104: 1.203531528 | D104: 0.5900945349 | E104: 1.000005416 | F104: 0.003291271372 | G104: 1 | H104: 0 | I104: 16644.15709 | J104: 1.570736246 | K104: 1.588881875 | L104: 0.890049697 | M104: 1.000585772 | N104: 0.03421947755 | O104: 1.00030405 | P104: 0.05519948843 | Q104: 15.15943025 | R104: -77.74514626 | S104: 102.2548537 | U104: 1000000000 | V104: 19054971.04 | X104: -3.37843131 | Y104: -40.9610981 | AA104: 18.53786156 | AB104: -36.78404817 | AD104: 0 | AE104: 0
A105: 4786.3 | B105: 4.7863 | C105: 1.240641299 | D105: 0.6333746556 | E105: 1.000006512 | F105: 0.00360876951 | G105: 1 | H105: 0 | I105: 18249.77757 | J105: 1.570741532 | K105: 1.683113562 | L105: 0.9346040325 | M105: 1.000704198 | N105: 0.0375175848 | O105: 1.000365711 | P105: 0.0605269358 | Q105: 14.59462192 | R105: -78.14845857 | S105: 101.8515414 | U105: 1000000000 | V105: 22908667.69 | X105: -3.6789385 | Y105: -38.5975932 | AA105: 18.27356042 | AB105: -39.55086537 | AD105: 0 | AE105: 0
A106: 5248.1 | B106: 5.2481 | C106: 1.283844417 | D106: 0.6778695257 | E106: 1.000007829 | F106: 0.003956953521 | G106: 1 | H106: 0 | I106: 20010.58388 | J106: 1.570746353 | K106: 1.789865389 | L106: 0.977977324 | M106: 1.00084658 | N106: 0.04113351829 | O106: 1.000439931 | P106: 0.06637007949 | Q106: 14.02952525 | R106: -78.73501227 | S106: 101.2649877 | U106: 1000000000 | V106: 27542553.61 | X106: -3.946078954 | Y106: -36.31994064 | AA106: 17.9756042 | AB106: -42.41507163 | AD106: 0 | AE106: 0
A107: 5370.3 | B107: 5.3703 | C107: 1.295683898 | D107: 0.6891399502 | E107: 1.000008198 | F107: 0.004049088673 | G107: 1 | H107: 0 | I107: 20476.52267 | J107: 1.57074749 | K107: 1.81863511 | L107: 0.9885962231 | M107: 1.000886446 | N107: 0.04209017858 | O107: 1.000460728 | P107: 0.06791642074 | Q107: 13.88784373 | R107: -78.91053955 | S107: 101.0894604 | U107: 1000000000 | V107: 28840122.09 | X107: -4.007849815 | Y107: -35.76640029 | AA107: 17.89569355 | AB107: -43.14413927 | AD107: 0 | AE107: 0
A108: 5432.85 | B108: 5.43285 | C108: 1.301806927 | D108: 0.6948292046 | E108: 1.00000839 | F108: 0.00409624948 | G108: 1 | H108: 0 | I108: 20715.0208 | J108: 1.570748053 | K108: 1.83343881 | L108: 0.9939024208 | M108: 1.000907206 | N108: 0.04257983054 | O108: 1.000471561 | P108: 0.06870796483 | Q108: 13.81645449 | R108: -79.00322431 | S108: 100.9967757 | U108: 1000000000 | V108: 29515859.12 | X108: -4.038196335 | Y108: -35.49046476 | AA108: 17.85465083 | AB108: -43.51275955 | AD108: 0 | AE108: 0
A109: 5495.4 | B109: 5.4954 | C109: 1.307971698 | D109: 0.7004650104 | E109: 1.000008584 | F109: 0.004143410268 | G109: 1 | H109: 0 | I109: 20953.51892 | J109: 1.570748602 | K109: 1.848293305 | L109: 0.999123473 | M109: 1.000928207 | N109: 0.04306946207 | O109: 1.000482522 | P109: 0.06949952606 | Q109: 13.74580091 | R109: -79.09772425 | S109: 100.9022758 | U109: 1000000000 | V109: 30199421.16 | X109: -4.067721073 | Y109: -35.2194058 | AA109: 17.81352199 | AB109: -43.87831844 | AD109: 0 | AE109: 0
A110: 5559.4 | B110: 5.5594 | C110: 1.314321968 | D110: 0.7061765548 | E110: 1.000008785 | F110: 0.004191664293 | G110: 1 | H110: 0 | I110: 21197.54578 | J110: 1.570749152 | K110: 1.863543455 | L110: 1.004379258 | M110: 1.000949942 | N110: 0.04357042258 | O110: 1.000493868 | P110: 0.07030945474 | Q110: 13.67424755 | R110: -79.19621246 | S110: 100.8037875 | U110: 1000000000 | V110: 30906928.36 | X110: -4.097109275 | Y110: -34.94700588 | AA110: 17.77135682 | AB110: -44.24920657 | AD110: 0 | AE110: 0
A111: 5623.4 | B111: 5.6234 | C111: 1.320714701 | D111: 0.7118329904 | E111: 1.000008989 | F111: 0.004239918299 | G111: 1 | H111: 0 | I111: 21441.57264 | J111: 1.570749688 | K111: 1.878844246 | L111: 1.009549581 | M111: 1.000971929 | N111: 0.04407136121 | O111: 1.000505348 | P111: 0.07111940177 | Q111: 13.60341798 | R111: -79.29643889 | S111: 100.7035611 | U111: 1000000000 | V111: 31622627.56 | X111: -4.125696047 | Y111: -34.67950063 | AA111: 17.72911403 | AB111: -44.61693826 | AD111: 0 | AE111: 0
A112: 5688.9 | B112: 5.6889 | C112: 1.32730059 | D112: 0.7175653933 | E112: 1.000009199 | F112: 0.004289303237 | G112: 1 | H112: 0 | I112: 21691.31888 | J112: 1.570750225 | K112: 1.894554804 | L112: 1.014754469 | M112: 1.000994691 | N112: 0.04458401768 | O112: 1.000517235 | P112: 0.07194835112 | Q112: 13.531655 | R112: -79.40073285 | S112: 100.5992672 | U112: 1000000000 | V112: 32363583.21 | X112: -4.154152154 | Y112: -34.41068634 | AA112: 17.68580716 | AB112: -44.9900465 | AD112: 0 | AE112: 0
A113: 5754.4 | B113: 5.7544 | C113: 1.333929663 | D113: 0.723241006 | E113: 1.000009412 | F113: 0.004338688155 | G113: 1 | H113: 0 | I113: 21941.06512 | J113: 1.57075075 | K113: 1.910315842 | L113: 1.019873608 | M113: 1.001017716 | N113: 0.04509665069 | O113: 1.000529262 | P113: 0.07277732012 | Q113: 13.46060494 | R113: -79.5066851 | S113: 100.4933149 | U113: 1000000000 | V113: 33113119.36 | X113: -4.181826806 | Y113: -34.14678307 | AA113: 17.64243174 | AB113: -45.35990203 | AD113: 0 | AE113: 0
A114: 5821.4 | B114: 5.8214 | C114: 1.340754558 | D114: 0.7289883384 | E114: 1.000009633 | F114: 0.004389204002 | G114: 1 | H114: 0 | I114: 22196.53074 | J114: 1.570751275 | K114: 1.926488755 | L114: 1.02502318 | M114: 1.001041541 | N114: 0.04562099885 | O114: 1.000541709 | P114: 0.0736252937 | Q114: 13.38864318 | R114: -79.6166982 | S114: 100.3833018 | U114: 1000000000 | V114: 33888697.96 | X114: -4.209355392 | Y114: -33.88180732 | AA114: 17.59799857 | AB114: -45.73489089 | AD114: 0 | AE114: 0
A115: 5888.4 | B115: 5.8884 | C115: 1.347623291 | D115: 0.7346772697 | E115: 1.000009856 | F115: 0.004439719828 | G115: 1 | H115: 0 | I115: 22451.99636 | J115: 1.570751787 | K115: 1.942711904 | L115: 1.030086879 | M115: 1.001065641 | N115: 0.04614532191 | O115: 1.000554302 | P115: 0.0744732883 | Q115: 13.31738336 | R115: -79.72828444 | S115: 100.2717156 | U115: 1000000000 | V115: 34673254.56 | X115: -4.236123291 | Y115: -33.62174963 | AA115: 17.55350666 | AB115: -46.10653481 | AD115: 0 | AE115: 0
A116: 5957 | B116: 5.957 | C116: 1.354700778 | D116: 0.7404420925 | E116: 1.000010087 | F116: 0.004491441978 | G116: 1 | H116: 0 | I116: 22713.56265 | J116: 1.5707523 | K116: 1.959373218 | L116: 1.035184487 | M116: 1.001090601 | N116: 0.04668213981 | O116: 1.000567348 | P116: 0.07534155554 | Q116: 13.24512751 | R116: -79.84408437 | S116: 100.1559156 | U116: 1000000000 | V116: 35485849 | X116: -4.262770461 | Y116: -33.36046496 | AA116: 17.50789797 | AB116: -46.48361941 | AD116: 0 | AE116: 0
A117: 6025.6 | B117: 6.0256 | C117: 1.361822817 | D117: 0.7461468058 | E117: 1.00001032 | F117: 0.004543164103 | G117: 1 | H117: 0 | I117: 22975.12894 | J117: 1.570752801 | K117: 1.976084588 | L117: 1.040196005 | M117: 1.00111585 | N117: 0.04721893078 | O117: 1.000580547 | P117: 0.07620984532 | Q117: 13.17356467 | R117: -79.96137198 | S117: 100.038628 | U117: 1000000000 | V117: 36307855.36 | X117: -4.288676225 | Y117: -33.1041107 | AA117: 17.46224089 | AB117: -46.85726129 | AD117: 0 | AE117: 0
A118: 6095.8 | B118: 6.0958 | C118: 1.369156366 | D118: 0.751922939 | E118: 1.000010562 | F118: 0.004596092551 | G118: 1 | H118: 0 | I118: 23242.79591 | J118: 1.570753303 | K118: 1.993236234 | L118: 1.045237284 | M118: 1.001141987 | N118: 0.04776821347 | O118: 1.000594214 | P118: 0.07709841035 | Q118: 13.10102912 | R118: -80.0828548 | S118: 99.9171452 | U118: 1000000000 | V118: 37158777.64 | X118: -4.314446362 | Y118: -32.846767 | AA118: 17.41547549 | AB118: -47.2360878 | AD118: 0 | AE118: 0
A119: 6166 | B119: 6.166 | C119: 1.376535107 | D119: 0.7576373368 | E119: 1.000010807 | F119: 0.004649020973 | G119: 1 | H119: 0 | I119: 23510.46287 | J119: 1.570753793 | K119: 2.010437673 | L119: 1.05019242 | M119: 1.001168425 | N119: 0.04831746731 | O119: 1.000608042 | P119: 0.07798699953 | Q119: 13.02917759 | R119: -80.20573512 | S119: 99.79426488 | U119: 1000000000 | V119: 38019556 | X119: -4.339495149 | Y119: -32.59435662 | AA119: 17.36867274 | AB119: -47.6113785 | AD119: 0 | AE119: 0
A120: 6237.8 | B120: 6.2378 | C120: 1.38412802 | D120: 0.7634187585 | E120: 1.00001106 | F120: 0.004703155714 | G120: 1 | H120: 0 | I120: 23784.2305 | J120: 1.570754282 | K120: 2.028081354 | L120: 1.055173417 | M120: 1.001195779 | N120: 0.04887920958 | O120: 1.000622351 | P120: 0.0788958667 | Q120: 12.95637554 | R120: -80.33278213 | S120: 99.66721787 | U120: 1000000000 | V120: 38910148.84 | X120: -4.364395803 | Y120: -32.34118 | AA120: 17.32077135 | AB120: -47.99160213 | AD120: 0 | AE120: 0
A121: 6309.6 | B121: 6.3096 | C121: 1.391766692 | D121: 0.7691369072 | E121: 1.000011316 | F121: 0.004757290427 | G121: 1 | H121: 0 | I121: 24057.99814 | J121: 1.570754761 | K121: 2.045774484 | L121: 1.060068377 | M121: 1.001223448 | N121: 0.04944092098 | O121: 1.00063683 | P121: 0.0798047597 | Q121: 12.88424855 | R121: -80.46113254 | S121: 99.53886746 | U121: 1000000000 | V121: 39811052.16 | X121: -4.388595776 | Y121: -32.09293058 | AA121: 17.27284433 | AB121: -48.36820196 | AD121: 0 | AE121: 0
A122: 6383.05 | B122: 6.38305 | C122: 1.399627472 | D122: 0.7749216847 | E122: 1.000011581 | F122: 0.004812669154 | G122: 1 | H122: 0 | I122: 24338.05709 | J122: 1.570755239 | K122: 2.063924051 | L122: 1.064988865 | M122: 1.001252081 | N122: 0.05001550847 | O122: 1.000651815 | P122: 0.08073456654 | Q122: 12.81114271 | R122: -80.59370258 | S122: 99.40629742 | U122: 1000000000 | V122: 40743327.3 | X122: -4.412653448 | Y122: -31.84395625 | AA122: 17.22379616 | AB122: -48.74974633 | AD122: 0 | AE122: 0
A123: 6456.5 | B123: 6.4565 | C123: 1.407534564 | D123: 0.7806416576 | E123: 1.000011849 | F123: 0.004868047852 | G123: 1 | H123: 0 | I123: 24618.11604 | J123: 1.570755706 | K123: 2.082122716 | L123: 1.069823453 | M123: 1.001281043 | N123: 0.05059006292 | O123: 1.000666978 | P123: 0.08166440103 | Q123: 12.73870401 | R123: -80.72748032 | S123: 99.27251968 | U123: 1000000000 | V123: 41686392.25 | X123: -4.436030667 | Y123: -31.59990105 | AA123: 17.17473467 | AB123: -49.12757927 | AD123: 0 | AE123: 0
A124: 6531.7 | B124: 6.5317 | C124: 1.415677218 | D124: 0.7864315207 | E124: 1.000012127 | F124: 0.004924745957 | G124: 1 | H124: 0 | I124: 24904.8476 | J124: 1.570756174 | K124: 2.100804512 | L124: 1.074686334 | M124: 1.001311039 | N124: 0.05117827191 | O124: 1.000682685 | P124: 0.08261641845 | Q124: 12.66521128 | R124: -80.86561918 | S124: 99.13438082 | U124: 1000000000 | V124: 42663104.89 | X124: -4.459285963 | Y124: -31.35500717 | AA124: 17.12449725 | AB124: -49.510612 | AD124: 0 | AE124: 0
A125: 6606.9 | B125: 6.6069 | C125: 1.423866786 | D125: 0.7921549713 | E125: 1.000012408 | F125: 0.00498144403 | G125: 1 | H125: 0 | I125: 25191.57916 | J125: 1.570756631 | K125: 2.119535111 | L125: 1.079463379 | M125: 1.00134138 | N125: 0.05176644545 | O125: 1.000698578 | P125: 0.08356846551 | Q125: 12.59237964 | R125: -81.00487001 | S125: 98.99512999 | U125: 1000000000 | V125: 43651127.61 | X125: -4.481879766 | Y125: -31.11502872 | AA125: 17.07425941 | AB125: -49.88984129 | AD125: 0 | AE125: 0
A126: 6683.85 | B126: 6.68385 | C126: 1.43229466 | D126: 0.7979436661 | E126: 1.000012698 | F126: 0.005039461507 | G126: 1 | H126: 0 | I126: 25484.98333 | J126: 1.570757088 | K126: 2.138750776 | L126: 1.084264864 | M126: 1.001372786 | N126: 0.05236826944 | O126: 1.000715033 | P126: 0.08454269893 | Q126: 12.51851873 | R126: -81.14843644 | S126: 98.85156356 | U126: 1000000000 | V126: 44673850.82 | X126: -4.504340114 | Y126: -30.87443206 | AA126: 17.02285884 | AB126: -50.27400438 | AD126: 0 | AE126: 0
A127: 6760.8 | B127: 6.7608 | C127: 1.440769966 | D127: 0.8036644469 | E127: 1.000012992 | F127: 0.005097478949 | G127: 1 | H127: 0 | I127: 25778.3875 | J127: 1.570757535 | K127: 2.15801487 | L127: 1.088980732 | M127: 1.001404555 | N127: 0.05297005546 | O127: 1.000731683 | P127: 0.08551696408 | Q127: 12.44531291 | R127: -81.29301619 | S127: 98.70698381 | U127: 1000000000 | V127: 45708416.64 | X127: -4.526158495 | Y127: -30.63873809 | AA127: 16.97147141 | AB127: -50.6542781 | AD127: 0 | AE127: 0
A128: 6839.55 | B128: 6.83955 | C128: 1.449491767 | D128: 0.8094495875 | E128: 1.000013297 | F128: 0.005156853489 | G128: 1 | H128: 0 | I128: 26078.65493 | J128: 1.570757981 | K128: 2.177778386 | L128: 1.093720425 | M128: 1.001437443 | N128: 0.05358587858 | O128: 1.000748924 | P128: 0.08651405228 | Q128: 12.37105475 | R128: -81.44195266 | S128: 98.55804734 | U128: 1000000000 | V128: 46779444.2 | X128: -4.547847543 | Y128: -30.40248339 | AA128: 16.91890229 | AB128: -51.03946927 | AD128: 0 | AE128: 0
A129: 6918.3 | B129: 6.9183 | C129: 1.458261497 | D129: 0.8151653359 | E129: 1.000013605 | F129: 0.005216227993 | G129: 1 | H129: 0 | I129: 26378.92236 | J129: 1.570758418 | K129: 2.197589945 | L129: 1.098374762 | M129: 1.00147071 | N129: 0.05420166102 | O129: 1.000766368 | P129: 0.08751117445 | Q129: 12.29744664 | R129: -81.59180277 | S129: 98.40819723 | U129: 1000000000 | V129: 47862874.89 | X129: -4.568913793 | Y129: -30.17111625 | AA129: 16.86636043 | AB129: -51.42068652 | AD129: 0 | AE129: 0
A130: 6998.9 | B130: 6.9989 | C130: 1.467285982 | D130: 0.8209444146 | E130: 1.000013924 | F130: 0.005276997289 | G130: 1 | H130: 0 | I130: 26686.24368 | J130: 1.570758854 | K130: 2.217915323 | L130: 1.103052232 | M130: 1.001505152 | N130: 0.05483186686 | O130: 1.000784435 | P130: 0.08853175667 | Q130: 12.22276479 | R130: -81.74604664 | S130: 98.25395336 | U130: 1000000000 | V130: 48984601.21 | X130: -4.589854425 | Y130: -29.93925007 | AA130: 16.81261921 | AB130: -51.80679657 | AD130: 0 | AE130: 0
A131: 7079.5 | B131: 7.0795 | C131: 1.476358871 | D131: 0.8266526521 | E131: 1.000014246 | F131: 0.005337766545 | G131: 1 | H131: 0 | I131: 26993.56501 | J131: 1.570759281 | K131: 2.238288344 | L131: 1.107644653 | M131: 1.001539992 | N131: 0.0554620291 | O131: 1.000802715 | P131: 0.08955237528 | Q131: 12.14872887 | R131: -81.90110364 | S131: 98.09889636 | U131: 1000000000 | V131: 50119320.25 | X131: -4.610191097 | Y131: -29.71225384 | AA131: 16.75891997 | AB131: -52.1888498 | AD131: 0 | AE131: 0
A132: 7161.95 | B132: 7.16195 | C132: 1.485689168 | D132: 0.8324195797 | E132: 1.00001458 | F132: 0.005399930589 | G132: 1 | H132: 0 | I132: 27307.94024 | J132: 1.570759707 | K132: 2.259176937 | L132: 1.112256681 | M132: 1.001576043 | N132: 0.05610660974 | O132: 1.000821637 | P132: 0.09059645808 | Q132: 12.07364481 | R132: -82.06049048 | S132: 97.93950952 | U132: 1000000000 | V132: 51293527.8 | X132: -4.630393463 | Y132: -29.48496026 | AA132: 16.70403827 | AB132: -52.57553022 | AD132: 0 | AE132: 0
A133: 7244.4 | B133: 7.2444 | C133: 1.495068257 | D133: 0.8381143389 | E133: 1.000014917 | F133: 0.00546209459 | G133: 1 | H133: 0 | I133: 27622.31547 | J133: 1.570760124 | K133: 2.280112703 | L133: 1.11678411 | M133: 1.00161251 | N133: 0.05675114371 | O133: 1.000840783 | P133: 0.09164057983 | Q133: 11.99920268 | R133: -82.22058856 | S133: 97.77941144 | U133: 1000000000 | V133: 52481331.36 | X133: -4.650011085 | Y133: -29.26251064 | AA133: 16.64921376 | AB133: -52.95807792 | AD133: 0 | AE133: 0
A134: 7328.75 | B134: 7.32875 | C134: 1.504713021 | D134: 0.8438666732 | E134: 1.000015267 | F134: 0.005525691072 | G134: 1 | H134: 0 | I134: 27943.93524 | J134: 1.570760541 | K134: 2.301578392 | L134: 1.121330541 | M134: 1.001650248 | N134: 0.05741048165 | O134: 1.000860603 | P134: 0.09270880335 | Q134: 11.92369273 | R134: -82.3850438 | S134: 97.6149562 | U134: 1000000000 | V134: 53710576.56 | X134: -4.669498893 | Y134: -29.03982051 | AA134: 16.59319162 | AB134: -53.34522329 | AD134: 0 | AE134: 0
A135: 7413.1 | B135: 7.4131 | C135: 1.514406939 | D135: 0.8495455505 | E135: 1.00001562 | F135: 0.00558928751 | G135: 1 | H135: 0 | I135: 28265.55502 | J135: 1.570760948 | K135: 2.323090776 | L135: 1.12579286 | M135: 1.001688421 | N135: 0.05806976962 | O135: 1.000880658 | P135: 0.09377706855 | Q135: 11.84882165 | R135: -82.55010847 | S135: 97.44989153 | U135: 1000000000 | V135: 54954051.61 | X135: -4.688420764 | Y135: -28.8219462 | AA135: 16.53724241 | AB135: -53.72816227 | AD135: 0 | AE135: 0
A136: 7499.45 | B136: 7.49945 | C136: 1.524380646 | D136: 0.8552840724 | E136: 1.000015986 | F136: 0.005654391818 | G136: 1 | H136: 0 | I136: 28594.80064 | J136: 1.570761355 | K136: 2.34516026 | L136: 1.130276092 | M136: 1.001727951 | N136: 0.05874463744 | O136: 1.000901433 | P136: 0.09487070676 | Q136: 11.77282088 | R136: -82.71965238 | S136: 97.28034762 | U136: 1000000000 | V136: 56241750.3 | X136: -4.707227716 | Y136: -28.60376638 | AA136: 16.4800486 | AB136: -54.11588601 | AD136: 0 | AE136: 0
A137: 7585.8 | B137: 7.5858 | C137: 1.534403897 | D137: 0.8609478068 | E137: 1.000016357 | F137: 0.005719496078 | G137: 1 | H137: 0 | I137: 28924.04625 | J137: 1.570761753 | K137: 2.367276001 | L137: 1.134675643 | M137: 1.001767936 | N137: 0.05941945169 | O137: 1.000922455 | P137: 0.09596438962 | Q137: 11.69745753 | R137: -82.88970477 | S137: 97.11029523 | U137: 1000000000 | V137: 57544361.64 | X137: -4.725486526 | Y137: -28.39037747 | AA137: 16.42294405 | AB137: -54.4993273 | AD137: 0 | AE137: 0
A138: 7674.15 | B138: 7.67415 | C138: 1.544709577 | D138: 0.8666664595 | E138: 1.00001674 | F138: 0.005786108204 | G138: 1 | H138: 0 | I138: 29260.91771 | J138: 1.570762152 | K138: 2.389950514 | L138: 1.139092733 | M138: 1.00180932 | N138: 0.06010983961 | O138: 1.000944219 | P138: 0.09708345061 | Q138: 11.62099261 | R138: -83.06415883 | S138: 96.93584117 | U138: 1000000000 | V138: 58892578.22 | X138: -4.743622984 | Y138: -28.17687599 | AA138: 16.36461559 | AB138: -54.88728284 | AD138: 0 | AE138: 0
A139: 7762.5 | B139: 7.7625 | C139: 1.555065103 | D139: 0.8723091311 | E139: 1.000017127 | F139: 0.005852720279 | G139: 1 | H139: 0 | I139: 29597.78916 | J139: 1.57076254 | K139: 2.412670779 | L139: 1.143426714 | M139: 1.001851182 | N139: 0.06080017016 | O139: 1.000966243 | P139: 0.09820255941 | Q139: 11.54516372 | R139: -83.23902021 | S139: 96.76097979 | U139: 1000000000 | V139: 60256406.25 | X139: -4.761229396 | Y139: -27.96813248 | AA139: 16.30639312 | AB139: -55.27088773 | AD139: 0 | AE139: 0
A140: 7852.9 | B140: 7.8529 | C140: 1.565711472 | D140: 0.8780052862 | E140: 1.000017529 | F140: 0.005920877911 | G140: 1 | H140: 0 | I140: 29942.4771 | J140: 1.570762929 | K140: 2.435964248 | L140: 1.147777491 | M140: 1.001894508 | N140: 0.06150645852 | O140: 1.000989046 | P140: 0.0993476851 | Q140: 11.46821838 | R140: -83.41830001 | S140: 96.58169999 | U140: 1000000000 | V140: 61668038.41 | X140: -4.778717188 | Y140: -27.75934091 | AA140: 16.24693556 | AB140: -55.6589591 | AD140: 0 | AE140: 0
A141: 7943.3 | B141: 7.9433 | C141: =SQRT(1+(A141/pole1)^2) -> 1.576407956 | D141: =ATAN(A141/pole1) -> 0.8836243207 | E141: =SQRT(1+(A141/Zero1)^2) -> 1.000017935 | F141: =ATAN(A141/Zero1) -> 0.005989035488 | G141: =IF(VIN_nom>Vout, 1, SQRT(1+(A141/z_RHP)^2)) -> 1 | H141: =IF(VIN_nom>Vout, 0, -ATAN(A141/z_RHP)) -> 0 | I141: =SQRT(1+(A141/Pole2)^2) -> 30287.16504 | J141: =ATAN(A141/Pole2) -> 1.57076331 | K141: =SQRT(1+(A141/Zero2)^2) -> 2.459302955 | L141: =ATAN(A141/Zero2) -> 1.152045771 | M141: =SQRT(1+(A141/pole4)^2) -> 1.001938335 | N141: =ATAN(A141/pole4) -> 0.06221268544 | O141: =SQRT((1-(V141/pterm2))^2+(A141/pterm1)^2) -> 1.001012121 | P141: =IF((ATAN((A141/pterm1)/(1-A141^2/pterm2))>0),ATAN((A141/pterm1)/(1-A141^2/pterm2)),PI()+ATAN((A141/pterm1)/(1-A141^2/pterm2))) -> 0.1004928619 | Q141: =20*LOG10(((E141*K141*G141)/(C141*I141*O141*M141))*Adc) -> 11.39190851 | R141: =((F141+L141+H141)-(D141+J141+P141+N141))*radconv -> -83.59788682 | S141: =IF(R141>0,R141,R141+180) -> 96.40211318 | U141: 1000000000 | V141: 63096014.89 | X141: =20*LOG10((K141/(I141*M141))*AEA*Afb) -> -4.795692662 | Y141: =(L141-(J141+N141))*radconv -> -27.5552721 | AA141: =20*LOG10((E141*G141/(C141*O141))*Am) -> 16.18760118 | AB141: =(F141+H141-(D141+P141))*radconv -> -56.04261472 | AD141: 0 | AE141: 0
A142: 8035.8 | B142: =A142/1000 -> 8.0358 | C142: 1.587403737 | D142: 0.8892953172 | E142: 1.000018355 | F142: 0.006058776314 | G142: 1 | H142: 0 | I142: 30639.86011 | J142: 1.57076369 | K142: 2.483229317 | L142: 1.156330075 | M142: 1.001983697 | N142: 0.06293525375 | O142: 1.001036014 | P142: 0.1016646949 | Q142: 11.31446883 | R142: -83.78190557 | S142: 96.21809443 | U142: =IF(Q142<0,A142,1000000000) -> 1000000000 | V142: =A142^2 -> 64574081.64 | X142: -4.812553076 | Y142: -27.35122146 | AA142: 16.1270219 | AB142: -56.43068411 | AD142: =SUM((Q143<0)*(Q142>0))*A142 -> 0 | AE142: 0
A143: 8128.3 | B143: 8.1283 | C143: 1.598449866 | D143: 0.8948881123 | E143: 1.00001878 | F143: 0.006128517081 | G143: 1 | H143: 0 | I143: 30992.55518 | J143: 1.570764061 | K143: 2.507200388 | L143: 1.160532531 | M143: 1.002029582 | N143: 0.06365775626 | O143: 1.001060191 | P143: 0.1028365826 | Q143: 11.23766485 | R143: -83.96613211 | S143: 96.03386789 | U143: 1000000000 | V143: 66069260.89 | X143: -4.828918538 | Y143: -27.15185607 | AA143: 16.06658338 | AB143: -56.81427604 | AD143: 0 | AE143: 0
A144: 8222.95 | B144: 8.22295 | C144: 1.609803779 | D144: 0.9005312714 | E144: 1.00001922 | F144: 0.006199878788 | G144: 1 | H144: 0 | I144: 31353.44803 | J144: 1.570764432 | K144: 2.531773581 | L144: 1.164750215 | M144: 1.002077075 | N144: 0.06439698319 | O144: 1.001085227 | P144: 0.1040357661 | Q144: 11.15971916 | R144: -84.1548011 | S144: 95.8451989 | U144: 1000000000 | V144: 67616906.7 | X144: -4.84517237 | Y144: -26.95257643 | AA144: 16.00489153 | AB144: -57.20222467 | AD144: 0 | AE144: 0
A145: 8270.275 | B145: 8.270275 | C145: 1.615499757 | D145: 0.903323061 | E145: 1.000019441 | F145: 0.006235559618 | G145: 1 | H145: 0 | I145: 31533.89446 | J145: 1.570764615 | K145: 2.544076822 | L145: 1.166828485 | M145: 1.002101026 | N145: 0.06476657028 | O145: 1.001097856 | P145: 0.1046353798 | Q145: 11.12098593 | R145: -84.24917999 | S145: 95.75082001 | U145: 1000000000 | V145: 68397448.58 | X145: -4.853118852 | Y145: -26.85468658 | AA145: 15.97410478 | AB145: -57.3944934 | AD145: 0 | AE145: 0
A146: 8317.6 | B146: 8.3176 | C146: 1.621208237 | D146: 0.9060952116 | E146: 1.000019665 | F146: 0.006271240432 | G146: 1 | H146: 0 | I146: 31714.34088 | J146: 1.570764795 | K146: 2.556390945 | L146: 1.168886742 | M146: 1.002125115 | N146: 0.06513613965 | O146: 1.001110561 | P146: 0.1052350083 | Q146: 11.08241014 | R146: -84.34358002 | S146: 95.65641998 | U146: 1000000000 | V146: 69182469.76 | X146: -4.86094826 | Y146: -26.75794227 | AA146: 15.9433584 | AB146: -57.58563775 | AD146: 0 | AE146: 0
A147: 8366.05 | B147: 8.36605 | C147: 1.627065233 | D147: 0.9089130879 | E147: 1.000019894 | F147: 0.006307769426 | G147: 1 | H147: 0 | I147: 31899.07684 | J147: 1.570764978 | K147: 2.569008908 | L147: 1.170973477 | M147: 1.002149918 | N147: 0.06551447588 | O147: 1.001123645 | P147: 0.1058489063 | Q147: 11.04307866 | R147: -84.44023968 | S147: 95.55976032 | U147: 1000000000 | V147: 69990792.6 | X147: -4.868844944 | Y147: -26.6600687 | AA147: 15.9119236 | AB147: -57.78017098 | AD147: 0 | AE147: 0
A148: 8414.5 | B148: 8.4145 | C148: 1.632935056 | D148: 0.9117107277 | E148: 1.000020125 | F148: 0.006344298404 | G148: 1 | H148: 0 | I148: 32083.8128 | J148: 1.570765158 | K148: =SQRT(1+(A148/Zero2)^2) -> 2.581637947 | L148: =ATAN(A148/Zero2) -> 1.173039804 | M148: 1.002174865 | N148: 0.06589279334 | O148: 1.001136808 | P148: 0.1064628199 | Q148: 11.00390864 | R148: -84.53690881 | S148: 95.46309119 | U148: 1000000000 | V148: 70803810.25 | X148: -4.876623817 | Y148: -26.56336318 | AA148: 15.88053246 | AB148: -57.97354564 | AD148: 0 | AE148: 0
A149: 8462.95 | B149: 8.46295 | C149: 1.638817568 | D149: 0.914488305 | E149: 1.000020358 | F149: 0.006380827364 | G149: 1 | H149: 0 | I149: 32268.54876 | J149: 1.570765337 | K149: 2.594277902 | L149: 1.175086006 | M149: 1.002199954 | N149: 0.06627109191 | O149: 1.001150049 | P149: 0.1070767493 | Q149: 10.96489836 | R149: -84.63358132 | S149: 95.36641868 | U149: 1000000000 | V149: 71621522.7 | X149: -4.884287268 | Y149: -26.46780963 | AA149: 15.84918563 | AB149: -58.1657717 | AD149: 0 | AE149: 0
A150: 8511.4 | B150: 8.5114 | C150: 1.644712633 | D150: 0.9172459923 | E150: 1.000020592 | F150: 0.006417356308 | G150: 1 | H150: 0 | I150: 32453.28472 | J150: 1.570765513 | K150: 2.606928614 | L150: 1.177112356 | M150: 1.002225188 | N150: 0.06664937148 | O150: 1.001163369 | P150: 0.1076906944 | Q150: 10.92604613 | R150: -84.73025129 | S150: 95.26974871 | U150: 1000000000 | V150: 72443929.96 | X150: -4.891837626 | Y150: -26.37339224 | AA150: 15.81788376 | AB150: -58.35685905 | AD150: 0 | AE150: 0
A151: 8560.95 | B151: 8.56095 | C151: 1.650754382 | D151: 0.9200458959 | E151: 1.000020832 | F151: 0.00645471458 | G151: 1 | H151: 0 | I151: 32642.21489 | J151: 1.570765692 | K151: 2.619877509 | L151: 1.179164462 | M151: 1.002251142 | N151: 0.06703621969 | O151: 1.001177072 | P151: 0.1083185948 | Q151: 10.88647355 | R151: -84.82910747 | S151: 95.17089253 | U151: 1000000000 | V151: 73289864.9 | X151: -4.899444801 | Y151: -26.27799019 | AA151: 15.78591835 | AB151: -58.55111728 | AD151: 0 | AE151: 0
A152: 8610.5 | B152: 8.6105 | C152: 1.656808977 | D152: 0.9228253573 | E152: 1.000021074 | F152: 0.006492072834 | G152: 1 | H152: 0 | I152: 32831.14506 | J152: 1.570765868 | K152: 2.632837328 | L152: 1.181196375 | M152: 1.002277247 | N152: 0.0674230478 | O152: 1.001190858 | P152: 0.108946512 | Q152: 10.8470628 | R152: -84.92794912 | S152: 95.07205088 | U152: 1000000000 | V152: 74140710.25 | X152: -4.906938438 | Y152: -26.18374389 | AA152: 15.75400124 | AB152: -58.74420522 | AD152: 0 | AE152: 0
A153: 8660.05 | B153: 8.66005 | C153: 1.662876279 | D153: 0.9255845573 | E153: 1.000021317 | F153: 0.006529431071 | G153: 1 | H153: 0 | I153: 33020.07523 | J153: 1.570766042 | K153: 2.645807911 | L153: 1.183208373 | M153: 1.002303501 | N153: 0.0678098557 | O153: 1.001204727 | P153: 0.1095744459 | Q153: 10.80781221 | R153: -85.02677054 | S153: 94.97322946 | U153: 1000000000 | V153: 74996466 | X153: -4.914320851 | Y153: -26.09063731 | AA153: 15.72213306 | AB153: -58.93613323 | AD153: 0 | AE153: 0
A154: 8709.6 | B154: 8.7096 | C154: 1.668956148 | D154: 0.9283236748 | E154: 1.000021562 | F154: 0.006566789288 | G154: 1 | H154: 0 | I154: 33209.0054 | J154: 1.570766214 | K154: 2.658789099 | L154: 1.185200733 | M154: 1.002329906 | N154: 0.06819664329 | O154: 1.001218677 | P154: 0.1102023967 | Q154: 10.7687201 | R154: -85.12556622 | S154: 94.87443378 | U154: 1000000000 | V154: 75857132.16 | X154: -4.921594297 | Y154: -25.99865466 | AA154: 15.6903144 | AB154: -59.12691157 | AD154: 0 | AE154: =IF(AD154>0,S154,0) -> 0
A155: 8760.325 | B155: 8.760325 | C155: 1.675193067 | D155: 0.9311071295 | E155: 1.000021814 | F155: 0.006605033378 | G155: 1 | H155: 0 | I155: 33402.41575 | J155: 1.570766389 | K155: 2.672088941 | L155: 1.187220279 | M155: 1.002357092 | N155: 0.06859258176 | O155: 1.001233044 | P155: 0.1108452559 | Q155: 10.72886348 | R155: -85.22667249 | S155: 94.77332751 | U155: 1000000000 | V155: 76743294.11 | X155: -4.928929646 | Y155: -25.90563882 | AA155: 15.65779313 | AB155: -59.32103367 | AD155: 0 | AE155: 0
A156: 8811.05 | B156: 8.81105 | C156: 1.681442869 | D156: 0.9338699137 | E156: 1.000022067 | F156: 0.006643277449 | G156: 1 | H156: 0 | I156: 33595.82611 | J156: 1.570766561 | K156: 2.685399573 | L156: 1.189219812 | M156: 1.002384435 | N156: 0.06898849869 | O156: 1.001247498 | P156: 0.111488133 | Q156: 10.68916956 | R156: -85.32774073 | S156: 94.67225927 | U156: 1000000000 | V156: 77634602.1 | X156: -4.936155411 | Y156: -25.81376826 | AA156: 15.62532497 | AB156: -59.51397246 | AD156: 0 | AE156: 0
A157: 8861.775 | B157: 8.861775 | C157: 1.68770541 | D157: 0.936612215 | E157: 1.000022322 | F157: 0.006681521501 | G157: 1 | H157: 0 | I157: 33789.23646 | J157: 1.570766732 | K157: 2.698720836 | L157: 1.191199613 | M157: 1.002411935 | N157: 0.06938439396 | O157: 1.001262038 | P157: 0.1121310281 | Q157: 10.64963667 | R157: -85.42876563 | S157: 94.57123437 | U157: 1000000000 | V157: 78531056.15 | X157: -4.943273839 | Y157: -25.72302692 | AA157: 15.59291051 | AB157: -59.70573871 | AD157: 0 | AE157: 0
A158: 8912.5 | B158: 8.9125 | C158: 1.693980549 | D158: 0.9393342197 | E158: 1.000022578 | F158: 0.006719765532 | G158: 1 | H158: 0 | I158: 33982.64681 | J158: 1.5707669 | K158: =SQRT(1+(A158/Zero2)^2) -> 2.712052573 | L158: =ATAN(A158/Zero2) -> 1.193159957 | M158: 1.002439592 | N158: 0.06978026745 | O158: 1.001276664 | P158: 0.1127739413 | Q158: 10.6102632 | R158: -85.52974208 | S158: 94.47025792 | U158: 1000000000 | V158: 79432656.25 | X158: -4.950287122 | Y158: -25.633399 | AA158: 15.56055032 | AB158: -59.89634308 | AD158: 0 | AE158: 0
A159: 8964.4 | B159: 8.9644 | C159: 1.700413939 | D159: 0.9420984624 | E159: 1.000022842 | F159: 0.006758895433 | G159: 1 | H159: 0 | I159: 34180.53734 | J159: 1.57076707 | K159: 2.725703808 | L159: 1.195145855 | M159: 1.002468053 | N159: 0.07018528832 | O159: 1.001291719 | P159: 0.1134317658 | Q159: 10.570141 | R159: -85.63300228 | S159: 94.36699772 | U159: 1000000000 | V159: 80360467.36 | X159: -4.957356265 | Y159: -25.54283117 | AA159: 15.52749727 | AB159: -60.09017111 | AD159: 0 | AE159: 0
A160: 9016.3 | B160: 9.0163 | C160: 1.706860225 | D160: 0.9448418465 | E160: 1.000023107 | F160: 0.006798025313 | G160: 1 | H160: 0 | I160: 34378.42787 | J160: 1.570767239 | K160: 2.739365686 | L160: 1.197111952 | M160: 1.002496678 | N160: 0.07059028613 | O160: 1.001306865 | P160: 0.1140896094 | Q160: 10.53018235 | R160: -85.73620153 | S160: 94.26379847 | U160: 1000000000 | V160: 81293665.69 | X160: -4.964319808 | Y160: -25.4533964 | AA160: 15.49450216 | AB160: -60.28280513 | AD160: 0 | AE160: 0
A161: 9068.2 | B161: 9.0682 | C161: 1.71331926 | D161: 0.9475645664 | E161: 1.000023374 | F161: 0.006837155172 | G161: 1 | H161: 0 | I161: 34576.31841 | J161: 1.570767405 | K161: 2.753038048 | L161: 1.199058529 | M161: 1.002525467 | N161: 0.07099526075 | O161: 1.001322101 | P161: 0.1147474723 | Q161: 10.4903856 | R161: -85.83933494 | S161: 94.16066506 | U161: 1000000000 | V161: 82232251.24 | X161: -4.971179928 | Y161: -25.36507866 | AA161: 15.46156553 | AB161: -60.47425628 | AD161: 0 | AE161: 0
A162: 9120.1 | B162: 9.1201 | C162: 1.7197909 | D162: 0.9502668149 | E162: 1.000023642 | F162: 0.006876285011 | G162: 1 | H162: 0 | I162: 34774.20894 | J162: 1.57076757 | K162: 2.766720738 | L162: 1.200985859 | M162: 1.002554421 | N162: 0.07140021205 | O162: 1.001337428 | P162: 0.1154053546 | Q162: 10.45074916 | R162: -85.94239781 | S162: 94.05760219 | U162: 1000000000 | V162: 83176224.01 | X162: -4.97793875 | Y162: -25.2778622 | AA162: 15.42868791 | AB162: -60.66453561 | AD162: 0 | AE162: 0
A163: 9173.2 | B163: 9.1732 | C163: 1.726425073 | D163: 0.9530105553 | E163: 1.000023918 | F163: 0.006916319563 | G163: 1 | H163: 0 | I163: 34976.67497 | J163: 1.570767736 | K163: 2.780730322 | L163: 1.202938115 | M163: 1.002584214 | N163: 0.0718145021 | O163: 1.001353204 | P163: 0.1160784681 | Q163: 10.41036054 | R163: -86.04776591 | S163: 93.95223409 | U163: 1000000000 | V163: 84147598.24 | X163: -4.984751166 | Y163: -25.1897528 | AA163: 15.39511171 | AB163: -60.85801311 | AD163: 0 | AE163: 0
A164: 9226.3 | B164: 9.2263 | C164: 1.733072142 | D164: 0.9557332692 | E164: 1.000024196 | F164: 0.006956354094 | G164: 1 | H164: 0 | I164: 35179.14101 | J164: 1.570767901 | K164: 2.794750397 | L164: 1.20487079 | M164: 1.00261418 | N164: 0.07222876746 | O164: 1.001369075 | P164: 0.116751602 | Q164: 10.37013644 | R164: -86.15305079 | S164: 93.84694921 | U164: 1000000000 | V164: 85124611.69 | X164: -4.991461879 | Y164: -25.10276373 | AA164: 15.36159832 | AB164: -61.05028706 | AD164: 0 | AE164: 0
A165: 9279.4 | B165: 9.2794 | C165: 1.739731961 | D165: 0.9584351576 | E165: 1.000024475 | F165: 0.006996388602 | G165: 1 | H165: 0 | I165: 35381.60705 | J165: 1.570768064 | K165: 2.808780808 | L165: 1.206784165 | M165: 1.002644317 | N165: 0.07264300798 | O165: 1.001385041 | P165: 0.1174247566 | Q165: 10.33007524 | R165: -86.25824797 | S165: 93.74175203 | U165: 1000000000 | V165: 86107264.36 | X165: -4.998072996 | Y165: -25.01687901 | AA165: 15.32814824 | AB165: -61.24136896 | AD165: 0 | AE165: 0
A166: 9332.5 | B166: 9.3325 | C166: 1.746404384 | D166: 0.9611164194 | E166: 1.000024756 | F166: 0.007036423088 | G166: 1 | H166: 0 | I166: 35584.07308 | J166: 1.570768224 | K166: 2.822821399 | L166: 1.208678512 | M166: 1.002674627 | N166: 0.07305722353 | O166: 1.001401103 | P166: 0.1180979318 | Q166: 10.29017537 | R166: -86.36335316 | S166: 93.63664684 | U166: 1000000000 | V166: 87095556.25 | X166: -5.004586575 | Y166: -24.93208292 | AA166: 15.29476195 | AB166: -61.43127024 | AD166: 0 | AE166: 0
A167: 9386.85 | B167: 9.38685 | C167: 1.75324678 | D167: 0.9638396446 | E167: 1.000025045 | F167: 0.007077399982 | G167: 1 | H167: 0 | I167: 35791.30527 | J167: 1.570768387 | K167: 2.837202897 | L167: 1.21059803 | M167: 1.002705828 | N167: 0.07348116392 | O167: 1.001417642 | P167: 0.1187869755 | Q167: 10.24950169 | R167: -86.47083302 | S167: 93.52916698 | U167: 1000000000 | V167: 88112952.92 | X167: -5.011154572 | Y167: -24.84640198 | AA167: 15.26065627 | AB167: -61.62443104 | AD167: 0 | AE167: 0
A168: 9441.2 | B168: 9.4412 | C168: 1.760102077 | D168: 0.9665416767 | E168: 1.000025336 | F168: 0.007118376852 | G168: 1 | H168: 0 | I168: 35998.53745 | J168: 1.570768548 | K168: 2.851594744 | L168: 1.212498179 | M168: 1.002737209 | N168: 0.07390507784 | O168: 1.00143428 | P168: 0.1194760411 | Q168: 10.20899378 | R168: -86.57820798 | S168: 93.42179202 | U168: 1000000000 | V168: 89136257.44 | X168: -5.017624583 | Y168: -24.76182915 | AA168: 15.22661837 | AB168: -61.81637883 | AD168: 0 | AE168: 0
A169: 9495.55 | B169: 9.49555 | C169: 1.766970125 | D169: 0.9692227232 | E169: 1.000025629 | F169: 0.007159353698 | G169: 1 | H169: 0 | I169: 36205.76964 | J169: 1.570768707 | K169: 2.865996784 | L169: 1.214379237 | M169: 1.002768771 | N169: 0.07432896516 | O169: 1.001451019 | P169: 0.1201651287 | Q169: 10.16865005 | R169: -86.68547398 | S169: 93.31452602 | U169: 1000000000 | V169: 90165469.8 | X169: -5.023998654 | Y169: -24.67834849 | AA169: 15.1926487 | AB169: -62.00712549 | AD169: 0 | AE169: 0
A170: 9549.9 | B170: 9.5499 | C170: 1.773850775 | D170: 0.9718829894 | E170: 1.000025923 | F170: 0.00720033052 | G170: 1 | H170: 0 | I170: 36413.00182 | J170: 1.570768864 | K170: 2.880408863 | L170: 1.216241479 | M170: 1.002800513 | N170: 0.07475282571 | O170: 1.001467858 | P170: 0.1208542385 | Q170: 10.12846892 | R170: -86.79262713 | S170: 93.20737287 | U170: 1000000000 | V170: 91200590.01 | X170: -5.030278777 | Y170: -24.59594433 | AA170: 15.1587477 | AB170: -62.1966828 | AD170: 0 | AE170: 0
A171: 9605.525 | B171: 9.605525 | C171: 1.780905737 | D171: 0.9745843582 | E171: 1.000026226 | F171: 0.007242268595 | G171: 1 | H171: 0 | I171: 36625.09548 | J171: 1.570769023 | K171: 2.895169275 | L171: 1.218128202 | M171: 1.002833186 | N171: 0.07518660178 | O171: 1.001485196 | P171: 0.1215595372 | Q171: 10.08751197 | R171: -86.90217328 | S171: 93.09782672 | U171: 1000000000 | V171: 92266110.53 | X171: -5.036610974 | Y171: -24.51270569 | AA171: 15.12412295 | AB171: -62.38946759 | AD171: 0 | AE171: 0
A172: 9661.15 | B172: 9.66115 | C172: 1.787973591 | D172: 0.9772643893 | E172: 1.00002653 | F172: 0.007284206644 | G172: 1 | H172: 0 | I172: 36837.18914 | J172: 1.57076918 | K172: 2.909939889 | L172: 1.219995779 | M172: 1.002866047 | N172: 0.07562034949 | O172: 1.001502638 | P172: 0.1222648594 | Q172: 10.04672214 | R172: -87.01159355 | S172: 92.98840645 | U172: 1000000000 | V172: 93337819.32 | X172: -5.042848832 | Y172: -24.43056237 | AA172: 15.08957097 | AB172: -62.58103118 | AD172: 0 | AE172: 0
A173: 9716.775 | B173: 9.716775 | C173: 1.795054187 | D173: 0.9799232967 | E173: 1.000026837 | F173: 0.007326144668 | G173: 1 | H173: 0 | I173: 37049.2828 | J173: 1.570769336 | K173: 2.924720549 | L173: 1.221844485 | M173: 1.002899097 | N173: 0.0760540687 | O173: 1.001520186 | P173: 0.1229702051 | Q173: 10.00609785 | R173: -87.12088429 | S173: 92.87911571 | U173: 1000000000 | V173: 94415716.4 | X173: -5.04899433 | Y173: -24.34949848 | AA173: 15.05509218 | AB173: -62.77138581 | AD173: 0 | AE173: 0
A174: 9772.4 | B174: 9.7724 | C174: 1.802147373 | D174: 0.9825612919 | E174: 1.000027145 | F174: 0.007368082666 | G174: 1 | H174: 0 | I174: 37261.37646 | J174: 1.570769489 | K174: 2.939511105 | L174: 1.223674594 | M174: 1.002932336 | N174: 0.07648775925 | O174: 1.001537839 | P174: 0.1236755746 | Q174: 9.965637557 | R174: -87.23004205 | S174: 92.76995795 | U174: 1000000000 | V174: 95499801.76 | X174: -5.055049399 | Y174: -24.26949842 | AA174: 15.02068696 | AB174: -62.96054362 | AD174: 0 | AE174: 0
A175: 9829.3 | B175: 9.8293 | C175: 1.809416018 | D175: 0.9852383351 | E175: 1.000027462 | F175: 0.007410981912 | G175: 1 | H175: 0 | I175: 37478.33159 | J175: 1.570769645 | K175: 2.954650763 | L175: 1.225527687 | M175: 1.002966532 | N175: 0.07693136074 | O175: 1.001556006 | P175: 0.1243971368 | Q175: 9.924417954 | R175: -87.34156081 | S175: 92.65843919 | U175: 1000000000 | V175: 96615138.49 | X175: -5.061151657 | Y175: -24.18874939 | AA175: 14.98556961 | AB175: -63.15281142 | AD175: 0 | AE175: 0
A176: 9886.2 | B176: 9.8862 | C176: 1.816697526 | D176: 0.9878939375 | E176: 1.000027781 | F176: 0.007453881132 | G176: 1 | H176: 0 | I176: 37695.28672 | J176: 1.570769798 | K176: 2.969800464 | L176: 1.227361881 | M176: 1.003000926 | N176: 0.07737493189 | O176: 1.001574283 | P176: 0.125118724 | Q176: 9.883366769 | R176: -87.45293359 | S176: 92.54706641 | U176: 1000000000 | V176: 97736950.44 | X176: -5.067163224 | Y176: -24.10908139 | AA176: 14.95052999 | AB176: -63.34385219 | AD176: 0 | AE176: 0
A177: 9943.1 | B177: 9.9431 | C177: 1.823991743 | D177: 0.9905283187 | E177: 1.000028102 | F177: 0.007496780324 | G177: 1 | H177: 0 | I177: 37912.24185 | J177: 1.57076995 | K177: 2.984960055 | L177: 1.22917745 | M177: 1.003035516 | N177: 0.07781847254 | O177: 1.001592671 | P177: 0.1258403365 | Q177: 9.84248244 | R177: -87.56415717 | S177: 92.43584283 | U177: 1000000000 | V177: 98865237.61 | X177: -5.073086014 | Y177: -24.03047865 | AA177: 14.91556845 | AB177: -63.53367852 | AD177: 0 | AE177: 0
A178: 10000 | B178: 10 | C178: 1.831298518 | D178: 0.9931416958 | E178: 1.000028424 | F178: 0.007539679488 | G178: 1 | H178: 0 | I178: 38129.19698 | J178: 1.5707701 | K178: 3.000129385 | L178: 1.230974665 | M178: 1.003070304 | N178: 0.07826198251 | O178: 1.001611168 | P178: 0.1265619743 | Q178: 9.801763431 | R178: -87.67522852 | S178: 92.32477148 | U178: 1000000000 | V178: 100000000 | X178: -5.078921893 | Y178: -23.95292566 | AA178: 14.88068532 | AB178: -63.72230286 | AD178: 0 | AE178: 0
A179: 10058.25 | B179: 10.05825 | C179: 1.838791504 | D179: 0.9957955444 | E179: 1.000028756 | F179: 0.007583596442 | G179: 1 | H179: 0 | I179: 38351.29955 | J179: 1.570770252 | K179: 3.015668557 | L179: 1.232795785 | M179: 1.003106122 | N179: 0.07871598316 | O179: 1.00163022 | P179: 0.12730076 | Q179: 9.760248009 | R179: -87.78877441 | S179: 92.21122559 | U179: 1000000000 | V179: 101168393.1 | X179: -5.084808101 | Y179: -23.87460418 | AA179: 14.84505611 | AB179: -63.91417023 | AD179: 0 | AE179: 0
A180: 10116.5 | B180: 10.1165 | C180: 1.846297335 | D180: 0.9984278338 | E180: 1.00002909 | F180: 0.007627513367 | G180: 1 | H180: 0 | I180: 38573.40212 | J180: 1.570770402 | K180: 3.031217627 | L180: 1.234598228 | M180: 1.003142146 | N180: 0.07916995131 | O180: 1.001649387 | P180: 0.1280395725 | Q180: 9.718902682 | R180: -87.90215476 | S180: 92.09784524 | U180: 1000000000 | V180: 102343572.2 | X180: -5.09060703 | Y180: -23.79735087 | AA180: 14.80950971 | AB180: -64.10480389 | AD180: 0 | AE180: 0
A181: 10174.75 | B181: 10.17475 | C181: 1.853815856 | D181: 1.00103879 | E181: 1.000029426 | F181: 0.007671430262 | G181: 1 | H181: 0 | I181: 38795.50469 | J181: 1.570770551 | K181: 3.046776445 | L181: 1.236382268 | M181: 1.003178377 | N181: 0.07962388675 | O181: 1.00166867 | P181: 0.1287784121 | Q181: 9.677725894 | R181: -88.01536678 | S181: 91.98463322 | U181: 1000000000 | V181: 103525537.6 | X181: -5.096320533 | Y181: -23.72115001 | AA181: 14.77404643 | AB181: -64.29421677 | AD181: 0 | AE181: 0
A182: 10233 | B182: 10.233 | C182: 1.861346912 | D182: 1.003628635 | E182: 1.000029764 | F182: 0.007715347128 | G182: 1 | H182: 0 | I182: 39017.60727 | J182: 1.570770697 | K182: 3.062344861 | L182: 1.238148174 | M182: 1.003214815 | N182: 0.08007778931 | O182: 1.001688069 | P182: 0.1295172787 | Q182: 9.636716115 | R182: -88.12840784 | S182: 91.87159216 | U182: 1000000000 | V182: 104714289 | X182: -5.101950416 | Y182: -23.64598617 | AA182: 14.73866653 | AB182: -64.48242167 | AD182: 0 | AE182: 0
A183: 10292.5 | B183: 10.2925 | C183: 1.869052363 | D183: 1.006252491 | E183: 1.000030111 | F183: 0.007760206385 | G183: 1 | H183: 0 | I183: 39244.47599 | J183: 1.570770846 | K183: 3.078257122 | L183: 1.239933527 | M183: 1.003252248 | N183: 0.08054139814 | O183: 1.001708004 | P183: 0.1302720291 | Q183: 9.594997162 | R183: -88.24369557 | S183: 91.75630443 | U183: 1000000000 | V183: 105935556.2 | X183: -5.10761661 | Y183: -23.57026426 | AA183: 14.70261377 | AB183: -64.67343132 | AD183: 0 | AE183: 0
A184: 10352 | B184: 10.352 | C184: 1.876770576 | D184: 1.008854784 | E184: 1.00003046 | F184: 0.007805065611 | G184: 1 | H184: 0 | I184: 39471.34471 | J184: 1.570770992 | K184: 3.094179094 | L184: 1.241700512 | M184: 1.003289897 | N184: 0.08100497227 | O184: 1.001728061 | P184: 0.1310268082 | Q184: 9.553449327 | R184: -88.3587998 | S184: 91.6412002 | U184: 1000000000 | V184: 107163904 | X184: -5.11319922 | Y184: -23.49559269 | AA184: 14.66664855 | AB184: -64.86320711 | AD184: 0 | AE184: 0
A185: 10411.5 | B185: 10.4115 | C185: 1.884501394 | D185: 1.011435743 | E185: 1.000030811 | F185: 0.007849924805 | G185: 1 | H185: 0 | I185: 39698.21343 | J185: 1.570771137 | K185: 3.110110628 | L185: 1.2434494 | M185: 1.003327761 | N185: 0.0814685115 | O185: 1.001748239 | P185: 0.131781616 | Q185: 9.512071067 | R185: -88.47371817 | S185: 91.52628183 | U185: 1000000000 | V185: 108399332.2 | X185: -5.118700026 | Y185: -23.42195594 | AA185: 14.63077109 | AB185: -65.05176224 | AD185: 0 | AE185: 0
A186: 10471 | B186: 10.471 | C186: 1.892244663 | D186: 1.013995596 | E186: 1.000031165 | F186: 0.007894783968 | G186: 1 | H186: 0 | I186: 39925.08215 | J186: 1.57077128 | K186: 3.126051577 | L186: 1.245180457 | M186: 1.003365841 | N186: 0.08193201566 | O186: 1.001768539 | P186: 0.1325364527 | Q186: 9.470860865 | R186: -88.58844846 | S186: 91.41155154 | U186: 1000000000 | V186: 109641841 | X186: -5.124120765 | Y186: -23.34933873 | AA186: 14.59498163 | AB186: -65.23910973 | AD186: 0 | AE186: 0
A187: 10532 | B187: 10.532 | C187: 1.900195906 | D187: 1.016598307 | E187: 1.000031529 | F187: 0.007940774001 | G187: 1 | H187: 0 | I187: 40157.67026 | J187: 1.570771425 | K187: 3.142404024 | L187: 1.246936916 | M187: 1.003405105 | N187: 0.08240716816 | O187: 1.001789477 | P187: 0.1333103491 | Q187: 9.428784659 | R187: -88.70587367 | S187: 91.29412633 | U187: 1000000000 | V187: 110923024 | X187: -5.129596811 | Y187: -23.2759336 | AA187: 14.55838147 | AB187: -65.42994006 | AD187: 0 | AE187: 0
A188: 10593 | B188: 10.593 | C188: 1.908159914 | D188: 1.01917931 | E188: 1.000031895 | F188: 0.007986764001 | G188: 1 | H188: 0 | I188: 40390.25836 | J188: 1.570771568 | K188: 3.158766065 | L188: 1.248675183 | M188: 1.003444595 | N188: 0.08288228338 | O188: 1.001810542 | P188: 0.1340842763 | Q188: 9.386881948 | R188: -88.82309689 | S188: 91.17690311 | U188: 1000000000 | V188: 112211649 | X188: -5.134992256 | Y188: -23.20356852 | AA188: 14.5218742 | AB188: -65.61952837 | AD188: 0 | AE188: 0
A189: 10654 | B189: 10.654 | C189: 1.916136528 | D189: 1.021738841 | E189: 1.000032263 | F189: 0.008032753966 | G189: 1 | H189: 0 | I189: 40622.84646 | J189: 1.57077171 | K189: 3.175137552 | L189: 1.250395531 | M189: 1.003484312 | N189: 0.08335736109 | O189: 1.001831736 | P189: 0.1348582344 | Q189: 9.345151184 | R189: -88.94011616 | S189: 91.05988384 | U189: 1000000000 | V189: 113507716 | X189: -5.140308829 | Y189: -23.13222795 | AA189: 14.48546001 | AB189: -65.80788821 | AD189: 0 | AE189: 0
A190: 10715 | B190: 10.715 | C190: 1.924125591 | D190: 1.024277134 | E190: 1.000032634 | F190: 0.008078743898 | G190: 1 | H190: 0 | I190: 40855.43456 | J190: 1.57077185 | K190: 3.19151834 | L190: 1.252098223 | M190: 1.003524255 | N190: 0.08383240109 | O190: 1.001853058 | P190: 0.1356322236 | Q190: 9.303590842 | R190: -89.05692965 | S190: 90.94307035 | U190: 1000000000 | V190: 114811225 | X190: -5.145548217 | Y190: -23.06189668 | AA190: 14.44913906 | AB190: -65.99503297 | AD190: 0 | AE190: 0
A191: 10777.5 | B191: 10.7775 | C191: 1.932323857 | D191: 1.026856058 | E191: 1.000033016 | F191: 0.008125864694 | G191: 1 | H191: 0 | I191: 41093.74204 | J191: 1.570771992 | K191: 3.208311432 | L191: 1.253824746 | M191: 1.003565415 | N191: 0.08431908307 | O191: 1.001875037 | P191: 0.1364252777 | Q191: 9.261183718 | R191: -89.17640039 | S191: 90.82359961 | U191: 1000000000 | V191: 116154506.2 | X191: -5.150838104 | Y191: -22.99086714 | AA191: 14.41202182 | AB191: -66.18553325 | AD191: 0 | AE191: 0
A192: 10840 | B192: 10.84 | C192: 1.940534865 | D192: 1.029413174 | E192: 1.0000334 | F192: 0.008172985455 | G192: 1 | H192: 0 | I192: 41332.04952 | J192: 1.570772132 | K192: 3.225113987 | L192: 1.255533285 | M192: 1.003606813 | N192: 0.08480572501 | O192: 1.001897151 | P192: 0.1372183648 | Q192: 9.218952344 | R192: -89.29565161 | S192: 90.70434839 | U192: 1000000000 | V192: 117505600 | X192: -5.156050409 | Y192: -22.92086567 | AA192: 14.37500275 | AB192: -66.37478594 | AD192: 0 | AE192: 0
A193: 10902.5 | B193: 10.9025 | C193: 1.948758455 | D193: 1.031948725 | E193: 1.000033786 | F193: 0.008220106178 | G193: 1 | H193: 0 | I193: 41570.357 | J193: 1.570772271 | K193: 3.24192586 | L193: 1.257224108 | M193: 1.003648449 | N193: 0.08529232669 | O193: 1.0019194 | P193: 0.138011485 | Q193: 9.176895164 | R193: -89.41468175 | S193: 90.58531825 | U193: 1000000000 | V193: 118864506.2 | X193: -5.161186809 | Y193: -22.85187682 | AA193: 14.33808197 | AB193: -66.56280493 | AD193: 0 | AE193: 0
A194: 10965 | B194: 10.965 | C194: 1.956994469 | D194: 1.034462951 | E194: 1.000034174 | F194: 0.008267226866 | G194: 1 | H194: 0 | I194: 41808.66448 | J194: 1.570772408 | K194: 3.258746905 | L194: 1.25889748 | M194: 1.003690322 | N194: 0.08577888789 | O194: 1.001941784 | P194: 0.1388046385 | Q194: 9.135010646 | R194: -89.53348938 | S194: 90.46651062 | U194: 1000000000 | V194: 120231225 | X194: -5.166248938 | Y194: -22.78388541 | AA194: 14.30125958 | AB194: -66.74960396 | AD194: 0 | AE194: 0
A195: 11028.75 | B195: 11.02875 | C195: 1.965407839 | D195: 1.037005736 | E195: 1.000034573 | F195: 0.008315289929 | G195: 1 | H195: 0 | I195: 42051.73811 | J195: 1.570772547 | K195: 3.275913674 | L195: 1.260586611 | M195: 1.003733277 | N195: 0.08627513837 | O195: 1.001964755 | P195: 0.1396136896 | Q195: 9.092464751 | R195: -89.65444254 | S195: 90.34555746 | U195: 1000000000 | V195: 121633326.6 | X195: -5.171337446 | Y195: -22.7155463 | AA195: 14.2638022 | AB195: -66.93889624 | AD195: 0 | AE195: 0
A196: 11092.5 | B196: 11.0925 | C196: 1.973833809 | D196: 1.039526828 | E196: 1.000034974 | F196: 0.008363352954 | G196: 1 | H196: 0 | I196: 42294.81174 | J196: 1.570772683 | K196: 3.293089693 | L196: 1.262258127 | M196: 1.00377648 | N196: 0.08677134625 | O196: 1.001987867 | P196: 0.1404227758 | Q196: 9.050095353 | R196: -89.77516155 | S196: 90.22483845 | U196: 1000000000 | V196: 123043556.2 | X196: -5.176351983 | Y196: -22.64821396 | AA196: 14.22644734 | AB196: -67.12694759 | AD196: 0 | AE196: 0
A197: 11156.25 | B197: 11.15625 | C197: 1.982272218 | D197: 1.042026472 | E197: 1.000035377 | F197: 0.00841141594 | G197: 1 | H197: 0 | I197: 42537.88538 | J197: 1.570772818 | K197: 3.310274816 | L197: 1.263912292 | M197: 1.00381993 | N197: 0.0872675113 | O197: 1.002011119 | P197: 0.1412318972 | Q197: 9.007900906 | R197: -89.89564524 | S197: 90.10435476 | U197: 1000000000 | V197: 124461914.1 | X197: -5.181294153 | Y197: -22.58187319 | AA197: 14.18919506 | AB197: -67.31377206 | AD197: 0 | AE197: 0
A198: 11220 | B198: 11.22 | C198: 1.990722907 | D198: 1.044504909 | E198: 1.000035782 | F198: 0.008459478888 | G198: 1 | H198: 0 | I198: 42780.95901 | J198: 1.570772952 | K198: 3.327468904 | L198: 1.265549366 | M198: 1.003863626 | N198: 0.08776363327 | O198: 1.002034513 | P198: 0.142041054 | Q198: 8.965879887 | R198: -90.01589258 | S198: 89.98410742 | U198: 1000000000 | V198: 125888400 | X198: -5.186165518 | Y198: -22.51650909 | AA198: 14.15204541 | AB198: -67.49938349 | AD198: 0 | AE198: 0
A199: 11285.5 | B199: 11.2855 | C199: 1.999418203 | D199: 1.047029544 | E199: 1.000036201 | F199: 0.008508861169 | G199: 1 | H199: 0 | I199: 43030.70525 | J199: 1.570773088 | K199: 3.345144178 | L199: 1.267213847 | M199: 1.00390878 | N199: 0.08827332917 | O199: 1.002058696 | P199: 0.14287246 | Q199: 8.922884411 | R199: -90.13919367 | S199: 89.86080633 | U199: 1000000000 | V199: 127362510.2 | X199: -5.191098457 | Y199: -22.45035257 | AA199: 14.11398287 | AB199: -67.6888411 | AD199: 0 | AE199: 0
A200: 11351 | B200: 11.351 | C200: 2.008126133 | D200: 1.0495323 | E200: 1.000036623 | F200: 0.008558243409 | G200: 1 | H200: 0 | I200: 43280.45149 | J200: 1.570773222 | K200: 3.362828622 | L200: 1.268860825 | M200: 1.003954195 | N200: 0.08878297909 | O200: 1.002083027 | P200: 0.1437039038 | Q200: 8.880068835 | R200: -90.26224338 | S200: 89.73775662 | U200: 1000000000 | V200: 128845201 | X200: -5.195959862 | Y200: -22.38519612 | AA200: 14.0760287 | AB200: -67.87704726 | AD200: 0 | AE200: 0
A201: 11416.5 | B201: 11.4165 | C201: 2.016846532 | D201: 1.052013428 | E201: 1.000037047 | F201: 0.008607625608 | G201: 1 | H201: 0 | I201: 43530.19773 | J201: 1.570773354 | K201: 3.380522093 | L201: 1.270490568 | M201: 1.00399987 | N201: 0.08929258276 | O201: 1.002107509 | P201: 0.1445353856 | Q201: 8.837431587 | R201: -90.38504093 | S201: 89.61495907 | U201: 1000000000 | V201: 130336472.2 | X201: -5.2007513 | Y201: -22.32102447 | AA201: 14.03818289 | AB201: -68.06401645 | AD201: 0 | AE201: 0
A202: 11482 | B202: 11.482 | C202: 2.02557924 | D202: 1.054473178 | E202: 1.000037473 | F202: 0.008657007764 | G202: 1 | H202: 0 | I202: 43779.94397 | J202: 1.570773485 | K202: 3.398224449 | L202: 1.272103335 | M202: 1.004045806 | N202: 0.08980213995 | O202: 1.002132139 | P202: 0.1453669055 | Q202: 8.794971116 | R202: -90.50758564 | S202: 89.49241436 | U202: 1000000000 | V202: 131836324 | X202: -5.205474295 | Y202: -22.2578227 | AA202: 14.00044541 | AB202: -68.24976295 | AD202: 0 | AE202: 0
... 433 more rows

Sheet Ch2 Stability Calculations (hidden)
A2: Divider Network & EA Poles/Zeros | E2: Modulator | J2: Power Stage Poles/Zeros | M2: Complex Pole Pair | P2: Total System
B3: Afb1 | C3: =Afb_Ch2 -> 0.2424242424 | D3: V/V | E3: Acs | F3: =Acs_Ch2 -> 50 | G3: A/V | H3: gm | I3: =gm -> 0.0006 | J3: z_ESR | K3: =Fesr_Ch2 -> 964575.4138 | L3: Hz | M3: p3 | N3: =Fsw/2 -> 125000 | O3: Hz | P3: Adc | Q3: =Am_Ch2*Afb_Ch2*AEA -> 76450.90119 | R3: V/V
B4: EA zero, z1 | C4: =Fz1_u_Ch2 -> 3189.477821 | D4: Hz | E4: Am | F4: =Am_Ch2 -> 7.102701969 | G4: V/V | J4: p_dom | K4: =Fp_dominant_Ch2 -> 6790.200532 | L4: Hz | M4: pterm1 | N4: =Q_Ch2*pole3 -> 73897.32865 | P4: Crossover | Q4: =AE7 -> 32.175 | R4: kHz
B5: EA pole, p1 | C5: =Fp1_u_Ch2 -> 0.2150597457 | D5: Hz | E5: Q | F5: =Q_Ch2 -> 0.5911786292 | M5: pterm2 | N5: =pole3^2 -> 15625000000 | P5: Phase Margin | Q5: =AE9 -> 57.5363876 | R5: °
B6: Aea | C6: =AEA -> 44400 | D6: V/V | E6: mc | F6: =mc_Ch2 -> 1.117449664 | P6: radconv | Q6: =180/Pi -> 57.29577958 | AD6: XOVER SEARCH
B7: EA pole, p2 | C7: =Fp2_u_Ch2 -> 115000.1181 | D7: Hz | E7: k | F7: =k_Ch2 -> 1.038432668 | AD7: xover | AE7: =SUM(AD12:AD613)/1000 -> 32.175
AD9: phase margin | AE9: =SUM(AE13:AE613) -> 57.5363876
A10: Freq (Hz) | C10: Power Stage | I10: Error Amplifier | O10: Sampling Double Pole | Q10: System Response | X10: ERROR AMP Response | AA10: PLANT Response
C11: p_dom | E11: z_ESR | G11: z_RHP | I11: p1 | K11: z1 | M11: p2 | O11: p3
C12: Gain(V/V) | D12: Phase(rad) | E12: Gain(V/V) | F12: Phase(rad) | G12: Gain(V/V) | H12: Phase(rad) | I12: Gain(V/V) | J12: Phase(rad) | K12: Gain(V/V) | L12: Phase(rad) | M12: Gain(V/V) | N12: Phase(rad) | O12: Gain(V/V) | P12: Phase(rad) | Q12: Gain (dB) | R12: Phase (°) | S12: Phase Margin (°) | V12: Fsquare | X12: Gain(dB) | Y12: Phase(Deg) | AA12: Gain(dB) | AB12: Phase(Deg)
A13: 1 | B13: =A13/1000 -> 0.001 | C13: =SQRT(1+(A13/pole1)^2) -> 1.000000011 | D13: =ATAN(A13/pole1) -> 0.0001472710545 | E13: =SQRT(1+(A13/Zero1)^2) -> 1 | F13: =ATAN(A13/Zero1) -> 1.036725574e-06 | G13: =IF(VIN_nom>Vout, 1, SQRT(1+(A13/z_RHP)^2)) -> 1 | H13: =IF(VIN_nom>Vout, 0, -ATAN(A13/z_RHP)) -> 0 | I13: =SQRT(1+(A13/Pole2)^2) -> 4.75618514 | J13: =ATAN(A13/Pole2) -> 1.358963062 | K13: =SQRT(1+(A13/Zero2)^2) -> 1.000000049 | L13: =ATAN(A13/Zero2) -> 0.0003135309362 | M13: =SQRT(1+(A13/pole4)^2) -> 1 | N13: =ATAN(A13/pole4) -> 8.695643247e-06 | O13: =SQRT((1-(V13/pterm2))^2+(A13/pterm1)^2) -> 1 | P13: =IF((ATAN((A13/pterm1)/(1-A13^2/pterm2))>0),ATAN((A13/pterm1)/(1-A13^2/pterm2)),PI()+ATAN((A13/pterm1)/(1-A13^2/pterm2))) -> 1.35322889e-05 | Q13: =20*LOG10(((E13*K13*G13)/(C13*I13*O13*M13))*Adc) -> 84.12247748 | R13: =((F13+L13+H13)-(D13+J13+P13+N13))*radconv -> -77.85453621 | S13: =IF(R13>0,R13,R13+180) -> 102.1454638 | U13: =IF(Q13<0,A13,1000000000) -> 1000000000 | V13: =A13^2 -> 1 | X13: =20*LOG10((K13/(I13*M13))*AEA*Afb_Ch2) -> 67.09400574 | Y13: =(L13-(J13+N13))*radconv -> -77.84538225 | AA13: =20*LOG10((E13*G13/(C13*O13))*Am_Ch2) -> 17.02847174 | AB13: =(F13+H13-(D13+P13))*radconv -> -0.00915395292 | AD13: =SUM((Q14<0)*(Q13>0))*A13 -> 0 | AE13: =IF(AD13>0,S11,0) -> 0
A14: 1.0965 | B14: =A14/1000 -> 0.0010965 | C14: 1.000000013 | D14: 0.000161482711 | E14: 1 | F14: 1.136769592e-06 | G14: 1 | H14: 0 | I14: 5.195724237 | J14: 1.377121864 | K14: 1.000000059 | L14: 0.0003437866693 | M14: 1 | N14: 9.53477282e-06 | O14: 1 | P14: 1.483815478e-05 | Q14: 83.35473073 | R14: -78.89415687 | S14: 101.1058431 | U14: =IF(Q14<0,A14,1000000000) -> 1000000000 | V14: =A14^2 -> 1.20231225 | X14: 66.326259 | Y14: =(L14-(J14+N14))*radconv -> -78.88411956 | AA14: 17.02847173 | AB14: -0.01003730936 | AD14: =SUM((Q15<0)*(Q14>0))*A14 -> 0 | AE14: 0
A15: 1.2023 | B15: 0.0012023 | C15: 1.000000016 | D15: 0.0001770639883 | E15: 1 | F15: 1.246455158e-06 | G15: 1 | H15: 0 | I15: 5.679272114 | J15: 1.393794639 | K15: 1.000000071 | L15: 0.0003769582391 | M15: 1 | N15: 1.045477188e-05 | O15: 1 | P15: 1.626987094e-05 | Q15: 82.58179911 | R15: -79.84855712 | S15: 100.1514429 | U15: 1000000000 | V15: 1.44552529 | X15: 65.55332741 | Y15: -79.83755132 | AA15: 17.0284717 | AB15: -0.01100579756 | AD15: 0 | AE15: 0
A16: 1.3183 | B16: 0.0013183 | C16: 1.000000019 | D16: 0.0001941474301 | E16: 1 | F16: 1.366715325e-06 | G16: 1 | H16: 0 | I16: 6.210955977 | J16: 1.409086652 | K16: 1.000000085 | L16: 0.0004133278232 | M16: 1 | N16: 1.146346649e-05 | O16: 1 | P16: 1.783961645e-05 | Q16: 81.80448374 | R16: -80.72376076 | S16: 99.27623924 | U16: 1000000000 | V16: 1.73791489 | X16: 64.77601207 | Y16: -80.7116931 | AA16: 17.02847167 | AB16: -0.01206765607 | AD16: 0 | AE16: 0
A17: 1.4454 | B17: 0.0014454 | C17: 1.000000023 | D17: 0.0002128655805 | E17: 1 | F17: 1.498483145e-06 | G17: 1 | H17: 0 | I17: 6.79491034 | J17: 1.423090856 | K17: 1.000000103 | L17: 0.000453177599 | M17: 1 | N17: 1.256868275e-05 | O17: 1 | P17: 1.955957037e-05 | Q17: 81.02397827 | R17: -81.52508613 | S17: 98.47491387 | U17: 1000000000 | V17: 2.08918116 | X17: 63.99550663 | Y17: -81.511855 | AA17: 17.02847164 | AB17: -0.01323112345 | AD17: 0 | AE17: 0
A18: 1.5849 | B18: 0.0015849 | C18: 1.000000027 | D18: 0.0002334098918 | E18: 1 | F18: 1.643106363e-06 | G18: 1 | H18: 0 | I18: 7.437117005 | J18: 1.435927121 | K18: 1.000000123 | L18: 0.0004969151562 | M18: 1 | N18: 1.378172498e-05 | O18: 1 | P18: 2.144732467e-05 | Q18: 80.23956074 | R18: -82.25939042 | S18: 97.74060958 | U18: 1000000000 | V18: 2.51190801 | X18: 63.21108913 | Y18: -82.24488232 | AA18: 17.0284716 | AB18: -0.01450809984 | AD18: 0 | AE18: 0
A19: 1.7378 | B19: 0.0017378 | C19: 1.000000033 | D19: 0.0002559276348 | E19: 1 | F19: 1.801621703e-06 | G19: 1 | H19: 0 | I19: 8.142187118 | J19: 1.447668325 | K19: 1.000000148 | L19: 0.0005448540249 | M19: 1 | N19: 1.511128883e-05 | O19: 1 | P19: 2.351641165e-05 | Q19: 79.45283161 | R19: -82.93084099 | S19: 97.06915901 | U19: 1000000000 | V19: 3.01994884 | X19: 62.42436006 | Y19: -82.91493325 | AA19: 17.02847155 | AB19: -0.01590773917 | AD19: 0 | AE19: 0
A20: 1.9055 | B20: 0.0019055 | C20: 1.000000039 | D20: 0.000280624989 | E20: 1 | F20: 1.975480582e-06 | G20: 1 | H20: 0 | I20: 8.916581276 | J20: 1.458409279 | K20: 1.000000178 | L20: 0.0005974331474 | M20: 1 | N20: 1.656954821e-05 | O20: 1 | P20: 2.578577649e-05 | Q20: 78.66368594 | R20: -83.5448584 | S20: 96.4551416 | U20: 1000000000 | V20: 3.63093025 | X20: 61.63521444 | Y20: -83.52741554 | AA20: 17.0284715 | AB20: -0.01744285698 | AD20: 0 | AE20: 0
A21: 2.0893 | B21: 0.0020893 | C21: 1.000000047 | D21: 0.0003076934067 | E21: 1 | F21: 2.166030743e-06 | G21: 1 | H21: 0 | I21: 9.766306082 | J21: 1.468223699 | K21: 1.000000215 | L21: 0.0006550601128 | M21: 1 | N21: 1.816780743e-05 | O21: 1 | P21: 2.827301119e-05 | Q21: 77.87304701 | R21: -84.10565554 | S21: 95.89434446 | U21: 1000000000 | V21: 4.36517449 | X21: 60.84457558 | Y21: -84.08653019 | AA21: 17.02847143 | AB21: -0.01912535341 | AD21: 0 | AE21: 0
A22: 2.2909 | B22: 0.0022909 | C22: 1.000000057 | D22: 0.0003373832484 | E22: 1 | F22: 2.375034619e-06 | G22: 1 | H22: 0 | I22: 10.69922355 | J22: 1.477194984 | K22: 1.000000258 | L22: 0.0007182679217 | M22: 1 | N22: 1.992084911e-05 | O22: 1 | P22: 3.100112064e-05 | Q22: 77.08060869 | R22: -84.61799662 | S22: 95.38200338 | U22: 1000000000 | V22: 5.24822281 | X22: 60.05213735 | Y22: -84.59702583 | AA22: 17.02847134 | AB22: -0.02097079015 | AD22: 0 | AE22: 0
A23: 2.5119 | B23: 0.0025119 | C23: 1.000000068 | D23: 0.0003699301476 | E23: 1 | F23: 2.604150971e-06 | G23: 1 | H23: 0 | I23: 11.72274011 | J23: 1.485388241 | K23: 1.00000031 | L23: 0.0007875582216 | M23: 1 | N23: 2.184258627e-05 | O23: 1 | P23: 3.399175648e-05 | Q23: 76.28707154 | R23: -85.08559879 | S23: 94.91440121 | U23: 1000000000 | V23: 6.30964161 | X23: 59.2586003 | Y23: -85.06260498 | AA23: 17.02847124 | AB23: -0.02299381353 | AD23: 0 | AE23: 0
A24: 2.7542 | B24: 0.0027542 | C24: 1.000000082 | D24: 0.000405613919 | E24: 1 | F24: 2.855349577e-06 | G24: 1 | H24: 0 | I24: 12.84565657 | J24: 1.492870158 | K24: 1.000000373 | L24: 0.0008635267181 | M24: 1 | N24: 2.394954063e-05 | O24: 1 | P24: 3.727063008e-05 | Q24: 75.49252857 | R24: -85.51226711 | S24: 94.48773289 | U24: 1000000000 | V24: 7.58561764 | X24: 58.46405745 | Y24: -85.4870553 | AA24: 17.02847112 | AB24: -0.02521181603 | AD24: 0 | AE24: 0
A25: 3.02 | B25: 0.00302 | C25: 1.000000099 | D25: 0.0004447585585 | E25: 1 | F25: 3.130911235e-06 | G25: 1 | H25: 0 | I25: 14.07817026 | J25: 1.4997045 | K25: 1.000000448 | L25: 0.0009468631754 | M25: 1 | N25: 2.62608426e-05 | O25: 1 | P25: 4.086751247e-05 | Q25: 74.69673095 | R25: -85.90163679 | S25: 94.09836321 | U25: 1000000000 | V25: 9.1204 | X25: 57.66825997 | Y25: -85.87399185 | AA25: 17.02847098 | AB25: -0.02764493632 | AD25: 0 | AE25: 0
A26: 3.3113 | B26: 0.0033113 | C26: 1.000000119 | D26: 0.0004876586077 | E26: 1 | F26: 3.432909395e-06 | G26: 1 | H26: 0 | I26: 15.42955613 | J26: 1.50594019 | K26: 1.000000539 | L26: 0.00103819465 | M26: 1 | N26: 2.879388348e-05 | O26: 1 | P26: 4.480946823e-05 | Q26: 73.90058717 | R26: -86.25649429 | S26: 93.74350571 | U26: 1000000000 | V26: 10.96470769 | X26: 56.87211637 | Y26: -86.2261828 | AA26: 17.0284708 | AB26: -0.03031148229 | AD26: 0 | AE26: 0
A27: 3.6308 | B27: 0.0036308 | C27: 1.000000143 | D27: 0.0005347116976 | E27: 1 | F27: 3.764143216e-06 | G27: 1 | H27: 0 | I27: 16.91234046 | J27: 1.511633397 | K27: 1.000000648 | L27: 0.001138367669 | M27: 1 | N27: 3.157214149e-05 | O27: 1 | P27: 4.913303453e-05 | Q27: 73.10358231 | R27: -86.58003537 | S27: 93.41996463 | U27: 1000000000 | V27: 13.18270864 | X27: 56.07511171 | Y27: -86.5467992 | AA27: 17.02847059 | AB27: -0.03323616956 | AD27: 0 | AE27: 0
A28: 3.9811 | B28: 0.0039811 | C28: 1.000000172 | D28: 0.0005863007322 | E28: 1 | F28: 4.127308185e-06 | G28: 1 | H28: 0 | I28: 18.53859047 | J28: 1.5168286 | K28: 1.000000779 | L28: 0.001248197403 | M28: 1.000000001 | N28: 3.461822532e-05 | O28: 1 | P28: 5.387339533e-05 | Q28: 72.30612323 | R28: -86.87478696 | S28: 93.12521304 | U28: 1000000000 | V28: 15.84915721 | X28: 55.27765289 | Y28: -86.83834416 | AA28: 17.02847034 | AB28: -0.03644279836 | AD28: 0 | AE28: 0
A29: 4.3652 | B29: 0.0043652 | C29: 1.000000207 | D29: 0.0006428675233 | E29: 1 | F29: 4.525514478e-06 | G29: 1 | H29: 0 | I29: 20.32223388 | J29: 1.521569258 | K29: 1.000000937 | L29: 0.001368624433 | M29: 1.000000001 | N29: 3.795822188e-05 | O29: 1.000000001 | P29: 5.90711475e-05 | Q29: 71.50822961 | R29: -87.14321411 | S29: 92.85678589 | U29: 1000000000 | V29: 19.05497104 | X29: 54.47975957 | Y29: -87.10325528 | AA29: 17.02847004 | AB29: -0.03995883048 | AD29: 0 | AE29: 0
A30: 4.7863 | B30: 0.0047863 | C30: 1.000000248 | D30: 0.0007048833366 | E30: 1 | F30: 4.962079617e-06 | G30: 1 | H30: 0 | I30: 22.27813076 | J30: 1.52589417 | K30: 1.000001126 | L30: 0.001500652043 | M30: 1.000000001 | N30: 4.161995725e-05 | O30: 1.000000001 | P30: 6.476959436e-05 | Q30: 70.71008482 | R30: -87.38751322 | S30: 92.61248678 | U30: 1000000000 | V30: 22.90866769 | X30: 53.68161514 | Y30: -87.34369966 | AA30: 17.02846968 | AB30: -0.04381355846 | AD30: 0 | AE30: 0
A31: 5.2481 | B31: 0.0052481 | C31: 1.000000299 | D31: 0.0007728930729 | E31: 1 | F31: 5.440839487e-06 | G31: 1 | H31: 0 | I31: 24.42346688 | J31: 1.52984065 | K31: 1.000001354 | L31: 0.001645440275 | M31: 1.000000001 | N31: 4.563560529e-05 | O31: 1.000000001 | P31: 7.101880537e-05 | Q31: 69.9115151 | R31: -87.60979147 | S31: 92.39020853 | U31: 1000000000 | V31: 27.54255361 | X31: 52.88304587 | Y31: -87.56175062 | AA31: 17.02846924 | AB31: -0.04804085182 | AD31: 0 | AE31: 0
A32: 5.7544 | B32: 0.0057544 | C32: 1.000000359 | D32: 0.0008474563594 | E32: 1 | F32: 5.965733646e-06 | G32: 1 | H32: 0 | I32: 26.77589571 | J32: 1.533440616 | K32: 1.000001628 | L32: 0.001804180521 | M32: 1.000000001 | N32: 5.003820946e-05 | O32: 1.000000001 | P32: 7.787020324e-05 | Q32: 69.11278303 | R32: -87.81184608 | S32: 92.18815392 | U32: 1000000000 | V32: 33.11311936 | X32: 52.08431431 | Y32: -87.75917059 | AA32: 17.02846871 | AB32: -0.05267549541 | AD32: 0 | AE32: 0
A33: 6.3096 | B33: 0.0063096 | C33: 1.000000432 | D33: 0.0009292211848 | E33: 1 | F33: 6.541323685e-06 | G33: 1 | H33: 0 | I33: 29.35586119 | J33: 1.536724988 | K33: 1.000001957 | L33: 0.001978252279 | M33: 1.000000002 | N33: 5.486603058e-05 | O33: 1.000000001 | P33: 8.538333004e-05 | Q33: 68.3137689 | R33: -87.99541202 | S33: 92.00458798 | U33: 1000000000 | V33: 39.81105216 | X33: 51.28530082 | Y33: -87.93765425 | AA33: 17.02846808 | AB33: -0.0577577664 | AD33: 0 | AE33: 0
A34: 6.9183 | B34: 0.0069183 | C34: 1.000000519 | D34: 0.001018864991 | E34: 1 | F34: 7.172378542e-06 | G34: 1 | H34: 0 | I34: 32.1847392 | J34: 1.539720699 | K34: 1.000002352 | L34: 0.002169097745 | M34: 1.000000002 | N34: 6.01590686e-05 | O34: 1.000000001 | P34: 9.362043429e-05 | Q34: 67.5146682 | R34: -88.16199429 | S34: 91.83800571 | U34: 1000000000 | V34: 47.86287489 | X34: 50.48620088 | Y34: -88.09866451 | AA34: 17.02846732 | AB34: -0.06332977271 | AD34: 0 | AE34: 0
A35: 7.5858 | B35: 0.0075858 | C35: 1.000000624 | D35: 0.001117168309 | E35: 1 | F35: 7.864392863e-06 | G35: 1 | H35: 0 | I35: 35.2871611 | J35: 1.542453613 | K35: 1.000002828 | L35: 0.002378378569 | M35: 1.000000002 | N35: 6.596341045e-05 | O35: 1.000000002 | P35: 0.0001026532371 | Q35: 66.71533689 | R35: -88.31303064 | S35: 91.68696936 | U35: 1000000000 | V35: 57.54436164 | X35: 49.68687049 | Y35: -88.24359061 | AA35: 17.02846641 | AB35: -0.06944002989 | AD35: 0 | AE35: 0
A36: 8.3176 | B36: 0.0083176 | C36: 1.00000075 | D36: 0.001224941119 | E36: 1 | F36: 8.623068638e-06 | G36: 1 | H36: 0 | I36: 38.68868998 | J36: 1.544946101 | K36: 1.0000034 | L36: 0.002607819089 | M36: 1.000000003 | N36: 7.232688215e-05 | O36: 1.000000002 | P36: 0.0001125561662 | Q36: 65.91599467 | R36: -88.44975713 | S36: 91.55024287 | U36: 1000000000 | V36: 69.18246976 | X36: 48.88752937 | Y36: -88.37361825 | AA36: 17.02846531 | AB36: -0.07613888421 | AD36: 0 | AE36: 0
A37: 9.1201 | B37: 0.0091201 | C37: 1.000000902 | D37: 0.001343125946 | E37: 1 | F37: 9.455040912e-06 | G37: 1 | H37: 0 | I37: 42.41907413 | J37: 1.547219842 | K37: 1.000004088 | L37: 0.002859425792 | M37: 1.000000003 | N37: 7.930513581e-05 | O37: 1.000000002 | P37: 0.000123415828 | Q37: 65.11645611 | R37: -88.57336278 | S37: 91.42663722 | U37: 1000000000 | V37: 83.17622401 | X37: 48.08799213 | Y37: -88.48987786 | AA37: 17.02846398 | AB37: -0.08348492031 | AD37: 0 | AE37: 0
A38: 10 | B38: 0.01 | C38: 1.000001084 | D38: 0.001472709491 | E38: 1 | F38: 1.036725574e-05 | G38: 1 | H38: 0 | I38: 46.50945827 | J38: 1.549293667 | K38: 1.000004915 | L38: 0.003135299191 | M38: 1.000000004 | N38: 8.695643225e-05 | O38: 1.000000003 | P38: 0.000135322889 | Q38: 64.31685978 | R38: -88.68487073 | S38: 91.31512927 | U38: 1000000000 | V38: 100 | X38: 47.28839738 | Y38: -88.59333126 | AA38: 17.0284624 | AB38: -0.09153946881 | AD38: 0 | AE38: 0
A39: 10.965 | B39: 0.010965 | C39: 1.000001304 | D39: 0.001614825721 | E39: 1 | F39: 1.136769592e-05 | G39: 1 | H39: 0 | I39: 50.99563741 | J39: 1.551185549 | K39: 1.000005909 | L39: 0.003437853284 | M39: 1.000000005 | N39: 9.534772791e-05 | O39: 1.000000003 | P39: 0.0001483815478 | Q39: 63.51703163 | R39: -88.78524687 | S39: 91.21475313 | U39: 1000000000 | V39: 120.231225 | X39: 46.48857114 | Y39: -88.68487385 | AA39: 17.02846049 | AB39: -0.100373014 | AD39: 0 | AE39: 0
A40: 12.023 | B40: 0.012023 | C40: 1.000001568 | D40: 0.001770638051 | E40: 1 | F40: 1.246455158e-05 | G40: 1 | H40: 0 | I40: 55.91433783 | J40: 1.552910873 | K40: 1.000007105 | L40: 0.003769564715 | M40: 1.000000005 | N40: 0.0001045477184 | O40: 1.000000004 | P40: 0.0001626987095 | Q40: 62.71723648 | R40: -88.87530694 | S40: 91.12469306 | U40: 1000000000 | V40: 144.552529 | X40: 45.68877829 | Y40: -88.76524907 | AA40: 17.02845819 | AB40: -0.1100578707 | AD40: 0 | AE40: 0
A41: 13.183 | B41: 0.013183 | C41: 1.000001885 | D41: 0.001941471886 | E41: 1 | F41: 1.366715325e-05 | G41: 1 | H41: 0 | I41: 61.30740098 | J41: 1.554484359 | K41: 1.000008542 | L41: 0.00413325493 | M41: 1.000000007 | N41: 0.0001146346644 | O41: 1.000000005 | P41: 0.0001783961646 | Q41: 61.9174518 | R41: -88.95581964 | S41: 91.04418036 | U41: 1000000000 | V41: 173.791489 | X41: 44.88899637 | Y41: -88.83514321 | AA41: 17.02845543 | AB41: -0.1206764224 | AD41: 0 | AE41: 0
A42: 14.454 | B42: 0.014454 | C42: 1.000002266 | D42: 0.002128652622 | E42: 1 | F42: 1.498483145e-05 | G42: 1 | H42: 0 | I42: 67.21666946 | J42: 1.555918516 | K42: 1.000010268 | L42: 0.004531745278 | M42: 1.000000008 | N42: 0.0001256868268 | O42: 1.000000006 | P42: 0.0001955957038 | Q42: 61.11818178 | R42: -89.02742683 | S42: 90.97257317 | U42: 1000000000 | V42: 208.918116 | X42: 44.08972967 | Y42: -88.89511578 | AA42: 17.02845211 | AB42: -0.1323110522 | AD42: 0 | AE42: 0
A43: 15.849 | B43: 0.015849 | C43: 1.000002724 | D43: 0.002334094721 | E43: 1 | F43: 1.643106363e-05 | G43: 1 | H43: 0 | I43: 73.70258431 | J43: 1.557227865 | K43: 1.000012346 | L43: 0.004969111071 | M43: 1.000000009 | N43: 0.0001378172489 | O43: 1.000000007 | P43: 0.0002144732469 | Q43: 60.31808129 | R43: -89.09085253 | S43: 90.90914747 | U43: 1000000000 | V43: 251.190801 | X43: 43.28963317 | Y43: -88.94577177 | AA43: 17.02844812 | AB43: -0.1450807579 | AD43: 0 | AE43: 0
A44: 17.378 | B44: 0.017378 | C44: 1.000003275 | D44: 0.002559270816 | E44: 1 | F44: 1.801621703e-05 | G44: 1 | H44: 0 | I44: 80.81163967 | J44: 1.558421556 | K44: 1.000014843 | L44: 0.005448486873 | M44: 1.000000011 | N44: 0.0001511128872 | O44: 1.000000008 | P44: 0.0002351641167 | Q44: 59.51827412 | R44: -89.14653786 | S44: 90.85346214 | U44: 1000000000 | V44: 301.994884 | X44: 42.4898308 | Y44: -88.98746079 | AA44: 17.02844332 | AB44: -0.1590770748 | AD44: 0 | AE44: 0
A45: 19.055 | B45: 0.019055 | C45: 1.000003938 | D45: 0.002806242598 | E45: 1 | F45: 1.975480582e-05 | G45: 1 | H45: 0 | I45: 88.60892824 | J45: 1.559510543 | K45: 1.000017846 | L45: 0.005974261107 | M45: 1.000000014 | N45: 0.0001656954806 | O45: 1.00000001 | P45: 0.0002578577652 | Q45: 58.71822311 | R45: -89.19499416 | S45: 90.80500584 | U45: 1000000000 | V45: 363.093025 | X45: 41.68978556 | Y45: -89.02056601 | AA45: 17.02843755 | AB45: -0.174428152 | AD45: 0 | AE45: 0
A46: 20.893 | B46: 0.020893 | C46: 1.000004734 | D46: 0.003076924454 | E46: 1 | F46: 2.166030742e-05 | G46: 1 | H46: 0 | I46: 97.15489411 | J46: 1.560503303 | K46: 1.000021455 | L46: 0.006550508371 | M46: 1.000000017 | N46: 0.0001816780724 | O46: 1.000000012 | P46: 0.0002827301123 | Q46: 57.91850352 | R46: -89.23659915 | S46: 90.76340085 | U46: 1000000000 | V46: 436.517449 | X46: 40.8900729 | Y46: -89.04534617 | AA46: 17.02843062 | AB46: -0.1912529833 | AD46: 0 | AE46: 0
A47: 22.909 | B47: 0.022909 | C47: 1.000005691 | D47: 0.003373819811 | E47: 1 | F47: 2.375034618e-05 | G47: 1 | H47: 0 | I47: 106.5285805 | J47: 1.561409037 | K47: 1.000025795 | L47: 0.007182556936 | M47: 1.00000002 | N47: 0.0001992084885 | O47: 1.000000014 | P47: 0.0003100112068 | Q47: 57.11850371 | R47: -89.27173878 | S47: 90.72826122 | U47: 1000000000 | V47: 524.822281 | X47: 40.09008142 | Y47: -89.06203161 | AA47: 17.02842228 | AB47: -0.2097071754 | AD47: 0 | AE47: 0
A48: 25.119 | B48: 0.025119 | C48: 1.000006842 | D48: 0.003699284771 | E48: 1 | F48: 2.60415097e-05 | G48: 1 | H48: 0 | I48: 116.8043817 | J48: 1.5622349 | K48: 1.000031012 | L48: 0.007875421023 | M48: 1.000000024 | N48: 0.0002184258592 | O48: 1.000000017 | P48: 0.0003399175655 | Q48: 56.31867906 | R48: -89.30069013 | S48: 90.69930987 | U48: 1000000000 | V48: 630.964161 | X48: 39.2902668 | Y48: -89.07075295 | AA48: 17.02841226 | AB48: -0.2299371781 | AD48: 0 | AE48: 0
A49: 27.542 | B49: 0.027542 | C49: 1.000008226 | D49: 0.004056117169 | E49: 1 | F49: 2.855349577e-05 | G49: 1 | H49: 0 | I49: 128.0706417 | J49: 1.562988057 | K49: 1.000037283 | L49: 0.008635054699 | M49: 1.000000029 | N49: 0.0002394954017 | O49: 1.000000021 | P49: 0.0003727063017 | Q49: 55.51891243 | R49: -89.32370596 | S49: 90.67629404 | U49: 1000000000 | V49: 758.561764 | X49: 38.49051222 | Y49: -89.07158907 | AA49: 17.02840021 | AB49: -0.2521168986 | AD49: 0 | AE49: 0
A50: 30.2 | B50: 0.0302 | C50: 1.00000989 | D50: 0.004447556553 | E50: 1 | F50: 3.130911234e-05 | G50: 1 | H50: 0 | I50: 140.4296543 | J50: 1.563675264 | K50: 1.000044827 | L50: 0.009468351628 | M50: 1.000000034 | N50: 0.00026260842 | O50: 1.000000025 | P50: 0.0004086751258 | Q50: 54.71877858 | R50: -89.3409907 | S50: 90.6590093 | U50: 1000000000 | V50: 912.04 | X50: 37.69039286 | Y50: -89.064543 | AA50: 17.02838572 | AB50: -0.2764476999 | AD50: 0 | AE50: 0
A51: 33.113 | B51: 0.033113 | C51: 1.00001189 | D51: 0.004876547807 | E51: 1.000000001 | F51: 3.432909393e-05 | G51: 1 | H51: 0 | I51: 153.9744143 | J51: 1.564301696 | K51: 1.000053891 | L51: 0.01038157725 | M51: 1.000000041 | N51: 0.0002879388269 | O51: 1.00000003 | P51: 0.0004480946837 | Q51: 53.91904515 | R51: -89.3526749 | S51: 90.6473251 | U51: 1000000000 | V51: 1096.470769 | X51: 36.89067685 | Y51: -89.04956226 | AA51: 17.0283683 | AB51: -0.3031126303 | AD51: 0 | AE51: 0
A52: 36.308 | B52: 0.036308 | C52: 1.000014296 | D52: 0.005347066526 | E52: 1.000000001 | F52: 3.764143214e-05 | G52: 1 | H52: 0 | I52: 168.8304652 | J52: 1.564873191 | K52: 1.000064792 | L52: 0.01138318991 | M52: 1.00000005 | N52: 0.0003157214045 | O52: 1.000000036 | P52: 0.0004913303472 | Q52: 53.11907368 | R52: -89.35886896 | S52: 90.64113104 | U52: 1000000000 | V52: 1318.270864 | X52: 36.09072632 | Y52: -89.02651016 | AA52: 17.02834736 | AB52: -0.3323588051 | AD52: 0 | AE52: 0
A53: 39.811 | B53: 0.039811 | C53: 1.000017187 | D53: 0.005862940815 | E53: 1.000000001 | F53: 4.127308182e-05 | G53: 1 | H53: 0 | I53: 185.1187016 | J53: 1.565394361 | K53: 1.000077897 | L53: 0.01248133234 | M53: 1.00000006 | N53: 0.0003461822395 | O53: 1.000000044 | P53: 0.0005387339558 | Q53: 52.31917267 | R53: -89.35962156 | S53: 90.64037844 | U53: 1000000000 | V53: 1584.915721 | X53: 35.29085049 | Y53: -88.99519739 | AA53: 17.02832218 | AB53: -0.3644241732 | AD53: 0 | AE53: 0
A54: 43.652 | B54: 0.043652 | C54: 1.000020664 | D54: 0.006428587559 | E54: 1.000000001 | F54: 4.525514475e-05 | G54: 1 | H54: 0 | I54: 202.9786171 | J54: 1.56586968 | K54: 1.000093652 | L54: 0.01368539843 | M54: 1.000000072 | N54: 0.0003795822008 | O54: 1.000000053 | P54: 0.0005907114783 | Q54: 51.51927926 | R54: -89.35494018 | S54: 90.64505982 | U54: 1000000000 | V54: 1905.497104 | X54: 34.49098735 | Y54: -88.95535689 | AA54: 17.02829191 | AB54: -0.3995832817 | AD54: 0 | AE54: 0
A55: 47.863 | B55: 0.047863 | C55: 1.000024843 | D55: 0.007048717794 | E55: 1.000000001 | F55: 4.962079613e-05 | G55: 1 | H55: 0 | I55: 222.5590057 | J55: 1.566303121 | K55: 1.000112592 | L55: 0.01500540537 | M55: 1.000000087 | N55: 0.0004161995487 | O55: 1.000000063 | P55: 0.0006476959479 | Q55: 50.71950957 | R55: -89.34478743 | S55: 90.65521257 | U55: 1000000000 | V55: 2290.866769 | X55: 33.69125405 | Y55: -88.90665847 | AA55: 17.02825552 | AB55: -0.4381289631 | AD55: 0 | AE55: 0
A56: 52.481 | B56: 0.052481 | C56: 1.000029868 | D56: 0.007728778374 | E56: 1.000000001 | F56: 5.440839482e-05 | G56: 1 | H56: 0 | I56: 244.0319107 | J56: 1.566698491 | K56: 1.000135365 | L56: 0.01645293284 | M56: 1.000000104 | N56: 0.0004563560216 | O56: 1.000000076 | P56: 0.0007101880594 | Q56: 49.91963449 | R56: -89.32907483 | S56: 90.67092517 | U56: 1000000000 | V56: 2754.255361 | X56: 32.89142272 | Y56: -88.84867504 | AA56: 17.02821177 | AB56: -0.4803997892 | AD56: 0 | AE56: 0
A57: 57.544 | B57: 0.057544 | C57: 1.000035908 | D57: 0.008474362755 | E57: 1.000000002 | F57: 5.965733639e-05 | G57: 1 | H57: 0 | I57: 267.5740255 | J57: 1.567059035 | K57: 1.00016274 | L57: 0.01803986758 | M57: 1.000000125 | N57: 0.0005003820532 | O57: 1.000000091 | P57: 0.00077870204 | Q57: 49.11987281 | R57: -89.30767398 | S57: 90.69232602 | U57: 1000000000 | V57: 3311.311936 | X57: 32.09171364 | Y57: -88.78093053 | AA57: 17.02815917 | AB57: -0.5267434473 | AD57: 0 | AE57: 0
A58: 63.096 | B58: 0.063096 | C58: 1.000043172 | D58: 0.009291947091 | E58: 1.000000002 | F58: 6.541323676e-05 | G58: 1 | H58: 0 | I58: 293.3899429 | J58: 1.567387887 | K58: 1.000195655 | L58: 0.01977996858 | M58: 1.000000151 | N58: 0.0005486602513 | O58: 1.00000011 | P58: 0.0008538333103 | Q58: 48.32006979 | R58: -89.28040058 | S58: 90.71959942 | U58: 1000000000 | V58: 3981.105216 | X58: 31.29197386 | Y58: -88.70283809 | AA58: 17.02809593 | AB58: -0.5775624951 | AD58: 0 | AE58: 0
A59: 69.183 | B59: 0.069183 | C59: 1.000051903 | D59: 0.0101883009 | E59: 1.000000003 | F59: 7.17237853e-05 | G59: 1 | H59: 0 | I59: 321.6935557 | J59: 1.567687773 | K59: 1.000235222 | L59: 0.02168761056 | M59: 1.000000181 | N59: 0.0006015906142 | O59: 1.000000132 | P59: 0.0009362043561 | Q59: 47.52039433 | R59: -89.24703089 | S59: 90.75296911 | U59: 1000000000 | V59: 4786.287489 | X59: 30.49237443 | Y59: -88.61375316 | AA59: 17.0280199 | AB59: -0.6332777311 | AD59: 0 | AE59: 0
A60: 75.858 | B60: 0.075858 | C60: 1.000062401 | D60: 0.011171223 | E60: 1.000000003 | F60: 7.864392847e-05 | G60: 1 | H60: 0 | I60: 352.7313055 | J60: 1.567961304 | K60: 1.000282795 | L60: 0.02377934745 | M60: 1.000000218 | N60: 0.0006596340098 | O60: 1.000000159 | P60: 0.001026532389 | Q60: 46.72068282 | R60: -89.20727719 | S60: 90.79272281 | U60: 1000000000 | V60: 5754.436164 | X60: 29.69275432 | Y60: -88.51290325 | AA60: 17.02792849 | AB60: -0.694373939 | AD60: 0 | AE60: 0
A61: 83.176 | B61: 0.083176 | C61: 1.000075021 | D61: 0.01224880471 | E61: 1.000000004 | F61: 8.623068617e-05 | G61: 1 | H61: 0 | I61: 386.7589342 | J61: 1.568210734 | K61: 1.00033998 | L61: 0.02607234069 | M61: 1.000000262 | N61: 0.0007232686966 | O61: 1.000000191 | P61: 0.001125561684 | Q61: 45.92114211 | R61: -89.1608158 | S61: 90.8391842 | U61: 1000000000 | V61: 6918.246976 | X61: 28.8933235 | Y61: -88.39946171 | AA61: 17.02781861 | AB61: -0.7613540943 | AD61: 0 | AE61: 0
A62: 91.201 | B62: 0.091201 | C62: 1.000090195 | D62: 0.01343045997 | E62: 1.000000004 | F62: 9.455040884e-05 | G62: 1 | H62: 0 | I62: 424.0740325 | J62: 1.568438246 | K62: 1.000408734 | L62: 0.02858654642 | M62: 1.000000314 | N62: 0.0007930511935 | O62: 1.000000229 | P62: 0.00123415831 | Q62: 45.12158001 | R62: -89.10724543 | S62: 90.89275457 | U62: 1000000000 | V62: 8317.622401 | X62: 28.09389351 | Y62: -88.27244204 | AA62: 17.02768649 | AB62: -0.8348033969 | AD62: 0 | AE62: 0
A63: 100 | B63: 0.1 | C63: 1.000108438 | D63: 0.01472604099 | E63: 1.000000005 | F63: 0.0001036725571 | G63: 1 | H63: 0 | I63: 464.9881406 | J63: 1.568645733 | K63: 1.000491388 | L63: 0.03134282717 | M63: 1.000000378 | N63: 0.0008695641055 | O63: 1.000000276 | P63: 0.00135322893 | Q63: 44.32213428 | R63: -89.04612508 | S63: 90.95387492 | U63: 1000000000 | V63: 10000 | X63: 27.29460662 | Y63: -88.13079077 | AA63: 17.02752766 | AB63: -0.915334305 | AD63: 0 | AE63: 0
A64: 109.65 | B64: 0.10965 | C64: 1.000130375 | D64: 0.01614686782 | E64: 1.000000006 | F64: 0.0001136769588 | G64: 1 | H64: 0 | I64: 509.8592978 | J64: 1.568835 | K64: 1.000590772 | L64: 0.03436513391 | M64: 1.000000455 | N64: 0.0009534769931 | O64: 1.000000331 | P64: 0.00148381553 | Q64: 43.52263606 | R64: -88.97692797 | S64: 91.02307203 | U64: 1000000000 | V64: 12023.1225 | X64: 26.49529939 | Y64: -87.97327743 | AA64: 17.02733667 | AB64: -1.003650537 | AD64: 0 | AE64: 0
A65: 120.23 | B65: 0.12023 | C65: 1.000156746 | D65: 0.01770454894 | E65: 1.000000008 | F65: 0.0001246455152 | G65: 1 | H65: 0 | I65: 559.054843 | J65: 1.569007593 | K65: 1.000710235 | L65: 0.03767798596 | M65: 1.000000547 | N65: 0.001045476807 | O65: 1.000000398 | P65: 0.001626987164 | Q65: 42.72336123 | R65: -88.89909878 | S65: 91.10090122 | U65: 1000000000 | V65: 14455.2529 | X65: 25.69625415 | Y65: -87.79862501 | AA65: 17.02710707 | AB65: -1.10047377 | AD65: 0 | AE65: 0
A66: 131.83 | B66: 0.13183 | C66: 1.000188448 | D66: 0.01941230446 | E66: 1.000000009 | F66: 0.0001366715316 | G66: 1 | H66: 0 | I66: 612.9932638 | J66: 1.569164987 | K66: 1.000853835 | L66: 0.04130927114 | M66: 1.000000657 | N66: 0.001146346147 | O66: 1.000000479 | P66: 0.001783961737 | Q66: 41.92430482 | R66: -88.811991 | S66: 91.188009 | U66: 1000000000 | V66: 17379.1489 | X66: 24.89747375 | Y66: -87.60536511 | AA66: 17.02683107 | AB66: -1.206625894 | AD66: 0 | AE66: 0
A67: 144.54 | B67: 0.14454 | C67: 1.000226533 | D67: 0.02128334414 | E67: 1.000000011 | F67: 0.0001498483134 | G67: 1 | H67: 0 | I67: 672.0930481 | J67: 1.569308437 | K67: 1.001026323 | L67: 0.04528677815 | M67: 1.00000079 | N67: 0.001256867613 | O67: 1.000000576 | P67: 0.001955957158 | Q67: 41.12599489 | R67: -88.71495046 | S67: 91.28504954 | U67: 1000000000 | V67: 20891.8116 | X67: 24.09949538 | Y67: -87.39202225 | AA67: 17.02649952 | AB67: -1.322928209 | AD67: 0 | AE67: 0
A68: 158.49 | B68: 0.15849 | C68: 1.000272364 | D68: 0.02333675225 | E68: 1.000000013 | F68: 0.0001643106348 | G68: 1 | H68: 0 | I68: 736.9586782 | J68: 1.569439398 | K68: 1.001233862 | L68: 0.04965067998 | M68: 1.00000095 | N68: 0.001378171626 | O68: 1.000000692 | P68: 0.002144732627 | Q68: 40.32712048 | R68: -88.60701006 | S68: 91.39298994 | U68: 1000000000 | V68: 25119.0801 | X68: 23.30101993 | Y68: -87.15644282 | AA68: 17.02610054 | AB68: -1.450567235 | AD68: 0 | AE68: 0
A69: 173.78 | B69: 0.17378 | C69: 1.000327441 | D69: 0.02558717857 | E69: 1.000000016 | F69: 0.0001801621684 | G69: 1 | H69: 0 | I69: 808.0551408 | J69: 1.569558787 | K69: 1.00148323 | L69: 0.0544315875 | M69: 1.000001142 | N69: 0.001511127733 | O69: 1.000000832 | P69: 0.002351641375 | Q69: 39.5288452 | R69: -88.48742924 | S69: 91.51257076 | U69: 1000000000 | V69: 30199.4884 | X69: 22.5032241 | Y69: -86.89697531 | AA69: 17.0256211 | AB69: -1.590453937 | AD69: 0 | AE69: 0
A70: 190.55 | B70: 0.19055 | C70: 1.000393674 | D70: 0.02805513668 | E70: 1.00000002 | F70: 0.0001975480557 | G70: 1 | H70: 0 | I70: 886.0334172 | J70: 1.569667701 | K70: 1.001783043 | L70: 0.05967239378 | M70: 1.000001373 | N70: 0.001656953304 | O70: 1.000001001 | P70: 0.002578577926 | Q70: 38.73068448 | R70: -88.35515861 | S70: 91.64484139 | U70: 1000000000 | V70: 36309.3025 | X70: 21.7056399 | Y70: -86.61129472 | AA70: 17.02504458 | AB70: -1.74386389 | AD70: 0 | AE70: 0
A71: 208.93 | B71: 0.20893 | C71: 1.000473264 | D71: 0.03075963684 | E71: 1.000000023 | F71: 0.0002166030709 | G71: 1 | H71: 0 | I71: 971.4979902 | J71: 1.569766988 | K71: 1.002143223 | L71: 0.06541256485 | M71: 1.00000165 | N71: 0.001816778745 | O71: 1.000001203 | P71: 0.002827301485 | Q71: 37.9332756 | R71: -88.20923259 | S71: 91.79076741 | U71: 1000000000 | V71: 43651.7449 | X71: 20.90892376 | Y71: -86.29725321 | AA71: 17.02435184 | AB71: -1.911979373 | AD71: 0 | AE71: 0
A72: 229.09 | B72: 0.22909 | C72: 1.000568975 | D72: 0.0337255337 | E72: 1.000000028 | F72: 0.0002375034574 | G72: 1 | H72: 0 | I72: 1065.239337 | J72: 1.56985757 | K72: 1.002576226 | L72: 0.07170366516 | M72: 1.000001984 | N72: 0.001992082276 | O72: 1.000001446 | P72: 0.003100112545 | Q72: 37.13608611 | R72: -88.04838001 | S72: 91.95161999 | U72: 1000000000 | V72: 52482.2281 | X72: 20.11256724 | Y72: -85.95203384 | AA72: 17.02351887 | AB72: -2.096346164 | AD72: 0 | AE72: 0
A73: 251.19 | B73: 0.25119 | C73: 1.000684008 | D73: 0.03697615552 | E73: 1.000000034 | F73: 0.0002604150912 | G73: 1 | H73: 0 | I73: 1168.001437 | J73: 1.569940163 | K73: 1.003096447 | L73: 0.07859361451 | M73: 1.000002385 | N73: 0.002184255154 | O73: 1.000001739 | P73: 0.003399176283 | Q73: 36.33966377 | R73: -87.87142717 | S73: 92.12857283 | U73: 1000000000 | V73: 63096.4161 | X73: 19.31714592 | Y73: -85.57301174 | AA73: 17.02251784 | AB73: -2.298415426 | AD73: 0 | AE73: 0
A74: 275.42 | B74: 0.27542 | C74: 1.000822275 | D74: 0.04053917183 | E74: 1.000000041 | F74: 0.00028553495 | G74: 1 | H74: 0 | I74: 1280.667766 | J74: 1.570015484 | K74: 1.003721469 | L74: 0.0861390106 | M74: 1.000002868 | N74: 0.002394949484 | O74: 1.000002091 | P74: 0.003727063845 | Q74: 35.54400491 | R74: -87.67698838 | S74: 92.32301162 | U74: 1000000000 | V74: 75856.1764 | X74: 18.52269014 | Y74: -85.15707984 | AA74: 17.02131478 | AB74: -2.519908534 | AD74: 0 | AE74: 0
A75: 302 | B75: 0.302 | C75: 1.000988562 | D75: 0.04444656761 | E75: 1.000000049 | F75: 0.0003130911133 | G75: 1 | H75: 0 | I75: 1404.261293 | J75: 1.570084209 | K75: 1.004472749 | L75: 0.09440488806 | M75: 1.000003448 | N75: 0.002626078224 | O75: 1.000002514 | P75: 0.00408675235 | Q75: 34.7488232 | R75: -87.46347588 | S75: 92.53652412 | U75: 1000000000 | V75: 91204 | X75: 17.72895507 | Y75: -84.70066027 | AA75: 17.01986813 | AB75: -2.762815603 | AD75: 0 | AE75: 0
A76: 331.13 | B76: 0.33113 | C76: 1.001188349 | D76: 0.04872726284 | E76: 1.000000059 | F76: 0.000343290926 | G76: 1 | H76: 0 | I76: 1539.711994 | J76: 1.570146855 | K76: 1.0053748 | L76: 0.1034488904 | M76: 1.000004145 | N76: 0.002879380391 | O76: 1.000003022 | P76: 0.004480948276 | Q76: 33.95504475 | R76: -87.22951643 | S76: 92.77048357 | U76: 1000000000 | V76: 109647.0769 | X76: 16.93691439 | Y76: -84.20057961 | AA76: 17.01813036 | AB76: -3.028936815 | AD76: 0 | AE76: 0
A77: 363.08 | B77: 0.36308 | C77: =SQRT(1+(A77/pole1)^2) -> 1.001428563 | D77: =ATAN(A77/pole1) -> 0.05342030111 | E77: =SQRT(1+(A77/Zero1)^2) -> 1.000000071 | F77: =ATAN(A77/Zero1) -> 0.0003764143038 | G77: =IF(VIN_nom>Vout, 1, SQRT(1+(A77/z_RHP)^2)) -> 1 | H77: =IF(VIN_nom>Vout, 0, -ATAN(A77/z_RHP)) -> 0 | I77: =SQRT(1+(A77/Pole2)^2) -> 1688.275333 | J77: =ATAN(A77/Pole2) -> 1.570204006 | K77: =SQRT(1+(A77/Zero2)^2) -> 1.006458554 | L77: =ATAN(A77/Zero2) -> 0.1133488741 | M77: =SQRT(1+(A77/pole4)^2) -> 1.000004984 | N77: =ATAN(A77/pole4) -> 0.00315720366 | O77: =SQRT((1-(V77/pterm2))^2+(A77/pterm1)^2) -> 1.000003633 | P77: =IF((ATAN((A77/pterm1)/(1-A77^2/pterm2))>0),ATAN((A77/pterm1)/(1-A77^2/pterm2)),PI()+ATAN((A77/pterm1)/(1-A77^2/pterm2))) -> 0.004913305369 | Q77: =20*LOG10(((E77*K77*G77)/(C77*I77*O77*M77))*Adc) -> 33.16223087 | R77: =((F77+L77+H77)-(D77+J77+P77+N77))*radconv -> -86.97324749 | S77: =IF(R77>0,R77,R77+180) -> 93.02675251 | U77: 1000000000 | V77: 131827.0864 | X77: =20*LOG10((K77/(I77*M77))*AEA*Afb_Ch2) -> 16.14618946 | Y77: -83.65254498 | AA77: =20*LOG10((E77*G77/(C77*O77))*Am_Ch2) -> 17.01604141 | AB77: =(F77+H77-(D77+P77))*radconv -> -3.320702508 | AD77: 0 | AE77: =IF(AD77>0,S75,0) -> 0
A78: 398.11 | B78: =A78/1000 -> 0.39811 | C78: 1.001717269 | D78: 0.05856303812 | E78: 1.000000085 | F78: 0.000412730795 | G78: 1 | H78: 0 | I78: 1851.160276 | J78: 1.570256125 | K78: 1.007759884 | L78: 0.1241775679 | M78: 1.000005992 | N78: 0.003461808704 | O78: 1.000004368 | P78: 0.005387342059 | Q78: 32.37092061 | R78: -86.69298444 | S78: 93.30701556 | U78: =IF(Q78<0,A78,1000000000) -> 1000000000 | V78: =A78^2 -> 158491.5721 | X78: 15.35738918 | Y78: =(L78-(J78+N78))*radconv -> -83.05254529 | AA78: 17.01353142 | AB78: -3.640439154 | AD78: =SUM((Q79<0)*(Q78>0))*A78 -> 0 | AE78: 0
A79: 436.52 | B79: 0.43652 | C79: 1.002064263 | D79: 0.06419841896 | E79: 1.000000102 | F79: 0.0004525514169 | G79: 1 | H79: 0 | I79: 2029.761784 | J79: 1.570303658 | K79: 1.009322224 | L79: 0.1360174661 | M79: 1.000007204 | N79: 0.00379580396 | O79: 1.000005252 | P79: 0.00590711808 | Q79: 31.58132869 | R79: -86.38685117 | S79: 93.61314883 | U79: 1000000000 | V79: 190549.7104 | X79: 14.57081306 | Y79: -82.39602906 | AA79: 17.01051563 | AB79: -3.990822111 | AD79: 0 | AE79: 0
A80: 478.63 | B80: 0.47863 | C80: 1.002481225 | D80: 0.07037194917 | E80: 1.000000123 | F80: 0.000496207921 | G80: 1 | H80: 0 | I80: 2225.567815 | J80: 1.570347003 | K80: 1.011197112 | L80: 0.1489538266 | M80: 1.000008661 | N80: 0.004161971696 | O80: 1.000006314 | P80: 0.006476963825 | Q80: 30.79389799 | R80: -86.05298132 | S80: 93.94701868 | U80: 1000000000 | V80: 229086.6769 | X80: 13.78700488 | Y80: -81.67829356 | AA80: 17.00689311 | AB80: -4.37468776 | AD80: 0 | AE80: 0
A81: 524.81 | B81: 0.52481 | C81: 1.002982372 | D81: 0.07713597243 | E81: 1.000000148 | F81: 0.0005440838951 | G81: 1 | H81: 0 | I81: 2440.298822 | J81: 1.570386541 | K81: 1.013446982 | L81: 0.1630828433 | M81: 1.000010413 | N81: 0.004563528852 | O81: 1.000007591 | P81: 0.007101886324 | Q81: 30.00879155 | R81: -85.68933348 | S81: 94.31066652 | U81: 1000000000 | V81: 275425.5361 | X81: 13.00625037 | Y81: -80.8940334 | AA81: 17.00254118 | AB81: -4.795300076 | AD81: 0 | AE81: 0
A82: 575.44 | B82: 0.57544 | C82: 1.003584489 | D82: 0.08454364978 | E82: 1.000000178 | F82: 0.0005965732938 | G82: 1 | H82: 0 | I82: 2675.721755 | J82: 1.570422596 | K82: 1.016145041 | L82: 0.1784980306 | M82: 1.000012519 | N82: 0.005003779188 | O82: 1.000009127 | P82: 0.007787027952 | Q82: 29.22668196 | R82: -85.29407554 | S82: 94.70592446 | U82: 1000000000 | V82: 331131.1936 | X82: 12.22936665 | Y82: -80.03809851 | AA82: 16.99731531 | AB82: -5.255977028 | AD82: 0 | AE82: 0
A83: 630.96 | B83: 0.63096 | C83: 1.004307983 | D83: 0.09265607611 | E83: 1.000000214 | F83: 0.0006541322752 | G83: 1 | H83: 0 | I83: 2933.882558 | J83: 1.570455482 | K83: 1.019379676 | L83: 0.1953038093 | M83: 1.000015051 | N83: 0.00548654801 | O83: 1.000010973 | P83: 0.00853834306 | Q83: 28.44795461 | R83: -84.86527726 | S83: 95.13472274 | U83: 1000000000 | V83: 398110.5216 | X83: 11.45691451 | Y83: -79.10474314 | AA83: 16.99104009 | AB83: -5.760534116 | AD83: 0 | AE83: 0
A84: 691.83 | B84: 0.69183 | C84: 1.005177032 | D84: 0.1015361573 | E84: 1.000000257 | F84: 0.0007172377312 | G84: 1 | H84: 0 | I84: 3216.920169 | J84: 1.57048547 | K84: 1.02325461 | L84: 0.2136011624 | M84: 1.000018095 | N84: 0.006015834295 | O84: 1.000013192 | P84: 0.009362056685 | Q84: 27.67340006 | R84: -84.40133108 | S84: 95.59866892 | U84: 1000000000 | V84: 478628.7489 | X84: 10.6898917 | Y84: -78.08842615 | AA84: 16.98350836 | AB84: -6.31290493 | AD84: 0 | AE84: 0
A85: 758.58 | B85: 0.75858 | C85: 1.00622098 | D85: 0.1112555602 | E85: 1.000000309 | F85: 0.0007864391242 | G85: 1 | H85: 0 | I85: 3527.299022 | J85: 1.570512824 | K85: 1.027894479 | L85: 0.233500018 | M85: 1.000021756 | N85: 0.006596245384 | O85: 1.000015861 | P85: 0.01026534119 | Q85: 26.90358588 | R85: -83.90070317 | S85: 96.09929683 | U85: 1000000000 | V85: 575443.6164 | X85: 9.929116487 | Y85: -76.98312803 | AA85: 16.9744694 | AB85: -6.917575135 | AD85: 0 | AE85: 0
A86: 831.76 | B86: 0.83176 | C86: 1.007474477 | D86: 0.1218869628 | E86: 1.000000372 | F86: 0.0008623066501 | G86: 1 | H86: 0 | I86: 3867.576544 | J86: 1.570537767 | K86: 1.033444489 | L86: 0.2551008712 | M86: 1.000026156 | N86: 0.007232562113 | O86: 1.000019068 | P86: 0.01125563965 | Q86: 26.13954627 | R86: -83.36248038 | S86: 96.63751962 | U86: 1000000000 | V86: 691824.6976 | X86: 9.175917886 | Y86: -75.78337771 | AA86: 16.96362839 | AB86: -7.579102669 | AD86: 0 | AE86: 0
A87: 912.01 | B87: 0.91201 | C87: 1.008979631 | D87: 0.1335136442 | E87: 1.000000447 | F87: 0.0009455038094 | G87: 1 | H87: 0 | I87: 4240.728652 | J87: 1.570560518 | K87: 1.040078653 | L87: 0.2785114305 | M87: 1.000031446 | N87: 0.007930347346 | O87: 1.000022926 | P87: 0.01234161317 | Q87: 25.3820498 | R87: -82.78605247 | S87: 97.21394753 | U87: 1000000000 | V87: 831762.2401 | X87: 8.431421178 | Y87: -74.48333517 | AA87: 16.95062862 | AB87: -8.3027173 | AD87: 0 | AE87: 0
A88: 1000 | B88: 1 | C88: 1.010786211 | D88: 0.1462199908 | E88: 1.000000537 | F88: 0.001036725203 | G88: 1 | H88: 0 | I88: 4649.87076 | J88: 1.570581267 | K88: 1.047998881 | L88: 0.3038238178 | M88: 1.000037806 | N88: 0.008695424086 | O88: 1.000027563 | P88: 0.01353232893 | Q88: 24.63230163 | R88: -82.17180041 | S88: 97.82819959 | U88: 1000000000 | V88: 1000000 | X88: 7.697250703 | Y88: -73.0780667 | AA88: 16.93505093 | AB88: -9.093733718 | AD88: 0 | AE88: 0
A89: 1096.5 | B89: 1.0965 | C89: 1.012954425 | D89: 0.1601006293 | E89: 1.000000646 | F89: 0.001136769103 | G89: 1 | H89: 0 | I89: 5098.583269 | J89: 1.570600194 | K89: 1.057444695 | L89: 0.3311288826 | M89: 1.000045455 | N89: 0.009534483895 | O89: 1.00003314 | P89: 0.01483820755 | Q89: 23.89133995 | R89: -81.5208857 | S89: 98.4791143 | U89: 1000000000 | V89: 1202312.25 | X89: 6.974948464 | Y89: -71.56276073 | AA89: 16.91639149 | AB89: -9.958124964 | AD89: 0 | AE89: 0
A90: 1202.3 | B90: 1.2023 | C90: 1.015554852 | D90: 0.1752476209 | E90: 1.000000777 | F90: 0.001246454513 | G90: 1 | H90: 0 | I90: 5590.539575 | J90: 1.570617453 | K90: 1.068689631 | L90: 0.360486392 | M90: 1.00005465 | N90: 0.01045439099 | O90: 1.000039844 | P90: 0.0162699405 | Q90: 23.16072787 | R90: -80.83612642 | S90: 99.16387358 | U90: 1000000000 | V90: 1445525.29 | X90: 6.266663066 | Y90: -69.93439503 | AA90: 16.89406481 | AB90: -10.9017314 | AD90: 0 | AE90: =IF(AD90>0,S90,0) -> 0
A91: 1318.3 | B91: 1.3183 | C91: 1.018672286 | D91: 0.19176181 | E91: 1.000000934 | F91: 0.001366714474 | G91: 1 | H91: 0 | I91: 6129.924563 | J91: 1.570633193 | K91: 1.082053561 | L91: 0.3919428394 | M91: 1.000065703 | N91: 0.01146296439 | O91: 1.000047904 | P91: 0.01783970815 | Q91: 22.4418563 | R91: -80.12173756 | S91: 99.87826244 | U91: 1000000000 | V91: 1737914.89 | X91: 5.574482244 | Y91: -68.19076215 | AA91: 16.86737405 | AB91: -11.93097541 | AD91: 0 | AE91: 0
A92: 1445.4 | B92: 1.4454 | C92: 1.022404889 | D92: 0.2097351555 | E92: 1.000001123 | F92: 0.001498482024 | G92: 1 | H92: 0 | I92: 6720.923116 | J92: 1.570647538 | K92: 1.097893421 | L92: 0.4254933012 | M92: 1.000078983 | N92: 0.01256802098 | O92: 1.000057588 | P92: 0.01955969121 | Q92: 21.7366425 | R92: -79.38436958 | S92: 100.6156304 | U92: 1000000000 | V92: 2089181.16 | X92: 4.901119444 | Y92: -66.33259928 | AA92: 16.83552305 | AB92: -13.0517703 | AD92: 0 | AE92: 0
A93: 1584.9 | B93: 1.5849 | C93: 1.026878853 | D93: 0.2293045415 | E93: 1.00000135 | F93: 0.001643104884 | G93: 1 | H93: 0 | I93: 7369.580066 | J93: 1.570660634 | K93: 1.116657832 | L93: 0.4611767228 | M93: 1.000094963 | N93: 0.01378085253 | O93: 1.000069242 | P93: 0.02144748396 | Q93: 21.04540098 | R93: -78.63122011 | S93: 101.3687799 | U93: 1000000000 | V93: 2511908.01 | X93: 4.247903035 | Y93: -64.3583303 | AA93: 16.79749794 | AB93: -14.27288981 | AD93: 0 | AE93: 0
A94: 1737.8 | B94: 1.7378 | C94: 1.032230089 | D94: 0.2505497908 | E94: 1.000001623 | F94: 0.001801619754 | G94: 1 | H94: 0 | I94: 8080.545283 | J94: 1.570672573 | K94: 1.138800231 | L94: 0.4988838248 | M94: 1.000114169 | N94: 0.01511013877 | O94: 1.000083249 | P94: 0.0235166216 | Q94: 20.37055889 | R94: -77.87434258 | S94: 102.1256574 | U94: 1000000000 | V94: 3019948.84 | X94: 3.61832631 | Y94: -62.27471904 | AA94: 16.75223258 | AB94: -15.59962355 | AD94: 0 | AE94: 0
A95: 1905.5 | B95: 1.9055 | C95: 1.038629091 | D95: 0.273588168 | E95: 1.000001951 | F95: 0.001975478012 | G95: 1 | H95: 0 | I95: 8860.328586 | J95: 1.570683464 | K95: 1.16487186 | L95: 0.5385300235 | M95: 1.000137266 | N95: 0.01656803207 | O95: 1.000100096 | P95: 0.02578605323 | Q95: 19.71296444 | R95: -77.12700718 | S95: 102.8729928 | U95: 1000000000 | V95: 3630930.25 | X95: 3.014554675 | Y95: -60.08731434 | AA95: 16.69840976 | AB95: -17.03969284 | AD95: 0 | AE95: 0
A96: 2089.3 | B96: 2.0893 | C96: 1.046267288 | D96: 0.2984999444 | E96: 1.000002346 | F96: 0.002166027355 | G96: 1 | H96: 0 | I96: 9714.974807 | J96: 1.570693393 | K96: 1.195451327 | L96: 0.5799242624 | M96: 1.000165021 | N96: 0.01816580895 | O96: 1.000120342 | P96: 0.0282733759 | Q96: 19.07414555 | R96: -76.40634181 | S96: 103.5936582 | U96: 1000000000 | V96: 4365174.49 | X96: 2.4395515 | Y96: -57.8077139 | AA96: 16.63459405 | AB96: -18.59862791 | AD96: 0 | AE96: 0
A97: 2290.9 | B97: 2.2909 | C97: 1.055380247 | D97: 0.3253910503 | E97: 1.00000282 | F97: 0.002375030153 | G97: 1 | H97: 0 | I97: 10652.38873 | J97: 1.570702451 | K97: 1.231222557 | L97: 0.6228814714 | M97: 1.0001984 | N97: 0.01991821461 | O97: 1.000144694 | P97: 0.03100160129 | Q97: 18.45430878 | R97: -75.73108718 | S97: 104.2689128 | U97: 1000000000 | V97: 5248222.81 | X97: 1.895248376 | Y97: -55.44737157 | AA97: 16.5590604 | AB97: -20.2837156 | AD97: 0 | AE97: 0
A98: 2511.9 | B98: 2.5119 | C98: 1.066230897 | D98: 0.3543184915 | E98: 1.000003391 | F98: 0.002604145084 | G98: 1 | H98: 0 | I98: 11680.01014 | J98: 1.57071071 | K98: 1.272889708 | L98: 0.6671084162 | M98: 1.000238521 | N98: 0.02183911358 | O98: 1.000173969 | P98: 0.03399238989 | Q98: 17.85402501 | R98: -75.12325506 | S98: 104.8767449 | U98: 1000000000 | V98: 6309641.61 | X98: 1.384059933 | Y98: -53.02388692 | AA98: 16.46996508 | AB98: -22.09936814 | AD98: 0 | AE98: 0
A99: 2754.2 | B99: 2.7542 | C99: 1.079130515 | D99: 0.3853365935 | E99: 1.000004077 | F99: 0.002855341817 | G99: 1 | H99: 0 | I99: 12806.67379 | J99: 1.570718243 | K99: 1.321241372 | L99: 0.7122949148 | M99: 1.000286749 | N99: 0.02394496321 | O99: 1.000209166 | P99: 0.0372714647 | Q99: 17.27281754 | R99: -74.60603822 | S99: 105.3939618 | U99: 1000000000 | V99: 7585617.64 | X99: 0.907606369 | Y99: -50.55597911 | AA99: 16.36521117 | AB99: -24.05005912 | AD99: 0 | AE99: 0
A100: 3020 | B100: 3.02 | C100: 1.094445157 | D100: 0.4184866249 | E100: 1.000004901 | F100: 0.003130901005 | G100: 1 | H100: 0 | I100: 14042.60941 | J100: 1.570725115 | K100: 1.377153008 | L100: 0.7581115281 | M100: 1.000344756 | N100: 0.02625480833 | O100: 1.00025151 | P100: 0.04086861228 | Q100: 16.70932395 | R100: -74.20334767 | S100: 105.7966523 | U100: 1000000000 | V100: 9120400 | X100: 0.4668739236 | Y100: -48.06361867 | AA100: 16.24245002 | AB100: -26.13972901 | AD100: 0 | AE100: 0
A101: 3311.3 | B101: 3.3113 | C101: 1.112569528 | D101: 0.453725871 | E101: 1.000005892 | F101: 0.003432895909 | G101: 1 | H101: 0 | I101: 15397.11673 | J101: 1.57073138 | K101: 1.44147456 | L101: 0.8041356014 | M101: 1.000414458 | N101: 0.02878592989 | O101: 1.000302403 | P101: 0.04481091714 | Q101: 16.1622863 | R101: -73.9393785 | S101: 106.0606215 | U101: 1000000000 | V101: 10964707.69 | X101: 0.06293275015 | Y101: -45.57201502 | AA101: 16.09935355 | AB101: -28.36736348 | AD101: 0 | AE101: 0
A102: 3630.8 | B102: 3.6308 | C102: 1.133982652 | D102: 0.4910298726 | E102: 1.000007084 | F102: 0.003764125438 | G102: 1 | H102: 0 | I102: 16882.7504 | J102: 1.570737095 | K102: 1.515216839 | L102: 0.8500154397 | M102: 1.000498276 | N102: 0.0315616574 | O102: 1.000363624 | P102: 0.0491349433 | Q102: 15.62873256 | R102: -73.83615458 | S102: 106.1638454 | U102: 1000000000 | V102: 13182708.64 | X102: -0.3045147793 | Y102: -43.10265885 | AA102: 15.93324734 | AB102: -30.73349573 | AD102: 0 | AE102: 0
A103: 3981.1 | B103: 3.9811 | C103: 1.15920172 | D103: 0.5302856569 | E103: 1.000008517 | F103: 0.004127284749 | G103: 1 | H103: 0 | I103: 18511.60008 | J103: 1.570742307 | K103: 1.59937437 | L103: 0.8953515664 | M103: 1.000599031 | N103: 0.03460440619 | O103: 1.000437244 | P103: 0.05387590951 | Q103: 15.10567069 | R103: -73.91324176 | S103: 106.0867582 | U103: 1000000000 | V103: 15849157.21 | X103: -0.6358977641 | Y103: -40.67972541 | AA103: 15.74156846 | AB103: -33.23351635 | AD103: 0 | AE103: 0
A104: 4365.2 | B104: 4.3652 | C104: 1.188814017 | D104: 0.5713448874 | E104: 1.00001024 | F104: 0.004525483584 | G104: 1 | H104: 0 | I104: 20297.6154 | J104: 1.57074706 | K104: 1.6950325 | L104: 0.9397880306 | M104: 1.000720154 | N104: 0.03794000724 | O104: 1.000525787 | P104: 0.05907445855 | Q104: 14.58930434 | R104: -74.18616854 | S104: 105.8138315 | U104: 1000000000 | V104: 19054971.04 | X104: -0.932412371 | Y104: -38.32509176 | AA104: 15.52171671 | AB104: -35.86107678 | AD104: 0 | AE104: 0
A105: 4786.3 | B105: 4.7863 | C105: 1.223462579 | D105: 0.6139959361 | E105: 1.000012311 | F105: 0.004962038892 | G105: 1 | H105: 0 | I105: 22255.67593 | J105: 1.570751394 | K105: 1.803319144 | L105: 0.9829946378 | M105: 1.000865736 | N105: 0.04159595057 | O105: 1.00063227 | P105: 0.0647739538 | Q105: 14.07557486 | R105: -74.6656001 | S105: 105.3343999 | U105: 1000000000 | V105: 22908667.69 | X105: -1.195700001 | Y105: -36.05925399 | AA105: 15.27127486 | AB105: -38.60634611 | AD105: 0 | AE105: 0
A106: 5248.1 | B106: 5.2481 | C106: 1.26386864 | D106: 0.657992506 | E106: 1.000014801 | F106: 0.005440785801 | G106: 1 | H106: 0 | I106: 24402.98619 | J106: 1.570755348 | K106: 1.925481391 | L106: 1.024705423 | M106: 1.001040763 | N106: 0.04560396449 | O106: 1.000760376 | P106: 0.07102454403 | Q106: 13.56003173 | R106: -75.35713702 | S106: 104.642863 | U106: 1000000000 | V106: 27542553.61 | X106: -1.427927876 | Y106: -33.89927088 | AA106: 14.9879596 | AB106: -41.45786614 | AD106: 0 | AE106: 0
A107: 5370.3 | B107: 5.3703 | C107: 1.274953566 | D107: 0.6691611726 | E107: 1.000015499 | F107: 0.005567469828 | G107: 1 | H107: 0 | I107: 24971.20039 | J107: 1.570756281 | K107: 1.9583237 | L107: 1.034866395 | M107: 1.001089768 | N107: 0.04666431199 | O107: 1.000796261 | P107: 0.07267859751 | Q107: 13.43042671 | R107: -75.56319231 | S107: 104.4368077 | U107: 1000000000 | V107: 28840122.09 | X107: -1.481378902 | Y107: -33.37789688 | AA107: 14.91180561 | AB107: -42.18529543 | AD107: 0 | AE107: 0
A108: 5432.85 | B108: 5.43285 | C108: 1.28068829 | D108: 0.6748028625 | E108: 1.000015862 | F108: 0.005632314979 | G108: 1 | H108: 0 | I108: 25262.0498 | J108: 1.570756742 | K108: 1.97521082 | L108: 1.039936438 | M108: 1.001115287 | N108: 0.04720702712 | O108: 1.000814951 | P108: 0.07352525812 | Q108: 13.365061 | R108: -75.67186169 | S108: 104.3281383 | U108: 1000000000 | V108: 29515859.12 | X108: -1.507604139 | Y108: -33.11852652 | AA108: 14.87266514 | AB108: -42.55333518 | AD108: 0 | AE108: 0
A109: 5495.4 | B109: 5.4954 | C109: 1.286463413 | D109: 0.6803940763 | E109: 1.000016229 | F109: 0.005697160083 | G109: 1 | H109: 0 | I109: 25552.89921 | J109: 1.570757192 | K109: 1.992147851 | L109: 1.044920398 | M109: 1.001141102 | N109: 0.04774971443 | O109: 1.000833859 | P109: 0.07437192369 | Q109: 13.30032645 | R109: -75.78256932 | S109: 104.2174307 | U109: 1000000000 | V109: 30199421.16 | X109: -1.533097778 | Y109: -32.86408618 | AA109: 14.83342422 | AB109: -42.91848314 | AD109: 0 | AE109: 0
A110: 5559.4 | B110: 5.5594 | C110: 1.29241366 | D110: 0.6860630014 | E110: 1.000016609 | F110: 0.005763508341 | G110: 1 | H110: 0 | I110: 25850.49093 | J110: 1.570757643 | K110: 2.009527853 | L110: 1.049932808 | M110: 1.00116782 | N110: 0.04830495288 | O110: 1.000853431 | P110: 0.07523822137 | Q110: 13.23472307 | R110: -75.89785721 | S110: 104.1021428 | U110: 1000000000 | V110: 30906928.36 | X110: -1.558452594 | Y110: -32.60873486 | AA110: 14.79317566 | AB110: -43.28912235 | AD110: 0 | AE110: 0
A111: 5623.4 | B111: 5.6234 | C111: 1.29840506 | D111: 0.691679788 | E111: 1.000016994 | F111: 0.005829856548 | G111: 1 | H111: 0 | I111: 26148.08265 | J111: 1.570758083 | K111: 2.026957475 | L111: 1.054859138 | M111: 1.001194846 | N111: 0.04886016153 | O111: 1.000873231 | P111: 0.07610452435 | Q111: 13.16973798 | R111: -76.01508784 | S111: 103.9849122 | U111: 1000000000 | V111: 31622627.56 | X111: -1.583095994 | Y111: -32.3583133 | AA111: 14.75283398 | AB111: -43.65677455 | AD111: 0 | AE111: 0
A112: 5688.9 | B112: 5.6889 | C112: 1.304578902 | D112: 0.6973746145 | E112: 1.000017392 | F112: 0.005897759738 | G112: 1 | H112: 0 | I112: 26452.64918 | J112: 1.570758523 | K112: 2.04484566 | L112: 1.059813849 | M112: 1.001222826 | N112: 0.04942835167 | O112: 1.000893732 | P112: 0.07699113684 | Q112: 13.10384923 | R112: -76.13698205 | S112: 103.8630179 | U112: 1000000000 | V112: 32363583.21 | X112: -1.607607261 | Y112: -32.1070094 | AA112: 14.7114565 | AB112: -44.02997266 | AD112: 0 | AE112: 0
A113: 5754.4 | B113: 5.7544 | C113: 1.310794654 | D113: 0.703015613 | E113: 1.000017795 | F113: 0.005965662874 | G113: 1 | H113: 0 | I113: 26757.2157 | J113: 1.570758954 | K113: 2.062783172 | L113: 1.064682507 | M113: 1.001251129 | N113: 0.04999650986 | O113: 1.000914472 | P113: 0.07787775501 | Q113: 13.03856697 | R113: -76.26072052 | S113: 103.7392795 | U113: 1000000000 | V113: 33113119.36 | X113: -1.631426825 | Y113: -31.86063353 | AA113: 14.6699938 | AB113: -44.40008698 | AD113: 0 | AE113: 0
A114: 5821.4 | B114: 5.8214 | C114: 1.317195493 | D114: 0.7087305266 | E114: 1.000018212 | F114: 0.006035120987 | G114: 1 | H114: 0 | I114: 27068.75704 | J114: 1.570759384 | K114: 2.081181173 | L114: 1.069575713 | M114: 1.001280414 | N114: 0.05057764589 | O114: 1.000935935 | P114: 0.07878468334 | Q114: 12.97239709 | R114: -76.3891057 | S114: 103.6108943 | U114: 1000000000 | V114: 33888697.96 | X114: -1.655102585 | Y114: -31.61359478 | AA114: 14.62749968 | AB114: -44.77551092 | AD114: 0 | AE114: 0
A115: 5888.4 | B115: 5.8884 | C115: 1.323638934 | D115: 0.7143899835 | E115: 1.000018633 | F115: 0.006104579041 | G115: 1 | H115: 0 | I115: 27380.29837 | J115: 1.570759804 | K115: 2.099628131 | L115: 1.074383051 | M115: 1.001310037 | N115: 0.05115874773 | O115: 1.000957648 | P115: 0.07969161772 | Q115: 12.90682205 | R115: -76.51923117 | S115: 103.4807688 | U115: 1000000000 | V115: 34673254.56 | X115: -1.678106922 | Y115: -31.37147339 | AA115: 14.58492897 | AB115: -45.14775777 | AD115: 0 | AE115: 0
A116: 5957 | B116: 5.957 | C116: 1.330279744 | D116: 0.7201275982 | E116: 1.00001907 | F116: 0.006175695734 | G116: 1 | H116: 0 | I116: 27699.2795 | J116: 1.570760225 | K116: 2.118565001 | L116: 1.079218335 | M116: 1.001340718 | N116: 0.0517536908 | O116: 1.000980139 | P116: 0.08062021659 | Q116: 12.84027793 | R116: -76.65417281 | S116: 103.3458272 | U116: 1000000000 | V116: 35485849 | X116: -1.70099077 | Y116: -31.12854382 | AA116: 14.5412687 | AB116: -45.525629 | AD116: 0 | AE116: 0
A117: 6025.6 | B117: 6.0256 | C117: 1.336963911 | D117: 0.7258080279 | E117: 1.000019512 | F117: 0.006246812365 | G117: 1 | H117: 0 | I117: 28018.26062 | J117: 1.570760636 | K117: 2.137550526 | L117: 1.083967836 | M117: 1.001371754 | N117: 0.0523485972 | O117: 1.001002893 | P117: 0.08154882194 | Q117: 12.77431894 | R117: -76.79075076 | S117: 103.2092492 | U117: 1000000000 | V117: 36307855.36 | X117: -1.72322203 | Y117: -30.89052663 | AA117: 14.49754097 | AB117: -45.90022413 | AD117: 0 | AE117: 0
A118: 6095.8 | B118: 6.0958 | C118: 1.343848188 | D118: 0.7315622552 | E118: 1.000019969 | F118: 0.006319587627 | G118: 1 | H118: 0 | I118: 28344.68154 | J118: 1.570761047 | K118: 2.15702789 | L118: 1.088741447 | M118: 1.00140388 | N118: 0.05295734057 | O118: 1.00102645 | P118: 0.08249909252 | Q118: 12.70740854 | R118: -76.93211469 | S118: 103.0678853 | U118: 1000000000 | V118: 37158777.64 | X118: -1.745321485 | Y118: -30.65192084 | AA118: 14.45273003 | AB118: -46.28019385 | AD118: 0 | AE118: 0
A119: 6166 | B119: 6.166 | C119: 1.350776506 | D119: 0.7372576411 | E119: 1.000020431 | F119: 0.006392362822 | G119: 1 | H119: 0 | I119: 28671.10246 | J119: 1.570761448 | K119: 2.176553527 | L119: 1.093429516 | M119: 1.001436378 | N119: 0.05356604466 | O119: 1.001050282 | P119: 0.08344937004 | Q119: 12.64107375 | R119: -77.07500606 | S119: 102.9249939 | U119: 1000000000 | V119: 38019556 | X119: -1.766787739 | Y119: -30.41821346 | AA119: 14.40786149 | AB119: -46.6567926 | AD119: 0 | AE119: 0
A120: 6237.8 | B120: 6.2378 | C120: 1.357907592 | D120: 0.7430225246 | E120: 1.00002091 | F120: 0.006466796641 | G120: 1 | H120: 0 | I120: 29004.96318 | J120: 1.57076185 | K120: 2.196572786 | L120: 1.098138113 | M120: 1.00147 | N120: 0.05418858125 | O120: 1.001074942 | P120: 0.08442131356 | Q120: 12.57380439 | R120: -77.22264206 | S120: 102.7773579 | U120: 1000000000 | V120: 38910148.84 | X120: -1.78811293 | Y120: -30.18412245 | AA120: 14.36191732 | AB120: -47.03851961 | AD120: 0 | AE120: 0
A121: 6309.6 | B121: 6.3096 | C121: 1.365083334 | D121: 0.7487269882 | E121: 1.000021394 | F121: 0.006541230389 | G121: 1 | H121: 0 | I121: 29338.82389 | J121: 1.570762242 | K121: 2.216639865 | L121: 1.102761558 | M121: 1.00150401 | N121: 0.05481107579 | O121: 1.00109989 | P121: 0.0853932645 | Q121: 12.50710139 | R121: -77.37169262 | S121: 102.6283074 | U121: 1000000000 | V121: 39811052.16 | X121: -1.808824718 | Y121: -29.95490737 | AA121: 14.3159261 | AB121: -47.41678525 | AD121: 0 | AE121: 0
A122: 6383.05 | B122: 6.38305 | C122: 1.372469454 | D122: 0.754500629 | E122: 1.000021895 | F122: 0.006617374586 | G122: 1 | H122: 0 | I122: 29680.35689 | J122: 1.570762634 | K122: 2.237216234 | L122: 1.107405328 | M122: 1.001539203 | N122: 0.05544783158 | O122: 1.00112571 | P122: 0.08638755912 | Q122: 12.43943412 | R122: -77.5255415 | S122: 102.4744585 | U122: 1000000000 | V122: 40743327.3 | X122: -1.829401854 | Y122: -29.72534486 | AA122: 14.26883597 | AB122: -47.80019664 | AD122: 0 | AE122: 0
A123: 6456.5 | B123: 6.4565 | C123: 1.379900835 | D123: 0.7602122713 | E123: 1.000022402 | F123: 0.006693518706 | G123: 1 | H123: 0 | I123: 30021.88989 | J123: 1.570763018 | K123: 2.257839969 | L123: 1.111964359 | M123: 1.001574802 | N123: 0.05608454235 | O123: 1.001151832 | P123: 0.08738186166 | Q123: 12.37232507 | R123: -77.68069063 | S123: 102.3193094 | U123: 1000000000 | V123: 41686392.25 | X123: -1.849384872 | Y123: -29.50063439 | AA123: 14.22170994 | AB123: -48.18005624 | AD123: 0 | AE123: 0
A124: 6531.7 | B124: 6.5317 | C124: 1.387555406 | D124: 0.76599642 | E124: 1.000022927 | F124: 0.006771476936 | G124: 1 | H124: 0 | I124: 30371.56016 | J124: 1.570763401 | K124: 2.279002807 | L124: 1.11654643 | M124: 1.00161167 | N124: 0.05673637607 | O124: 1.001178889 | P124: 0.08839986248 | Q124: 12.30417863 | R124: -77.84079441 | S124: 102.1592056 | U124: 1000000000 | V124: 42663104.89 | X124: -1.869252009 | Y124: -29.27547039 | AA124: 14.17343063 | AB124: -48.56532402 | AD124: 0 | AE124: 0
A125: 6606.9 | B125: 6.6069 | C125: 1.395255889 | D125: 0.7717169124 | E125: 1.000023458 | F125: 0.006849435083 | G125: 1 | H125: 0 | I125: 30721.23043 | J125: 1.570763776 | K125: 2.300212612 | L125: 1.121044092 | M125: 1.001648963 | N125: 0.05738816152 | O125: 1.001206262 | P125: 0.08941787179 | Q125: 12.23658407 | R125: -78.00208439 | S125: 101.9979156 | U125: 1000000000 | V125: 43651127.61 | X125: -1.888543083 | Y125: -29.05513933 | AA125: 14.12512716 | AB125: -48.94694506 | AD125: 0 | AE125: 0
A126: 6683.85 | B126: 6.68385 | C126: 1.403182311 | D126: 0.7775053383 | E126: 1.000024007 | F126: 0.00692920733 | G126: 1 | H126: 0 | I126: 31079.03798 | J126: 1.570764151 | K126: 2.321963274 | L126: 1.12556127 | M126: 1.001687565 | N126: 0.05805506432 | O126: 1.0012346 | P126: 0.09045958036 | Q126: 12.16797163 | R126: -78.16826862 | S126: 101.8317314 | U126: 1000000000 | V126: 44673850.82 | X126: -1.907709724 | Y126: -28.83455629 | AA126: 14.07568135 | AB126: -49.33371233 | AD126: 0 | AE126: 0
A127: 6760.8 | B127: 6.7608 | C127: 1.411155219 | D127: 0.783228546 | E127: 1.000024563 | F127: 0.007008979488 | G127: 1 | H127: 0 | I127: 31436.84553 | J127: 1.570764517 | K127: 2.343760435 | L127: 1.129994517 | M127: 1.001726612 | N127: 0.05872191543 | O127: 1.00126327 | P127: 0.09150129799 | Q127: 12.09990503 | R127: -78.33552209 | S127: 101.6644779 | U127: 1000000000 | V127: 45708416.64 | X127: -1.926318736 | Y127: -28.6187787 | AA127: 14.02622377 | AB127: -49.71674339 | AD127: 0 | AE127: 0
A128: 6839.55 | B128: 6.83955 | C128: 1.41936194 | D128: 0.7890188644 | E128: 1.000025139 | F128: 0.007090617569 | G128: 1 | H128: 0 | I128: 31803.02284 | J128: 1.570764883 | K128: 2.366114274 | L128: 1.134446807 | M128: 1.001767034 | N128: 0.05940431125 | O128: 1.001292954 | P128: 0.09256739277 | Q128: 12.03079579 | R128: -78.50771006 | S128: 101.4922899 | U128: 1000000000 | V128: 46779444.2 | X128: -1.944808088 | Y128: -28.40280064 | AA128: 13.97560388 | AB128: -50.10490941 | AD128: 0 | AE128: 0
A129: 6918.3 | B129: 6.9183 | C129: 1.427615701 | D129: 0.7947424195 | E129: 1.000025721 | F129: 0.007172255556 | G129: 1 | H129: 0 | I129: 32169.20015 | J129: 1.570765241 | K129: 2.388514138 | L129: 1.138815674 | M129: 1.001807922 | N129: 0.0600866517 | O129: 1.001322985 | P129: 0.09363349726 | Q129: 11.9622274 | R129: -78.68084947 | S129: 101.3191505 | U129: 1000000000 | V129: 47862874.89 | X129: -1.962757825 | Y129: -28.19159874 | AA129: 13.92498522 | AB129: -50.48925073 | AD129: 0 | AE129: 0
A130: 6998.9 | B130: 6.9989 | C130: 1.436111223 | D130: 0.8005321117 | E130: 1.000026324 | F130: 0.007255811289 | G130: 1 | H130: 0 | I130: 32543.97973 | J130: 1.570765599 | K130: 2.411486541 | L130: 1.143203043 | M130: 1.001850254 | N130: 0.06078496371 | O130: 1.001354083 | P130: 0.09472465689 | Q130: 11.89259322 | R130: -78.85895895 | S130: 101.141041 | U130: 1000000000 | V130: 48984601.21 | X130: -1.980592276 | Y130: -27.98025184 | AA130: 13.8731855 | AB130: -50.87870711 | AD130: 0 | AE130: 0
A131: 7079.5 | B131: 7.0795 | C131: 1.444654318 | D131: 0.806253518 | E131: 1.000026934 | F131: 0.00733936692 | G131: 1 | H131: 0 | I131: 32918.7593 | J131: 1.570765949 | K131: 2.434504487 | L131: 1.14750753 | M131: 1.001893075 | N131: 0.06148321638 | O131: 1.001385544 | P131: 0.09581582689 | Q131: 11.82349589 | R131: -79.03790149 | S131: 100.9620985 | U131: 1000000000 | V131: 50119320.25 | X131: -1.99790473 | Y131: -27.77364989 | AA131: 13.82140062 | AB131: -51.2642516 | AD131: 0 | AE131: 0
A132: 7161.95 | B132: 7.16195 | C132: 1.453441849 | D132: 0.8120364606 | E132: 1.000027565 | F132: 0.007424840286 | G132: 1 | H132: 0 | I132: 33302.14114 | J132: 1.570766299 | K132: 2.458096549 | L132: 1.151827323 | M132: 1.001937383 | N132: 0.06219743383 | O132: 1.001418105 | P132: 0.0969320532 | Q132: 11.75335359 | R132: -79.22173328 | S132: 100.7782667 | U132: 1000000000 | V132: 51293527.8 | X132: -2.015095672 | Y132: -27.56708568 | AA132: 13.76844926 | AB132: -51.6546476 | AD132: 0 | AE132: 0
A133: 7244.4 | B133: 7.2444 | C133: 1.462277402 | D133: 0.8177497075 | E133: 1.000028203 | F133: 0.007510313543 | G133: 1 | H133: 0 | I133: 33685.52297 | J133: 1.57076664 | K133: 2.481733607 | L133: 1.156064906 | M133: 1.001982203 | N133: 0.06291158774 | O133: 1.001451048 | P133: 0.09804829059 | Q133: 11.68374447 | R133: -79.40627858 | S133: 100.5937214 | U133: 1000000000 | V133: 52481331.36 | X133: -2.031782454 | Y133: -27.36522761 | AA133: 13.71552693 | AB133: -52.04105097 | AD133: 0 | AE133: 0
A134: 7328.75 | B134: 7.32875 | C134: 1.471365355 | D134: 0.8235234127 | E134: 1.000028864 | F134: 0.007597756355 | G134: 1 | H134: 0 | I134: 34077.73956 | J134: 1.570766982 | K134: 2.505960601 | L134: 1.160317339 | M134: 1.002028584 | N134: 0.06364213232 | O134: 1.001485145 | P134: 0.09919026244 | Q134: 11.61306911 | R134: -79.59573786 | S134: 100.4042621 | U134: 1000000000 | V134: 53710576.56 | X134: -2.048352679 | Y134: -27.16345789 | AA134: 13.66142178 | AB134: -52.43227997 | AD134: 0 | AE134: 0
A135: 7413.1 | B135: 7.4131 | C135: 1.480501755 | D135: 0.8292260452 | E135: 1.000029532 | F135: 0.007685199051 | G135: 1 | H135: 0 | I135: 34469.95615 | J135: 1.570767316 | K135: 2.530232043 | L135: 1.164488262 | M135: 1.0020755 | N135: 0.06437260888 | O135: 1.001519642 | P135: 0.1003322461 | Q135: 11.54292426 | R135: -79.78579146 | S135: 100.2142085 | U135: 1000000000 | V135: 54954051.61 | X135: -2.064436129 | Y135: -26.96635396 | AA135: 13.60736039 | AB135: -52.8194375 | AD135: 0 | AE135: 0
A136: 7499.45 | B136: 7.49945 | C136: 1.489904037 | D136: 0.8349912525 | E136: 1.000030224 | F136: 0.007774714955 | G136: 1 | H136: 0 | I136: 34871.47248 | J136: 1.57076765 | K136: 2.555123696 | L136: 1.168675925 | M136: 1.002124082 | N136: 0.06512033432 | O136: 1.001555371 | P136: 0.1015013195 | Q136: 11.47165237 | R136: -79.98089281 | S136: 100.0191072 | U136: 1000000000 | V136: 56241750.3 | X136: -2.080416765 | Y136: -26.76927918 | AA136: 13.55206913 | AB136: -53.21161363 | AD136: 0 | AE136: 0
A137: 7585.8 | B137: 7.5858 | C137: 1.499355218 | D137: 0.840683965 | E137: 1.000030924 | F137: 0.007864230735 | G137: 1 | H137: 0 | I137: 35272.98881 | J137: 1.570767976 | K137: 2.580059292 | L137: 1.172782714 | M137: 1.002173224 | N137: 0.06586798684 | O137: 1.00159152 | P137: 0.1026704055 | Q137: 11.40090991 | R137: -80.1764704 | S137: 99.8235296 | U137: 1000000000 | V137: 57544361.64 | X137: -2.095927042 | Y137: -26.57683356 | AA137: 13.49683696 | AB137: -53.59963685 | AD137: 0 | AE137: 0
A138: 7674.15 | B138: 7.67415 | C138: 1.509074955 | D138: 0.8464345365 | E138: 1.000031648 | F138: 0.007955819709 | G138: 1 | H138: 0 | I138: 35683.80489 | J138: 1.570768303 | K138: 2.605616601 | L138: 1.176903195 | M138: 1.002224085 | N138: 0.06663287983 | O138: 1.00162894 | P138: 0.1038665825 | Q138: 11.32906399 | R138: -80.37699974 | S138: 99.62300026 | U138: 1000000000 | V138: 58892578.22 | X138: -2.111329228 | Y138: -26.38459118 | AA138: 13.44039322 | AB138: -53.99240855 | AD138: 0 | AE138: 0
A139: 7762.5 | B139: 7.7625 | C139: 1.518843956 | D139: 0.8521113198 | E139: 1.000032381 | F139: 0.008047408549 | G139: 1 | H139: 0 | I139: 36094.62096 | J139: 1.570768622 | K139: 2.631217289 | L139: 1.180943563 | M139: 1.002275531 | N139: 0.06739769474 | O139: 1.001666799 | P139: 0.1050627731 | Q139: 11.25774672 | R139: -80.57788739 | S139: 99.42211261 | U139: 1000000000 | V139: 60256406.25 | X139: -2.126277643 | Y139: -26.19693409 | AA139: 13.38402437 | AB139: -54.3809533 | AD139: 0 | AE139: 0
A140: 7852.9 | B140: 7.8529 | C140: 1.528889636 | D140: 0.8578445438 | E140: 1.00003314 | F140: 0.0081411224 | G140: 1 | H140: 0 | I140: 36514.96926 | J140: 1.570768941 | K140: 2.657455587 | L140: 1.184997036 | M140: 1.002328778 | N140: 0.06818017404 | O140: 1.001705992 | P140: 0.1062867333 | Q140: 11.18530938 | R140: -80.7837394 | S140: 99.2162606 | U140: 1000000000 | V140: 61668038.41 | X140: -2.141122138 | Y140: -26.00953822 | AA140: 13.32643152 | AB140: -54.77420118 | AD140: 0 | AE140: 0
A141: 7943.3 | B141: 7.9433 | C141: =SQRT(1+(A141/pole1)^2) -> 1.538984914 | D141: =ATAN(A141/pole1) -> 0.8635027354 | E141: =SQRT(1+(A141/Zero1)^2) -> 1.000033907 | F141: =ATAN(A141/Zero1) -> 0.008234836109 | G141: =IF(VIN_nom>Vout, 1, SQRT(1+(A141/z_RHP)^2)) -> 1 | H141: =IF(VIN_nom>Vout, 0, -ATAN(A141/z_RHP)) -> 0 | I141: =SQRT(1+(A141/Pole2)^2) -> 36935.31757 | J141: =ATAN(A141/Pole2) -> 1.570769252 | K141: =SQRT(1+(A141/Zero2)^2) -> 2.683736695 | L141: =ATAN(A141/Zero2) -> 1.188971185 | M141: =SQRT(1+(A141/pole4)^2) -> 1.002382639 | N141: =ATAN(A141/pole4) -> 0.06896256974 | O141: =SQRT((1-(V141/pterm2))^2+(A141/pterm1)^2) -> 1.001745646 | P141: =IF((ATAN((A141/pterm1)/(1-A141^2/pterm2))>0),ATAN((A141/pterm1)/(1-A141^2/pterm2)),PI()+ATAN((A141/pterm1)/(1-A141^2/pterm2))) -> 0.1075107078 | Q141: =20*LOG10(((E141*K141*G141)/(C141*I141*O141*M141))*Adc) -> 11.11340079 | R141: =((F141+L141+H141)-(D141+J141+P141+N141))*radconv -> -80.98983298 | S141: =IF(R141>0,R141,R141+180) -> 99.01016702 | U141: 1000000000 | V141: 63096014.89 | X141: =20*LOG10((K141/(I141*M141))*AEA*Afb_Ch2) -> -2.155529042 | Y141: -25.82668212 | AA141: =20*LOG10((E141*G141/(C141*O141))*Am_Ch2) -> 13.26892983 | AB141: =(F141+H141-(D141+P141))*radconv -> -55.16315086 | AD141: 0 | AE141: 0
A142: 8035.8 | B142: =A142/1000 -> 8.0358 | C142: 1.549365033 | D142: 0.8692158559 | E142: 1.000034702 | F142: 0.008330726646 | G142: 1 | H142: 0 | I142: 37365.43061 | J142: 1.570769564 | K142: 2.710671329 | L142: 1.19295782 | M142: 1.002438386 | N142: 0.06976305302 | O142: 1.001786697 | P142: 0.1087631306 | Q142: 11.04035702 | R142: -81.20089987 | S142: 98.79910013 | U142: =IF(Q142<0,A142,1000000000) -> 1000000000 | V142: =A142^2 -> 64574081.64 | X142: -2.169836014 | Y142: =(L142-(J142+N142))*radconv -> -25.64414691 | AA142: 13.21019303 | AB142: -55.55675296 | AD142: =SUM((Q143<0)*(Q142>0))*A142 -> 0 | AE142: 0
A143: 8128.3 | B143: 8.1283 | C143: 1.559795049 | D143: 0.8748527535 | E143: 1.000035505 | F143: 0.008426617029 | G143: 1 | H143: 0 | I143: 37795.54364 | J143: 1.570769869 | K143: 2.737648197 | L143: 1.196865948 | M143: 1.002494776 | N143: 0.07056344677 | O143: 1.001828231 | P143: 0.1100155687 | Q143: 10.96784298 | R143: -81.41209302 | S143: 98.58790698 | U143: 1000000000 | V143: 66069260.89 | X143: -2.183721183 | Y143: -25.46610431 | AA143: 13.15156416 | AB143: -55.94598871 | AD143: 0 | AE143: 0
A144: 8222.95 | B144: 8.22295 | C144: 1.570518105 | D144: 0.8805429842 | E144: 1.000036337 | F144: 0.008524736056 | G144: 1 | H144: 0 | I144: 38235.6539 | J144: 1.570770173 | K144: 2.765294522 | L144: 1.200785921 | M144: 1.00255314 | N144: 0.07138235052 | O144: 1.001871231 | P144: 0.1112971337 | Q144: 10.89418013 | R144: -81.62826494 | S144: 98.37173506 | U144: 1000000000 | V144: 67616906.7 | X144: -2.197510258 | Y144: -25.28844356 | AA144: 13.09169038 | AB144: -56.33982137 | AD144: 0 | AE144: 0
A145: 8270.275 | B145: 8.270275 | C145: 1.575898508 | D145: 0.883359015 | E145: 1.000036756 | F145: 0.008573795508 | G145: 1 | H145: 0 | I145: 38455.70903 | J145: 1.570770323 | K145: 2.779133381 | L145: 1.202716647 | M145: 1.002582575 | N145: 0.07179176651 | O145: 1.00189292 | P145: 0.1119379223 | Q145: 10.85754871 | R145: -81.73635917 | S145: 98.26364083 | U145: 1000000000 | V145: 68397448.58 | X145: -2.204251345 | Y145: -25.20128753 | AA145: 13.06180005 | AB145: -56.53507164 | AD145: 0 | AE145: 0
A146: 8317.6 | B146: 8.3176 | C146: 1.581291322 | D146: 0.8861558604 | E146: 1.000037178 | F146: 0.008622854919 | G146: 1 | H146: 0 | I146: 38675.76416 | J146: 1.570770471 | K146: 2.792982498 | L146: 1.204628232 | M146: 1.002612177 | N146: 0.07220115838 | O146: 1.001914736 | P146: 0.1125787151 | Q146: 10.82104878 | R146: -81.84444956 | S146: 98.15555044 | U146: 1000000000 | V146: 69182469.76 | X146: -2.210892937 | Y146: -25.11522666 | AA146: 13.03194172 | AB146: -56.7292229 | AD146: 0 | AE146: 0
A147: 8366.05 | B147: 8.36605 | C147: 1.58682506 | D147: 0.8889994756 | E147: 1.000037612 | F147: 0.008673080516 | G147: 1 | H147: 0 | I147: 38901.05039 | J147: 1.570770621 | K147: 2.8071713 | L147: 1.206565713 | M147: 1.002642657 | N147: 0.07262025712 | O147: 1.001937202 | P147: 0.113234745 | Q147: 10.783816 | R147: -81.95509845 | S147: 98.04490155 | U147: 1000000000 | V147: 69990792.6 | X147: -2.217591472 | Y147: -25.02823837 | AA147: 13.00140748 | AB147: -56.92686008 | AD147: 0 | AE147: 0
A148: 8414.5 | B148: 8.4145 | C148: 1.592371539 | D148: 0.891823304 | E148: 1.000038049 | F148: 0.00872330607 | G148: 1 | H148: 0 | I148: 39126.33662 | J148: 1.570770769 | K148: =SQRT(1+(A148/Zero2)^2) -> 2.821370533 | L148: =ATAN(A148/Zero2) -> 1.208483699 | M148: 1.002673314 | N148: 0.07303933031 | O148: 1.0019598 | P148: 0.1138907793 | Q148: 10.74671824 | R148: -82.06572929 | S148: 97.93427071 | U148: 1000000000 | V148: 70803810.25 | X148: -2.22419 | Y148: -24.94236548 | AA148: 12.97090824 | AB148: -57.12336381 | AD148: 0 | AE148: 0
A149: 8462.95 | B149: 8.46295 | C149: 1.597930627 | D149: 0.8946275068 | E149: 1.000038489 | F149: 0.00877353158 | G149: 1 | H149: 0 | I149: 39351.62286 | J149: 1.570770915 | K149: 2.835580042 | L149: 1.210382469 | M149: 1.002704146 | N149: 0.0734583778 | O149: 1.001982531 | P149: 0.114546818 | Q149: 10.70975412 | R149: -82.17633533 | S149: 97.82366467 | U149: 1000000000 | V149: 71621522.7 | X149: -2.2306906 | Y149: -24.85759199 | AA149: 12.94044472 | AB149: -57.31874334 | AD149: 0 | AE149: 0
A150: 8511.4 | B150: 8.5114 | C150: 1.603502194 | D150: 0.8974122443 | E150: 1.000038931 | F150: 0.008823757046 | G150: 1 | H150: 0 | I150: 39576.90909 | J150: 1.57077106 | K150: 2.849799671 | L150: 1.212262297 | M150: 1.002735155 | N150: 0.07387739944 | O150: 1.002005395 | P150: 0.1152028611 | Q150: 10.67292231 | R150: -82.28691005 | S150: 97.71308995 | U150: 1000000000 | V150: 72443929.96 | X150: -2.237095303 | Y150: -24.77390222 | AA150: 12.91001761 | AB150: -57.51300784 | AD150: 0 | AE150: 0
A151: 8560.95 | B151: 8.56095 | C151: 1.609213028 | D151: 0.9002402387 | E151: 1.000039385 | F151: 0.008875122775 | G151: 1 | H151: 0 | I151: 39807.31018 | J151: 1.570771206 | K151: 2.864352452 | L151: 1.214165493 | M151: 1.002767049 | N151: 0.07430590759 | O151: 1.002028915 | P151: 0.1158738034 | Q151: 10.63538976 | R151: -82.3999563 | S151: 97.6000437 | U151: 1000000000 | V151: 73289864.9 | X151: -2.243548289 | Y151: -24.6894172 | AA151: 12.87893805 | AB151: -57.71053911 | AD151: 0 | AE151: 0
A152: 8610.5 | B152: 8.6105 | C152: 1.614936641 | D152: 0.9030482096 | E152: 1.000039842 | F152: 0.008926488458 | G152: 1 | H152: 0 | I152: 40037.71127 | J152: 1.57077135 | K152: 2.878915503 | L152: 1.216049442 | M152: 1.002799128 | N152: 0.07473438841 | O152: 1.002052574 | P152: 0.1165447505 | Q152: 10.59799287 | R152: -82.51295673 | S152: 97.48704327 | U152: 1000000000 | V152: 74140710.25 | X152: -2.249905107 | Y152: -24.60603334 | AA152: 12.84789797 | AB152: -57.90692338 | AD152: 0 | AE152: 0
A153: 8660.05 | B153: 8.66005 | C153: 1.620672897 | D153: 0.9058363251 | E153: 1.000040302 | F153: 0.008977854093 | G153: 1 | H153: 0 | I153: 40268.11236 | J153: 1.570771493 | K153: 2.89348867 | L153: 1.217914419 | M153: 1.002831391 | N153: 0.07516284174 | O153: 1.002076372 | P153: 0.1172157022 | Q153: 10.5607303 | R153: -82.62590506 | S153: 97.37409494 | U153: 1000000000 | V153: 74996466 | X153: -2.256167767 | Y153: -24.52373475 | AA153: 12.81689806 | AB153: -58.10217031 | AD153: 0 | AE153: 0
A154: 8709.6 | B154: 8.7096 | C154: 1.626421662 | D154: 0.9086047522 | E154: 1.000040765 | F154: 0.009029219681 | G154: 1 | H154: 0 | I154: 40498.51345 | J154: 1.570771635 | K154: 2.908071799 | L154: 1.219760698 | M154: 1.002863838 | N154: 0.07559126742 | O154: 1.00210031 | P154: 0.1178866587 | Q154: 10.52360076 | R154: -82.73879525 | S154: 97.26120475 | U154: 1000000000 | V154: 75857132.16 | X154: -2.26233823 | Y154: -24.44250582 | AA154: 12.78593898 | AB154: -58.29628944 | AD154: 0 | AE154: =IF(AD154>0,S154,0) -> 0
A155: 8760.325 | B155: 8.760325 | C155: 1.63231957 | D155: 0.9114186071 | E155: 1.000041241 | F155: 0.009081803274 | G155: 1 | H155: 0 | I155: 40734.37814 | J155: 1.570771778 | K155: 2.923010909 | L155: 1.22163167 | M155: 1.002897245 | N155: 0.07602982374 | O155: 1.002124958 | P155: 0.1185735307 | Q155: 10.48572722 | R155: -82.85429616 | S155: 97.14570384 | U155: 1000000000 | V155: 76743294.11 | X155: -2.268561509 | Y155: -24.36044267 | AA155: 12.75428872 | AB155: -58.49385349 | AD155: 0 | AE155: 0
A156: 8811.05 | B156: 8.81105 | C156: 1.63823031 | D156: 0.9142121791 | E156: 1.00004172 | F156: 0.009134386816 | G156: 1 | H156: 0 | I156: 40970.24283 | J156: 1.570771919 | K156: 2.937960147 | L156: 1.223483608 | M156: 1.002930845 | N156: 0.07646835076 | O156: 1.002149753 | P156: 0.1192604077 | Q156: 10.44799043 | R156: -82.96972402 | S156: 97.03027598 | U156: 1000000000 | V156: 77634602.1 | X156: -2.27469217 | Y156: -24.2794683 | AA156: 12.7226826 | AB156: -58.69025572 | AD156: 0 | AE156: 0
A157: 8861.775 | B157: 8.861775 | C157: 1.644153742 | D157: 0.9169856437 | E157: 1.000042202 | F157: 0.009186970308 | G157: 1 | H157: 0 | I157: 41206.10752 | J157: 1.570772059 | K157: 2.952919359 | L157: 1.225316788 | M157: 1.002964637 | N157: 0.07690684831 | O157: 1.002174693 | P157: 0.1199472898 | Q157: 10.41038909 | R157: -83.08507302 | S157: 96.91492698 | U157: 1000000000 | V157: 78531056.15 | X157: -2.280732161 | Y157: -24.19956686 | AA157: 12.69112125 | AB157: -58.88550617 | AD157: 0 | AE157: 0
A158: 8912.5 | B158: 8.9125 | C158: 1.650089731 | D158: 0.919739175 | E158: 1.000042686 | F158: 0.009239553749 | G158: 1 | H158: 0 | I158: 41441.97221 | J158: 1.570772197 | K158: =SQRT(1+(A158/Zero2)^2) -> 2.967888395 | L158: =ATAN(A158/Zero2) -> 1.227131483 | M158: 1.002998623 | N158: 0.07734531623 | O158: 1.002199779 | P158: 0.1206341768 | Q158: 10.37292193 | R158: -83.2003376 | S158: 96.7996624 | U158: 1000000000 | V158: 79432656.25 | X158: -2.286683382 | Y158: -24.12072279 | AA158: 12.65960531 | AB158: -59.07961481 | AD158: 0 | AE158: 0
A159: 8964.4 | B159: 8.9644 | C159: 1.656176077 | D159: 0.9225360384 | E159: 1.000043185 | F159: 0.009293355186 | G159: 1 | H159: 0 | I159: 41683.30049 | J159: 1.570772336 | K159: 2.983214188 | L159: 1.228969358 | M159: 1.003033595 | N159: 0.07779391003 | O159: 1.002225598 | P159: 0.1213369803 | Q159: 10.33472446 | R159: -83.31817919 | S159: 96.68182081 | U159: 1000000000 | V159: 80360467.36 | X159: -2.292682512 | Y159: -24.04113083 | AA159: 12.62740697 | AB159: -59.27704836 | AD159: 0 | AE159: 0
A160: 9016.3 | B160: 9.0163 | C160: 1.662275282 | D160: 0.925312399 | E160: 1.000043686 | F160: 0.00934715657 | G160: 1 | H160: 0 | I160: 41924.62878 | J160: 1.570772474 | K160: 2.998549954 | L160: 1.23078844 | M160: 1.00306877 | N160: 0.07824247247 | O160: 1.002251569 | P160: 0.122039789 | Q160: 10.29666487 | R160: -83.43592123 | S160: 96.56407877 | U160: 1000000000 | V160: 81293665.69 | X160: -2.298592583 | Y160: -23.96261375 | AA160: 12.59525745 | AB160: -59.47330748 | AD160: 0 | AE160: 0
A161: 9068.2 | B161: 9.0682 | C161: 1.668387208 | D161: 0.9280684389 | E161: 1.000044191 | F161: 0.009400957899 | G161: 1 | H161: 0 | I161: 42165.95707 | J161: 1.570772611 | K161: 3.013895543 | L161: 1.232589004 | M161: 1.003104146 | N161: 0.07869100335 | O161: 1.002277693 | P161: 0.1227426031 | Q161: 10.25874187 | R161: -83.55355843 | S161: 96.44644157 | U161: 1000000000 | V161: 82232251.24 | X161: -2.304415481 | Y161: -23.88515579 | AA161: 12.56315735 | AB161: -59.66840263 | AD161: 0 | AE161: 0
A162: 9120.1 | B162: 9.1201 | C162: 1.674511713 | D162: 0.9308043391 | E162: 1.000044698 | F162: 0.009454759174 | G162: 1 | H162: 0 | I162: 42407.28535 | J162: 1.570772746 | K162: 3.029250803 | L162: 1.234371319 | M162: 1.003139723 | N162: 0.07913950251 | O162: 1.002303969 | P162: 0.1234454226 | Q162: 10.22095423 | R162: -83.67108565 | S162: 96.32891435 | U162: 1000000000 | V162: 83176224.01 | X162: -2.310153041 | Y162: -23.80874148 | AA162: 12.53110727 | AB162: -59.86234417 | AD162: 0 | AE162: 0
A163: 9173.2 | B163: 9.1732 | C163: 1.680790702 | D163: 0.9335828408 | E163: 1.00004522 | F163: 0.009509804352 | G163: 1 | H163: 0 | I163: 42654.19349 | J163: 1.570772882 | K163: 3.044970956 | L163: 1.236176234 | M163: 1.003176333 | N163: 0.07959833857 | O163: 1.002331012 | P163: 0.1241644978 | Q163: 10.18243171 | R163: -83.79121136 | S163: 96.20878864 | U163: 1000000000 | V163: 84147598.24 | X163: -2.315936809 | Y163: -23.73162465 | AA163: 12.49836851 | AB163: -60.05958671 | AD163: 0 | AE163: 0
A164: 9226.3 | B164: 9.2263 | C164: 1.68708257 | D164: 0.936340639 | E164: 1.000045745 | F164: 0.009564849473 | G164: 1 | H164: 0 | I164: 42901.10162 | J164: 1.570773017 | K164: 3.060700926 | L164: 1.237962603 | M164: 1.003213153 | N164: 0.08005714105 | O164: 1.002358215 | P164: 0.1248835787 | Q164: 10.14404832 | R164: -83.9112118 | S164: 96.0887882 | U164: 1000000000 | V164: 85124611.69 | X164: -2.32163499 | Y164: -23.65556844 | AA164: 12.46568331 | AB164: -60.25564336 | AD164: 0 | AE164: 0
A165: 9279.4 | B165: 9.2794 | C165: 1.693387173 | D165: 0.939077923 | E165: 1.000046273 | F165: 0.009619894536 | G165: 1 | H165: 0 | I165: 43148.00975 | J165: 1.570773151 | K165: 3.076440564 | L165: 1.239730699 | M165: 1.003250185 | N165: 0.08051590975 | O165: 1.002385578 | P165: 0.1256026654 | Q165: 10.10580284 | R165: -84.03108214 | S165: 95.96891786 | U165: 1000000000 | V165: 86107264.36 | X165: -2.327249405 | Y165: -23.58055718 | AA165: 12.43305224 | AB165: -60.45052496 | AD165: 0 | AE165: 0
A166: 9332.5 | B166: 9.3325 | C166: 1.699704371 | D166: 0.9417948802 | E166: 1.000046804 | F166: 0.00967493954 | G166: 1 | H166: 0 | I166: 43394.91788 | J166: 1.570773283 | K166: 3.092189721 | L166: 1.241480789 | M166: 1.003287427 | N166: 0.0809746445 | O166: 1.002413101 | P166: 0.1263217577 | Q166: 10.06769403 | R166: -84.15081775 | S166: 95.84918225 | U166: 1000000000 | V166: 87095556.25 | X166: -2.332781828 | Y166: -23.5065755 | AA166: 12.40047586 | AB166: -60.64424225 | AD166: 0 | AE166: 0
A167: 9386.85 | B167: 9.38685 | C167: 1.706183174 | D167: 0.9445549398 | E167: 1.000047351 | F167: 0.00973128027 | G167: 1 | H167: 0 | I167: 43647.63835 | J167: 1.570773416 | K167: 3.108319328 | L167: 1.243253706 | M167: 1.003325765 | N167: 0.08144414271 | O167: 1.002441438 | P167: 0.1270577838 | Q167: 10.02882841 | R167: -84.27322786 | S167: 95.72677214 | U167: 1000000000 | V167: 88112952.92 | X167: -2.338361382 | Y167: -23.43190274 | AA167: 12.3671898 | AB167: -60.84132511 | AD167: 0 | AE167: 0
A168: 9441.2 | B168: 9.4412 | C168: 1.712674877 | D168: 0.9472940967 | E168: 1.000047901 | F168: 0.009787620939 | G168: 1 | H168: 0 | I168: 43900.35882 | J168: 1.570773548 | K168: 3.124458605 | L168: 1.245008313 | M168: 1.003364325 | N168: 0.08191360494 | O168: 1.002469944 | P168: 0.1277938159 | Q168: 9.990103482 | R168: -84.39548765 | S168: 95.60451235 | U168: 1000000000 | V168: 89136257.44 | X168: -2.343858657 | Y168: -23.35827695 | AA168: 12.33396214 | AB168: -61.0372107 | AD168: 0 | AE168: 0
A169: 9495.55 | B169: 9.49555 | C169: 1.719179333 | D169: 0.9500125468 | E169: 1.000048454 | F169: 0.009843961545 | G169: 1 | H169: 0 | I169: 44153.07929 | J169: 1.570773678 | K169: 3.140607402 | L169: 1.246744881 | M169: 1.003403105 | N169: 0.08238303098 | O169: 1.002498617 | P169: 0.1285298542 | Q169: 9.951518005 | R169: -84.51759277 | S169: 95.48240723 | U169: 1000000000 | V169: 90165469.8 | X169: -2.349275413 | Y169: -23.28568254 | AA169: 12.30079342 | AB169: -61.23191022 | AD169: 0 | AE169: 0
A170: 9549.9 | B170: 9.5499 | C170: 1.725696397 | D170: 0.9527104845 | E170: 1.00004901 | F170: 0.009900302089 | G170: 1 | H170: 0 | I170: 44405.79976 | J170: 1.570773807 | K170: 3.156765573 | L170: 1.248463676 | M170: 1.003442106 | N170: 0.08285242064 | O170: 1.002527458 | P170: 0.1292658985 | Q170: 9.913070781 | R170: -84.63953907 | S170: 95.36046093 | U170: 1000000000 | V170: 91200590.01 | X170: -2.354613367 | Y170: -23.21410425 | AA170: 12.26768415 | AB170: -61.42543482 | AD170: 0 | AE170: 0
A171: 9605.525 | B171: 9.605525 | C171: 1.732379254 | D171: 0.955450674 | E171: 1.000049583 | F171: 0.009957964264 | G171: 1 | H171: 0 | I171: 44664.44881 | J171: 1.570773938 | K171: 3.173312356 | L171: 1.250204663 | M171: 1.003482252 | N171: 0.08333278385 | O171: 1.00255715 | P171: 0.1300192161 | Q171: 9.873863548 | R171: -84.76417754 | S171: 95.23582246 | U171: 1000000000 | V171: 92266110.53 | X171: -2.35999669 | Y171: -23.1418833 | AA171: 12.23386024 | AB171: -61.62229424 | AD171: 0 | AE171: 0
A172: 9661.15 | B172: 9.66115 | C172: 1.739075018 | D172: 0.9581697833 | E172: 1.000050158 | F172: 0.01001562637 | G172: 1 | H172: 0 | I172: 44923.09787 | J172: 1.570774067 | K172: 3.189868658 | L172: 1.251927583 | M172: 1.003522628 | N172: 0.08381310852 | O172: 1.002587019 | P172: 0.1307725402 | Q172: 9.83479866 | R172: -84.88864146 | S172: 95.11135854 | U172: 1000000000 | V172: 93337819.32 | X172: -2.365300968 | Y172: -23.07069524 | AA172: 12.20009963 | AB172: -61.81794622 | AD172: 0 | AE172: 0
A173: 9716.775 | B173: 9.716775 | C173: 1.745783541 | D173: 0.960868015 | E173: 1.000050738 | F173: 0.01007328841 | G173: 1 | H173: 0 | I173: 45181.74692 | J173: 1.570774194 | K173: 3.206434332 | L173: 1.253632705 | M173: 1.003563237 | N173: 0.08429339442 | O173: 1.002617063 | P173: 0.1315258708 | Q173: 9.795874903 | R173: -85.01292697 | S173: 94.98707303 | U173: 1000000000 | V173: 94415716.4 | X173: -2.3705279 | Y173: -23.00052459 | AA173: 12.1664028 | AB173: -62.01240238 | AD173: 0 | AE173: 0
A174: 9772.4 | B174: 9.7724 | C174: 1.752504677 | D174: 0.9635455697 | E174: 1.00005132 | F174: 0.01013095039 | G174: 1 | H174: 0 | I174: 45440.39598 | J174: 1.57077432 | K174: 3.223009232 | L174: 1.255320294 | M174: 1.003604076 | N174: 0.08477364135 | O174: 1.002647284 | P174: 0.1322792079 | Q174: 9.757091091 | R174: -85.13703041 | S174: 94.86296959 | U174: 1000000000 | V174: 95499801.76 | X174: -2.375679145 | Y174: -22.93135619 | AA174: 12.13277024 | AB174: -62.20567422 | AD174: 0 | AE174: 0
A175: 9829.3 | B175: 9.8293 | C175: 1.75939277 | D175: 0.9662633117 | E175: 1.00005192 | F175: 0.01018993399 | G175: 1 | H175: 0 | I175: 45704.97362 | J175: 1.570774447 | K175: 3.239973449 | L175: 1.257028696 | M175: 1.003646092 | N175: 0.08526485563 | O175: 1.002678381 | P175: 0.1330498193 | Q175: 9.717561879 | R175: -85.26378644 | S175: 94.73621356 | U175: 1000000000 | V175: 96615138.49 | X175: -2.380871837 | Y175: -22.86162381 | AA175: 12.09843372 | AB175: -62.40216263 | AD175: 0 | AE175: 0
A176: 9886.2 | B176: 9.8862 | C176: 1.766293756 | D176: 0.9689598367 | E176: 1.000052522 | F176: 0.01024891751 | G176: 1 | H176: 0 | I176: 45969.55126 | J176: 1.570774573 | K176: 3.256947025 | L176: 1.258719295 | M176: 1.003688349 | N176: 0.08575602866 | O176: 1.002709662 | P176: 0.1338204376 | Q176: 9.678176657 | R176: -85.39034475 | S176: 94.60965525 | U176: 1000000000 | V176: 97736950.44 | X176: -2.385988706 | Y176: -22.79290895 | AA176: 12.06416536 | AB176: -62.5974358 | AD176: 0 | AE176: 0
A177: 9943.1 | B177: 9.9431 | C177: 1.773207486 | D177: 0.9716353536 | E177: 1.000053129 | F177: 0.01030790096 | G177: 1 | H177: 0 | I177: 46234.1289 | J177: 1.570774698 | K177: 3.273929813 | L177: 1.26039236 | M177: 1.003730849 | N177: 0.08624716022 | O177: 1.002741127 | P177: 0.1345910628 | Q177: 9.638934226 | R177: -85.51670198 | S177: 94.48329802 | U177: 1000000000 | V177: 98865237.61 | X177: -2.391031392 | Y177: -22.72519629 | AA177: 12.02996562 | AB177: -62.79150569 | AD177: 0 | AE177: 0
A178: 10000 | B178: 10 | C178: 1.78013381 | D178: 0.974290069 | E178: 1.000053739 | F178: 0.01036688434 | G178: 1 | H178: 0 | I178: 46498.70654 | J178: 1.570774821 | K178: 3.29092167 | L178: 1.262048153 | M178: 1.003773591 | N178: 0.08673825008 | O178: 1.002772778 | P178: 0.1353616949 | Q178: 9.599833408 | R178: -85.64285493 | S178: 94.35714507 | U178: 1000000000 | V178: 100000000 | X178: -2.396001494 | Y178: -22.65847078 | AA178: 11.9958349 | AB178: -62.98438415 | AD178: 0 | AE178: 0
A179: 10058.25 | B179: 10.05825 | C179: 1.78723736 | D179: 0.9769864358 | E179: 1.000054366 | F179: 0.01042726708 | G179: 1 | H179: 0 | I179: 46769.56151 | J179: 1.570774945 | K179: 3.308325923 | L179: 1.263725607 | M179: 1.003817597 | N179: 0.087240948 | O179: 1.002805371 | P179: 0.1361506182 | Q179: 9.559950378 | R179: -85.77178622 | S179: 94.22821378 | U179: 1000000000 | V179: 101168393.1 | X179: -2.401015954 | Y179: -22.59116933 | AA179: 11.96096633 | AB179: -63.18061689 | AD179: 0 | AE179: 0
A180: 10116.5 | B180: 10.1165 | C180: 1.794353802 | D180: 0.9796614342 | E180: 1.000054998 | F180: 0.01048764974 | G180: 1 | H180: 0 | I180: 47040.41647 | J180: 1.570775068 | K180: 3.325739387 | L180: 1.2653855 | M180: 1.003861857 | N180: 0.08774360172 | O180: 1.002838158 | P180: 0.1369395488 | Q180: 9.520213335 | R180: -85.9004972 | S180: 94.0995028 | U180: 1000000000 | V180: 102343572.2 | X180: -2.405957603 | Y180: -22.52487147 | AA180: 11.92617094 | AB180: -63.37562573 | AD180: 0 | AE180: 0
A181: 10174.75 | B181: 10.17475 | C181: 1.801482982 | D181: 0.9823152795 | E181: 1.000055633 | F181: 0.01054803233 | G181: 1 | H181: 0 | I181: 47311.27144 | J181: 1.57077519 | K181: 3.343161919 | L181: 1.267028097 | M181: 1.003906371 | N181: 0.088246211 | O181: 1.002871139 | P181: 0.1377284868 | Q181: 9.480621085 | R181: -86.028985 | S181: 93.971015 | U181: 1000000000 | V181: 103525537.6 | X181: -2.410828027 | Y181: -22.45956198 | AA181: 11.89144911 | AB181: -63.56942302 | AD181: 0 | AE181: 0
A182: 10233 | B182: 10.233 | C182: 1.808624749 | D182: 0.9849481845 | E182: 1.000056272 | F182: 0.01060841483 | G182: 1 | H182: 0 | I182: 47582.1264 | J182: 1.570775311 | K182: 3.360593377 | L182: 1.268653657 | M182: 1.003951138 | N182: 0.08874877558 | O182: 1.002904314 | P182: 0.1385174322 | Q182: 9.441172455 | R182: -86.15724689 | S182: 93.84275311 | U182: 1000000000 | V182: 104714289 | X182: -2.41562877 | Y182: -22.39522594 | AA182: 11.85680122 | AB182: -63.76202094 | AD182: 0 | AE182: 0
A183: 10292.5 | B183: 10.2925 | C183: 1.815932614 | D183: 0.9876161898 | E183: 1.000056928 | F183: 0.01067009302 | G183: 1 | H183: 0 | I183: 47858.79371 | J183: 1.570775432 | K183: 3.378407974 | L183: 1.270296778 | M183: 1.003997128 | N183: 0.0892620784 | O183: 1.002938401 | P183: 0.1393233155 | Q183: 9.401024368 | R183: -86.28802529 | S183: 93.71197471 | U183: 1000000000 | V183: 105935556.2 | X183: -2.420462156 | Y183: -22.3304991 | AA183: 11.82148652 | AB183: -63.95752619 | AD183: 0 | AE183: 0
A184: 10352 | B184: 10.352 | C184: 1.823253302 | D184: 0.9902627887 | E184: 1.000057588 | F184: 0.01073177113 | G184: 1 | H184: 0 | I184: 48135.46101 | J184: 1.570775552 | K184: 3.396231596 | L184: 1.271922657 | M184: 1.004043383 | N184: 0.08977533406 | O184: 1.002972691 | P184: 0.1401292065 | Q184: 9.361023726 | R184: -86.41856277 | S184: 93.58143723 | U184: 1000000000 | V184: 107163904 | X184: -2.425225969 | Y184: -22.26675737 | AA184: 11.78624969 | AB184: -64.15180541 | AD184: 0 | AE184: 0
A185: 10411.5 | B185: 10.4115 | C185: 1.830586659 | D185: 0.9928882013 | E185: 1.000058252 | F185: 0.01079344916 | G185: 1 | H185: 0 | I185: 48412.12831 | J185: 1.570775671 | K185: 3.414064102 | L185: 1.273531555 | M185: 1.004089901 | N185: 0.0902885423 | O185: 1.003007183 | P185: 0.1409351054 | Q185: 9.321169344 | R185: -86.54885693 | S185: 93.45114307 | U185: 1000000000 | V185: 108399332.2 | X185: -2.42992173 | Y185: -22.20398575 | AA185: 11.75109107 | AB185: -64.34487118 | AD185: 0 | AE185: 0
A186: 10471 | B186: 10.471 | C186: 1.837932532 | D186: 0.9954926452 | E186: 1.00005892 | F186: 0.0108551271 | G186: 1 | H186: 0 | I186: 48688.79562 | J186: 1.570775788 | K186: 3.431905354 | L186: 1.275123729 | M186: 1.004136685 | N186: 0.09080170286 | O186: 1.003041878 | P186: 0.1417410122 | Q186: 9.28146006 | R186: -86.67890554 | S186: 93.32109446 | U186: 1000000000 | V186: 109641841 | X186: -2.434550919 | Y186: -22.14216955 | AA186: 11.71601098 | AB186: -64.53673599 | AD186: 0 | AE186: 0
A187: 10532 | B187: 10.532 | C187: 1.845476434 | D187: 0.9981412043 | E187: 1.000059608 | F187: 0.01091835987 | G187: 1 | H187: 0 | I187: 48972.43773 | J187: 1.570775907 | K187: 3.450205323 | L187: 1.276738944 | M187: 1.004184922 | N187: 0.09132775045 | O187: 1.003077659 | P187: 0.1425672441 | Q187: 9.240899135 | R187: -86.81197558 | S187: 93.18802442 | U187: 1000000000 | V187: 110923024 | X187: -2.439229211 | Y187: -22.0797717 | AA187: 11.68012835 | AB187: -64.73220389 | AD187: 0 | AE187: 0
A188: 10593 | B188: 10.593 | C188: 1.853033176 | D188: 1.00076818 | E188: 1.000060301 | F188: 0.01098159255 | G188: 1 | H188: 0 | I188: 49256.07984 | J188: 1.570776025 | K188: 3.468514198 | L188: 1.27833711 | M188: 1.004233437 | N188: 0.09185374736 | O188: 1.003113652 | P188: 0.1433934844 | Q188: 9.200488303 | R188: -86.94478326 | S188: 93.05521674 | U188: 1000000000 | V188: 112211649 | X188: -2.443840564 | Y188: -22.01834764 | AA188: 11.64432887 | AB188: -64.92643562 | AD188: 0 | AE188: 0
A189: 10654 | B189: 10.654 | C189: 1.860602602 | D189: 1.003373799 | E189: 1.000060997 | F189: 0.01104482514 | G189: 1 | H189: 0 | I189: 49539.72195 | J189: 1.570776141 | K189: 3.486831838 | L189: 1.279918489 | M189: 1.004282229 | N189: 0.09237969331 | O189: 1.00314986 | P189: 0.1442197331 | Q189: 9.160226371 | R189: -87.07732664 | S189: 92.92267336 | U189: 1000000000 | V189: 113507716 | X189: -2.448386452 | Y189: -21.95788245 | AA189: 11.60861282 | AB189: -65.11944419 | AD189: 0 | AE189: 0
A190: 10715 | B190: 10.715 | C190: 1.868184558 | D190: 1.005958286 | E190: 1.000061698 | F190: 0.01110805764 | G190: 1 | H190: 0 | I190: 49823.36406 | J190: 1.570776256 | K190: 3.505158108 | L190: 1.281483336 | M190: 1.0043313 | N190: 0.09290558801 | O190: 1.00318628 | P190: 0.1450459902 | Q190: 9.12011217 | R190: -87.20960393 | S190: 92.79039607 | U190: 1000000000 | V190: 114811225 | X190: -2.452868311 | Y190: -21.89836146 | AA190: 11.57298048 | AB190: -65.31124246 | AD190: 0 | AE190: 0
A191: 10777.5 | B191: 10.7775 | C191: 1.875965792 | D191: 1.008584639 | E191: 1.000062419 | F191: 0.01117284494 | G191: 1 | H191: 0 | I191: 50113.98097 | J191: 1.570776372 | K191: 3.523943832 | L191: 1.283069777 | M191: 1.004381865 | N191: 0.0934443611 | O191: 1.003223818 | P191: 0.1458925739 | Q191: 9.079163574 | R191: -87.34485624 | S191: 92.65514376 | U191: 1000000000 | V191: 116154506.2 | X191: -2.457395433 | Y191: -21.83834116 | AA191: 11.53655901 | AB191: -65.50651508 | AD191: 0 | AE191: 0
A192: 10840 | B192: 10.84 | C192: 1.883759859 | D192: 1.011189278 | E192: 1.000063146 | F192: 0.01123763216 | G192: 1 | H192: 0 | I192: 50404.59789 | J192: 1.570776487 | K192: 3.542738331 | L192: 1.28463939 | M192: 1.004432722 | N192: 0.09398307978 | O192: 1.00326158 | P192: 0.1467391665 | Q192: 9.038367634 | R192: -87.47982589 | S192: 92.52017411 | U192: 1000000000 | V192: 117505600 | X192: -2.461858272 | Y192: -21.77928187 | AA192: 11.50022591 | AB192: -65.70054402 | AD192: 0 | AE192: 0
A193: 10902.5 | B193: 10.9025 | C193: 1.8915666 | D193: 1.013772434 | E193: 1.000063876 | F193: 0.01130241928 | G193: 1 | H193: 0 | I193: 50695.2148 | J193: 1.570776601 | K193: 3.561541466 | L193: 1.286192433 | M193: 1.00448387 | N193: 0.09452174375 | O193: 1.003299567 | P193: 0.147585768 | Q193: 8.997723151 | R193: -87.61451139 | S193: 92.38548861 | U193: 1000000000 | V193: 118864506.2 | X193: -2.466258254 | Y193: -21.72116874 | AA193: 11.46398141 | AB193: -65.89334265 | AD193: 0 | AE193: 0
A194: 10965 | B194: 10.965 | C194: 1.899385859 | D194: 1.01633434 | E194: 1.00006461 | F194: 0.0113672063 | G194: 1 | H194: 0 | I194: 50985.83172 | J194: 1.570776714 | K194: 3.580353101 | L194: 1.28772916 | M194: 1.00453531 | N194: 0.09506035272 | O194: 1.003337778 | P194: 0.1484323785 | Q194: 8.957228946 | R194: -87.74891142 | S194: 92.25108858 | U194: 1000000000 | V194: 120231225 | X194: -2.470596769 | Y194: -21.66398723 | AA194: 11.42782571 | AB194: -66.0849242 | AD194: 0 | AE194: 0
A195: 11028.75 | B195: 11.02875 | C195: 1.90737424 | D195: 1.018925826 | E195: 1.000065364 | F195: 0.01143328897 | G195: 1 | H195: 0 | I195: 51282.26097 | J195: 1.570776827 | K195: 3.599549587 | L195: 1.289280071 | M195: 1.004588079 | N195: 0.09560967687 | O195: 1.003376985 | P195: 0.1492959305 | Q195: 8.916078467 | R195: -87.88570411 | S195: 92.11429589 | U195: 1000000000 | V195: 121633326.6 | X195: -2.474960133 | Y195: -21.60660705 | AA195: 11.3910386 | AB195: -66.27909707 | AD195: 0 | AE195: 0
A196: 11092.5 | B196: 11.0925 | C196: 1.915375324 | D196: 1.021495679 | E196: 1.000066121 | F196: 0.01149937153 | G196: 1 | H196: 0 | I196: 51578.69023 | J196: 1.570776939 | K196: 3.61875464 | L196: 1.290814524 | M196: 1.004641151 | N196: 0.09615894316 | O196: 1.003416425 | P196: 0.1501594919 | Q196: 8.875081913 | R196: -88.02219742 | S196: 91.97780258 | U196: 1000000000 | V196: 123043556.2 | X196: -2.479262352 | Y196: -21.55016645 | AA196: 11.35434427 | AB196: -66.47203097 | AD196: 0 | AE196: 0
A197: 11156.25 | B197: 11.15625 | C197: 1.923388951 | D197: 1.024044135 | E197: 1.000066884 | F197: 0.011565454 | G197: 1 | H197: 0 | I197: 51875.11948 | J197: 1.57077705 | K197: 3.637968123 | L197: 1.292332772 | M197: 1.004694525 | N197: 0.09670815125 | O197: 1.0034561 | P197: 0.1510230628 | Q197: 8.83423809 | R197: -88.15839033 | S197: 91.84160967 | U197: 1000000000 | V197: 124461914.1 | X197: -2.483504786 | Y197: -21.4946509 | AA197: 11.31774288 | AB197: -66.66373943 | AD197: 0 | AE197: 0
A198: 11220 | B198: 11.22 | C198: 1.931414967 | D198: 1.026571426 | E198: 1.00006765 | F198: 0.01163153636 | G198: 1 | H198: 0 | I198: 52171.54874 | J198: 1.570777159 | K198: 3.657189903 | L198: 1.293835064 | M198: 1.004748203 | N198: 0.09725730082 | O198: 1.003496009 | P198: 0.1518866433 | Q198: 8.79354582 | R198: -88.29428198 | S198: 91.70571802 | U198: 1000000000 | V198: 125888400 | X198: -2.487688761 | Y198: -21.44004613 | AA198: 11.28123458 | AB198: -66.85423584 | AD198: 0 | AE198: 0
A199: 11285.5 | B199: 11.2855 | C199: 1.939674046 | D199: 1.029146293 | E199: 1.000068442 | F199: 0.01169943265 | G199: 1 | H199: 0 | I199: 52476.11526 | J199: 1.570777271 | K199: 3.676947846 | L199: 1.295362232 | M199: 1.00480367 | N199: 0.0978214638 | O199: 1.003537257 | P199: 0.1527739397 | Q199: 8.751893139 | R199: -88.4335894 | S199: 91.5664106 | U199: 1000000000 | V199: 127362510.2 | X199: -2.491928059 | Y199: -21.38487637 | AA199: 11.2438212 | AB199: -67.04871304 | AD199: 0 | AE199: 0
A200: 11351 | B200: 11.351 | C200: 1.947945875 | D200: 1.031699309 | E200: 1.000069239 | F200: 0.01176732883 | G200: 1 | H200: 0 | I200: 52780.68179 | J200: 1.57077738 | K200: 3.696714273 | L200: 1.296873072 | M200: 1.004859457 | N200: 0.09838556432 | O200: 1.003578752 | P200: 0.1536612463 | Q200: 8.710397984 | R200: -88.57257732 | S200: 91.42742268 | U200: 1000000000 | V200: 128845201 | X200: -2.496108368 | Y200: -21.33063848 | AA200: 11.20650635 | AB200: -67.24193884 | AD200: 0 | AE200: 0
A201: 11416.5 | B201: 11.4165 | C201: 1.956230294 | D201: 1.034230718 | E201: 1.00007004 | F201: 0.01183522489 | G201: 1 | H201: 0 | I201: 53085.24832 | J201: 1.570777489 | K201: 3.716489049 | L201: 1.298367838 | M201: 1.004915563 | N201: 0.09894960203 | O201: 1.003620495 | P201: 0.1545485631 | Q201: 8.669059132 | R201: -88.71124515 | S201: 91.28875485 | U201: 1000000000 | V201: 130336472.2 | X201: -2.500231017 | Y201: -21.27731792 | AA201: 11.16929015 | AB201: -67.43392723 | AD201: 0 | AE201: 0
A202: 11482 | B202: 11.482 | C202: 1.964527142 | D202: 1.036740761 | E202: 1.000070846 | F202: 0.01190312085 | G202: 1 | H202: 0 | I202: 53389.81485 | J202: 1.570777597 | K202: 3.73627204 | L202: 1.299846778 | M202: 1.00497199 | N202: 0.09951357658 | O202: 1.003662485 | P202: 0.15543589 | Q202: 8.627875382 | R202: -88.84959246 | S202: 91.15040754 | U202: 1000000000 | V202: 131836324 | X202: -2.504297297 | Y202: -21.22490042 | AA202: 11.13217268 | AB202: -67.62469203 | AD202: 0 | AE202: 0
... 433 more rows

Sheet Bode Plot Management (hidden)
J1: Single or dual output (MODE) | N1: 3.3V or 5V fixed (FB1/2)
A2: =CHOOSE(BODE_PLOT_TYPE, "BODE_PLOT_Ch1", "BODE_PLOT_Ch2") -> BODE_PLOT_Ch1 | J2: With/without dither (DITH) | N2: With/without VOUT connected to VCCX
J3: FPWM or DEM (DEMB)
J4: Shunt or inductor DCR current sensing
F6: =INDIRECT(A2) -> 0

Sheet Efficiency Calculations (hidden)
A1: BUCK CONTROLLER POWER DESIGN TOOL
H2: =AV19 -> 0.9073049337 | I2: 10% load
H3: =AV59 -> 0.9371460736 | I3: 50% load | AP3: =IF(MODE=1, (Qg_Q1+Qg_Q2)*Fsw*Vin, (Qg_Q1+Qg_Q2+Qg_Q3+Qg_Q4)*Fsw*Vin) -> 0.468
H4: =AV109 -> 0.9278669355 | I4: 100% load | AO4: I_VCC | AP4: =(Qg_Q1+Qg_Q2)*Fsw*1000 -> 9.75 | AQ4: mA | AR4: =AP4*5/1000 -> 0.04875
A6: Enter the values of your design and MOSFET datasheet specifications below. Note that thermal resistance (θJA) will change when components are placed on the PCB
G7: Operating Point Condtions | R7: Filter Inductor | V7: Cout | Y7: Cin | AB7: High-side BUCK "Control" MOSFET Losses | AH7: Low-side BUCK "Sync" MOSFET Losses | AL7: External Diode | AM7: Diode/FET | AN7: Sense Rs | AO7: Controller IC Losses | AT7: RESULTS | AZ7: Consolidated Buck/Boost Efficiency & Losses
A8: Input Parameters | G8: Step | H8: Vin | I8: Mode | J8: Iout | K8: Iout/ phase | L8: Iin | M8: Duty Cycle BUCK Leg | N8: Ripple Current pk-pk | O8: Peak Inductor Current | P8: Valley Inductor Current | Q8: SW node voltage at Q1 turn-on | R8: Irms Lo | S8: DCR Loss | T8: Core Loss | U8: Total Inductor Loss | V8: Irms Cout | W8: Cout ESR Loss | X8: Total Cout Loss | Y8: Irms Cin | Z8: Cin ESR Loss | AA8: Total Cin Loss | AB8: Irms | AC8: RDS(on) Loss | AD8: Transition Loss (not including capacitive loss) | AE8: MOSFET Output Capacitance Loss | AF8: Dead Time Loss | AG8: Total Control MOSFET Loss | AH8: Irms | AI8: RDS(on) Loss | AJ8: Deadtime Loss | AK8: Total Sync MOSFET Loss | AL8: Deadtime Loss | AM8: Reverse Recovery Loss | AN8: Isense Shunt Loss | AO8: IQ Loss | AP8: Switching Current Loss | AQ8: Switching Current Diss | AR8: LDO Loss Saved from Gate Drive Current | AS8: Total IC Loss | AT8: Total Loss | AU8: Pout | AV8: EFF, h | AW8: =IF(Vin>Vout, "Buck ''CONTROL'' MOSFET Temp Rise", "Boost ''CONTROL'' MOSFET Temp Rise") -> Buck ''CONTROL'' MOSFET Temp Rise | AX8: =IF(Vin>Vout, "Buck ''SYNC'' MOSFET Temp Rise", "Boost ''SYNC'' MOSFET Temp Rise") -> Buck ''SYNC'' MOSFET Temp Rise | AZ8: h | BA8: Inductor Cu & Core Loss | BB8: Total MOSFET Loss | BC8: Control MOSFET Loss | BD8: SYNC MOSFET Loss | BE8: Shunt Loss
A9: Design | B9: Input Value | C9: Units | D9: Description | G9: 0 | H9: =Vin -> 48 | I9: =MODE -> 1 | J9: 0 | K9: =Iout*G9/100/Number_of_Phases -> 0 | L9: =Vout*K9/(Vin*Efficiency) -> 0 | M9: =(Vout+(Rdson2+Rs+Rdcr)*K9)/(Vin+(Rs+Rdson2-Rdson1)*K9) -> 0.1041666667 | N9: =(Vin-(Rdson1+Rdcr)*K9-Vout)*M9/(Fsw*Lf) -> 8.143939394 | O9: =K9+N9/2 -> 4.071969697 | P9: =K9-N9/2 -> -4.071969697 | Q9: =IF(MIN(Vin, -P9/(Coss_Q1+Coss_Q2)*0.00000002)<0, 0, MIN(Vin, -P9/(Coss_Q1+Coss_Q2)*0.00000002)) -> 48 | R9: =SQRT(K9^2+(N9^2)/12) -> 2.350952801 | S9: =R9^2*Rdcr -> 0.01575189035 | T9: =Core_Loss_Ch1 -> 0.65 | U9: =(T9+S9*(1+Ltc*(Ta-25)))/(1-S9*Ltc*ThetaCa) -> 0.666591897 | V9: =N9/SQRT(12) -> 2.350952801 | W9: =RCoutEsr*V9^2 -> 0.005526979071 | X9: =W9 -> 0.005526979071 | Y9: =SQRT(M9*(1-M9))*SQRT(K9^2+(N9^2)/12) -> 0.7181611417 | Z9: =RCinEsr*Y9^2 -> 0.0005157554255 | AA9: =Z9 -> 0.0005157554255 | AB9: =SQRT(M9)*SQRT(K9^2+(N9^2)/12) -> 0.7587667537 | AC9: =Rdson1*AB9^2 -> 0.006620860345 | AD9: =(Vin*K9/2)*Fsw*(Tr_buck+Tf_buck) -> 0 | AE9: =(0.5*Coss_Q1*(Vin-Q9)^2-0.5*Coss_Q2*(Vin-Q9)^2+(Qoss_Q2*(Vin-Q9)/Vin)*Vin)*Fsw -> 0 | AF9: =IF(K9>N9/2,0,ABS(K9-N9/2)*Vsd_Q1*Deadtime2*Fsw) -> 0.01425189394 | AG9: =(AF9+AE9+AD9+AC9*(1+RdsonTopTc*Ta-RdsonTopTc*25))/(1-AC9*RdsonTopTc*ThetaJA_Q1) -> 0.020895997 | AH9: =SQRT((1-M9))*SQRT(K9^2+(N9^2)/12) -> 2.225140913 | AI9: =Rdson2*AH9^2 -> 0.01633913188 | AJ9: =IF(K9<N9/2,Deadtime1*Fsw*IF(VfdSky_Q2>0,0,Vsd_Q2)*O9,(Deadtime1+Deadtime2)*Fsw*IF(VfdSky_Q2>0,0,Vsd_Q2)*K9) -> 0.01425189394 | AK9: =(AJ9+AI9*(1+RdsonBotTc*Ta-RdsonBotTc*25))/(1-AI9*RdsonBotTc*ThetaJA_Q2) -> 0.03067120837 | AL9: =(Deadtime1+Deadtime2)*Fsw*IF(VfdSky_Q2>0,VfdSky_Q2,Vsd_Q2)*K9 -> 0 | AM9: =IF(QrrSky_Q2>0,QrrSky_Q2,Qrr_Q2*K9/(Iout/Number_of_Phases))*Fsw*Vin -> 0 | AN9: =CHOOSE(SENSING_TYPE, Rs*R9^2, 0) -> 0.01105395814 | AO9: =Iq*Vin -> 0.00168 | AP9: ='Variable Management'!$B$346 -> 0.04875 | AQ9: =(Vin-VCC)*Fsw*(Qg_Q1+Qg_Q2)+(RdsonDRT+RdsonDRT2)*Fsw*Qg_Q1*VCC/(RdsonDRT+2*Rgate1+RdsonDRT2)+(RdsonDRB+RdsonDRB2)*Fsw*Qg_Q2*VCC/(RdsonDRB+2*Rgate2+RdsonDRB2) -> 0.439163227 | AR9: =(Qg_Q1+Qg_Q2)*Fsw*(Vin-Vout) -> 0.41925 | AS9: =SUM(AO9:AP9) -> 0.05043 | AT9: =SUM(U9,X9,AA9,AG9,AK9,AL9,AM9,AS9,AN9) -> 0.785685795 | AU9: =Vout*K9 -> 0 | AV9: =AU9/(AU9+AT9) -> 0 | AW9: =ThetaJA_Q1*BC9 -> 0.8776318739 | AX9: =ThetaJA_Q2*BD9 -> 1.226848335 | AZ9: =AV9*100 -> 0 | BA9: =U9 -> 0.666591897 | BB9: =AG9+AK9+AM9 -> 0.05156720536 | BC9: =AG9+AM9*0.66 -> 0.020895997 | BD9: =AK9+AM9*0.33 -> 0.03067120837 | BE9: =AN9 -> 0.01105395814
G10: 1 | H10: 48 | I10: 1 | J10: =Iout*G10/100 -> 0.2 | K10: 0.2 | L10: 0.02314814815 | M10: 0.1042033169 | N10: 8.146261025 | O10: =K10+N10/2 -> 4.273130513 | P10: =K10-N10/2 -> -3.873130513 | Q10: 48 | R10: =SQRT(K10^2+(N10^2)/12) -> 2.360112439 | S10: 0.01587487257 | T10: 0.65 | U10: 0.6667216022 | V10: =N10/SQRT(12) -> 2.351622998 | W10: 0.005530130725 | X10: =W10 -> 0.005530130725 | Y10: =SQRT(M10*(1-M10))*SQRT(K10^2+(N10^2)/12) -> 0.7210712674 | Z10: 0.0005199437726 | AA10: =Z10 -> 0.0005199437726 | AB10: =SQRT(M10)*SQRT(K10^2+(N10^2)/12) -> 0.7618570057 | AC10: 0.006674900117 | AD10: 0.009656216216 | AE10: 0 | AF10: 0.01355595679 | AG10: 0.02992062562 | AH10: 2.233764676 | AI10: 0.01646602527 | AJ10: 0.01495595679 | AK10: 0.03150498396 | AL10: 0.0014 | AM10: 0.00876 | AN10: 0.01114026145 | AO10: 0.00168 | AP10: ='Variable Management'!$B$346 -> 0.04875 | AQ10: 0.439163227 | AR10: 0.41925 | AS10: 0.05043 | AT10: 0.8059275477 | AU10: 1 | AV10: =AU10/(AU10+AT10) -> 0.5537320704 | AW10: 1.499493476 | AX10: 1.375831359 | AZ10: =AV10*100 -> 55.37320704 | BA10: 0.6667216022 | BB10: 0.07018560958 | BC10: 0.03570222562 | BD10: 0.03439578396 | BE10: 0.01114026145
A11: Vin | B11: =Vin -> 48 | C11: V | D11: Vin | G11: 2 | H11: 48 | I11: 1 | J11: 0.4 | K11: 0.4 | L11: 0.0462962963 | M11: 0.1042399691 | N11: 8.148582423 | O11: 4.474291211 | P11: -3.674291211 | Q11: 48 | R11: 2.386060133 | S11: 0.01622585643 | T11: 0.65 | U11: 0.6670917873 | V11: 2.352293128 | W11: 0.005533282958 | X11: 0.005533282958 | Y11: 0.7291121937 | Z11: 0.000531604591 | AA11: 0.000531604591 | AB11: 0.7703685088 | AC11: 0.006824877853 | AD11: 0.01931243243 | AE11: 0 | AF11: 0.01286001924 | AG11: 0.03904209439 | AH11: 2.258277069 | AI11: 0.01682939055 | AJ11: 0.01566001924 | AK11: 0.03257713031 | AL11: 0.0028 | AM11: 0.01752 | AN11: 0.01138656592 | AO11: 0.00168 | AP11: ='Variable Management'!$B$346 -> 0.04875 | AQ11: 0.439163227 | AR11: 0.41925 | AS11: 0.05043 | AT11: 0.8269124654 | AU11: 2 | AV11: 0.7074856489 | AW11: 2.125422364 | AX11: 1.534349212 | AZ11: 70.74856489 | BA11: 0.6670917873 | BB11: 0.0891392247 | BC11: 0.05060529439 | BD11: 0.03835873031 | BE11: 0.01138656592
A12: Vout | B12: =Vout -> 5 | C12: V | D12: Vout | G12: 3 | H12: 48 | I12: 1 | J12: 0.6 | K12: 0.6 | L12: 0.06944444444 | M12: 0.1042766231 | N12: 8.150903585 | O12: 4.675451793 | P12: -3.475451793 | Q12: 48 | R12: 2.428257765 | S12: 0.01680484195 | T12: 0.65 | U12: 0.6677024927 | V12: 2.352963189 | W12: 0.005536435771 | X12: 0.005536435771 | Y12: 0.742121852 | Z12: 0.0005507448433 | AA12: 0.0005507448433 | AB12: 0.784130353 | AC12: 0.007070894721 | AD12: 0.02896864865 | AE12: 0 | AF12: 0.01216408127 | AG12: 0.04826095433 | AH12: 2.298167827 | AI12: 0.01742919869 | AJ12: 0.01636408127 | AK12: 0.03388778186 | AL12: 0.0042 | AM12: 0.02628 | AN12: 0.01179287154 | AO12: 0.00168 | AP12: ='Variable Management'!$B$346 -> 0.04875 | AQ12: 0.439163227 | AR12: 0.41925 | AS12: 0.05043 | AT12: 0.8486412811 | AU12: 3 | AV12: 0.7794958742 | AW12: 2.755441682 | AX12: 1.702407275 | AZ12: 77.94958742 | BA12: 0.6677024927 | BB12: 0.1084287362 | BC12: 0.06560575433 | BD12: 0.04256018186 | BE12: 0.01179287154
A13: Fsw | B13: =Fsw/1000 -> 250 | C13: kHz | D13: Switching Frequency | G13: 4 | H13: 48 | I13: 1 | J13: 0.8 | K13: 0.8 | L13: 0.09259259259 | M13: 0.104313279 | N13: 8.153224513 | O13: 4.876612257 | P13: -3.276612257 | Q13: 48 | R13: 2.485877946 | S13: 0.01761182912 | T13: 0.65 | U13: 0.6685537855 | V13: 2.353633184 | W13: 0.005539589163 | X13: 0.005539589163 | Y13: 0.7598496504 | Z13: 0.0005773714912 | AA13: 0.0005773714912 | AB13: 0.8028780784 | AC13: 0.007413051901 | AD13: 0.03862486486 | AE13: 0 | AF13: 0.0114681429 | AG13: 0.05757776659 | AH13: 2.352652961 | AI13: 0.01826542065 | AJ13: 0.0170681429 | AK13: 0.03543712739 | AL13: 0.0056 | AM13: 0.03504 | AN13: 0.01235917833 | AO13: 0.00168 | AP13: ='Variable Management'!$B$346 -> 0.04875 | AQ13: 0.439163227 | AR13: 0.41925 | AS13: 0.05043 | AT13: 0.8711148185 | AU13: 4 | AV13: 0.8211672582 | AW13: 3.389574997 | AX13: 1.880013096 | AZ13: 82.11672582 | BA13: 0.6685537855 | BB13: 0.128054894 | BC13: 0.08070416659 | BD13: 0.04700032739 | BE13: 0.01235917833
A14: Iout | B14: =Iout -> 20 | C14: A | D14: Max Output Current | G14: 5 | H14: 48 | I14: 1 | J14: 1 | K14: 1 | L14: 0.1157407407 | M14: 0.1043499369 | N14: 8.155545207 | O14: 5.077772603 | P14: -3.077772603 | Q14: 48 | R14: 2.55787864 | S14: 0.01864681793 | T14: 0.65 | U14: 0.6696457589 | V14: 2.35430311 | W14: 0.005542743135 | X14: 0.005542743135 | Y14: 0.7819792173 | Z14: 0.0006114914963 | AA14: 0.0006114914963 | AB14: 0.8262776973 | AC14: 0.00785145058 | AD14: 0.04828108108 | AE14: 0 | AF14: 0.01077220411 | AG14: 0.0669931026 | AH14: 2.420745402 | AI14: 0.0193380274 | AJ14: 0.01777220411 | AK14: 0.03722541007 | AL14: 0.007 | AM14: 0.0438 | AN14: 0.01308548627 | AO14: 0.00168 | AP14: ='Variable Management'!$B$346 -> 0.04875 | AQ14: 0.439163227 | AR14: 0.41925 | AS14: 0.05043 | AT14: 0.8943339925 | AU14: 5 | AV14: 0.8482722571 | AW14: 4.027846309 | AX14: 2.067176403 | AZ14: 84.82722571 | BA14: 0.6696457589 | BB14: 0.1480185127 | BC14: 0.0959011026 | BD14: 0.05167941007 | BE14: 0.01308548627
A15: Ta | B15: =Ta -> 25 | C15: °C | D15: Ambient Temperature | G15: 6 | H15: 48 | I15: 1 | J15: 1.2 | K15: 1.2 | L15: 0.1388888889 | M15: 0.1043865966 | N15: 8.157865666 | O15: 5.278932833 | P15: -2.878932833 | Q15: 48 | R15: 2.64308488 | S15: 0.0199098084 | T15: 0.65 | U15: 0.6709785327 | V15: 2.354972969 | W15: 0.005545897685 | X15: 0.005545897685 | Y15: 0.808153339 | Z15: 0.0006531118194 | AA15: 0.0006531118194 | AB15: 0.8539520381 | AC15: 0.00838619196 | AD15: 0.0579372973 | AE15: 0 | AF15: 0.01007626491 | AG15: 0.07650754414 | AH15: 2.501332365 | AI15: 0.02064698989 | AJ15: 0.01847626491 | AK15: 0.03925292757 | AL15: 0.0084 | AM15: 0.05256 | AN15: 0.01397179537 | AO15: 0.00168 | AP15: ='Variable Management'!$B$346 -> 0.04875 | AQ15: 0.439163227 | AR15: 0.41925 | AS15: 0.05043 | AT15: 0.9182998093 | AU15: 6 | AV15: 0.8672651035 | AW15: 4.670280054 | AX15: 2.263909103 | AZ15: 86.72651035 | BA15: 0.6709785327 | BB15: 0.1683204717 | BC15: 0.1111971441 | BD15: 0.05659772757 | BE15: 0.01397179537
A16: Vcc | B16: =VCC -> 5 | C16: V | D16: Subregulated VCC Voltage | G16: 7 | H16: 48 | I16: 1 | J16: 1.4 | K16: 1.4 | L16: 0.162037037 | M16: 0.1044232582 | N16: 8.16018589 | O16: 5.480092945 | P16: -2.680092945 | Q16: 48 | R16: 2.740265099 | S16: 0.02140080052 | T16: 0.65 | U16: 0.672552253 | V16: 2.35564276 | W16: 0.005549052814 | X16: 0.005549052814 | Y16: 0.8379972676 | Z16: 0.0007022394206 | AA16: 0.0007022394206 | AB16: 0.8855053703 | AC16: 0.00901737725 | AD16: 0.06759351351 | AE16: 0 | AF16: 0.009380325308 | AG16: 0.08612168348 | AH16: 2.593247588 | AI16: 0.02219227907 | AJ16: 0.01918032531 | AK16: 0.04152003224 | AL16: 0.0098 | AM16: 0.06132 | AN16: 0.01501810563 | AO16: 0.00168 | AP16: ='Variable Management'!$B$346 -> 0.04875 | AQ16: 0.439163227 | AR16: 0.41925 | AS16: 0.05043 | AT16: 0.9430133666 | AU16: 7 | AV16: 0.8812776307 | AW16: 5.316901106 | AX16: 2.47022529 | AZ16: 88.12776307 | BA16: 0.672552253 | BB16: 0.1889617157 | BC16: 0.1265928835 | BD16: 0.06175563224 | BE16: 0.01501810563
A17: Components | B17: Input Value | C17: Units | D17: Description | G17: 8 | H17: 48 | I17: 1 | J17: 1.6 | K17: 1.6 | L17: 0.1851851852 | M17: 0.1044599217 | N17: 8.16250588 | O17: 5.68125294 | P17: -2.48125294 | Q17: 48 | R17: 2.848193905 | S17: 0.02311979428 | T17: 0.65 | U17: 0.6743670926 | V17: 2.356312484 | W17: 0.00555220852 | X17: 0.00555220852 | Y17: 0.8711379108 | Z17: 0.0007588812596 | AA17: 0.0007588812596 | AB17: 0.9205436801 | AC17: 0.00974510767 | AD17: 0.07724972973 | AE17: 0 | AF17: 0.00868438529 | AG17: 0.09583612349 | AH17: 2.69533075 | AI17: 0.02397386592 | AJ17: 0.01988438529 | AK17: 0.04402713129 | AL17: 0.0112 | AM17: 0.07008 | AN17: 0.01622441704 | AO17: 0.00168 | AP17: ='Variable Management'!$B$346 -> 0.04875 | AQ17: 0.439163227 | AR17: 0.41925 | AS17: 0.05043 | AT17: 0.9684758542 | AU17: 8 | AV17: 0.8920133287 | AW17: 5.967734787 | AX17: 2.686141252 | AZ17: 89.20133287 | BA17: 0.6743670926 | BB17: 0.2099432548 | BC17: 0.1420889235 | BD17: 0.06715353129 | BE17: 0.01622441704
A18: L | B18: =Lf*1000000 -> 2.2 | C18: uH | D18: Filter Inductance | G18: 9 | H18: 48 | I18: 1 | J18: 1.8 | K18: 1.8 | L18: 0.2083333333 | M18: 0.1044965871 | N18: 8.164825635 | O18: 5.882412818 | P18: -2.282412818 | Q18: 48 | R18: 2.96569803 | S18: 0.02506678969 | T18: 0.65 | U18: 0.6764232504 | V18: 2.356982139 | W18: 0.005555364805 | X18: 0.005555364805 | Y18: 0.9072178876 | Z18: 0.0008230442956 | AA18: 0.0008230442956 | AB18: 0.9586895246 | AC18: 0.01056948445 | AD18: 0.08690594595 | AE18: 0 | AF18: 0.007988444862 | AG18: 0.1056514778 | AH18: 2.806470951 | AI18: 0.02599172136 | AJ18: 0.02058844486 | AK18: 0.04677468696 | AL18: 0.0126 | AM18: 0.07884 | AN18: 0.01759072961 | AO18: 0.00168 | AP18: ='Variable Management'!$B$346 -> 0.04875 | AQ18: 0.439163227 | AR18: 0.41925 | AS18: 0.05043 | AT18: 0.9946885539 | AU18: 9 | AV18: 0.9004782842 | AW18: 6.622806867 | AX18: 2.911675479 | AZ18: 90.04782842 | BA18: 0.6764232504 | BB18: 0.2312661647 | BC18: 0.1576858778 | BD18: 0.07279188696 | BE18: 0.01759072961
A19: Rdcr | B19: =Rdcr*1000 -> 2.85 | C19: mW | D19: Inductor DCR at 25°C | G19: 10 | H19: 48 | I19: 1 | J19: 2 | K19: 2 | L19: 0.2314814815 | M19: 0.1045332544 | N19: 8.167145156 | O19: 6.083572578 | P19: -2.083572578 | Q19: 48 | R19: 3.091685894 | S19: 0.02724178675 | T19: 0.65 | U19: 0.6787209525 | V19: 2.357651727 | W19: 0.005558521667 | X19: 0.005558521667 | Y19: 0.9459045867 | Z19: 0.0008947354871 | AA19: 0.0008947354871 | AB19: 0.9995916053 | AC19: 0.01149060884 | AD19: 0.09656216216 | AE19: 0 | AF19: 0.007292504023 | AG19: 0.1155683708 | AH19: 2.925634681 | AI19: 0.02824581635 | AJ19: 0.02129250402 | AK19: 0.04976321681 | AL19: 0.014 | AM19: 0.0876 | AN19: 0.01911704333 | AO19: 0.00168 | AP19: ='Variable Management'!$B$346 -> 0.04875 | AQ19: 0.439163227 | AR19: 0.41925 | AS19: 0.05043 | AT19: 1.021652841 | AU19: 10 | AV19: 0.9073049337 | AW19: 7.282143573 | AX19: 3.146848672 | AZ19: 90.73049337 | BA19: 0.6787209525 | BB19: 0.2529315876 | BC19: 0.1733843708 | BD19: 0.07867121681 | BE19: 0.01911704333
A20: LTc | B20: =Ltc*1000000 -> 4000 | C20: ppm | D20: Inductor Series Resistance Temp Co | G20: 11 | H20: 48 | I20: 1 | J20: 2.2 | K20: 2.2 | L20: 0.2546296296 | M20: 0.1045699236 | N20: 8.169464442 | O20: 6.284732221 | P20: -1.884732221 | Q20: 48 | R20: 3.225163423 | S20: 0.02964478545 | T20: 0.65 | U20: 0.681260451 | V20: 2.358321247 | W20: 0.005561679106 | X20: 0.005561679106 | Y20: 0.9868950258 | Z20: 0.000973961792 | AA20: 0.000973961792 | AB20: 1.042929906 | AC20: 0.01250858208 | AD20: 0.1062183784 | AE20: 0 | AF20: 0.006596562774 | AG20: 0.1255874379 | AH20: 3.051880783 | AI20: 0.03073612184 | AJ20: 0.02199656277 | AK20: 0.05299329395 | AL20: 0.0154 | AM20: 0.09636 | AN20: 0.02080335821 | AO20: 0.00168 | AP20: ='Variable Management'!$B$346 -> 0.04875 | AQ20: 0.439163227 | AR20: 0.41925 | AS20: 0.05043 | AT20: 1.049370182 | AU20: 11 | AV20: 0.9129107857 | AW20: 7.945771593 | AX20: 3.391683758 | AZ20: 91.29107857 | BA20: 0.681260451 | BB20: 0.2749407319 | BC20: 0.1891850379 | BD20: 0.08479209395 | BE20: 0.02080335821
A21: ThetaCa | B21: =ThetaCa -> 20 | C21: °C/W | D21: Core to Ambient Thermal Resistance | G21: 12 | H21: 48 | I21: 1 | J21: 2.4 | K21: 2.4 | L21: 0.2777777778 | M21: 0.1046065947 | N21: 8.171783494 | O21: 6.485891747 | P21: -1.685891747 | Q21: 48 | R21: 3.365239534 | S21: 0.0322757858 | T21: 0.65 | U21: 0.6840420253 | V21: 2.3589907 | W21: 0.005564837122 | X21: 0.005564837122 | Y21: 1.029917554 | Z21: 0.001060730168 | AA21: 0.001060730168 | AB21: 1.088417497 | AC21: 0.01362350544 | AD21: 0.1158745946 | AE21: 0 | AF21: 0.005900621114 | AG21: 0.1357093257 | AH21: 3.184365632 | AI21: 0.03346260877 | AJ21: 0.02270062111 | AK21: 0.05646554741 | AL21: 0.0168 | AM21: 0.10512 | AN21: 0.02264967424 | AO21: 0.00168 | AP21: ='Variable Management'!$B$346 -> 0.04875 | AQ21: 0.439163227 | AR21: 0.41925 | AS21: 0.05043 | AT21: 1.07784214 | AU21: 12 | AV21: 0.9175825699 | AW21: 8.61371808 | AX21: 3.646205896 | AZ21: 91.75825699 | BA21: 0.6840420253 | BB21: 0.2972948731 | BC21: 0.2050885257 | BD21: 0.09115514741 | BE21: 0.02264967424
A22: Cin | B22: =Cin*1000000 -> 40 | C22: μF | D22: Input Capacitance | G22: 13 | H22: 48 | I22: 1 | J22: 2.6 | K22: 2.6 | L22: 0.3009259259 | M22: 0.1046432677 | N22: 8.17410231 | O22: 6.687051155 | P22: -1.487051155 | Q22: 48 | R22: 3.511124566 | S22: 0.03513478779 | T22: 0.65 | U22: 0.6870659812 | V22: 2.359660085 | W22: 0.005567995715 | X22: 0.005567995715 | Y22: 1.074731395 | Z22: 0.001155047571 | AA22: 0.001155047571 | AB22: 1.135800051 | AC22: 0.01483548019 | AD22: 0.1255308108 | AE22: 0 | AF22: 0.005204679043 | AG22: 0.1459346919 | AH22: 3.322341638 | AI22: 0.03642524807 | AJ22: 0.02340467904 | AK22: 0.0601806624 | AL22: 0.0182 | AM22: 0.11388 | AN22: 0.02465599143 | AO22: 0.00168 | AP22: ='Variable Management'!$B$346 -> 0.04875 | AQ22: 0.439163227 | AR22: 0.41925 | AS22: 0.05043 | AT22: 1.10707037 | AU22: 13 | AV22: 0.9215237224 | AW22: 9.286010661 | AX22: 3.910442496 | AZ22: 92.15237224 | BA22: 0.6870659812 | BB22: 0.3199953543 | BC22: 0.2210954919 | BD22: 0.0977610624 | BE22: 0.02465599143
A23: RCinEsr | B23: =RCinEsr*1000 -> 1 | C23: mW | D23: Input Capacitor ESR | G23: 14 | H23: 48 | I23: 1 | J23: 2.8 | K23: 2.8 | L23: 0.3240740741 | M23: 0.1046799426 | N23: 8.176420892 | O23: 6.888210446 | P23: -1.288210446 | Q23: 42.94034821 | R23: 3.662124368 | S23: 0.03822179142 | T23: 0.65 | U23: 0.6903326515 | V23: 2.360329402 | W23: 0.005571154884 | X23: 0.005571154884 | Y23: 1.121124863 | Z23: 0.001256920958 | AA23: 0.001256920958 | AB23: 1.184853967 | AC23: 0.01614460762 | AD23: 0.135187027 | AE23: 0.06839260865 | AF23: 0.004508736562 | AG23: 0.2248428197 | AH23: 3.46515165 | AI23: 0.03962401067 | AJ23: 0.02410873656 | AK23: 0.06413938075 | AL23: 0.0196 | AM23: 0.12264 | AN23: 0.02682230977 | AO23: 0.00168 | AP23: ='Variable Management'!$B$346 -> 0.04875 | AQ23: 0.439163227 | AR23: 0.41925 | AS23: 0.05043 | AT23: 1.205635238 | AU23: 14 | AV23: 0.9207112877 | AW23: 12.84297923 | AX23: 4.18442323 | AZ23: 92.07112877 | BA23: 0.6903326515 | BB23: 0.4116222005 | BC23: 0.3057852197 | BD23: 0.1046105808 | BE23: 0.02682230977
A24: Cout | B24: =Cout*1000000 -> 120 | C24: μF | D24: Output Capcitance | G24: 15 | H24: 48 | I24: 1 | J24: 3 | K24: 3 | L24: 0.3472222222 | M24: 0.1047166194 | N24: 8.17873924 | O24: 7.08936962 | P24: -1.08936962 | Q24: 36.31232066 | R24: 3.817632071 | S24: 0.04153679669 | T24: 0.65 | U24: 0.6938423959 | V24: 2.360998651 | W24: 0.005574314629 | X24: 0.005574314629 | Y24: 1.168912864 | Z24: 0.001366357285 | AA24: 0.001366357285 | AB24: 1.235383729 | AC24: 0.01755098901 | AD24: 0.1448432432 | AE24: 0.1544219059 | AF24: 0.00381279367 | AG24: 0.3215771232 | AH24: 3.612221155 | AI24: 0.04305886752 | AJ24: 0.02481279367 | AK24: 0.0683425013 | AL24: 0.021 | AM24: 0.1314 | AN24: 0.02914862926 | AO24: 0.00168 | AP24: ='Variable Management'!$B$346 -> 0.04875 | AQ24: 0.439163227 | AR24: 0.41925 | AS24: 0.05043 | AT24: 1.322681322 | AU24: 15 | AV24: 0.9189666639 | AW24: 17.14864717 | AX24: 4.468180052 | AZ24: 91.89666639 | BA24: 0.6938423959 | BB24: 0.5213196245 | BC24: 0.4083011232 | BD24: 0.1117045013 | BE24: 0.02914862926
A25: RCoutEsr | B25: =Cout_ESR*1000 -> 1 | C25: mW | D25: Output Capacitor ESR | G25: 16 | H25: 48 | I25: 1 | J25: 3.2 | K25: 3.2 | L25: 0.3703703704 | M25: 0.104753298 | N25: 8.181057352 | O25: 7.290528676 | P25: -0.8905286762 | Q25: 29.68428921 | R25: 3.977118926 | S25: 0.04507980361 | T25: 0.65 | U25: 0.6975956014 | V25: 2.361667832 | W25: 0.00557747495 | X25: 0.00557747495 | Y25: 1.217934114 | Z25: 0.001483363506 | AA25: 0.001483363506 | AB25: 1.287218966 | AC25: 0.01905472568 | AD25: 0.1544994595 | AE25: 0.2364096214 | AF25: 0.003116850367 | AG25: 0.4144072548 | AH25: 3.763049599 | AI25: 0.04672978953 | AJ25: 0.02551685037 | AK25: 0.0727908803 | AL25: 0.0224 | AM25: 0.14016 | AN25: 0.0316349499 | AO25: 0.00168 | AP25: ='Variable Management'!$B$346 -> 0.04875 | AQ25: 0.439163227 | AR25: 0.41925 | AS25: 0.05043 | AT25: 1.436479525 | AU25: 16 | AV25: 0.9176164246 | AW25: 21.2903399 | AX25: 4.761747212 | AZ25: 91.76164246 | BA25: 0.6975956014 | BB25: 0.6273581351 | BC25: 0.5069128548 | BD25: 0.1190436803 | BE25: 0.0316349499
A26: Top Driver | B26: Input Value | C26: Units | D26: Description | G26: 17 | H26: 48 | I26: 1 | J26: 3.4 | K26: 3.4 | L26: 0.3935185185 | M26: 0.1047899786 | N26: 8.18337523 | O26: 7.491687615 | P26: -0.6916876152 | Q26: 23.05625384 | R26: 4.1401251 | S26: 0.04885081216 | T26: 0.65 | U26: 0.7015926819 | V26: 2.362336946 | W26: 0.005580635847 | X26: 0.005580635847 | Y26: 1.268048334 | Z26: 0.001607946576 | AA26: 0.001607946576 | AB26: 1.3402115 | AC26: 0.02065591893 | AD26: 0.1641556757 | AE26: 0.314355748 | AF26: 0.002420906653 | AG26: 0.5033349192 | AH26: 3.917201678 | AI26: 0.05063674764 | AJ26: 0.02622090665 | AK26: 0.07748543194 | AL26: 0.0238 | AM26: 0.14892 | AN26: 0.03428127169 | AO26: 0.00168 | AP26: ='Variable Management'!$B$346 -> 0.04875 | AQ26: 0.439163227 | AR26: 0.41925 | AS26: 0.05043 | AT26: 1.547032887 | AU26: 17 | AV26: 0.9165886589 | AW26: 25.26812901 | AX26: 5.065161278 | AZ26: 91.65886589 | BA26: 0.7015926819 | BB26: 0.7297403512 | BC26: 0.6016221192 | BD26: 0.1266290319 | BE26: 0.03428127169
A27: RdsonDRT | B27: =RdsonDRT -> 1 | C27: W | D27: Drain to Source Resistance of pullup Top FET Driver | G27: 18 | H27: 48 | I27: 1 | J27: 3.6 | K27: 3.6 | L27: 0.4166666667 | M27: 0.1048266611 | N27: 8.185692874 | O27: 7.692846437 | P27: -0.4928464368 | Q27: 16.42821456 | R27: 4.306250959 | S27: 0.05284982236 | T27: 0.65 | U27: 0.7058340788 | V27: 2.363005992 | W27: 0.005583797318 | X27: 0.005583797318 | Y27: 1.319133598 | Z27: 0.00174011345 | AA27: 0.00174011345 | AB27: 1.394232533 | AC27: 0.0223546701 | AD27: 0.1738118919 | AE27: 0.3882602786 | AF27: 0.001724962529 | AG27: 0.5883614442 | AH27: 4.074299076 | AI27: 0.05477971277 | AJ27: 0.02692496253 | AK27: 0.08242712881 | AL27: 0.0252 | AM27: 0.15768 | AN27: 0.03708759464 | AO27: 0.00168 | AP27: ='Variable Management'!$B$346 -> 0.04875 | AQ27: 0.439163227 | AR27: 0.41925 | AS27: 0.05043 | AT27: 1.654344157 | AU27: 18 | AV27: 0.9158280661 | AW27: 29.08207026 | AX27: 5.378461153 | AZ27: 91.58280661 | BA27: 0.7058340788 | BB27: 0.8284685731 | BC27: 0.6924302442 | BD27: 0.1344615288 | BE27: 0.03708759464
A28: RdsonDRT2 | B28: =RdsonDRT2 -> 0.5 | C28: W | D28: Drain to Source Resistance of pulldown Top FET Driver | G28: 19 | H28: 48 | I28: 1 | J28: 3.8 | K28: 3.8 | L28: 0.4398148148 | M28: 0.1048633454 | N28: 8.188010282 | O28: 7.894005141 | P28: -0.294005141 | Q28: 9.800171366 | R28: 4.475149089 | S28: 0.05707683419 | T28: 0.65 | U28: 0.7103202607 | V28: 2.36367497 | W28: 0.005586959365 | X28: 0.005586959365 | Y28: 1.371083907 | Z28: 0.00187987108 | AA28: 0.00187987108 | AB28: 1.449170093 | AC28: 0.02415108051 | AD28: 0.1834681081 | AE28: 0.458123206 | AF28: 0.001029017993 | AG28: 0.6694877799 | AH28: 4.23401292 | AI28: 0.05915865584 | AJ28: 0.02762901799 | AK28: 0.08761700249 | AL28: 0.0266 | AM28: 0.16644 | AN28: 0.04005391873 | AO28: 0.00168 | AP28: ='Variable Management'!$B$346 -> 0.04875 | AQ28: 0.439163227 | AR28: 0.41925 | AS28: 0.05043 | AT28: 1.758415792 | AU28: 19 | AV28: 0.9152914264 | AW28: 32.73220356 | AX28: 5.7016881 | AZ28: 91.52914264 | BA28: 0.7103202607 | BB28: 0.9235447824 | BC28: 0.7793381799 | BD28: 0.1425422025 | BE28: 0.04005391873
A29: Bottom Driver | B29: Input Value | C29: Units | D29: Description | G29: 20 | H29: 48 | I29: 1 | J29: 4 | K29: 4 | L29: 0.462962963 | M29: 0.1049000317 | N29: 8.190327456 | O29: 8.095163728 | P29: -0.09516372777 | Q29: 3.172124259 | R29: 4.646517189 | S29: 0.06153184766 | T29: 0.65 | U29: 0.715051724 | V29: 2.364343881 | W29: 0.005590121986 | X29: 0.005590121986 | Y29: 1.423807016 | Z29: 0.002027226419 | AA29: 0.002027226419 | AB29: 1.504926736 | AC29: 0.02604525152 | AD29: 0.1931243243 | AE29: 0.523944523 | AF29: 0.0003330730472 | AG29: 0.7467144976 | AH29: 4.396057041 | AI29: 0.06377354777 | AJ29: 0.02833307305 | AK29: 0.09305614409 | AL29: 0.028 | AM29: 0.1752 | AN29: 0.04318024397 | AO29: 0.00168 | AP29: ='Variable Management'!$B$346 -> 0.04875 | AQ29: 0.439163227 | AR29: 0.41925 | AS29: 0.05043 | AT29: 1.859249958 | AU29: 20 | AV29: 0.9149444761 | AW29: 36.2185529 | AX29: 6.034885763 | AZ29: 91.49444761 | BA29: 0.715051724 | BB29: 1.014970642 | BC29: 0.8623464976 | BD29: 0.1508721441 | BE29: 0.04318024397
A30: RdsonDRB | B30: =RdsonDRB -> 1 | C30: W | D30: Drain to Source Resistance of pullup Bottom FET Driver | G30: 21 | H30: 48 | I30: 1 | J30: 4.2 | K30: 4.2 | L30: 0.4861111111 | M30: 0.1049367198 | N30: 8.192644394 | O30: 8.296322197 | P30: 0.1036778028 | Q30: 0 | R30: 4.820091823 | S30: 0.06621486277 | T30: 0.65 | U30: 0.7200289924 | V30: 2.365012723 | W30: 0.005593285181 | X30: 0.005593285181 | Y30: 1.477222535 | Z30: 0.002182186419 | AA30: 0.002182186419 | AB30: 1.561417541 | AC30: 0.02803728449 | AD30: 0.2027805405 | AE30: 0.554016 | AF30: 0 | AG30: 0.7885480946 | AH30: 4.560182062 | AI30: 0.06862435946 | AJ30: 0.0294 | AK30: 0.09911260572 | AL30: 0.0294 | AM30: 0.18396 | AN30: 0.04646657036 | AO30: 0.00168 | AP30: ='Variable Management'!$B$346 -> 0.04875 | AQ30: 0.439163227 | AR30: 0.41925 | AS30: 0.05043 | AT30: 1.925721735 | AU30: 21 | AV30: 0.9160016964 | AW30: 38.21839117 | AX30: 6.392776229 | AZ30: 91.60016964 | BA30: 0.7200289924 | BB30: 1.0716207 | BC30: 0.9099616946 | BD30: 0.1598194057 | BE30: 0.04646657036
A31: RdsonDRB2 | B31: 0.7 | C31: W | D31: Drain to Source Resistance of pulldown Bottom FET Driver | G31: 22 | H31: 48 | I31: 1 | J31: 4.4 | K31: 4.4 | L31: 0.5092592593 | M31: 0.1049734099 | N31: 8.194961098 | O31: 8.497480549 | P31: 0.3025194508 | Q31: 0 | R31: 4.995642997 | S31: 0.07112587951 | T31: 0.65 | U31: 0.7252526179 | V31: 2.365681498 | W31: 0.00559644895 | X31: 0.00559644895 | Y31: 1.531260276 | Z31: 0.002344758033 | AA31: 0.002344758033 | AB31: 1.618568363 | AC31: 0.03012728077 | AD31: 0.2124367568 | AE31: 0.554016 | AF31: 0 | AG31: 0.8006323446 | AH31: 4.726170268 | AI31: 0.07371106184 | AJ31: 0.0308 | AK31: 0.1057583515 | AL31: 0.0308 | AM31: 0.19272 | AN31: 0.0499128979 | AO31: 0.00168 | AP31: ='Variable Management'!$B$346 -> 0.04875 | AQ31: 0.439163227 | AR31: 0.41925 | AS31: 0.05043 | AT31: 1.963447419 | AU31: 22 | AV31: 0.9180649017 | AW31: 38.96875687 | AX31: 6.77423806 | AZ31: 91.80649017 | BA31: 0.7252526179 | BB31: 1.099110696 | BC31: 0.9278275446 | BD31: 0.1693559515 | BE31: 0.0499128979
A32: Deadtime | B32: Input Value | C32: Units | D32: Description | G32: 23 | H32: 48 | I32: 1 | J32: 4.6 | K32: 4.6 | L32: 0.5324074074 | M32: 0.1050101018 | N32: 8.197277567 | O32: 8.698638784 | P32: 0.5013612163 | Q32: 0 | R32: 5.172969485 | S32: 0.07626489789 | T32: 0.65 | U32: 0.7307231802 | V32: 2.366350205 | W32: 0.005599613293 | X32: 0.005599613293 | Y32: 1.585858824 | Z32: 0.00251494821 | AA32: 0.00251494821 | AB32: 1.676314325 | AC32: 0.03231534175 | AD32: 0.222092973 | AE32: 0.554016 | AF32: 0 | AG32: 0.8128371895 | AH32: 4.893831176 | AI32: 0.0790336258 | AJ32: 0.0322 | AK32: 0.112658232 | AL32: 0.0322 | AM32: 0.20148 | AN32: 0.05351922659 | AO32: 0.00168 | AP32: ='Variable Management'!$B$346 -> 0.04875 | AQ32: 0.439163227 | AR32: 0.41925 | AS32: 0.05043 | AT32: 2.00196239 | AU32: 23 | AV32: 0.9199277897 | AW32: 39.72418756 | AX32: 7.165865279 | AZ32: 91.99277897 | BA32: 0.7307231802 | BB32: 1.126975421 | BC32: 0.9458139895 | BD32: 0.179146632 | BE32: 0.05351922659
A33: Deadtime1 | B33: 10 | C33: ns | D33: LO off to HO on deadtime | G33: 24 | H33: 48 | I33: 1 | J33: 4.8 | K33: 4.8 | L33: 0.5555555556 | M33: 0.1050467957 | N33: 8.199593802 | O33: 8.899796901 | P33: 0.7002030991 | Q33: 0 | R33: 5.351894824 | S33: 0.0816319179 | T33: 0.65 | U33: 0.7364412871 | V33: 2.367018844 | W33: 0.005602778209 | X33: 0.005602778209 | Y33: 1.640964321 | Z33: 0.002692763903 | AA33: 0.002692763903 | AB33: 1.734598533 | AC33: 0.03460156881 | AD33: 0.2317491892 | AE33: 0.554016 | AF33: 0 | AG33: 0.8251634858 | AH33: 5.062997742 | AI33: 0.08459202226 | AJ33: 0.0336 | AK33: 0.1198136671 | AL33: 0.0336 | AM33: 0.21024 | AN33: 0.05728555642 | AO33: 0.00168 | AP33: ='Variable Management'!$B$346 -> 0.04875 | AQ33: 0.439163227 | AR33: 0.41925 | AS33: 0.05043 | AT33: 2.041269539 | AU33: 24 | AV33: 0.9216140544 | AW33: 40.4847192 | AX33: 7.567714685 | AZ33: 92.16140544 | BA33: 0.7364412871 | BB33: 1.155217153 | BC33: 0.9639218858 | BD33: 0.1891928671 | BE33: 0.05728555642
A34: Deadtime2 | B34: 13 | C34: ns | D34: LO off to HO on deadtime | G34: 25 | H34: 48 | I34: 1 | J34: 5 | K34: 5 | L34: 0.5787037037 | M34: 0.1050834914 | N34: 8.201909801 | O34: 9.100954901 | P34: 0.8990450994 | Q34: 0 | R34: 5.532263886 | S34: 0.08722693954 | T34: 0.65 | U34: 0.7424075748 | V34: 2.367687416 | W34: 0.005605943699 | X34: 0.005605943699 | Y34: 1.696529416 | Z34: 0.002878212059 | AA34: 0.002878212059 | AB34: 1.793370966 | AC34: 0.03698606335 | AD34: 0.2414054054 | AE34: 0.554016 | AF34: 0 | AG34: 0.8376121045 | AH34: 5.233523123 | AI34: 0.09038622211 | AJ34: 0.035 | AK34: 0.1272261405 | AL34: 0.035 | AM34: 0.219 | AN34: 0.0612118874 | AO34: 0.00168 | AP34: ='Variable Management'!$B$346 -> 0.04875 | AQ34: 0.439163227 | AR34: 0.41925 | AS34: 0.05043 | AT34: 2.081371863 | AU34: 25 | AV34: 0.9231437804 | AW34: 41.25038839 | AX34: 7.979845622 | AZ34: 92.31437804 | BA34: 0.7424075748 | BB34: 1.183838245 | BC34: 0.9821521045 | BD34: 0.1994961405 | BE34: 0.0612118874
A35: IQ | B35: Input Value | C35: Units | D35: Description | G35: 26 | H35: 48 | I35: 1 | J35: 5.2 | K35: 5.2 | L35: 0.6018518519 | M35: 0.1051201891 | N35: 8.204225566 | O35: 9.302112783 | P35: 1.097887217 | Q35: 0 | R35: 5.713939951 | S35: 0.09304996282 | T35: 0.65 | U35: 0.748622708 | V35: 2.368355919 | W35: 0.005609109761 | X35: 0.005609109761 | Y35: 1.752512377 | Z35: 0.00307129963 | AA35: 0.00307129963 | AB35: 1.852587539 | AC35: 0.03946892679 | AD35: 0.2510616216 | AE35: 0.554016 | AF35: 0 | AG35: 0.8501839308 | AH35: 5.405277899 | AI35: 0.09641619626 | AJ35: 0.0364 | AK35: 0.1348972003 | AL35: 0.0364 | AM35: 0.22776 | AN35: 0.06529821952 | AO35: 0.00168 | AP35: ='Variable Management'!$B$346 -> 0.04875 | AQ35: 0.439163227 | AR35: 0.41925 | AS35: 0.05043 | AT35: 2.122272468 | AU35: 26 | AV35: 0.9245341048 | AW35: 42.02123229 | AX35: 8.40232001 | AZ35: 92.45341048 | BA35: 0.748622708 | BB35: 1.212841131 | BC35: 1.000505531 | BD35: 0.2100580003 | BE35: 0.06529821952
A36: IQ | B36: =Iq*1000 -> 0.035 | C36: mA | D36: Quiescent Current Of Controller (Not Switching!) | G36: 27 | H36: 48 | I36: 1 | J36: 5.4 | K36: 5.4 | L36: 0.625 | M36: 0.1051568886 | N36: 8.206541095 | O36: 9.503270548 | P36: 1.296729452 | Q36: 0 | R36: 5.896802218 | S36: 0.09910098773 | T36: 0.65 | U36: 0.7550873801 | V36: 2.369024355 | W36: 0.005612276396 | X36: 0.005612276396 | Y36: 1.808876326 | Z36: 0.003272033564 | AA36: 0.003272033564 | AB36: 1.912209297 | AC36: 0.04205026054 | AD36: 0.2607178378 | AE36: 0.554016 | AF36: 0 | AG36: 0.8628798647 | AH36: 5.578147721 | AI36: 0.1026819156 | AJ36: 0.0378 | AK36: 0.1428284596 | AL36: 0.0378 | AM36: 0.23652 | AN36: 0.06954455279 | AO36: 0.00168 | AP36: ='Variable Management'!$B$346 -> 0.04875 | AQ36: 0.439163227 | AR36: 0.41925 | AS36: 0.05043 | AT36: 2.163974567 | AU36: 27 | AV36: 0.9257997375 | AW36: 42.79728872 | AX36: 8.835202383 | AZ36: 92.57997375 | BA36: 0.7550873801 | BB36: 1.242228324 | BC36: 1.018983065 | BD36: 0.2208800596 | BE36: 0.06954455279
A37: High-side FET | B37: Input Value | C37: Units | D37: Description | G37: 28 | H37: 48 | I37: 1 | J37: 5.6 | K37: 5.6 | L37: 0.6481481481 | M37: 0.10519359 | N37: 8.20885639 | O37: 9.704428195 | P37: 1.495571805 | Q37: 0 | R37: 6.080743672 | S37: 0.1053800143 | T37: 0.65 | U37: 0.7618023134 | V37: 2.369692723 | W37: 0.005615443602 | X37: 0.005615443602 | Y37: 1.865588596 | Z37: 0.003480420808 | AA37: 0.003480420808 | AB37: 1.972201728 | AC37: 0.04473016604 | AD37: 0.2703740541 | AE37: 0.554016 | AF37: 0 | AG37: 0.8757008209 | AH37: 5.752031289 | AI37: 0.109183351 | AJ37: 0.0392 | AK37: 0.1510215981 | AL37: 0.0392 | AM37: 0.24528 | AN37: 0.0739508872 | AO37: 0.00168 | AP37: ='Variable Management'!$B$346 -> 0.04875 | AQ37: 0.439163227 | AR37: 0.41925 | AS37: 0.05043 | AT37: 2.206481484 | AU37: 28 | AV37: 0.9269533764 | AW37: 43.57859608 | AX37: 9.278559924 | AZ37: 92.69533764 | BA37: 0.7618023134 | BB37: 1.272002419 | BC37: 1.037585621 | BD37: 0.2319639981 | BE37: 0.0739508872
A38: RdsonTop | B38: =Rdson1*1000 -> 11.5 | C38: mW | D38: Drain-Source Resistance of Top FET | G38: 29 | H38: 48 | I38: 1 | J38: 5.8 | K38: 5.8 | L38: 0.6712962963 | M38: 0.1052302934 | N38: 8.21117145 | O38: 9.905585725 | P38: 1.694414275 | Q38: 0 | R38: 6.265669268 | S38: 0.1118870424 | T38: 0.65 | U38: 0.768768259 | V38: 2.370361023 | W38: 0.005618611381 | X38: 0.005618611381 | Y38: 1.922620168 | Z38: 0.003696468311 | AA38: 0.003696468311 | AB38: 2.03253418 | AC38: 0.04750874471 | AD38: 0.2800302703 | AE38: 0.554016 | AF38: 0 | AG38: 0.8886477294 | AH38: 5.926838634 | AI38: 0.1159204734 | AJ38: 0.0406 | AK38: 0.1594783626 | AL38: 0.0406 | AM38: 0.25404 | AN38: 0.07851722276 | AO38: 0.00168 | AP38: ='Variable Management'!$B$346 -> 0.04875 | AQ38: 0.439163227 | AR38: 0.41925 | AS38: 0.05043 | AT38: 2.249796653 | AU38: 29 | AV38: 0.9280060386 | AW38: 44.36519343 | AX38: 9.732462504 | AZ38: 92.80060386 | BA38: 0.768768259 | BB38: 1.302166092 | BC38: 1.056314129 | BD38: 0.2433115626 | BE38: 0.07851722276
A39: RdsonTopTc | B39: =RdsonTopTc*1000000 -> 4000 | C39: ppm | D39: Drain to Source Resistance Temp Co | G39: 30 | H39: 48 | I39: 1 | J39: 6 | K39: 6 | L39: 0.6944444444 | M39: 0.1052669986 | N39: 8.213486274 | O39: 10.10674314 | P39: 1.893256863 | Q39: 0 | R39: 6.45149438 | S39: 0.1186220722 | T39: 0.65 | U39: 0.7759859976 | V39: 2.371029256 | W39: 0.005621779731 | X39: 0.005621779731 | Y39: 1.979945206 | Z39: 0.003920183019 | AA39: 0.003920183019 | AB39: 2.093179359 | AC39: 0.05038609803 | AD39: 0.2896864865 | AE39: 0.554016 | AF39: 0 | AG39: 0.9017215351 | AH39: 6.102489648 | AI39: 0.1228932537 | AJ39: 0.042 | AK39: 0.1682005681 | AL39: 0.042 | AM39: 0.2628 | AN39: 0.08324355946 | AO39: 0.00168 | AP39: ='Variable Management'!$B$346 -> 0.04875 | AQ39: 0.439163227 | AR39: 0.41925 | AS39: 0.05043 | AT39: 2.293923623 | AU39: 30 | AV39: 0.9289673299 | AW39: 45.15712047 | AX39: 10.19698272 | AZ39: 92.89673299 | BA39: 0.7759859976 | BB39: 1.332722103 | BC39: 1.075169535 | BD39: 0.2549245681 | BE39: 0.08324355946
A40: QgTop | B40: =Qg_Q1*1000000000 -> 8 | C40: nC | D40: Gate Charge Of Top FET | G40: 31 | H40: 48 | I40: 1 | J40: 6.2 | K40: 6.2 | L40: 0.7175925926 | M40: 0.1053037057 | N40: 8.215800864 | O40: 10.30790043 | P40: 2.092099568 | Q40: 0 | R40: 6.638143464 | S40: 0.1255851037 | T40: 0.65 | U40: 0.7834563393 | V40: 2.37169742 | W40: 0.005624948653 | X40: 0.005624948653 | Y40: 2.037540645 | Z40: 0.004151571879 | AA40: 0.004151571879 | AB40: 2.1541129 | AC40: 0.05336232743 | AD40: 0.2993427027 | AE40: 0.554016 | AF40: 0 | AG40: 0.9149231986 | AH40: 6.278912825 | AI40: 0.1301016627 | AJ40: 0.0434 | AK40: 0.1771900989 | AL40: 0.0434 | AM40: 0.27156 | AN40: 0.08812989731 | AO40: 0.00168 | AP40: ='Variable Management'!$B$346 -> 0.04875 | AQ40: 0.439163227 | AR40: 0.41925 | AS40: 0.05043 | AT40: 2.338866055 | AU40: 31 | AV40: 0.9298456627 | AW40: 45.95441754 | AX40: 10.67219596 | AZ40: 92.98456627 | BA40: 0.7834563393 | BB40: 1.363673298 | BC40: 1.094152799 | BD40: 0.2668048989 | BE40: 0.08812989731
A41: QgdTop | B41: =Qgd_Q1*1000000000 -> 2.8 | C41: nC | D41: Gate to Drain Charge | G41: 32 | H41: =Vin -> 48 | I41: =MODE -> 1 | J41: 6.4 | K41: =Iout*G41/100/Number_of_Phases -> 6.4 | L41: =Vout*K41/(Vin*Efficiency) -> 0.7407407407 | M41: =(Vout+(Rdson2+Rs+Rdcr)*K41)/(Vin+(Rs+Rdson2-Rdson1)*K41) -> 0.1053404147 | N41: =(Vin-(Rdson1+Rdcr)*K41-Vout)*M41/(Fsw*Lf) -> 8.218115219 | O41: 10.50905761 | P41: 2.290942391 | Q41: =IF(MIN(Vin, -P41/(Coss_Q1+Coss_Q2)*0.00000002)<0, 0, MIN(Vin, -P41/(Coss_Q1+Coss_Q2)*0.00000002)) -> 0 | R41: 6.825548926 | S41: =R41^2*Rdcr -> 0.1327761367 | T41: =Core_Loss_Ch1 -> 0.65 | U41: =(T41+S41*(1+Ltc*(Ta-25)))/(1-S41*Ltc*ThetaCa) -> 0.7911801239 | V41: 2.372365517 | W41: 0.005628118146 | X41: 0.005628118146 | Y41: 2.095385844 | Z41: 0.004390641837 | AA41: 0.004390641837 | AB41: 2.215313 | AC41: =Rdson1*AB41^2 -> 0.05643753441 | AD41: =(Vin*K41/2)*Fsw*(Tr_buck+Tf_buck) -> 0.3089989189 | AE41: =(0.5*Coss_Q1*(Vin-Q41)^2-0.5*Coss_Q2*(Vin-Q41)^2+(Qoss_Q2*(Vin-Q41)/Vin)*Vin)*Fsw -> 0.554016 | AF41: =IF(K41>N41/2,0,ABS(K41-N41/2)*Vsd_Q1*Deadtime2*Fsw) -> 0 | AG41: =(AF41+AE41+AD41+AC41*(1+RdsonTopTc*Ta-RdsonTopTc*25))/(1-AC41*RdsonTopTc*ThetaJA_Q1) -> 0.9282536961 | AH41: =SQRT((1-M41))*SQRT(K41^2+(N41^2)/12) -> 6.45604418 | AI41: =Rdson2*AH41^2 -> 0.1375456713 | AJ41: =IF(K41<N41/2,Deadtime1*Fsw*IF(VfdSky_Q2>0,0,Vsd_Q2)*O41,(Deadtime1+Deadtime2)*Fsw*IF(VfdSky_Q2>0,0,Vsd_Q2)*K41) -> 0.0448 | AK41: =(AJ41+AI41*(1+RdsonBotTc*Ta-RdsonBotTc*25))/(1-AI41*RdsonBotTc*ThetaJA_Q2) -> 0.1864489098 | AL41: =(Deadtime1+Deadtime2)*Fsw*IF(VfdSky_Q2>0,VfdSky_Q2,Vsd_Q2)*K41 -> 0.0448 | AM41: =IF(QrrSky_Q2>0,QrrSky_Q2,Qrr_Q2*K41/(Iout/Number_of_Phases))*Fsw*Vin -> 0.28032 | AN41: =CHOOSE(SENSING_TYPE, Rs*R41^2, 0) -> 0.09317623629 | AO41: =Iq*Vin -> 0.00168 | AP41: ='Variable Management'!$B$346 -> 0.04875 | AQ41: 0.439163227 | AR41: =(Qg_Q1+Qg_Q2)*Fsw*(Vin-Vout) -> 0.41925 | AS41: =SUM(AO41:AP41) -> 0.05043 | AT41: =SUM(U41,X41,AA41,AG41,AK41,AL41,AM41,AS41,AN41) -> 2.384627726 | AU41: =Vout*K41 -> 32 | AV41: 0.9306484355 | AW41: =ThetaJA_Q1*BC41 -> 46.75712564 | AX41: =ThetaJA_Q2*BD41 -> 11.15818039 | AZ41: 93.06484355 | BA41: =U41 -> 0.7911801239 | BB41: =AG41+AK41+AM41 -> 1.395022606 | BC41: =AG41+AM41*0.66 -> 1.113264896 | BD41: =AK41+AM41*0.33 -> 0.2789545098 | BE41: =AN41 -> 0.09317623629
A42: QgsTop | B42: =Qgs_Q1*1000000000 -> 3.1 | C42: nC | G42: 33 | H42: 48 | I42: 1 | J42: =Iout*G42/100 -> 6.6 | K42: 6.6 | L42: 0.7638888889 | M42: 0.1053771257 | N42: 8.220429338 | O42: 10.71021467 | P42: 2.489785331 | Q42: 0 | R42: 7.013650134 | S42: 0.1401951714 | T42: 0.65 | U42: 0.7991582213 | V42: 2.373033546 | W42: 0.005631288209 | X42: 0.005631288209 | Y42: 2.153462291 | Z42: 0.004637399838 | AA42: 0.004637399838 | AB42: 2.276760101 | AC42: 0.05961182043 | AD42: 0.3186551351 | AE42: 0.554016 | AF42: 0 | AG42: 0.9417140198 | AH42: 6.63382632 | AI42: 0.1452252504 | AJ42: 0.0462 | AK42: 0.195979027 | AL42: 0.0462 | AM42: 0.28908 | AN42: 0.09838257642 | AO42: 0.00168 | AP42: ='Variable Management'!$B$346 -> 0.04875 | AQ42: 0.439163227 | AR42: 0.41925 | AS42: 0.05043 | AT42: 2.431212533 | AU42: 33 | AV42: 0.9313821809 | AW42: 47.56528643 | AX42: 11.65501708 | AZ42: 93.13821809 | BA42: 0.7991582213 | BB42: 1.426773047 | BC42: 1.13250682 | BD42: 0.291375427 | BE42: 0.09838257642
A43: RGateTop | B43: =Rgate1 -> 1.2 | C43: W | D43: Gate Resistance | G43: 34 | H43: 48 | I43: 1 | J43: 6.8 | K43: 6.8 | L43: 0.787037037 | M43: 0.1054138385 | N43: 8.222743223 | O43: 10.91137161 | P43: 2.688628389 | Q43: 0 | R43: 7.202392578 | S43: 0.1478422077 | T43: 0.65 | U43: 0.8073915314 | V43: 2.373701507 | W43: 0.005634458843 | X43: 0.005634458843 | Y43: 2.211753338 | Z43: 0.004891852827 | AA43: 0.004891852827 | AB43: 2.33843662 | AC43: 0.062885287 | AD43: 0.3283113514 | AE43: 0.554016 | AF43: 0 | AG43: 0.9553051779 | AH43: 6.812207646 | AI43: 0.153140371 | AJ43: 0.0476 | AK43: 0.2057825495 | AL43: 0.0476 | AM43: 0.29784 | AN43: 0.1037489177 | AO43: 0.00168 | AP43: ='Variable Management'!$B$346 -> 0.04875 | AQ43: 0.439163227 | AR43: 0.41925 | AS43: 0.05043 | AT43: 2.478624488 | AU43: 34 | AV43: 0.9320526878 | AW43: 48.37894227 | AX43: 12.16278998 | AZ43: 93.20526878 | BA43: 0.8073915314 | BB43: 1.458927727 | BC43: 1.151879578 | BD43: 0.3040697495 | BE43: 0.1037489177
A44: GfsTop | B44: =Gfs_Q1 -> 55 | C44: S | D44: Transconductance of Top FET | G44: 35 | H44: 48 | I44: 1 | J44: 7 | K44: 7 | L44: 0.8101851852 | M44: 0.1054505532 | N44: 8.225056873 | O44: 11.11252844 | P44: 2.887471564 | Q44: 0 | R44: 7.391727136 | S44: 0.1557172456 | T44: 0.65 | U44: 0.8158809848 | V44: 2.3743694 | W44: 0.005637630046 | X44: 0.005637630046 | Y44: 2.270243984 | Z44: 0.005154007748 | AA44: 0.005154007748 | AB44: 2.40032671 | AC44: 0.06625803562 | AD44: 0.3379675676 | AE44: 0.554016 | AF44: 0 | AG44: 0.9690281952 | AH44: 6.991141662 | AI44: 0.1612910037 | AJ44: 0.049 | AK44: 0.2158616505 | AL44: 0.049 | AM44: 0.3066 | AN44: 0.1092752601 | AO44: 0.00168 | AP44: ='Variable Management'!$B$346 -> 0.04875 | AQ44: 0.439163227 | AR44: 0.41925 | AS44: 0.05043 | AT44: 2.526867728 | AU44: 35 | AV44: 0.9326651042 | AW44: 49.1981362 | AX44: 12.68158602 | AZ44: 93.26651042 | BA44: 0.8158809848 | BB44: 1.491489846 | BC44: 1.171384195 | BD44: 0.3170396505 | BE44: 0.1092752601
A45: VthTop | B45: =Vth_Q1 -> 3 | C45: V | D45: Threshold Voltage of Top FET | G45: 36 | H45: 48 | I45: 1 | J45: 7.2 | K45: 7.2 | L45: 0.8333333333 | M45: 0.1054872698 | N45: 8.227370287 | O45: 11.31368514 | P45: 3.086314856 | Q45: 0 | R45: 7.581609448 | S45: 0.1638202852 | T45: 0.65 | U45: 0.8246275427 | V45: 2.375037225 | W45: 0.00564080182 | X45: 0.00564080182 | Y45: 2.328920682 | Z45: 0.005423871545 | AA45: 0.005423871545 | AB45: 2.46241606 | AC45: 0.06973016779 | AD45: 0.3476237838 | AE45: 0.554016 | AF45: 0 | AG45: 0.9828841128 | AH45: 7.170586375 | AI45: 0.1696771196 | AJ45: 0.0504 | AK45: 0.2262185783 | AL45: 0.0504 | AM45: 0.31536 | AN45: 0.1149616036 | AO45: 0.00168 | AP45: ='Variable Management'!$B$346 -> 0.04875 | AQ45: 0.439163227 | AR45: 0.41925 | AS45: 0.05043 | AT45: 2.575946511 | AU45: 36 | AV45: 0.9332240232 | AW45: 50.02291194 | AX45: 13.21149513 | AZ45: 93.32240232 | BA45: 0.8246275427 | BB45: 1.524462691 | BC45: 1.191021713 | BD45: 0.3302873783 | BE45: 0.1149616036
A46: VspTop | B46: =Vsp_Q1 -> 3.363636364 | C46: V | G46: 37 | H46: 48 | I46: 1 | J46: 7.4 | K46: 7.4 | L46: 0.8564814815 | M46: 0.1055239883 | N46: 8.229683466 | O46: 11.51484173 | P46: 3.285158267 | Q46: 0 | R46: 7.771999367 | S46: 0.1721513264 | T46: 0.65 | U46: 0.8336321974 | V46: 2.375704982 | W46: 0.005643974163 | X46: 0.005643974163 | Y46: 2.38777117 | Z46: 0.00570145116 | AA46: 0.00570145116 | AB46: 2.524691717 | AC46: 0.07330178505 | AD46: 0.35728 | AE46: 0.554016 | AF46: 0 | AG46: 0.9968739891 | AH46: 7.350503785 | AI46: 0.1782986895 | AJ46: 0.0518 | AK46: 0.236855658 | AL46: 0.0518 | AM46: 0.32412 | AN46: 0.1208079483 | AO46: 0.00168 | AP46: ='Variable Management'!$B$346 -> 0.04875 | AQ46: 0.439163227 | AR46: 0.41925 | AS46: 0.05043 | AT46: 2.625865218 | AU46: 37 | AV46: 0.933733555 | AW46: 50.85331394 | AX46: 13.75261032 | AZ46: 93.3733555 | BA46: 0.8336321974 | BB46: 1.557849647 | BC46: 1.210793189 | BD46: 0.343815258 | BE46: 0.1208079483
A47: VsdTop | B47: =Vsd_Q1 -> 0.7 | C47: V | G47: 38 | H47: 48 | I47: 1 | J47: 7.6 | K47: 7.6 | L47: 0.8796296296 | M47: 0.1055607088 | N47: 8.231996411 | O47: 11.71599821 | P47: 3.484001795 | Q47: 0 | R47: 7.962860483 | S47: 0.1807103692 | T47: 0.65 | U47: 0.8428959726 | V47: 2.376372672 | W47: 0.005647147075 | X47: 0.005647147075 | Y47: 2.446784326 | Z47: 0.005986753537 | AA47: 0.005986753537 | AB47: 2.587141934 | AC47: 0.07697298894 | AD47: 0.3669362162 | AE47: 0.554016 | AF47: 0 | AG47: 1.010998899 | AH47: 7.530859426 | AI47: 0.1871556842 | AJ47: 0.0532 | AK47: 0.2477752929 | AL47: 0.0532 | AM47: 0.33288 | AN47: 0.1268142942 | AO47: 0.00168 | AP47: ='Variable Management'!$B$346 -> 0.04875 | AQ47: 0.439163227 | AR47: 0.41925 | AS47: 0.05043 | AT47: 2.676628359 | AU47: 38 | AV47: 0.9341973888 | AW47: 51.68938736 | AX47: 14.30502772 | AZ47: 93.41973888 | BA47: 0.8428959726 | BB47: 1.591654192 | BC47: 1.230699699 | BD47: 0.3576256929 | BE47: 0.1268142942
A48: θJATop | B48: =ThetaJA_Q1 -> 42 | C48: °C/W | D48: Junction to Ambient Resistance | G48: 39 | H48: 48 | I48: 1 | J48: 7.8 | K48: 7.8 | L48: 0.9027777778 | M48: 0.1055974311 | N48: 8.23430912 | O48: 11.91715456 | P48: 3.68284544 | Q48: 0 | R48: 8.154159709 | S48: 0.1894974136 | T48: 0.65 | U48: 0.8524199232 | V48: 2.377040293 | W48: 0.005650320557 | X48: 0.005650320557 | Y48: 2.505950043 | Z48: 0.006279785616 | AA48: 0.006279785616 | AB48: 2.649756035 | AC48: 0.08074388099 | AD48: 0.3765924324 | AE48: 0.554016 | AF48: 0 | AG48: 1.025259936 | AH48: 7.711621977 | AI48: 0.1962480746 | AJ48: 0.0546 | AK48: 0.2589799657 | AL48: 0.0546 | AM48: 0.34164 | AN48: 0.1329806411 | AO48: 0.00168 | AP48: ='Variable Management'!$B$346 -> 0.04875 | AQ48: 0.439163227 | AR48: 0.41925 | AS48: 0.05043 | AT48: 2.728240572 | AU48: 39 | AV48: 0.9346188448 | AW48: 52.5311781 | AX48: 14.86884663 | AZ48: 93.46188448 | BA48: 0.8524199232 | BB48: 1.625879901 | BC48: 1.250742336 | BD48: 0.3717211657 | BE48: 0.1329806411
A49: Low-side FET | B49: Input Value | C49: Units | D49: Description | G49: 40 | H49: 48 | I49: 1 | J49: 8 | K49: 8 | L49: 0.9259259259 | M49: 0.1056341553 | N49: 8.236621594 | O49: 12.1183108 | P49: 3.881689203 | Q49: 0 | R49: 8.345866918 | S49: 0.1985124596 | T49: 0.65 | U49: 0.8622051366 | V49: 2.377707847 | W49: 0.005653494607 | X49: 0.005653494607 | Y49: 2.565259117 | Z49: 0.006580554339 | AA49: 0.006580554339 | AB49: 2.712524298 | AC49: 0.08461456276 | AD49: 0.3862486486 | AE49: 0.554016 | AF49: 0 | AG49: 1.039658209 | AH49: 7.892762922 | AI49: 0.2055758316 | AJ49: 0.056 | AK49: 0.2704722405 | AL49: 0.056 | AM49: 0.3504 | AN49: 0.1393069892 | AO49: 0.00168 | AP49: ='Variable Management'!$B$346 -> 0.04875 | AQ49: 0.439163227 | AR49: 0.41925 | AS49: 0.05043 | AT49: 2.780706624 | AU49: 40 | AV49: 0.9350009188 | AW49: 53.37873279 | AX49: 15.44416962 | AZ49: 93.50009188 | BA49: 0.8622051366 | BB49: 1.66053045 | BC49: 1.270922209 | BD49: 0.3861042405 | BE49: 0.1393069892
A50: RdsonBot | B50: =Rdson2*1000 -> 3.3 | C50: mW | D50: Drain-Source Resistance of Low-side FET | G50: 41 | H50: 48 | I50: 1 | J50: 8.2 | K50: 8.2 | L50: 0.9490740741 | M50: 0.1056708814 | N50: 8.238933833 | O50: 12.31946692 | P50: 4.080533084 | Q50: 0 | R50: 8.537954628 | S50: 0.2077555073 | T50: 0.65 | U50: 0.872252732 | V50: 2.378375333 | W50: 0.005656669225 | X50: 0.005656669225 | Y50: 2.624703154 | Z50: 0.006889066647 | AA50: 0.006889066647 | AB50: 2.775437855 | AC50: 0.08858513582 | AD50: 0.3959048649 | AE50: 0.554016 | AF50: 0 | AG50: 1.054194848 | AH50: 8.074256247 | AI50: 0.215138926 | AJ50: 0.0574 | AK50: 0.2822547639 | AL50: 0.0574 | AM50: 0.35916 | AN50: 0.1457933384 | AO50: 0.00168 | AP50: ='Variable Management'!$B$346 -> 0.04875 | AQ50: 0.439163227 | AR50: 0.41925 | AS50: 0.05043 | AT50: 2.834031418 | AU50: 41 | AV50: 0.9353463205 | AW50: 54.2320988 | AX50: 16.03110255 | AZ50: 93.53463205 | BA50: 0.872252732 | BB50: 1.695609612 | BC50: 1.291240448 | BD50: 0.4007775639 | BE50: 0.1457933384
A51: RdsonBotTc | B51: =RdsonBotTc*1000000 -> 4000 | C51: ppm | D51: Drain To Source Resitance Temp Co | G51: 42 | H51: 48 | I51: 1 | J51: 8.4 | K51: 8.4 | L51: 0.9722222222 | M51: 0.1057076094 | N51: 8.241245836 | O51: 12.52062292 | P51: 4.279377082 | Q51: 0 | R51: 8.730397724 | S51: 0.2172265566 | T51: 0.65 | U51: 0.8825638613 | V51: 2.379042751 | W51: 0.005659844411 | X51: 0.005659844411 | Y51: 2.684274479 | Z51: 0.00720532948 | AA51: 0.00720532948 | AB51: 2.838488602 | AC51: 0.09265570175 | AD51: 0.4055610811 | AE51: 0.554016 | AF51: 0 | AG51: 1.068870998 | AH51: 8.256078177 | AI51: 0.2249373287 | AJ51: 0.0588 | AK51: 0.2943302669 | AL51: 0.0588 | AM51: 0.36792 | AN51: 0.1524396888 | AO51: 0.00168 | AP51: ='Variable Management'!$B$346 -> 0.04875 | AQ51: 0.439163227 | AR51: 0.41925 | AS51: 0.05043 | AT51: 2.888219988 | AU51: 42 | AV51: 0.9356575068 | AW51: 55.0913243 | AX51: 16.62975468 | AZ51: 93.56575068 | BA51: 0.8825638613 | BB51: 1.731121264 | BC51: 1.311698198 | BD51: 0.4157438669 | BE51: 0.1524396888
A52: QgBot | B52: =Qg_Q2*1000000000 -> 31 | C52: nC | D52: Gate Charge Of Top FET | G52: 43 | H52: 48 | I52: 1 | J52: 8.6 | K52: 8.6 | L52: 0.9953703704 | M52: 0.1057443393 | N52: 8.243557605 | O52: 12.7217788 | P52: 4.478221198 | Q52: 0 | R52: 8.923173212 | S52: 0.2269256075 | T52: 0.65 | U52: 0.8931397092 | V52: 2.379710101 | W52: 0.005663020165 | X52: 0.005663020165 | Y52: 2.743966067 | Z52: 0.007529349777 | AA52: 0.007529349777 | AB52: 2.901669117 | AC52: 0.09682636213 | AD52: 0.4152172973 | AE52: 0.554016 | AF52: 0 | AG52: 1.083687824 | AH52: 8.438206948 | AI52: 0.2349710105 | AJ52: 0.0602 | AK52: 0.3067015668 | AL52: 0.0602 | AM52: 0.37668 | AN52: 0.1592460403 | AO52: 0.00168 | AP52: ='Variable Management'!$B$346 -> 0.04875 | AQ52: 0.439163227 | AR52: 0.41925 | AS52: 0.05043 | AT52: 2.94327751 | AU52: 43 | AV52: 0.93593671 | AW52: 55.9564582 | AX52: 17.24023867 | AZ52: 93.593671 | BA52: 0.8931397092 | BB52: 1.767069391 | BC52: 1.332296624 | BD52: 0.4310059668 | BE52: 0.1592460403
A53: RGateBot | B53: =Rgate2 -> 1.2 | C53: W | D53: Gate Resistance | G53: 44 | H53: 48 | I53: 1 | J53: 8.8 | K53: 8.8 | L53: 1.018518519 | M53: 0.1057810712 | N53: 8.245869138 | O53: 12.92293457 | P53: 4.677065431 | Q53: 0 | R53: 9.116260005 | S53: 0.23685266 | T53: 0.65 | U53: 0.9039814937 | V53: 2.380377383 | W53: 0.005666196487 | X53: 0.005666196487 | Y53: 2.803771474 | Z53: 0.007861134478 | AA53: 0.007861134478 | AB53: 2.964972594 | AC53: 0.1010972186 | AD53: 0.4248735135 | AE53: 0.554016 | AF53: 0 | AG53: 1.09864651 | AH53: 8.620622599 | AI53: 0.2452399422 | AJ53: 0.0616 | AK53: 0.3193715686 | AL53: 0.0616 | AM53: 0.38544 | AN53: 0.166212393 | AO53: 0.00168 | AP53: ='Variable Management'!$B$346 -> 0.04875 | AQ53: 0.439163227 | AR53: 0.41925 | AS53: 0.05043 | AT53: 2.999209296 | AU53: 44 | AV53: 0.9361859627 | AW53: 56.82755022 | AX53: 17.86267074 | AZ53: 93.61859627 | BA53: 0.9039814937 | BB53: 1.803458079 | BC53: 1.35303691 | BD53: 0.4465667686 | BE53: 0.166212393
A54: VsdBot | B54: =Vsd_Q2 -> 0.7 | C54: V | D54: Diode Forward Voltage of Bottom FET Body Diode | G54: 45 | H54: 48 | I54: 1 | J54: 9 | K54: 9 | L54: 1.041666667 | M54: 0.1058178049 | N54: 8.248180436 | O54: 13.12409022 | P54: 4.875909782 | Q54: 0 | R54: 9.309638735 | S54: 0.2470077141 | T54: 0.65 | U54: 0.9150904665 | V54: 2.381044597 | W54: 0.005669373375 | X54: 0.005669373375 | Y54: 2.86368478 | Z54: 0.00820069052 | AA54: 0.00820069052 | AB54: 3.028392782 | AC54: 0.1054683727 | AD54: 0.4345297297 | AE54: 0.554016 | AF54: 0 | AG54: 1.113748259 | AH54: 8.803306795 | AI54: 0.2557440948 | AJ54: 0.063 | AK54: 0.3323432673 | AL54: 0.063 | AM54: 0.3942 | AN54: 0.1733387468 | AO54: 0.00168 | AP54: ='Variable Management'!$B$346 -> 0.04875 | AQ54: 0.439163227 | AR54: 0.41925 | AS54: 0.05043 | AT54: 3.056020803 | AU54: 45 | AV54: 0.9364071192 | AW54: 57.70465087 | AX54: 18.49717069 | AZ54: 93.64071192 | BA54: 0.9150904665 | BB54: 1.840291526 | BC54: 1.373920259 | BD54: 0.4624292673 | BE54: 0.1733387468
A55: QrrBot | B55: =Qrr_Q2*1000000000 -> 73 | C55: nC | D55: Reverse Recovery Charge of Body Diode | G55: 46 | H55: 48 | I55: 1 | J55: 9.2 | K55: 9.2 | L55: 1.064814815 | M55: 0.1058545405 | N55: 8.250491498 | O55: 13.32524575 | P55: 5.074754251 | Q55: 0 | R55: 9.503291579 | S55: 0.2573907699 | T55: 0.65 | U55: 0.926467913 | V55: 2.381711744 | W55: 0.005672550831 | X55: 0.005672550831 | Y55: 2.923700539 | Z55: 0.008548024842 | AA55: 0.008548024842 | AB55: 3.091923927 | AC55: 0.109939926 | AD55: 0.4441859459 | AE55: 0.554016 | AF55: 0 | AG55: 1.128994292 | AH55: 8.986242667 | AI55: 0.266483439 | AJ55: 0.0644 | AK55: 0.3456197493 | AL55: 0.0644 | AM55: 0.40296 | AN55: 0.1806251017 | AO55: 0.00168 | AP55: ='Variable Management'!$B$346 -> 0.04875 | AQ55: 0.439163227 | AR55: 0.41925 | AS55: 0.05043 | AT55: 3.113717632 | AU55: 46 | AV55: 0.9366018745 | AW55: 58.58781147 | AX55: 19.14386197 | AZ55: 93.66018745 | BA55: 0.926467913 | BB55: 1.877574041 | BC55: 1.394947892 | BD55: 0.4785965493 | BE55: 0.1806251017
A56: TrrBot | B56: =Trr_Q2*1000000000 -> 40 | C56: ns | D56: Reverse Recovery Time of Body Diode | G56: 47 | H56: 48 | I56: 1 | J56: 9.4 | K56: 9.4 | L56: 1.087962963 | M56: 0.105891278 | N56: 8.252802326 | O56: 13.52640116 | P56: 5.273598837 | Q56: 0 | R56: 9.697202115 | S56: 0.2680018272 | T56: 0.65 | U56: 0.9381151532 | V56: 2.382378822 | W56: 0.005675728852 | X56: 0.005675728852 | Y56: 2.983813731 | Z56: 0.00890314438 | AA56: 0.00890314438 | AB56: 3.155560728 | AC56: 0.1145119803 | AD56: 0.4538421622 | AE56: 0.554016 | AF56: 0 | AG56: 1.144385852 | AH56: 9.169414668 | AI56: 0.2774579456 | AJ56: 0.0658 | AK56: 0.3592041949 | AL56: 0.0658 | AM56: 0.41172 | AN56: 0.1880714577 | AO56: 0.00168 | AP56: ='Variable Management'!$B$346 -> 0.04875 | AQ56: 0.439163227 | AR56: 0.41925 | AS56: 0.05043 | AT56: 3.172305531 | AU56: 47 | AV56: 0.9367717808 | AW56: 59.47708418 | AX56: 19.8028718 | AZ56: 93.67717808 | BA56: 0.9381151532 | BB56: 1.915310047 | BC56: 1.416121052 | BD56: 0.4950717949 | BE56: 0.1880714577
A57: θJABot | B57: =ThetaJA_Q2 -> 40 | C57: °C/W | D57: Junction to Ambient Resistance | G57: 48 | H57: 48 | I57: 1 | J57: 9.6 | K57: 9.6 | L57: 1.111111111 | M57: 0.1059280174 | N57: 8.255112918 | O57: 13.72755646 | P57: 5.472443541 | Q57: 0 | R57: 9.891355187 | S57: 0.2788408862 | T57: 0.65 | U57: 0.9500335418 | V57: 2.383045833 | W57: 0.005678907441 | X57: 0.005678907441 | Y57: 3.044019723 | Z57: 0.009266056072 | AA57: 0.009266056072 | AB57: 3.219298292 | AC57: 0.1191846371 | AD57: 0.4634983784 | AE57: 0.554016 | AF57: 0 | AG57: 1.1599242 | AH57: 9.352808453 | AI57: 0.2886675856 | AJ57: 0.0672 | AK57: 0.3730998803 | AL57: 0.0672 | AM57: 0.42048 | AN57: 0.1956778149 | AO57: 0.00168 | AP57: ='Variable Management'!$B$346 -> 0.04875 | AQ57: 0.439163227 | AR57: 0.41925 | AS57: 0.05043 | AT57: 3.2317904 | AU57: 48 | AV57: 0.9369182616 | AW57: 60.37252199 | AX57: 20.47433121 | AZ57: 93.69182616 | BA57: 0.9500335418 | BB57: 1.95350408 | BC57: 1.437441 | BD57: 0.5118582803 | BE57: 0.1956778149
A58: Bottom Schottky | B58: Input Value | C58: Units | D58: Std Units | G58: 49 | H58: 48 | I58: 1 | J58: 9.8 | K58: 9.8 | L58: 1.134259259 | M58: 0.1059647587 | N58: 8.257423275 | O58: 13.92871164 | P58: 5.671288363 | Q58: 0 | R58: 10.08573679 | S58: 0.2899079468 | T58: 0.65 | U58: 0.9622244684 | V58: 2.383712775 | W58: 0.005682086595 | X58: 0.005682086595 | Y58: 3.104314232 | Z58: 0.009636766853 | AA58: 0.009636766853 | AB58: 3.283132096 | AC58: 0.1239579982 | AD58: 0.4731545946 | AE58: 0.554016 | AF58: 0 | AG58: 1.175610618 | AH58: 9.536410763 | AI58: 0.3001123298 | AJ58: 0.0686 | AK58: 0.3873101794 | AL58: 0.0686 | AM58: 0.42924 | AN58: 0.2034441732 | AO58: 0.00168 | AP58: ='Variable Management'!$B$346 -> 0.04875 | AQ58: 0.439163227 | AR58: 0.41925 | AS58: 0.05043 | AT58: 3.292178292 | AU58: 49 | AV58: 0.9370426247 | AW58: 61.27417874 | AX58: 21.15837518 | AZ58: 93.70426247 | BA58: 0.9622244684 | BB58: 1.992160797 | BC58: 1.458909018 | BD58: 0.5289593794 | BE58: 0.2034441732
A59: VfdSky | B59: =VfdSky_Q2 -> 0 | C59: V | D59: Diode Forward Voltage | G59: 50 | H59: 48 | I59: 1 | J59: 10 | K59: 10 | L59: 1.157407407 | M59: 0.1060015019 | N59: 8.259733396 | O59: 14.1298667 | P59: 5.870133302 | Q59: 0 | R59: 10.28033396 | S59: 0.301203009 | T59: 0.65 | U59: 0.9746893584 | V59: 2.38437965 | W59: 0.005685266315 | X59: 0.005685266315 | Y59: 3.164693296 | Z59: 0.01001528366 | AA59: 0.01001528366 | AB59: 3.347057956 | AC59: 0.1288321651 | AD59: 0.4828108108 | AE59: 0.554016 | AF59: 0 | AG59: 1.191446408 | AH59: 9.720209327 | AI59: 0.3117921489 | AJ59: 0.07 | AK59: 0.4018385665 | AL59: 0.07 | AM59: 0.438 | AN59: 0.2113705326 | AO59: 0.00168 | AP59: ='Variable Management'!$B$346 -> 0.04875 | AQ59: 0.439163227 | AR59: 0.41925 | AS59: 0.05043 | AT59: 3.353475416 | AU59: 50 | AV59: 0.9371460736 | AW59: 62.18210914 | AX59: 21.85514266 | AZ59: 93.71460736 | BA59: 0.9746893584 | BB59: 2.031284975 | BC59: 1.480526408 | BD59: 0.5463785665 | BE59: 0.2113705326
A60: QrrSky | B60: =QrrSky_Q2*1000000000 -> 0 | C60: nC | D60: Diode Reverse Recovery Charge | G60: 51 | H60: 48 | I60: 1 | J60: 10.2 | K60: 10.2 | L60: 1.180555556 | M60: 0.1060382471 | N60: 8.262043282 | O60: 14.33102164 | P60: 6.068978359 | Q60: 0 | R60: 10.47513468 | S60: 0.3127260728 | T60: 0.65 | U60: 0.9874296731 | V60: 2.385046457 | W60: 0.0056884466 | X60: 0.0056884466 | Y60: 3.22515324 | Z60: 0.01040161342 | AA60: 0.01040161342 | AB60: 3.411071991 | AC60: 0.1338072395 | AD60: 0.492467027 | AE60: 0.554016 | AF60: 0 | AG60: 1.207432895 | AH60: 9.904192772 | AI60: 0.3237070138 | AJ60: 0.0714 | AK60: 0.4166886183 | AL60: 0.0714 | AM60: 0.44676 | AN60: 0.2194568932 | AO60: 0.00168 | AP60: ='Variable Management'!$B$346 -> 0.04875 | AQ60: 0.439163227 | AR60: 0.41925 | AS60: 0.05043 | AT60: 3.415688139 | AU60: 51 | AV60: 0.9372297171 | AW60: 63.09636877 | AX60: 22.56477673 | AZ60: 93.72297171 | BA60: 0.9874296731 | BB60: 2.070881513 | BC60: 1.502294495 | BD60: 0.5641194183 | BE60: 0.2194568932
A61: Ireverse | B61: =Ireverse -> 0 | C61: mA | D61: Reverse Leakage Current | G61: 52 | H61: 48 | I61: 1 | J61: 10.4 | K61: 10.4 | L61: 1.203703704 | M61: 0.1060749941 | N61: 8.264352933 | O61: 14.53217647 | P61: 6.267823534 | Q61: 0 | R61: 10.67012781 | S61: 0.3244771382 | T61: 0.65 | U61: 1.00044691 | V61: 2.385713195 | W61: 0.00569162745 | X61: 0.00569162745 | Y61: 3.285690655 | Z61: 0.01079576308 | AA61: 0.01079576308 | AB61: 3.475170601 | AC61: 0.1388833231 | AD61: 0.5021232432 | AE61: 0.554016 | AF61: 0 | AG61: 1.223571422 | AH61: 10.08835055 | AI61: 0.3358568953 | AJ61: 0.0728 | AK61: 0.4318640165 | AL61: 0.0728 | AM61: 0.45552 | AN61: 0.2277032549 | AO61: 0.00168 | AP61: ='Variable Management'!$B$346 -> 0.04875 | AQ61: 0.439163227 | AR61: 0.41925 | AS61: 0.05043 | AT61: 3.478822994 | AU61: 52 | AV61: 0.9372945782 | AW61: 64.01701413 | AX61: 23.28742466 | AZ61: 93.72945782 | BA61: 1.00044691 | BB61: 2.110955439 | BC61: 1.524214622 | BD61: 0.5821856165 | BE61: 0.2277032549
